Workbook

Sheet Evaluations
A4: Evaluation Details
A5: Job Title | B5: IESO Business Unit | C5: KH | G5: PS | K5: AC | O5: Hay Pts | P5: SP
C6: PTK | D6: POI | E6: CIS | F6: pts | G6: TKE | H6: TKC | I6: % | J6: pts | K6: FTA | L6: MAG | M6: NOI | N6: pts
A7: Director, Market Operations | B7: Market & Systems Operations | C7: F+ | D7: III- | E7: 3 | F7: 528 | G7: F | H7: 4 | I7: 0.5 | J7: 264 | K7: F | L7: 5 | M7: C | N7: 400 | O7: =F7+J7+N7 -> 1192 | P7: A3
A8: Director, Power Systems Assessments | B8: Market & Systems Operations | C8: F+ | D8: III- | E8: 3 | F8: 528 | G8: F | H8: 4 | I8: 0.5 | J8: 264 | K8: F | L8: 5 | M8: C | N8: 400 | O8: 1192 | P8: A3
A9: Director, MACD | B9: CEO | C9: F+ | D9: III- | E9: 3 | F9: 528 | G9: F | H9: 4 | I9: 0.5 | J9: 264 | K9: F | L9: 4 | M9: C | N9: 304 | O9: 1096 | P9: A1
A10: Director, Contract Management | B10: Market & Resource Development | C10: F+ | D10: II | E10: 3 | F10: 460 | G10: F | H10: 4 | I10: 0.5 | J10: 230 | K10: E+ | L10: 5 | M10: C | N10: 304 | O10: 994 | P10: A2
A11: Director, Human Resources | B11: Corporate Services | C11: F+ | D11: II | E11: 3 | F11: 460 | G11: F | H11: 4 | I11: 0.5 | J11: 230 | K11: F | L11: 4 | M11: C | N11: 304 | O11: 994 | P11: A2
A12: Director, Settlements | B12: Corporate Services | C12: F+ | D12: II | E12: 3 | F12: 460 | G12: F | H12: 4 | I12: 0.5 | J12: 230 | K12: E+ | L12: 5 | M12: C | N12: 304 | O12: 994 | P12: A2
A13: Director, Smart Metering | B13: Information & Technology Services | C13: F+ | D13: II | E13: 3 | F13: 460 | G13: F | H13: 4 | I13: 0.5 | J13: 230 | K13: E | L13: 5 | M13: C | N13: 264 | O13: 954 | P13: A1
A14: General Counsel | B14: Planning, Law & Aboriginal Relations | C14: F+ | D14: II | E14: 3 | F14: 460 | G14: F | H14: 4 | I14: 0.5 | J14: 230 | K14: F- | L14: 4 | M14: C | N14: 264 | O14: 954 | P14: A1
A15: Director, Markets | B15: Market & Resource Development | C15: F | D15: II | E15: 3 | F15: 400 | G15: F | H15: 4 | I15: 0.5 | J15: 200 | K15: E | L15: 5 | M15: C | N15: 264 | O15: 864 | P15: A2
A16: Manager, Stakeholder & Public Affairs | B16: Conservation & Corporate Relations | C16: F | D16: II | E16: 3 | F16: 400 | G16: F | H16: 4 | I16: 0.5 | J16: 200 | K16: F- | L16: 4 | M16: C | N16: 264 | O16: 864 | P16: A2
A17: Corporate Controller | B17: Corporate Services | C17: F | D17: II | E17: 3 | F17: 400 | G17: E+ | H17: 4 | I17: 0.5 | J17: 200 | K17: E+ | L17: 4 | M17: C | N17: 230 | O17: 830 | P17: A1
A18: Director, Clean Energy Procurement | B18: Market & Resource Development | C18: F | D18: II | E18: 3 | F18: 400 | G18: E+ | H18: 4 | I18: 0.5 | J18: 200 | K18: E | L18: 5- | M18: C | N18: 230 | O18: 830 | P18: A1
A19: Director, Corporate and Commercial Law Group | B19: Planning, Law & Aboriginal Relations | C19: F | D19: II | E19: 3 | F19: 400 | G19: E+ | H19: 4 | I19: 0.5 | J19: 200 | K19: E+ | L19: 4 | M19: C | N19: 230 | O19: 830 | P19: A1
A20: Director, Financial Planning & Analysis | B20: Corporate Services | C20: F | D20: II | E20: 3 | F20: 400 | G20: E+ | H20: 4 | I20: 0.5 | J20: 200 | K20: E+ | L20: 4 | M20: C | N20: 230 | O20: 830 | P20: A1
A21: Director, Policy & Analysis | B21: Market & Resource Development | C21: F | D21: II | E21: 3 | F21: 400 | G21: F | H21: 4 | I21: 0.5 | J21: 200 | K21: E | L21: 4 | M21: C+ | N21: 230 | O21: 830 | P21: A1
A22: Director, Renewables Procurement | B22: Market & Resource Development | C22: F | D22: II | E22: 3 | F22: 400 | G22: E+ | H22: 4 | I22: 0.5 | J22: 200 | K22: E | L22: 5- | M22: C | N22: 230 | O22: 830 | P22: A1
A23: Director, Resource Integration | B23: Planning, Law & Aboriginal Relations | C23: F | D23: II | E23: 3 | F23: 400 | G23: E+ | H23: 4 | I23: 0.5 | J23: 200 | K23: E- | L23: 5 | M23: C | N23: 230 | O23: 830 | P23: A1
A24: Director, Transmission Integration | B24: Planning, Law & Aboriginal Relations | C24: F | D24: II | E24: 3 | F24: 400 | G24: E+ | H24: 4 | I24: 0.5 | J24: 200 | K24: E- | L24: 5 | M24: C | N24: 230 | O24: 830 | P24: A1
A25: Manager, Business Solutions | B25: Information & Technology Services | C25: F | D25: II | E25: 3 | F25: 400 | G25: F | H25: 4 | I25: 0.5 | J25: 200 | K25: E | L25: 5- | M25: C | N25: 230 | O25: 830 | P25: A1
A26: Manager, Internal Audit | B26: CEO | C26: F | D26: II | E26: 3 | F26: 400 | G26: E+ | H26: 4 | I26: 0.5 | J26: 200 | K26: E+ | L26: 4 | M26: C | N26: 230 | O26: 830 | P26: A1
A27: Director, Business Development | B27: Conservation & Corporate Relations | C27: F | D27: II | E27: 3 | F27: 400 | G27: E+ | H27: 4 | I27: 0.5 | J27: 200 | K27: E | L27: 4 | M27: C+ | N27: 230 | O27: 830 | P27: A1
A28: Director, Conservation Performance | B28: Conservation & Corporate Relations | C28: F | D28: II | E28: 3 | F28: 400 | G28: E+ | H28: 4 | I28: 0.5 | J28: 200 | K28: E | L28: 4 | M28: C+ | N28: 230 | O28: 830 | P28: A1
A29: Manager Market Facilitation | B29: Market & Systems Operations | C29: F | D29: II | E29: 3 | F29: 400 | G29: E | H29: 4 | I29: 0.43 | J29: 175 | K29: E | L29: 5- | M29: C | N29: 230 | O29: 805 | P29: A2
A30: Manager, Emergency Preparedness | B30: Market & Systems Operations | C30: F | D30: II | E30: 3 | F30: 400 | G30: E | H30: 4 | I30: 0.43 | J30: 175 | K30: E | L30: 5- | M30: C | N30: 230 | O30: 805 | P30: A2
A31: Manager, Market Forecasts & Integration | B31: Market & Systems Operations | C31: F | D31: II | E31: 3 | F31: 400 | G31: E | H31: 4 | I31: 0.43 | J31: 175 | K31: E | L31: 5- | M31: C | N31: 230 | O31: 805 | P31: A2
A32: Manager, Reliability Standards & Assessments | B32: Market & Systems Operations | C32: F | D32: II | E32: 3 | F32: 400 | G32: E | H32: 4 | I32: 0.43 | J32: 175 | K32: E | L32: 5- | M32: C | N32: 230 | O32: 805 | P32: A2
A33: Manager, Shift Operations | B33: Market & Systems Operations | C33: F | D33: II | E33: 3 | F33: 400 | G33: E | H33: 4 | I33: 0.43 | J33: 175 | K33: E | L33: 5- | M33: C | N33: 230 | O33: 805 | P33: A2
A34: Manager, Systems Performance & Models | B34: Market & Systems Operations | C34: F | D34: II | E34: 3 | F34: 400 | G34: E | H34: 4 | I34: 0.43 | J34: 175 | K34: E | L34: 5- | M34: C | N34: 230 | O34: 805 | P34: A2
A35: Manager, Treasury & Pension Operations | B35: Corporate Services | C35: F | D35: II | E35: 3 | F35: 400 | G35: E | H35: 4 | I35: 0.43 | J35: 175 | K35: E+ | L35: 4 | M35: C | N35: 230 | O35: 805 | P35: A2
A36: Manager, Operations Change Initiatives | B36: Market & Systems Operations | C36: F | D36: II | E36: 3 | F36: 400 | G36: E | H36: 4 | I36: 0.43 | J36: 175 | K36: E | L36: 5- | M36: C | N36: 230 | O36: 805 | P36: A2
A37: Manager, Organizational Governance & Support | B37: Information & Technology Services | C37: F | D37: II | E37: 3 | F37: 400 | G37: E | H37: 4 | I37: 0.43 | J37: 175 | K37: E | L37: 4 | M37: C | N37: 200 | O37: 775 | P37: A1
A38: Manager, Technology Support | B38: Information & Technology Services | C38: F | D38: II | E38: 3 | F38: 400 | G38: E | H38: 4 | I38: 0.43 | J38: 175 | K38: E | L38: 4 | M38: C | N38: 200 | O38: 775 | P38: A1
A39: Director, Strategic Engagement & Innovation | B39: Conservation & Corporate Relations | C39: F | D39: II | E39: 3 | F39: 400 | G39: E | H39: 4 | I39: 0.43 | J39: 175 | K39: E- | L39: 4 | M39: C | N39: 175 | O39: 750 | P39: L
A40: Manager, Program Delivery & Partner Services | B40: Conservation & Corporate Relations | C40: F | D40: II | E40: 3 | F40: 400 | G40: E | H40: 4 | I40: 0.43 | J40: 175 | K40: E- | L40: 4 | M40: C | N40: 175 | O40: 750 | P40: L
A41: Manager, Human Resources (Employee & Labour Relations) | B41: Corporate Services | C41: F | D41: I+ | E41: 3 | F41: 350 | G41: E | H41: 4- | I41: 0.43 | J41: 152 | K41: E | L41: 4 | M41: C | N41: 200 | O41: 702 | P41: A2
A42: Manager, Meter Data Management | B42: Corporate Services | C42: F | D42: I+ | E42: 3 | F42: 350 | G42: E | H42: 4- | I42: 0.43 | J42: 152 | K42: E | L42: 2 | M42: P | N42: 200 | O42: 702 | P42: A2
A43: Manager, Settlement Support | B43: Corporate Services | C43: F | D43: I+ | E43: 3 | F43: 350 | G43: E | H43: 4- | I43: 0.43 | J43: 152 | K43: E | L43: 2 | M43: P | N43: 200 | O43: 702 | P43: A2
A44: Manager, Special Projects | B44: Market & Resource Development | C44: F | D44: I+ | E44: 3 | F44: 350 | G44: E | H44: 4 | I44: 0.43 | J44: 152 | K44: E | L44: 4 | M44: C | N44: 200 | O44: 702 | P44: A2
A45: Manager, First Nations | B45: Planning, Law & Aboriginal Relations | C45: F | D45: I+ | E45: 3 | F45: 350 | G45: E | H45: 4 | I45: 0.43 | J45: 152 | K45: E | L45: 4- | M45: C | N45: 175 | O45: 677 | P45: A1
A46: Manager, Human Resources (Total Rewards) | B46: Corporate Services | C46: F | D46: I+ | E46: 3 | F46: 350 | G46: E | H46: 4 | I46: 0.43 | J46: 152 | K46: E | L46: 4- | M46: C | N46: 175 | O46: 677 | P46: A1
A47: Manager, Regulatory Affairs | B47: Planning, Law & Aboriginal Relations | C47: F | D47: I+ | E47: 3 | F47: 350 | G47: E | H47: 4 | I47: 0.43 | J47: 152 | K47: E- | L47: 4 | M47: C | N47: 175 | O47: 677 | P47: A1
A48: Manager, Smart Metering | B48: Information & Technology Services | C48: F | D48: II- | E48: 3 | F48: 350 | G48: E | H48: 4 | I48: 0.43 | J48: 152 | K48: E- | L48: 2 | M48: P | N48: 175 | O48: 677 | P48: A1
A49: Senior Counsel Manager | B49: Planning, Law & Aboriginal Relations | C49: F | D49: I+ | E49: 3 | F49: 350 | G49: E | H49: 4 | I49: 0.43 | J49: 152 | K49: E | L49: 3 | M49: C | N49: 152 | O49: 654 | P49: L
A50: Manager, Finance & Accounting | B50: Corporate Services | C50: F | D50: I | E50: 3 | F50: 304 | G50: E | H50: 4 | I50: 0.43 | J50: 132 | K50: D+ | L50: 4 | M50: C | N50: 152 | O50: 588 | P50: A1
A51: Manager, Learning & Organizational Development | B51: Corporate Services | C51: F | D51: I | E51: 3 | F51: 304 | G51: E | H51: 4 | I51: 0.43 | J51: 132 | K51: D+ | L51: 4 | M51: C | N51: 152 | O51: 588 | P51: A1
A52: Manager, RESOP/FIT | B52: Market & Resource Development | C52: F | D52: I | E52: 3 | F52: 304 | G52: E | H52: 4 | I52: 0.43 | J52: 132 | K52: D+ | L52: 4 | M52: C | N52: 152 | O52: =F52+J52+N52 -> 588 | P52: A1
A53: Manager, FIT & microFIT | B53: Market & Resource Development | C53: F | D53: I | E53: 3 | F53: 304 | G53: E | H53: 4 | I53: 0.43 | J53: 132 | K53: D+ | L53: 4 | M53: C | N53: 152 | O53: 588 | P53: A1
A54: Manager, Contract Management (Commercial Services) | B54: Market & Resource Development | C54: F | D54: I | E54: 3 | F54: 304 | G54: E | H54: 4 | I54: 0.43 | J54: 132 | K54: D+ | L54: 4 | M54: C | N54: 152 | O54: 588 | P54: A1
A55: Manager, Contract Management (Vacant role) | B55: Market & Resource Development | C55: F | D55: I | E55: 3 | F55: 304 | G55: E | H55: 4 | I55: 0.43 | J55: 132 | K55: D+ | L55: 4 | M55: C | N55: 152 | O55: 588 | P55: A1
A56: Manager, Market Change Initiatives | B56: Market & Resource Development | C56: F | D56: I | E56: 3 | F56: 304 | G56: E | H56: 4 | I56: 0.43 | J56: 132 | K56: D+ | L56: 4 | M56: C | N56: 152 | O56: 588 | P56: A1
A57: Manager, Procurement Operations | B57: Market & Resource Development | C57: F | D57: I | E57: 3 | F57: 304 | G57: E | H57: 4 | I57: 0.43 | J57: 132 | K57: D+ | L57: 4 | M57: C | N57: 152 | O57: 588 | P57: A1
A58: Manager, Renewable Generation Procurement | B58: Market & Resource Development | C58: F | D58: I | E58: 3 | F58: 304 | G58: E | H58: 4 | I58: 0.43 | J58: 132 | K58: D+ | L58: 4 | M58: C | N58: 152 | O58: 588 | P58: A1
A59: Control Room Supervisor | B59: Market & Systems Operations | C59: F | D59: I | E59: 3 | F59: 304 | G59: E | H59: 4 | I59: 0.43 | J59: 132 | K59: D+ | L59: 2 | M59: P | N59: 152 | O59: 588 | P59: A1
A60: Section Head Communications | B60: Conservation & Corporate Relations | C60: E | D60: II | E60: 3 | F60: 304 | G60: E | H60: 4 | I60: 0.43 | J60: 132 | K60: D+ | L60: 4 | M60: C | N60: 152 | O60: 588 | P60: A1
A61: Manager Alliances | B61: Conservation & Corporate Relations | C61: E | D61: II | E61: 3 | F61: 304 | G61: D+ | H61: 4- | I61: 0.38 | J61: 115 | K61: D+ | L61: 4 | M61: C | N61: 152 | O61: 571 | P61: A2
A62: Superintendent Operations | B62: Market & Systems Operations | C62: F | D62: I | E62: 3 | F62: 304 | G62: D | H62: 4 | I62: 0.38 | J62: 115 | K62: D+ | L62: 2 | M62: P | N62: 152 | O62: =F62+J62+N62 -> 571 | P62: A2
A63: Section Head Planning & Assessments | B63: Market & Systems Operations | C63: F | D63: I | E63: 3 | F63: 304 | G63: D | H63: 4 | I63: 0.38 | J63: 115 | K63: D+ | L63: 2 | M63: P | N63: 152 | O63: 571 | P63: A2
A64: Section Head Shift Operations Support | B64: Market & Systems Operations | C64: F | D64: I | E64: 3 | F64: 304 | G64: D | H64: 4 | I64: 0.38 | J64: 115 | K64: D+ | L64: 2 | M64: P | N64: 152 | O64: 571 | P64: A2
A65: Manager Technical Services | B65: Conservation & Corporate Relations | C65: E | D65: II | E65: 3 | F65: 304 | G65: D+ | H65: 4- | I65: 0.38 | J65: 115 | K65: D+ | L65: 4 | M65: C | N65: 152 | O65: 571 | P65: A2
A66: Market Transformation Manager | B66: Conservation & Corporate Relations | C66: E | D66: II | E66: 3 | F66: 304 | G66: D+ | H66: 4- | I66: 0.38 | J66: 115 | K66: D+ | L66: 4 | M66: C | N66: 152 | O66: 571 | P66: A2
A67: Section Head, ITI | B67: Information & Technology Services | C67: F | D67: I | E67: 3 | F67: 304 | G67: D | H67: 4 | I67: 0.38 | J67: 115 | K67: D+ | L67: 4 | M67: C | N67: 152 | O67: 571 | P67: A2
A68: Section Head, IT Operations | B68: Information & Technology Services | C68: F | D68: I | E68: 3 | F68: 304 | G68: D | H68: 4 | I68: 0.38 | J68: 115 | K68: D+ | L68: 4 | M68: C | N68: 152 | O68: 571 | P68: A2
A69: Manager Customer Relations | B69: Conservation & Corporate Relations | C69: E | D69: II | E69: 3 | F69: 304 | G69: D+ | H69: 4- | I69: 0.38 | J69: 115 | K69: D | L69: 4 | M69: C | N69: 132 | O69: 551 | P69: A1
A70: Manager, Conservation Intelligence and Analytics | B70: Conservation & Corporate Relations | C70: E | D70: II | E70: 3 | F70: 304 | G70: D+ | H70: 4- | I70: 0.38 | J70: 115 | K70: D | L70: 4 | M70: C | N70: 132 | O70: 551 | P70: A1
A71: Manager, Financial Planning & Analysis | B71: Corporate Services | C71: F | D71: I | E71: 3 | F71: 304 | G71: E | H71: 3+ | I71: 0.38 | J71: 115 | K71: D+ | L71: 4- | M71: C | N71: 132 | O71: 551 | P71: A1
A72: Manager, Human Resources (Business Partner) | B72: Corporate Services | C72: F- | D72: I+ | E72: 3 | F72: 304 | G72: E | H72: 3+ | I72: 0.38 | J72: 115 | K72: D+ | L72: 4- | M72: C | N72: 132 | O72: 551 | P72: A1
A73: Manager, Procure to Pay | B73: Corporate Services | C73: E | D73: II | E73: 3 | F73: 304 | G73: E | H73: 3+ | I73: 0.38 | J73: 115 | K73: D+ | L73: 4- | M73: C | N73: 132 | O73: 551 | P73: A1
A74: Manager, Contract Management (Contract & Support Services) | B74: Market & Resource Development | C74: E+ | D74: I | E74: 3 | F74: 264 | G74: D | H74: 4 | I74: 0.38 | J74: 100 | K74: D | L74: 4- | M74: C | N74: 115 | O74: 479 | P74: A1
A75: Manager, IT Operations | B75: Information & Technology Services | C75: E+ | D75: I | E75: 3 | F75: 264 | G75: E | H75: 3+ | I75: 0.38 | J75: 100 | K75: D+ | L75: 3 | M75: C | N75: 115 | O75: =F75+J75+N75 -> 479 | P75: A1
A76: Manager, IT Solutions | B76: Information & Technology Services | C76: E+ | D76: I | E76: 3 | F76: 264 | G76: E | H76: 3+ | I76: 0.38 | J76: 100 | K76: D+ | L76: 3 | M76: C | N76: 115 | O76: 479 | P76: A1
A77: Manager, Project & Portfolio | B77: Market & Resource Development | C77: E+ | D77: I | E77: 3 | F77: 264 | G77: D | H77: 4 | I77: 0.38 | J77: 100 | K77: D | L77: 4- | M77: C | N77: 115 | O77: 479 | P77: A1
A78: Section Head Corporate Business Management | B78: Corporate Services | C78: E+ | D78: I | E78: 3 | F78: 264 | G78: E | H78: 3+ | I78: 0.38 | J78: 100 | K78: D+ | L78: 3 | M78: C | N78: 115 | O78: 479 | P78: A1
A79: Section Head-Talent Acquisition & Management | B79: Corporate Services | C79: E+ | D79: I | E79: 3 | F79: 264 | G79: E | H79: 3+ | I79: 0.38 | J79: 100 | K79: D+ | L79: 3 | M79: C | N79: 115 | O79: 479 | P79: A1
A80: Manager Office and Facilities Management | B80: Information & Technology Services | C80: D+ | D80: I | E80: 3 | F80: 200 | G80: D | H80: 3 | I80: 0.29 | J80: 57 | K80: C | L80: 1 | M80: P | N80: 66 | O80: 323 | P80: A1

Sheet Grade Structure
A1: IESO Grading Structure
A2: Incumbent Data | G2: Grade Structure
A3: Title | B3: Total Points | C3: Grade | D3: Pay Grade | E3: Fit | G3: Start | H3: Midpoint | I3: End | J3: Grade | K3: Range Spread | L3: bottom | M3: top | N3: tolerance #
G4: 122 | H4: =AVERAGE(G4,I4) -> 153 | I4: =ROUND(G4*(1+K4),0) -> 184 | J4: 8 | K4: 0.51 | L4: =G4+N4 -> 125.1 | M4: =I4-N4 -> 180.9 | N4: =(I4-G4)*J$28 -> 3.1
G5: =+I4+1 -> 185 | H5: 231.5 | I5: 278 | J5: 7 | K5: 0.5 | L5: 189.65 | M5: 273.35 | N5: =(I5-G5)*J$28 -> 4.65
G6: =+I5+1 -> 279 | H6: 349 | I6: 419 | J6: 6 | K6: 0.5 | L6: 286 | M6: 412 | N6: 7
G7: 420 | H7: =AVERAGE(G7,I7) -> 525 | I7: =ROUND(G7*(1+K7),0) -> 630 | J7: 5 | K7: 0.5 | L7: =G7+N7 -> 430.5 | M7: =I7-N7 -> 619.5 | N7: =(I7-G7)*J$28 -> 10.5
G8: =+I7+1 -> 631 | H8: =AVERAGE(G8,I8) -> 725.5 | I8: =ROUND(G8*(1+K8),0) -> 820 | J8: 4 | K8: 0.3 | L8: =G8+N8 -> 640.45 | M8: =I8-N8 -> 810.55 | N8: =(I8-G8)*J$28 -> 9.45
G9: =+I8+1 -> 821 | H9: 1026.5 | I9: =ROUND(G9*(1+K9),0) -> 1232 | J9: 3 | K9: 0.5 | L9: 841.55 | M9: 1211.45 | N9: =(I9-G9)*J$28 -> 20.55
A10: =Evaluations!A7 -> Director, Market Operations | B10: =Evaluations!O7 -> 1192 | C10: =IFERROR(VLOOKUP($B10,$G$4:$J$10,4,1),"") -> 3 | D10: =IFERROR(VLOOKUP($B10,$G$14:$J$26,4,1),"") -> 3H | E10: =IFERROR(IF(B10="","",IF(VLOOKUP($C10,J$4:N$10,3,0)>B10,"L",IF(VLOOKUP(C10,J$4:N$10,4,0)<B10,"H",""))),"") ->  | G10: =+I9+1 -> 1233 | H10: =AVERAGE(G10,I10) -> 1541.5 | I10: =ROUND(G10*(1+K10),0) -> 1850 | J10: 2 | K10: 0.5 | L10: =G10+N10 -> 1263.85 | M10: =I10-N10 -> 1819.15 | N10: =(I10-G10)*J$28 -> 30.85
A11: =Evaluations!A8 -> Director, Power Systems Assessments | B11: =Evaluations!O8 -> 1192 | C11: 3 | D11: 3H
A12: =Evaluations!A9 -> Director, MACD | B12: =Evaluations!O9 -> 1096 | C12: 3 | D12: 3H | G12: Pay Structure
A13: =Evaluations!A10 -> Director, Contract Management | B13: =Evaluations!O10 -> 994 | C13: 3 | D13: 3L | G13: Start | H13: Midpoint | I13: End | J13: Grade | K13: Range Spread
A14: =Evaluations!A11 -> Director, Human Resources | B14: =Evaluations!O11 -> 994 | C14: 3 | D14: 3L | G14: 122 | H14: 136 | I14: 149 | J14: 8L | K14: 0.224
A15: =Evaluations!A12 -> Director, Settlements | B15: =Evaluations!O12 -> 994 | C15: 3 | D15: 3L | G15: 150 | H15: 167 | I15: 184 | J15: 8H | K15: 0.224
A16: =Evaluations!A13 -> Director, Smart Metering | B16: =Evaluations!O13 -> 954 | C16: 3 | D16: 3L | G16: 185 | H16: 206 | I16: 226 | J16: 7L | K16: 0.224
A17: =Evaluations!A14 -> General Counsel | B17: =Evaluations!O14 -> 954 | C17: 3 | D17: 3L | G17: 227 | H17: 253 | I17: 278 | J17: 7H | K17: 0.224
A18: =Evaluations!A15 -> Director, Markets | B18: =Evaluations!O15 -> 864 | C18: 3 | D18: 3L | G18: 279 | H18: 310 | I18: 341 | J18: 6L | K18: 0.224
A19: =Evaluations!A16 -> Manager, Stakeholder & Public Affairs | B19: =Evaluations!O16 -> 864 | C19: 3 | D19: 3L | G19: 342 | H19: 381 | I19: 419 | J19: 6H | K19: 0.224
A20: =Evaluations!A17 -> Corporate Controller | B20: =Evaluations!O17 -> 830 | C20: 3 | D20: 3L | E20: L | G20: 420 | H20: =ROUND(AVERAGE(G20,I20),0) -> 467 | I20: =ROUND(G20*(1+K20),0) -> 514 | J20: 5L | K20: 0.2242
A21: =Evaluations!A18 -> Director, Clean Energy Procurement | B21: =Evaluations!O18 -> 830 | C21: 3 | D21: 3L | E21: L | G21: =+I20+1 -> 515 | H21: =ROUND(AVERAGE(G21,I21),0) -> 573 | I21: 630 | J21: 5H | K21: 0.2242
A22: =Evaluations!A19 -> Director, Corporate and Commercial Law Group | B22: =Evaluations!O19 -> 830 | C22: 3 | D22: 3L | E22: L | G22: =+I21+1 -> 631 | H22: 726 | I22: 820 | J22: 4 | K22: 0.3
A23: =Evaluations!A20 -> Director, Financial Planning & Analysis | B23: =Evaluations!O20 -> 830 | C23: 3 | D23: 3L | E23: L | G23: =+I22+1 -> 821 | H23: 913 | I23: 1005 | J23: 3L | K23: 0.2242
A24: =Evaluations!A21 -> Director, Policy & Analysis | B24: =Evaluations!O21 -> 830 | C24: 3 | D24: 3L | E24: L | G24: 1006 | H24: 1119 | I24: 1232 | J24: 3H | K24: 0.2242
A25: =Evaluations!A22 -> Director, Renewables Procurement | B25: =Evaluations!O22 -> 830 | C25: 3 | D25: 3L | E25: L | G25: =+I24+1 -> 1233 | H25: =ROUND(AVERAGE(G25,I25),0) -> 1372 | I25: 1510 | J25: 2L | K25: 0.2243
A26: =Evaluations!A23 -> Director, Resource Integration | B26: =Evaluations!O23 -> 830 | C26: 3 | D26: 3L | E26: L | G26: 1511 | H26: 1681 | I26: 1850 | J26: 2H | K26: 0.2243
A27: =Evaluations!A24 -> Director, Transmission Integration | B27: =Evaluations!O24 -> 830 | C27: 3 | D27: 3L | E27: L
A28: =Evaluations!A25 -> Manager, Business Solutions | B28: =Evaluations!O25 -> 830 | C28: 3 | D28: 3L | E28: L | I28: Fit tolerance % | J28: 0.05
A29: =Evaluations!A26 -> Manager, Internal Audit | B29: =Evaluations!O26 -> 830 | C29: 3 | D29: 3L | E29: L | J29: n | K29: %
A30: =Evaluations!A27 -> Director, Business Development | B30: =Evaluations!O27 -> 830 | C30: 3 | D30: 3L | E30: L | I30: ="Jobs in top "&J$28*100&"%" -> Jobs in top 5% | J30: =COUNTIF(E4:E574,"H") -> 0 | K30: =J30/SUM(J$30:J$32) -> 0
A31: =Evaluations!A28 -> Director, Conservation Performance | B31: =Evaluations!O28 -> 830 | C31: 3 | D31: 3L | E31: L | I31: ="Jobs in middle "&100-J28*200&"%" -> Jobs in middle 90% | J31: =COUNT(C4:C574)-J30-J32 -> 61 | K31: =J31/SUM(J$30:J$32) -> 0.8356164384
A32: =Evaluations!A29 -> Manager Market Facilitation | B32: =Evaluations!O29 -> 805 | C32: 4 | D32: 4 | I32: ="Jobs in bottom "&J$28*100&"%" -> Jobs in bottom 5% | J32: =COUNTIF(E4:E574,"L") -> 12 | K32: =J32/SUM(J$30:J$32) -> 0.1643835616
A33: =Evaluations!A30 -> Manager, Emergency Preparedness | B33: =Evaluations!O30 -> 805 | C33: 4 | D33: 4
A34: =Evaluations!A31 -> Manager, Market Forecasts & Integration | B34: =Evaluations!O31 -> 805 | C34: 4 | D34: 4
A35: =Evaluations!A32 -> Manager, Reliability Standards & Assessments | B35: =Evaluations!O32 -> 805 | C35: 4 | D35: 4
A36: =Evaluations!A33 -> Manager, Shift Operations | B36: =Evaluations!O33 -> 805 | C36: 4 | D36: 4
A37: =Evaluations!A34 -> Manager, Systems Performance & Models | B37: =Evaluations!O34 -> 805 | C37: 4 | D37: 4
A38: =Evaluations!A35 -> Manager, Treasury & Pension Operations | B38: =Evaluations!O35 -> 805 | C38: 4 | D38: 4
A39: =Evaluations!A36 -> Manager, Operations Change Initiatives | B39: =Evaluations!O36 -> 805 | C39: 4 | D39: 4
A40: =Evaluations!A37 -> Manager, Organizational Governance & Support | B40: =Evaluations!O37 -> 775 | C40: 4 | D40: 4
A41: =Evaluations!A38 -> Manager, Technology Support | B41: =Evaluations!O38 -> 775 | C41: 4 | D41: 4
A42: =Evaluations!A39 -> Director, Strategic Engagement & Innovation | B42: =Evaluations!O39 -> 750 | C42: 4 | D42: 4
A43: =Evaluations!A40 -> Manager, Program Delivery & Partner Services | B43: =Evaluations!O40 -> 750 | C43: 4 | D43: 4
A44: =Evaluations!A41 -> Manager, Human Resources (Employee & Labour Relations) | B44: =Evaluations!O41 -> 702 | C44: 4 | D44: 4
A45: =Evaluations!A42 -> Manager, Meter Data Management | B45: =Evaluations!O42 -> 702 | C45: 4 | D45: 4
A46: =Evaluations!A43 -> Manager, Settlement Support | B46: =Evaluations!O43 -> 702 | C46: 4 | D46: 4
A47: =Evaluations!A44 -> Manager, Special Projects | B47: =Evaluations!O44 -> 702 | C47: 4 | D47: 4
A48: =Evaluations!A45 -> Manager, First Nations | B48: =Evaluations!O45 -> 677 | C48: 4 | D48: 4
A49: =Evaluations!A46 -> Manager, Human Resources (Total Rewards) | B49: =Evaluations!O46 -> 677 | C49: 4 | D49: 4
A50: =Evaluations!A47 -> Manager, Regulatory Affairs | B50: =Evaluations!O47 -> 677 | C50: 4 | D50: 4
A51: =Evaluations!A48 -> Manager, Smart Metering | B51: =Evaluations!O48 -> 677 | C51: 4 | D51: 4
A52: =Evaluations!A49 -> Senior Counsel Manager | B52: =Evaluations!O49 -> 654 | C52: 4 | D52: 4
A53: =Evaluations!A50 -> Manager, Finance & Accounting | B53: =Evaluations!O50 -> 588 | C53: 5 | D53: 5H
A54: =Evaluations!A51 -> Manager, Learning & Organizational Development | B54: =Evaluations!O51 -> 588 | C54: 5 | D54: 5H
A55: =Evaluations!A52 -> Manager, RESOP/FIT | B55: =Evaluations!O52 -> 588 | C55: 5 | D55: 5H
A56: =Evaluations!A53 -> Manager, FIT & microFIT | B56: =Evaluations!O53 -> 588 | C56: 5 | D56: 5H
A57: =Evaluations!A54 -> Manager, Contract Management (Commercial Services) | B57: =Evaluations!O54 -> 588 | C57: 5 | D57: 5H
A58: =Evaluations!A55 -> Manager, Contract Management (Vacant role) | B58: =Evaluations!O55 -> 588 | C58: 5 | D58: 5H
A59: =Evaluations!A56 -> Manager, Market Change Initiatives | B59: =Evaluations!O56 -> 588 | C59: 5 | D59: 5H
A60: =Evaluations!A57 -> Manager, Procurement Operations | B60: =Evaluations!O57 -> 588 | C60: 5 | D60: 5H
A61: =Evaluations!A58 -> Manager, Renewable Generation Procurement | B61: =Evaluations!O58 -> 588 | C61: 5 | D61: 5H
A62: =Evaluations!A59 -> Control Room Supervisor | B62: =Evaluations!O59 -> 588 | C62: 5 | D62: 5H
A63: =Evaluations!A60 -> Section Head Communications | B63: =Evaluations!O60 -> 588 | C63: 5 | D63: 5H
A64: =Evaluations!A61 -> Manager Alliances | B64: =Evaluations!O61 -> 571 | C64: 5 | D64: 5H
A65: =Evaluations!A62 -> Superintendent Operations | B65: =Evaluations!O62 -> 571 | C65: 5 | D65: 5H
A66: =Evaluations!A63 -> Section Head Planning & Assessments | B66: =Evaluations!O63 -> 571 | C66: 5 | D66: 5H
A67: =Evaluations!A64 -> Section Head Shift Operations Support | B67: =Evaluations!O64 -> 571 | C67: 5 | D67: 5H
A68: =Evaluations!A65 -> Manager Technical Services | B68: =Evaluations!O65 -> 571 | C68: 5 | D68: 5H
A69: =Evaluations!A66 -> Market Transformation Manager | B69: =Evaluations!O66 -> 571 | C69: =IFERROR(VLOOKUP($B69,$G$4:$J$10,4,1),"") -> 5 | D69: =IFERROR(VLOOKUP($B69,$G$14:$J$26,4,1),"") -> 5H | E69: =IFERROR(IF(B69="","",IF(VLOOKUP($C69,J$4:N$10,3,0)>B69,"L",IF(VLOOKUP(C69,J$4:N$10,4,0)<B69,"H",""))),"") -> 
A70: =Evaluations!A67 -> Section Head, ITI | B70: =Evaluations!O67 -> 571 | C70: 5 | D70: 5H
A71: =Evaluations!A68 -> Section Head, IT Operations | B71: =Evaluations!O68 -> 571 | C71: 5 | D71: 5H
A72: =Evaluations!A69 -> Manager Customer Relations | B72: =Evaluations!O69 -> 551 | C72: 5 | D72: 5H
A73: =Evaluations!A70 -> Manager, Conservation Intelligence and Analytics | B73: =Evaluations!O70 -> 551 | C73: 5 | D73: 5H
A74: =Evaluations!A71 -> Manager, Financial Planning & Analysis | B74: =Evaluations!O71 -> 551 | C74: 5 | D74: 5H
A75: =Evaluations!A72 -> Manager, Human Resources (Business Partner) | B75: =Evaluations!O72 -> 551 | C75: 5 | D75: 5H
A76: =Evaluations!A73 -> Manager, Procure to Pay | B76: =Evaluations!O73 -> 551 | C76: 5 | D76: 5H
A77: =Evaluations!A74 -> Manager, Contract Management (Contract & Support Services) | B77: =Evaluations!O74 -> 479 | C77: 5 | D77: 5L
A78: =Evaluations!A75 -> Manager, IT Operations | B78: =Evaluations!O75 -> 479 | C78: 5 | D78: 5L
A79: =Evaluations!A76 -> Manager, IT Solutions | B79: =Evaluations!O76 -> 479 | C79: 5 | D79: 5L
A80: =Evaluations!A77 -> Manager, Project & Portfolio | B80: =Evaluations!O77 -> 479 | C80: 5 | D80: 5L
A81: =Evaluations!A78 -> Section Head Corporate Business Management | B81: =Evaluations!O78 -> 479 | C81: 5 | D81: 5L
A82: =Evaluations!A79 -> Section Head-Talent Acquisition & Management | B82: =Evaluations!O79 -> 479 | C82: 5 | D82: 5L

Sheet Job Matrix
A1: Job Ranking Matrix | P1: 1
A2: Evaluation Points | B2: Corporate Services | C2: Information & Technology Services | D2: Planning, Law & Aboriginal Relations | E2: Market & Resource Development | F2: Market & Systems Operations | G2: CEO | H2: Conservation & Corporate Relations
I3: 1708
I4: 1628 | Q4: =five_grade -> 420 | R4: 525 | S4: 630 | T4: 5 | U4: 0.5
I5: 1418 | Q5: 631 | R5: 725.5 | S5: 820 | T5: 4 | U5: 0.3
A6: 1192 | F6: Director, Market Operations | I6: 1192 | Q6: 821 | R6: 1026.5 | S6: 1232 | T6: 3 | U6: 0.5
F7: Director, Power Systems Assessments | I7: 1192 | Q7: 1233 | R7: 1541.5 | S7: 1850 | T7: 2 | U7: 0.5
A8: 1096 | G8: Director, MACD | I8: 1096 | K8: =IFERROR(Q8,"") ->  | L8: =IFERROR(R8,"") ->  | M8: =IFERROR(S8,"") ->  | N8: =IFERROR(T8,"") ->  | O8: =IFERROR(U8,"") -> 
A9: 994 | B9: Director, Human Resources | E9: Director, Contract Management | I9: 994
B10: Director, Settlements | I10: 994 | Q10: ='Grade Structure'!G13 -> Start | R10: ='Grade Structure'!H13 -> Midpoint | S10: ='Grade Structure'!I13 -> End | T10: ='Grade Structure'!J13 -> Grade | U10: ='Grade Structure'!K13 -> Range Spread
A11: 954 | C11: Director, Smart Metering | D11: General Counsel | I11: 954 | Q11: ='Grade Structure'!G20 -> 420 | R11: ='Grade Structure'!H20 -> 467 | S11: ='Grade Structure'!I20 -> 514 | T11: ='Grade Structure'!J20 -> 5L | U11: ='Grade Structure'!K20 -> 0.2242
A12: 864 | E12: Director, Markets | H12: Manager, Stakeholder & Public Affairs | I12: 864 | Q12: ='Grade Structure'!G21 -> 515 | R12: ='Grade Structure'!H21 -> 573 | S12: ='Grade Structure'!I21 -> 630 | T12: ='Grade Structure'!J21 -> 5H | U12: ='Grade Structure'!K21 -> 0.2242
A13: 830 | B13: Corporate Controller | C13: Manager, Business Solutions | D13: Director, Corporate and Commercial Law Group | E13: Director, Clean Energy Procurement | G13: Manager, Internal Audit | H13: Director, Business Development | I13: 830 | Q13: ='Grade Structure'!G22 -> 631 | R13: ='Grade Structure'!H22 -> 726 | S13: ='Grade Structure'!I22 -> 820 | T13: ='Grade Structure'!J22 -> 4 | U13: ='Grade Structure'!K22 -> 0.3
B14: Director, Financial Planning & Analysis | D14: Director, Resource Integration | E14: Director, Policy & Analysis | H14: Director, Conservation Performance | I14: 830 | Q14: ='Grade Structure'!G23 -> 821 | R14: ='Grade Structure'!H23 -> 913 | S14: ='Grade Structure'!I23 -> 1005 | T14: ='Grade Structure'!J23 -> 3L | U14: ='Grade Structure'!K23 -> 0.2242
D15: Director, Transmission Integration | E15: Director, Renewables Procurement | I15: 830 | Q15: ='Grade Structure'!G24 -> 1006 | R15: ='Grade Structure'!H24 -> 1119 | S15: ='Grade Structure'!I24 -> 1232 | T15: ='Grade Structure'!J24 -> 3H | U15: ='Grade Structure'!K24 -> 0.2242
A16: 805 | B16: Manager, Treasury & Pension Operations | F16: Manager Market Facilitation | I16: 805 | Q16: ='Grade Structure'!G25 -> 1233 | R16: ='Grade Structure'!H25 -> 1372 | S16: ='Grade Structure'!I25 -> 1510 | T16: ='Grade Structure'!J25 -> 2L | U16: ='Grade Structure'!K25 -> 0.2243
F17: Manager, Emergency Preparedness | I17: 805 | Q17: ='Grade Structure'!G26 -> 1511 | R17: ='Grade Structure'!H26 -> 1681 | S17: ='Grade Structure'!I26 -> 1850 | T17: ='Grade Structure'!J26 -> 2H | U17: ='Grade Structure'!K26 -> 0.2243
F18: Manager, Market Forecasts & Integration | I18: 805
F19: Manager, Operations Change Initiatives | I19: 805
F20: Manager, Reliability Standards & Assessments | I20: 805
F21: Manager, Shift Operations | I21: 805
F22: Manager, Systems Performance & Models | I22: 805
A23: 775 | C23: Manager, Organizational Governance & Support | I23: 775
C24: Manager, Technology Support | I24: 775
A25: 750 | H25: Director, Strategic Engagement & Innovation | I25: 750
H26: Manager, Program Delivery & Partner Services | I26: 750
A27: 702 | B27: Manager, HR (Employee & Labour Relations) | E27: Manager, Special Projects | I27: 702
B28: Manager, Meter Data Management | I28: 702
B29: Manager, Settlement Support | I29: 702
A30: 677 | B30: Manager, Human Resources (Total Rewards) | C30: Manager, Smart Metering | D30: Manager, First Nations | I30: 677
D31: Manager, Regulatory Affairs | I31: 677
A32: 654 | D32: Senior Counsel Manager | I32: 654
A33: 588 | B33: Manager, Finance & Accounting | E33: Manager, RESOP/FIT | F33: Control Room Supervisor | H33: Section Head Communications | I33: 588
B34: Manager, Learning & Organizational Development | E34: Manager, FIT & microFIT | I34: 588
E35: Manager, Contract Mgmt (Commercial Services) | I35: 588
E36: Manager, Contract Management (Vacant role) | I36: 588
E37: Manager, Market Change Initiatives | I37: 588
E38: Manager, Procurement Operations | I38: 588
E39: Manager, Renewable Generation Procurement | I39: 588
A40: 571 | C40: Section Head, ITI | F40: Section Head Planning & Assessments | H40: Manager Alliances | I40: 571
C41: Section Head, IT Operations | F41: Section Head Shift Operations Support | H41: Manager Technical Services | I41: 571
F42: Superintendent Operations | H42: Market Transformation Manager | I42: 571
A43: 551 | B43: Manager, Financial Planning & Analysis | H43: Manager, Conservation Intelligence and Analytics | I43: 551
B44: Manager, Human Resources (Business Partner) | H44: Manager Customer Relations | I44: 551
B45: Manager, Procure to Pay | I45: 551
A46: 479 | B46: Section Head Corporate Business Management | C46: Manager, IT Operations | E46: Manager, Contract Mgmt (Contract & Support Services) | I46: 479
B47: Section Head-Talent Acquisition & Management | C47: Manager, IT Solutions | E47: Manager, Project & Portfolio | I47: 479

Sheet Market Data
B1: Filed: July 22, 2016, EB-2015-0275, Exhibit I, Tab 1.0, Schedule 10.05, Attachment 2
B2: IESO - Market Pricing | AG2: Hybrid Market - % Weighting
Y3: Public Market | AB3: Private Market | AG3: Public Market | AH3: 0.5
Y4: Percentile | AB4: Percentile | AG4: Private Market | AH4: =1-AH3 -> 0.5
Y5: 50 | AB5: 50 | AG5: Total | AH5: =SUM(AH3:AH4) -> 1
Y6: *Between 25 to 75 | AB6: *Between 25 to 75 | AI6: * Please adjust min-mid-max %'s in cells AQ36 to AS48 | AV6: 15 | AX6: 14 | AZ6: 13 | BA6: 23 | BC6: 22 | BE6: 21 | BF6: 39 | BH6: 38 | BJ6: 37 | BK6: 15 | BM6: 14 | BO6: 13 | BP6: 23 | BR6: 22 | BT6: 21 | BU6: 39 | BW6: 38 | BY6: 37
B7: * Data is in thousands of Canadian dollars | H7: Compa Ratio (IESO Base Salary / Market Base Salary) | K7: Compa Ratio (IESO Base Salary / Market Target Total Direct) | O7: Compa Ratio (IESO Midpoint / Market Target Total Cash) | S7: Compa Ratio (IESO Target Total Cash / Market Target Total Cash) | V7: Compa Ratio (IESO Target Total Cash / Market Target Total Direct) | Y7: ="Public Market - P"&$Y$5 -> Public Market - P50 | AB7: ="Private Market - P"&$AB$5 -> Private Market - P50 | AF7: ="Hybrid Market ("&$AH$3*100&"% Public / "&$AH$4*100&"% Private)" -> Hybrid Market (50% Public / 50% Private) | AI7: Proposed Structure | AL7: Implications of Salary Structure on Base Salaries | AV7: Public Market - Base Salary | BA7: Public Market - Target Total Cash | BF7: Public Market - Target Total Direct | BK7: Private Market - Base Salary | BP7: Private Market - Target Total Cash | BU7: Public Market - Target Total Direct
A8: IESO Title | B8: Job Evaluation Title | C8: Grade | D8: Pay Grade | E8: Pricing Point | F8: Hay Points | G8: IESO Base Salary | H8: Public Market | I8: Private Market | J8: Hybrid Market | K8: Public Market | L8: Private Market | M8: Hybrid Market | N8: IESO Midpoint | O8: Public Market | P8: Private Market | Q8: Hybrid Market | R8: IESO Target Total Cash | S8: Public Market | T8: Private Market | U8: Hybrid Market | V8: Public Market | W8: Private Market | X8: Hybrid Market | Y8: Base Salary | Z8: Target Total Cash | AA8: Target Total Direct | AB8: Base Salary | AC8: Target Total Cash | AD8: LTI% | AE8: Target Total Direct | AF8: Base Salary | AG8: Target Total Cash | AH8: Target Total Direct | AI8: Min | AJ8: Midpoint | AK8: Max | AL8: Below Min | AM8: Above Max | AO8: Grade Structure | AU8: Points | AV8: P25 | AW8: ="P"&$Y$5 -> P50 | AX8: P50 | AY8: ="P"&$Y$5 -> P50 | AZ8: P75 | BA8: P25 | BB8: ="P"&$Y$5 -> P50 | BC8: P50 | BD8: ="P"&$Y$5 -> P50 | BE8: P75 | BF8: P25 | BG8: ="P"&$Y$5 -> P50 | BH8: P50 | BI8: ="P"&$Y$5 -> P50 | BJ8: P75 | BK8: P25 | BL8: ="P"&$AB$5 -> P50 | BM8: P50 | BN8: ="P"&$AB$5 -> P50 | BO8: P75 | BP8: P25 | BQ8: ="P"&$AB$5 -> P50 | BR8: P50 | BS8: ="P"&$AB$5 -> P50 | BT8: P75 | BU8: P25 | BV8: ="P"&$Y$5 -> P50 | BW8: P50 | BX8: ="P"&$Y$5 -> P50 | BY8: P75
B9: Director, Power Systems Assessments | D9: 3H | E9: 1119 | F9: 1192 | H9: * | I9: * | J9: * | K9: * | L9: * | M9: * | N9: 253.3 | O9: 1.196674068 | P9: 1.084517897 | Q9: 1.13783887 | S9: * | T9: * | U9: * | V9: * | W9: * | X9: * | Y9: 177.98 | Z9: 211.67 | AA9: 212.87 | AB9: 165.88 | AC9: 233.56 | AD9: 0.3471786834 | AE9: 291.15 | AF9: 171.93 | AG9: 222.615 | AH9: 252.01 | AI9: 214.2085 | AJ9: 252.01 | AK9: 315.0125 | AO9: 821 | AP9: 1026.5 | AQ9: 1232 | AR9: 3 | AS9: 0.5 | AU9: =AP20 -> 467 | AV9: =HLOOKUP($AU9,public_mkt,AV$6,0) -> 92.34 | AW9: =IF(AND($Y$5>25,$Y$5<50),((AX9-AV9)/25)*($Y$5-25)+AV9,"*") -> * | AX9: =HLOOKUP($AU9,public_mkt,AX$6,0) -> 100.16 | AY9: =IF(AND($Y$5>50,$Y$5<75),((AZ9-AX9)/25)*($Y$5-50)+AX9,"*") -> * | AZ9: =HLOOKUP($AU9,public_mkt,AZ$6,0) -> 109.76 | BA9: 94.81 | BB9: =IF(AND($Y$5>25,$Y$5<50),((BC9-BA9)/25)*($Y$5-25)+BA9,"*") -> * | BC9: =HLOOKUP($AU9,public_mkt,BC$6,0) -> 109.36 | BD9: =IF(AND($Y$5>50,$Y$5<75),((BE9-BC9)/25)*($Y$5-50)+BC9,"*") -> * | BE9: =HLOOKUP($AU9,public_mkt,BE$6,0) -> 117.25 | BF9: 94.81 | BG9: =IF(AND($Y$5>25,$Y$5<50),((BH9-BF9)/25)*($Y$5-25)+BF9,"*") -> * | BH9: =HLOOKUP($AU9,public_mkt,BH$6,0) -> 109.36 | BI9: =IF(AND($Y$5>50,$Y$5<75),((BJ9-BH9)/25)*($Y$5-50)+BH9,"*") -> * | BJ9: =HLOOKUP($AU9,public_mkt,BJ$6,0) -> 117.25 | BK9: =HLOOKUP($AU9,private_mkt,BK$6,0) -> 69.15 | BL9: =IF(AND($AB$5>25,$AB$5<50),((BM9-BK9)/25)*($AB$5-25)+BK9,"*") -> * | BM9: =HLOOKUP($AU9,private_mkt,BM$6,0) -> 82.01 | BN9: =IF(AND($AB$5>50,$AB$5<75),((BO9-BM9)/25)*($AB$5-50)+BM9,"*") -> * | BO9: =HLOOKUP($AU9,private_mkt,BO$6,0) -> 96.09 | BP9: 75.14 | BQ9: =IF(AND($AB$5>25,$AB$5<50),((BR9-BP9)/25)*($AB$5-25)+BP9,"*") -> * | BR9: =HLOOKUP($AU9,private_mkt,BR$6,0) -> 90.47 | BS9: =IF(AND($AB$5>50,$AB$5<75),((BT9-BR9)/25)*($AB$5-50)+BR9,"*") -> * | BT9: =HLOOKUP($AU9,private_mkt,BT$6,0) -> 109.58 | BU9: 75.14 | BV9: =IF(AND($Y$5>25,$Y$5<50),((BW9-BU9)/25)*($Y$5-25)+BU9,"*") -> * | BW9: =HLOOKUP($AU9,private_mkt,BW$6,0) -> 90.47 | BX9: =IF(AND($Y$5>50,$Y$5<75),((BY9-BW9)/25)*($Y$5-50)+BW9,"*") -> * | BY9: =HLOOKUP($AU9,private_mkt,BY$6,0) -> 111.32
B10: Director, MACD | D10: 3H | E10: 1119 | F10: 1096 | H10: * | I10: * | J10: * | K10: * | L10: * | M10: * | N10: 253.3 | O10: 1.196674068 | P10: 1.084517897 | Q10: 1.13783887 | S10: * | T10: * | U10: * | V10: * | W10: * | X10: * | Y10: 177.98 | Z10: 211.67 | AA10: 212.87 | AB10: 165.88 | AC10: 233.56 | AD10: 0.3471786834 | AE10: 291.15 | AF10: 171.93 | AG10: 222.615 | AH10: 252.01 | AI10: 214.2085 | AJ10: 252.01 | AK10: 315.0125 | AO10: 1233 | AP10: 1541.5 | AQ10: 1850 | AR10: 2 | AS10: 0.5 | AU10: 573 | AV10: 101.43 | AW10: =IF(AND($Y$5>25,$Y$5<50),((AX10-AV10)/25)*($Y$5-25)+AV10,"*") -> * | AX10: 110.5 | AY10: =IF(AND($Y$5>50,$Y$5<75),((AZ10-AX10)/25)*($Y$5-50)+AX10,"*") -> * | AZ10: 120.55 | BA10: 109.41 | BB10: =IF(AND($Y$5>25,$Y$5<50),((BC10-BA10)/25)*($Y$5-25)+BA10,"*") -> * | BC10: 121.61 | BD10: =IF(AND($Y$5>50,$Y$5<75),((BE10-BC10)/25)*($Y$5-50)+BC10,"*") -> * | BE10: 132.78 | BF10: 109.41 | BG10: =IF(AND($Y$5>25,$Y$5<50),((BH10-BF10)/25)*($Y$5-25)+BF10,"*") -> * | BH10: 121.61 | BI10: =IF(AND($Y$5>50,$Y$5<75),((BJ10-BH10)/25)*($Y$5-50)+BH10,"*") -> * | BJ10: 132.78 | BK10: 82.64 | BL10: * | BM10: 94.68 | BN10: * | BO10: 114.17 | BP10: 91.31 | BQ10: * | BR10: 107.94 | BS10: * | BT10: 134.26 | BU10: 91.33 | BV10: =IF(AND($Y$5>25,$Y$5<50),((BW10-BU10)/25)*($Y$5-25)+BU10,"*") -> * | BW10: 108.28 | BX10: =IF(AND($Y$5>50,$Y$5<75),((BY10-BW10)/25)*($Y$5-50)+BW10,"*") -> * | BY10: 136.01
A11: Director, Operations | B11: Director, Market Operations | D11: 3H | E11: 1119 | F11: 1192 | G11: 214.01718 | H11: 1.202478818 | I11: 1.29019279 | J11: 1.244792532 | K11: 1.005389111 | L11: 0.735075322 | M11: 0.8492408238 | N11: 253.3 | O11: 1.196674068 | P11: 1.084517897 | Q11: 1.13783887 | R11: 214.01718 | S11: 1.011088865 | T11: 0.9163263401 | U11: 0.9613780743 | V11: 1.005389111 | W11: 0.735075322 | X11: 0.8492408238 | Y11: 177.98 | Z11: 211.67 | AA11: 212.87 | AB11: 165.88 | AC11: 233.56 | AD11: 0.3471786834 | AE11: 291.15 | AF11: 171.93 | AG11: 222.615 | AH11: 252.01 | AI11: 214.2085 | AJ11: 252.01 | AK11: 315.0125 | AL11: -0.19132 | AU11: 726 | AV11: 108.98 | AW11: * | AX11: 127.09 | AY11: * | AZ11: 140.03 | BA11: 126.05 | BB11: =IF(AND($Y$5>25,$Y$5<50),((BC11-BA11)/25)*($Y$5-25)+BA11,"*") -> * | BC11: 145.7 | BD11: * | BE11: 163.3 | BF11: 126.05 | BG11: * | BH11: 145.7 | BI11: * | BJ11: 165.33 | BK11: 99.67 | BL11: * | BM11: 117.8 | BN11: * | BO11: 143.92 | BP11: 116.93 | BQ11: * | BR11: 143.05 | BS11: * | BT11: 177.96 | BU11: 117.37 | BV11: * | BW11: 149.87 | BX11: * | BY11: 187.84
A12: Director Human Resources | B12: Director, Human Resources | D12: 3L | E12: 913 | F12: 994 | G12: 186.701 | H12: 1.275802925 | I12: 1.31285423 | J12: 1.294063421 | K12: 1.076582862 | L12: 0.9197093596 | M12: 0.9919823601 | N12: 253.3 | O12: 1.462893445 | P12: 1.416429011 | Q12: 1.439286323 | R12: 186.701 | S12: 1.078261623 | T12: 1.044013868 | U12: 1.060861413 | V12: 1.076582862 | W12: 0.9197093596 | X12: 0.9919823601 | Y12: 146.34 | Z12: 173.15 | AA12: 173.42 | AB12: 142.21 | AC12: 178.83 | AD12: 0.1699599184 | AE12: 203 | AF12: 144.275 | AG12: 175.99 | AH12: 188.21 | AI12: 159.9785 | AJ12: 188.21 | AK12: 235.2625 | AO12: Pay Structure | AU12: 913 | AV12: 133.52 | AW12: * | AX12: 146.34 | AY12: * | AZ12: 162.96 | BA12: 151.8 | BB12: =IF(AND($Y$5>25,$Y$5<50),((BC12-BA12)/25)*($Y$5-25)+BA12,"*") -> * | BC12: 173.15 | BD12: * | BE12: 202.99 | BF12: 152.27 | BG12: * | BH12: 173.42 | BI12: * | BJ12: 208.85 | BK12: 123.05 | BL12: * | BM12: 142.21 | BN12: * | BO12: 168.98 | BP12: 156.1 | BQ12: * | BR12: 178.83 | BS12: * | BT12: 217.46 | BU12: 169.22 | BV12: * | BW12: 203 | BX12: * | BY12: 245.91
A13: Director, Contract Management | B13: Director, Contract Management | D13: 3L | E13: 913 | F13: 994 | G13: 186.85 | H13: 1.276821102 | I13: 1.313901976 | J13: 1.295096171 | K13: 1.077442048 | L13: 0.9204433498 | M13: 0.992774029 | N13: 253.3 | O13: 1.462893445 | P13: 1.416429011 | Q13: 1.439286323 | R13: 186.85 | S13: 1.079122148 | T13: 1.044847061 | U13: 1.061708052 | V13: 1.077442048 | W13: 0.9204433498 | X13: 0.992774029 | Y13: 146.34 | Z13: 173.15 | AA13: 173.42 | AB13: 142.21 | AC13: 178.83 | AD13: 0.1699599184 | AE13: 203 | AF13: 144.275 | AG13: 175.99 | AH13: 188.21 | AI13: 159.9785 | AJ13: 188.21 | AK13: 235.2625 | AO13: Start | AP13: Midpoint | AQ13: End | AR13: Grade | AS13: Range Spread | AU13: 1119 | AV13: 166.66 | AW13: =IF(AND($Y$5>25,$Y$5<50),((AX13-AV13)/25)*($Y$5-25)+AV13,"*") -> * | AX13: 177.98 | AY13: =IF(AND($Y$5>50,$Y$5<75),((AZ13-AX13)/25)*($Y$5-50)+AX13,"*") -> * | AZ13: 192.22 | BA13: 190.28 | BB13: =IF(AND($Y$5>25,$Y$5<50),((BC13-BA13)/25)*($Y$5-25)+BA13,"*") -> * | BC13: 211.67 | BD13: =IF(AND($Y$5>50,$Y$5<75),((BE13-BC13)/25)*($Y$5-50)+BC13,"*") -> * | BE13: 229.92 | BF13: 193.45 | BG13: =IF(AND($Y$5>25,$Y$5<50),((BH13-BF13)/25)*($Y$5-25)+BF13,"*") -> * | BH13: 212.87 | BI13: =IF(AND($Y$5>50,$Y$5<75),((BJ13-BH13)/25)*($Y$5-50)+BH13,"*") -> * | BJ13: 239.7 | BK13: 146.45 | BL13: =IF(AND($AB$5>25,$AB$5<50),((BM13-BK13)/25)*($AB$5-25)+BK13,"*") -> * | BM13: 165.88 | BN13: =IF(AND($AB$5>50,$AB$5<75),((BO13-BM13)/25)*($AB$5-50)+BM13,"*") -> * | BO13: 203.87 | BP13: 197.37 | BQ13: =IF(AND($AB$5>25,$AB$5<50),((BR13-BP13)/25)*($AB$5-25)+BP13,"*") -> * | BR13: 233.56 | BS13: =IF(AND($AB$5>50,$AB$5<75),((BT13-BR13)/25)*($AB$5-50)+BR13,"*") -> * | BT13: 285.3 | BU13: 231.66 | BV13: =IF(AND($Y$5>25,$Y$5<50),((BW13-BU13)/25)*($Y$5-25)+BU13,"*") -> * | BW13: 291.15 | BX13: =IF(AND($Y$5>50,$Y$5<75),((BY13-BW13)/25)*($Y$5-50)+BW13,"*") -> * | BY13: 327.7
A14: Director-Settlements | B14: Director, Settlements | D14: 3L | E14: 913 | F14: 994 | G14: 210.03918 | H14: 1.435282083 | I14: 1.476964911 | J14: 1.455825195 | K14: 1.211158921 | L14: 1.034675764 | M14: 1.115983104 | N14: 253.3 | O14: 1.462893445 | P14: 1.416429011 | Q14: 1.439286323 | R14: 210.03918 | S14: 1.213047531 | T14: 1.174518705 | U14: 1.193472243 | V14: 1.211158921 | W14: 1.034675764 | X14: 1.115983104 | Y14: 146.34 | Z14: 173.15 | AA14: 173.42 | AB14: 142.21 | AC14: 178.83 | AD14: 0.1699599184 | AE14: 203 | AF14: 144.275 | AG14: 175.99 | AH14: 188.21 | AI14: 159.9785 | AJ14: 188.21 | AK14: 235.2625 | AO14: 122 | AP14: 136 | AQ14: 149 | AR14: 8L | AS14: 0.224 | AU14: 1372 | AV14: 199.82 | AW14: * | AX14: 216.53 | AY14: * | AZ14: 233.8 | BA14: 243.84 | BB14: * | BC14: 269.71 | BD14: * | BE14: 288.06 | BF14: 244.04 | BG14: * | BH14: 274.23 | BI14: * | BJ14: 299.42 | BK14: 171.34 | BL14: * | BM14: 199.35 | BN14: * | BO14: 238.43 | BP14: 258.19 | BQ14: * | BR14: 299.78 | BS14: * | BT14: 355.1 | BU14: 348.46 | BV14: * | BW14: 389.83 | BX14: * | BY14: 459.68
A15: Director - Smart Metering | B15: Director, Smart Metering | D15: 3L | E15: 913 | F15: 954 | G15: 238.86486 | H15: 1.632259533 | I15: 1.679662893 | J15: 1.655621972 | K15: 1.377377811 | L15: 1.176674187 | M15: 1.269140109 | N15: 253.3 | O15: 1.462893445 | P15: 1.416429011 | Q15: 1.439286323 | R15: 238.86486 | S15: 1.379525614 | T15: 1.335709109 | U15: 1.357263822 | V15: 1.377377811 | W15: 1.176674187 | X15: 1.269140109 | Y15: 146.34 | Z15: 173.15 | AA15: 173.42 | AB15: 142.21 | AC15: 178.83 | AD15: 0.1699599184 | AE15: 203 | AF15: 144.275 | AG15: 175.99 | AH15: 188.21 | AI15: 159.9785 | AJ15: 188.21 | AK15: 235.2625 | AM15: 3.60236 | AO15: 150 | AP15: 167 | AQ15: 184 | AR15: 8H | AS15: 0.224 | AU15: 1681 | AV15: 234.42 | AW15: * | AX15: 253.55 | AY15: * | AZ15: 274.38 | BA15: 278.74 | BB15: =IF(AND($Y$5>25,$Y$5<50),((BC15-BA15)/25)*($Y$5-25)+BA15,"*") -> * | BC15: 315.18 | BD15: * | BE15: 348.6 | BF15: 283.04 | BG15: * | BH15: 324.61 | BI15: * | BJ15: 368.07 | BK15: 227.16 | BL15: =IF(AND($AB$5>25,$AB$5<50),((BM15-BK15)/25)*($AB$5-25)+BK15,"*") -> * | BM15: 254.62 | BN15: =IF(AND($AB$5>50,$AB$5<75),((BO15-BM15)/25)*($AB$5-50)+BM15,"*") -> * | BO15: 272.01 | BP15: 342.06 | BQ15: =IF(AND($AB$5>25,$AB$5<50),((BR15-BP15)/25)*($AB$5-25)+BP15,"*") -> * | BR15: 378.31 | BS15: =IF(AND($AB$5>50,$AB$5<75),((BT15-BR15)/25)*($AB$5-50)+BR15,"*") -> * | BT15: 441.49 | BU15: 451.49 | BV15: * | BW15: 580.1 | BX15: * | BY15: 709.49
A16: General Counsel & Secretary | B16: General Counsel | D16: 3L | E16: 913 | F16: 954 | G16: 255.64136 | H16: 1.746900096 | I16: 1.797632797 | J16: 1.771903379 | K16: 1.474116942 | L16: 1.259317044 | M16: 1.358277244 | N16: 253.3 | O16: 1.462893445 | P16: 1.416429011 | Q16: 1.439286323 | R16: 255.64136 | S16: 1.476415593 | T16: 1.429521669 | U16: 1.452590261 | V16: 1.474116942 | W16: 1.259317044 | X16: 1.358277244 | Y16: 146.34 | Z16: 173.15 | AA16: 173.42 | AB16: 142.21 | AC16: 178.83 | AD16: 0.1699599184 | AE16: 203 | AF16: 144.275 | AG16: 175.99 | AH16: 188.21 | AI16: 159.9785 | AJ16: 188.21 | AK16: 235.2625 | AM16: 20.37886 | AO16: 185 | AP16: 206 | AQ16: 226 | AR16: 7L | AS16: 0.224
A17: Director-Markets | B17: Director, Markets | D17: 3L | E17: 913 | F17: 864 | G17: 235.05066 | H17: 1.606195572 | I17: 1.652841994 | J17: 1.629184959 | K17: 1.355383808 | L17: 1.157885025 | M17: 1.248874449 | N17: 253.3 | O17: 1.462893445 | P17: 1.416429011 | Q17: 1.439286323 | R17: 235.05066 | S17: 1.357497314 | T17: 1.314380473 | U17: 1.335590999 | V17: 1.355383808 | W17: 1.157885025 | X17: 1.248874449 | Y17: 146.34 | Z17: 173.15 | AA17: 173.42 | AB17: 142.21 | AC17: 178.83 | AD17: 0.1699599184 | AE17: 203 | AF17: 144.275 | AG17: 175.99 | AH17: 188.21 | AI17: 159.9785 | AJ17: 188.21 | AK17: 235.2625 | AO17: 227 | AP17: 253 | AQ17: 278 | AR17: 7H | AS17: 0.224 | AU17: 1 | AV17: =AU17+1 -> 2 | AW17: =AV17+1 -> 3 | AX17: 4 | AY17: 5 | AZ17: 6 | BA17: 7 | BB17: 8 | BC17: 9 | BD17: 10 | BE17: 11 | BF17: =BE17+1 -> 12 | BG17: =BF17+1 -> 13 | BH17: =BG17+1 -> 14 | BI17: =BH17+1 -> 15 | BJ17: =BI17+1 -> 16 | BK17: =BJ17+1 -> 17 | BL17: =BK17+1 -> 18 | BM17: =BL17+1 -> 19 | BN17: =BM17+1 -> 20 | BO17: =BN17+1 -> 21 | BP17: =BO17+1 -> 22 | BQ17: =BP17+1 -> 23 | BR17: =BQ17+1 -> 24 | BS17: =BR17+1 -> 25 | BT17: =BS17+1 -> 26 | BU17: =BT17+1 -> 27 | BV17: =BU17+1 -> 28 | BW17: =BV17+1 -> 29 | BX17: =BW17+1 -> 30 | BY17: =BX17+1 -> 31
A18: Mgr-Stkhldr & Public Affairs | B18: Manager, Stakeholder & Public Affairs | D18: 3L | E18: 913 | F18: 864 | G18: 150.00024 | H18: 1.02501189 | I18: 1.054779833 | J18: 1.039682828 | K18: 0.8649535232 | L18: 0.7389174384 | M18: 0.7969833696 | N18: 179.1 | O18: 1.034363269 | P18: 1.001509814 | Q18: 1.017671459 | R18: 150.00024 | S18: 0.8663022813 | T18: 0.8387867807 | U18: 0.8523225183 | V18: 0.8649535232 | W18: 0.7389174384 | X18: 0.7969833696 | Y18: 146.34 | Z18: 173.15 | AA18: 173.42 | AB18: 142.21 | AC18: 178.83 | AD18: 0.1699599184 | AE18: 203 | AF18: 144.275 | AG18: 175.99 | AH18: 188.21 | AI18: 159.9785 | AJ18: 188.21 | AK18: 235.2625 | AL18: -9.97826 | AO18: 279 | AP18: 310 | AQ18: 341 | AR18: 6L | AS18: 0.224
A19: Corporate Controller | B19: Corporate Controller | D19: 3L | E19: 913 | F19: 830 | G19: 176.74852 | H19: 1.207793631 | I19: 1.24286984 | J19: 1.225080714 | K19: 1.019193403 | L19: 0.8706823645 | M19: 0.9391027044 | N19: 253.3 | O19: 1.462893445 | P19: 1.416429011 | Q19: 1.439286323 | R19: 176.74852 | S19: 1.020782674 | T19: 0.9883605659 | U19: 1.004310018 | V19: 1.019193403 | W19: 0.8706823645 | X19: 0.9391027044 | Y19: 146.34 | Z19: 173.15 | AA19: 173.42 | AB19: 142.21 | AC19: 178.83 | AD19: 0.1699599184 | AE19: 203 | AF19: 144.275 | AG19: 175.99 | AH19: 188.21 | AI19: 159.9785 | AJ19: 188.21 | AK19: 235.2625 | AO19: 342 | AP19: 381 | AQ19: 419 | AR19: 6H | AS19: 0.224
A20: Director Business Development | B20: Director, Business Development | D20: 3L | E20: 913 | F20: 830 | G20: 180 | H20: 1.2300123 | I20: 1.265733774 | J20: 1.247617397 | K20: 1.037942567 | L20: 0.8866995074 | M20: 0.9563785134 | N20: 253.3 | O20: 1.462893445 | P20: 1.416429011 | Q20: 1.439286323 | R20: 180 | S20: 1.039561074 | T20: 1.006542526 | U20: 1.022785386 | V20: 1.037942567 | W20: 0.8866995074 | X20: 0.9563785134 | Y20: 146.34 | Z20: 173.15 | AA20: 173.42 | AB20: 142.21 | AC20: 178.83 | AD20: 0.1699599184 | AE20: 203 | AF20: 144.275 | AG20: 175.99 | AH20: 188.21 | AI20: 159.9785 | AJ20: 188.21 | AK20: 235.2625 | AO20: 420 | AP20: 467 | AQ20: 514 | AR20: 5L | AS20: 0.2242 | AU20: Legend | AX20: Legend
A21: Director Clean Energy Procurement | B21: Director, Clean Energy Procurement | D21: 3L | E21: 913 | F21: 830 | G21: 156 | H21: 1.06601066 | I21: 1.096969271 | J21: 1.081268411 | K21: 0.8995502249 | L21: 0.7684729064 | M21: 0.8288613782 | N21: 253.3 | O21: 1.462893445 | P21: 1.416429011 | Q21: 1.439286323 | R21: 156 | S21: 0.900952931 | T21: 0.8723368562 | U21: 0.8864140008 | V21: 0.8995502249 | W21: 0.7684729064 | X21: 0.8288613782 | Y21: 146.34 | Z21: 173.15 | AA21: 173.42 | AB21: 142.21 | AC21: 178.83 | AD21: 0.1699599184 | AE21: 203 | AF21: 144.275 | AG21: 175.99 | AH21: 188.21 | AI21: 159.9785 | AJ21: 188.21 | AK21: 235.2625 | AL21: -3.9785 | AO21: 515 | AP21: 573 | AQ21: 630 | AR21: 5H | AS21: 0.2242 | AU21: P25 | AV21: 0 | AX21: Public | AY21: =IF($Y$5=25,0,IF(AND($Y$5>25,$Y$5<50),1,IF($Y$5=50,2,IF(AND($Y$5>50,$Y$5<75),3,IF($Y$5=75,4))))) -> 2
A22: Director Conservation Performance | B22: Director, Conservation Performance | D22: 3L | E22: 913 | F22: 830 | G22: 162 | H22: 1.10701107 | I22: 1.139160397 | J22: 1.122855658 | K22: 0.9341483105 | L22: 0.7980295567 | M22: 0.860740662 | N22: 253.3 | O22: 1.462893445 | P22: 1.416429011 | Q22: 1.439286323 | R22: 162 | S22: 0.9356049668 | T22: 0.9058882738 | U22: 0.920506847 | V22: 0.9341483105 | W22: 0.7980295567 | X22: 0.860740662 | Y22: 146.34 | Z22: 173.15 | AA22: 173.42 | AB22: 142.21 | AC22: 178.83 | AD22: 0.1699599184 | AE22: 203 | AF22: 144.275 | AG22: 175.99 | AH22: 188.21 | AI22: 159.9785 | AJ22: 188.21 | AK22: 235.2625 | AO22: 631 | AP22: 726 | AQ22: 820 | AR22: 4 | AS22: 0.3 | AU22: P25 < x < P50 | AV22: 1 | AX22: Private | AY22: =IF($AB$5=25,0,IF(AND($AB$5>25,$AB$5<50),1,IF($AB$5=50,2,IF(AND($AB$5>50,$AB$5<75),3,IF($AB$5=75,4))))) -> 2
A23: Director Corporate/Commercial Law Group | B23: Director, Corporate and Commercial Law Group | D23: 3L | E23: 913 | F23: 830 | G23: 183.5 | H23: 1.253929206 | I23: 1.290345264 | J23: 1.271876625 | K23: 1.058124784 | L23: 0.9039408867 | M23: 0.9749747622 | N23: 253.3 | O23: 1.462893445 | P23: 1.416429011 | Q23: 1.439286323 | R23: 183.5 | S23: 1.059774762 | T23: 1.026114187 | U23: 1.042672879 | V23: 1.058124784 | W23: 0.9039408867 | X23: 0.9749747622 | Y23: 146.34 | Z23: 173.15 | AA23: 173.42 | AB23: 142.21 | AC23: 178.83 | AD23: 0.1699599184 | AE23: 203 | AF23: 144.275 | AG23: 175.99 | AH23: 188.21 | AI23: 159.9785 | AJ23: 188.21 | AK23: 235.2625 | AO23: 821 | AP23: 913 | AQ23: 1005 | AR23: 3L | AS23: 0.2242 | AU23: P50 | AV23: 2
A24: Director Policy & Analysis | B24: Director, Policy & Analysis | D24: 3L | E24: 913 | F24: 830 | G24: 161.46 | H24: 1.103321033 | I24: 1.135363195 | J24: 1.119112805 | K24: 0.9310344828 | L24: 0.7953694581 | M24: 0.8578715265 | N24: 253.3 | O24: 1.462893445 | P24: 1.416429011 | Q24: 1.439286323 | R24: 161.46 | S24: 0.9324862836 | T24: 0.9028686462 | U24: 0.9174384908 | V24: 0.9310344828 | W24: 0.7953694581 | X24: 0.8578715265 | Y24: 146.34 | Z24: 173.15 | AA24: 173.42 | AB24: 142.21 | AC24: 178.83 | AD24: 0.1699599184 | AE24: 203 | AF24: 144.275 | AG24: 175.99 | AH24: 188.21 | AI24: 159.9785 | AJ24: 188.21 | AK24: 235.2625 | AO24: 1006 | AP24: 1119 | AQ24: 1232 | AR24: 3H | AS24: 0.2242 | AU24: P50 < x < P75 | AV24: 3
A25: Director Renewables Procurement | B25: Director, Renewables Procurement | D25: 3L | E25: 913 | F25: 830 | G25: 158.875 | H25: 1.08565669 | I25: 1.117185852 | J25: 1.101195633 | K25: 0.9161284742 | L25: 0.782635468 | M25: 0.8441368684 | N25: 253.3 | O25: 1.462893445 | P25: 1.416429011 | Q25: 1.439286323 | R25: 158.875 | S25: 0.9175570315 | T25: 0.8884135771 | U25: 0.9027501563 | V25: 0.9161284742 | W25: 0.782635468 | X25: 0.8441368684 | Y25: 146.34 | Z25: 173.15 | AA25: 173.42 | AB25: 142.21 | AC25: 178.83 | AD25: 0.1699599184 | AE25: 203 | AF25: 144.275 | AG25: 175.99 | AH25: 188.21 | AI25: 159.9785 | AJ25: 188.21 | AK25: 235.2625 | AL25: -1.1035 | AO25: 1233 | AP25: 1372 | AQ25: 1510 | AR25: 2L | AS25: 0.2243 | AU25: P75 | AV25: 4
A26: Director Resource Integration | B26: Director, Resource Integration | D26: 3L | E26: 913 | F26: 830 | G26: 175.1 | H26: 1.196528632 | I26: 1.231277688 | J26: 1.213654479 | K26: 1.009687464 | L26: 0.8625615764 | M26: 0.9303437649 | N26: 253.3 | O26: 1.462893445 | P26: 1.416429011 | Q26: 1.439286323 | R26: 175.1 | S26: 1.011261912 | T26: 0.9791422021 | U26: 0.9949428945 | V26: 1.009687464 | W26: 0.8625615764 | X26: 0.9303437649 | Y26: 146.34 | Z26: 173.15 | AA26: 173.42 | AB26: 142.21 | AC26: 178.83 | AD26: 0.1699599184 | AE26: 203 | AF26: 144.275 | AG26: 175.99 | AH26: 188.21 | AI26: 159.9785 | AJ26: 188.21 | AK26: 235.2625 | AO26: 1511 | AP26: 1681 | AQ26: 1850 | AR26: 2H | AS26: 0.2243
A27: Director Resource Integration | B27: Director, Resource Integration | D27: 3L | E27: 913 | F27: 830 | G27: 175.1 | H27: 1.196528632 | I27: 1.231277688 | J27: 1.213654479 | K27: 1.009687464 | L27: 0.8625615764 | M27: 0.9303437649 | N27: 253.3 | O27: 1.462893445 | P27: 1.416429011 | Q27: 1.439286323 | R27: 162.75 | S27: 0.9399364713 | T27: 0.910082201 | U27: 0.9247684528 | V27: 0.9384730712 | W27: 0.8017241379 | X27: 0.8647255725 | Y27: 146.34 | Z27: 173.15 | AA27: 173.42 | AB27: 142.21 | AC27: 178.83 | AD27: 0.1699599184 | AE27: 203 | AF27: 144.275 | AG27: 175.99 | AH27: 188.21 | AI27: 159.9785 | AJ27: 188.21 | AK27: 235.2625 | AO27: * Please adjust the above data in the "Grade Structure" tab
A28: Director Transmission Integration | B28: Director, Transmission Integration | D28: 3L | E28: 913 | F28: 830 | G28: 186.506 | H28: 1.274470411 | I28: 1.311483018 | J28: 1.292711835 | K28: 1.075458425 | L28: 0.9187487685 | M28: 0.9909462834 | N28: 253.3 | O28: 1.462893445 | P28: 1.416429011 | Q28: 1.439286323 | R28: 186.506 | S28: 1.077135432 | T28: 1.042923447 | U28: 1.059753395 | V28: 1.075458425 | W28: 0.9187487685 | X28: 0.9909462834 | Y28: 146.34 | Z28: 173.15 | AA28: 173.42 | AB28: 142.21 | AC28: 178.83 | AD28: 0.1699599184 | AE28: 203 | AF28: 144.275 | AG28: 175.99 | AH28: 188.21 | AI28: 159.9785 | AJ28: 188.21 | AK28: 235.2625
A29: Director Transmission Integration | B29: Director, Transmission Integration | D29: 3L | E29: 913 | F29: 830 | G29: 186.506 | H29: 1.274470411 | I29: 1.311483018 | J29: 1.292711835 | K29: 1.075458425 | L29: 0.9187487685 | M29: 0.9909462834 | N29: 253.3 | O29: 1.462893445 | P29: 1.416429011 | Q29: 1.439286323 | R29: 184.615 | S29: 1.066214265 | T29: 1.032349158 | U29: 1.049008466 | V29: 1.064554261 | W29: 0.9094334975 | X29: 0.9808989958 | Y29: 146.34 | Z29: 173.15 | AA29: 173.42 | AB29: 142.21 | AC29: 178.83 | AD29: 0.1699599184 | AE29: 203 | AF29: 144.275 | AG29: 175.99 | AH29: 188.21 | AI29: 159.9785 | AJ29: 188.21 | AK29: 235.2625 | AO29: Range Spread
A30: Director, Financial Planning & Analysis and Office & Facility Services | B30: Director, Financial Planning & Analysis | D30: 3L | E30: 913 | F30: 830 | G30: 154 | H30: 1.052343857 | I30: 1.082905562 | J30: 1.067405995 | K30: 0.8880175297 | L30: 0.7586206897 | M30: 0.8182349503 | N30: 253.3 | O30: 1.462893445 | P30: 1.416429011 | Q30: 1.439286323 | R30: 154 | S30: 0.8894022524 | T30: 0.8611530504 | U30: 0.8750497187 | V30: 0.8880175297 | W30: 0.7586206897 | X30: 0.8182349503 | Y30: 146.34 | Z30: 173.15 | AA30: 173.42 | AB30: 142.21 | AC30: 178.83 | AD30: 0.1699599184 | AE30: 203 | AF30: 144.275 | AG30: 175.99 | AH30: 188.21 | AI30: 159.9785 | AJ30: 188.21 | AK30: 235.2625 | AL30: -5.9785 | AO30: Grade | AP30: Min % | AQ30: Midpoint % | AR30: Max %
A31: Mgr-Business Solutions | B31: Manager, Business Solutions | D31: 3L | E31: 913 | F31: 830 | G31: 184.39174 | H31: 1.260022824 | I31: 1.29661585 | J31: 1.27805746 | K31: 1.063266867 | L31: 0.9083336946 | M31: 0.9797127677 | N31: 179.1 | O31: 1.034363269 | P31: 1.001509814 | Q31: 1.017671459 | R31: 184.39174 | S31: 1.064924863 | T31: 1.03110071 | U31: 1.047739872 | V31: 1.063266867 | W31: 0.9083336946 | X31: 0.9797127677 | Y31: 146.34 | Z31: 173.15 | AA31: 173.42 | AB31: 142.21 | AC31: 178.83 | AD31: 0.1699599184 | AE31: 203 | AF31: 144.275 | AG31: 175.99 | AH31: 188.21 | AI31: 159.9785 | AJ31: 188.21 | AK31: 235.2625 | AO31: 8L | AP31: 0.8 | AQ31: 1 | AR31: 1.2
A32: Mgr-Internal Audit | B32: Manager, Internal Audit | D32: 3L | E32: 913 | F32: 830 | G32: 178.53342 | H32: 1.21999057 | I32: 1.255420997 | J32: 1.237452227 | K32: 1.029485757 | L32: 0.8794749754 | M32: 0.94858626 | N32: 179.1 | O32: 1.034363269 | P32: 1.001509814 | Q32: 1.017671459 | R32: 178.53342 | S32: 1.031091077 | T32: 0.9983415534 | U32: 1.014452071 | V32: 1.029485757 | W32: 0.8794749754 | X32: 0.94858626 | Y32: 146.34 | Z32: 173.15 | AA32: 173.42 | AB32: 142.21 | AC32: 178.83 | AD32: 0.1699599184 | AE32: 203 | AF32: 144.275 | AG32: 175.99 | AH32: 188.21 | AI32: 159.9785 | AJ32: 188.21 | AK32: 235.2625 | AO32: 8H | AP32: 0.8 | AQ32: 1 | AR32: 1.2
A33: Mgr Emergency Preprd | B33: Manager, Emergency Preparedness | D33: 4 | E33: 726 | F33: 805 | G33: 162.44384 | H33: 1.278179558 | I33: 1.378979966 | J33: 1.32666781 | K33: 1.114919973 | L33: 1.083898312 | M33: 1.09919031 | N33: 179.1 | O33: 1.229238161 | P33: 1.252009787 | Q33: 1.240519481 | R33: 162.44384 | S33: 1.114919973 | T33: 1.135573855 | U33: 1.125152139 | V33: 1.114919973 | W33: 1.083898312 | X33: 1.09919031 | Y33: 127.09 | Z33: 145.7 | AA33: 145.7 | AB33: 117.8 | AC33: 143.05 | AD33: 0.05789473684 | AE33: 149.87 | AF33: 122.445 | AG33: 144.375 | AH33: 147.785 | AI33: 118.228 | AJ33: 147.785 | AK33: 177.342 | AO33: 7L | AP33: 0.8 | AQ33: 1 | AR33: 1.2
A34: Mgr-Market Facilitn | B34: Manager Market Facilitation | D34: 4 | E34: 726 | F34: 805 | G34: 156 | H34: 1.227476591 | I34: 1.324278438 | J34: 1.274041406 | K34: 1.070693205 | L34: 1.040902115 | M34: 1.055587509 | N34: 179.1 | O34: 1.229238161 | P34: 1.252009787 | Q34: 1.240519481 | R34: 156 | S34: 1.070693205 | T34: 1.090527787 | U34: 1.080519481 | V34: 1.070693205 | W34: 1.040902115 | X34: 1.055587509 | Y34: 127.09 | Z34: 145.7 | AA34: 145.7 | AB34: 117.8 | AC34: 143.05 | AD34: 0.05789473684 | AE34: 149.87 | AF34: 122.445 | AG34: 144.375 | AH34: 147.785 | AI34: 118.228 | AJ34: 147.785 | AK34: 177.342 | AO34: 7H | AP34: 0.8 | AQ34: 1 | AR34: 1.2
A35: Mgr-Mrkt Forecasts & Integ | B35: Manager, Market Forecasts & Integration | D35: 4 | E35: 726 | F35: 805 | G35: 172.97514 | H35: 1.361044457 | I35: 1.468379796 | J35: 1.412676222 | K35: 1.187200686 | L35: 1.154167879 | M35: 1.170451264 | N35: 179.1 | O35: 1.229238161 | P35: 1.252009787 | Q35: 1.240519481 | R35: 172.97514 | S35: 1.187200686 | T35: 1.209193569 | U35: 1.198096208 | V35: 1.187200686 | W35: 1.154167879 | X35: 1.170451264 | Y35: 127.09 | Z35: 145.7 | AA35: 145.7 | AB35: 117.8 | AC35: 143.05 | AD35: 0.05789473684 | AE35: 149.87 | AF35: 122.445 | AG35: 144.375 | AH35: 147.785 | AI35: 118.228 | AJ35: 147.785 | AK35: 177.342 | AO35: 6L | AP35: 0.8 | AQ35: 1 | AR35: 1.2
A36: Mgr-Reliability Assessments | B36: Manager, Reliability Standards & Assessments | D36: 4 | E36: 726 | F36: 805 | G36: 150.00024 | H36: 1.180267842 | I36: 1.273346689 | J36: 1.225041774 | K36: 1.029514345 | L36: 1.00086902 | M36: 1.014989613 | N36: 179.1 | O36: 1.229238161 | P36: 1.252009787 | Q36: 1.240519481 | R36: 150.00024 | S36: 1.029514345 | T36: 1.048586089 | U36: 1.038962701 | V36: 1.029514345 | W36: 1.00086902 | X36: 1.014989613 | Y36: 127.09 | Z36: 145.7 | AA36: 145.7 | AB36: 117.8 | AC36: 143.05 | AD36: 0.05789473684 | AE36: 149.87 | AF36: 122.445 | AG36: 144.375 | AH36: 147.785 | AI36: 118.228 | AJ36: 147.785 | AK36: 177.342 | AO36: 6H | AP36: 0.8 | AQ36: 1 | AR36: 1.2
A37: Mgr-Shift Operations | B37: Manager, Shift Operations | D37: 4 | E37: 726 | F37: 805 | G37: 175.78782 | H37: 1.38317586 | I37: 1.492256537 | J37: 1.435647189 | K37: 1.206505285 | L37: 1.172935344 | M37: 1.189483506 | N37: 179.1 | O37: 1.229238161 | P37: 1.252009787 | Q37: 1.240519481 | R37: 175.78782 | S37: 1.206505285 | T37: 1.228855785 | U37: 1.217577974 | V37: 1.206505285 | W37: 1.172935344 | X37: 1.189483506 | Y37: 127.09 | Z37: 145.7 | AA37: 145.7 | AB37: 117.8 | AC37: 143.05 | AD37: 0.05789473684 | AE37: 149.87 | AF37: 122.445 | AG37: 144.375 | AH37: 147.785 | AI37: 118.228 | AJ37: 147.785 | AK37: 177.342 | AO37: 5L | AP37: 0.8 | AQ37: 1 | AR37: 1.2
A38: Mgr-System Perf & Models | B38: Manager, Systems Performance & Models | D38: 4 | E38: 726 | F38: 805 | G38: 168.57646 | H38: 1.326433708 | I38: 1.431039559 | J38: 1.376752501 | K38: 1.157010707 | L38: 1.124817909 | M38: 1.140687215 | N38: 179.1 | O38: 1.229238161 | P38: 1.252009787 | Q38: 1.240519481 | R38: 168.57646 | S38: 1.157010707 | T38: 1.17844432 | U38: 1.16762916 | V38: 1.157010707 | W38: 1.124817909 | X38: 1.140687215 | Y38: 127.09 | Z38: 145.7 | AA38: 145.7 | AB38: 117.8 | AC38: 143.05 | AD38: 0.05789473684 | AE38: 149.87 | AF38: 122.445 | AG38: 144.375 | AH38: 147.785 | AI38: 118.228 | AJ38: 147.785 | AK38: 177.342 | AO38: 5H | AP38: 0.8 | AQ38: 1 | AR38: 1.2
A39: Mgr-Treasury & Pension Oper | B39: Manager, Treasury & Pension Operations | D39: 4 | E39: 726 | F39: 805 | G39: 172.38 | H39: 1.356361633 | I39: 1.463327674 | J39: 1.407815754 | K39: 1.183115992 | L39: 1.150196837 | M39: 1.166424197 | N39: 179.1 | O39: 1.229238161 | P39: 1.252009787 | Q39: 1.240519481 | R39: 172.38 | S39: 1.183115992 | T39: 1.205033205 | U39: 1.193974026 | V39: 1.183115992 | W39: 1.150196837 | X39: 1.166424197 | Y39: 127.09 | Z39: 145.7 | AA39: 145.7 | AB39: 117.8 | AC39: 143.05 | AD39: 0.05789473684 | AE39: 149.87 | AF39: 122.445 | AG39: 144.375 | AH39: 147.785 | AI39: 118.228 | AJ39: 147.785 | AK39: 177.342 | AO39: 4 | AP39: 0.8 | AQ39: 1 | AR39: 1.2
B40: Manager, Operations Change Initiatives | D40: 4 | E40: 726 | F40: 805 | H40: * | I40: * | J40: * | K40: * | L40: * | M40: * | N40: 179.1 | O40: 1.229238161 | P40: 1.252009787 | Q40: 1.240519481 | S40: * | T40: * | U40: * | V40: * | W40: * | X40: * | Y40: 127.09 | Z40: 145.7 | AA40: 145.7 | AB40: 117.8 | AC40: 143.05 | AD40: 0.05789473684 | AE40: 149.87 | AF40: 122.445 | AG40: 144.375 | AH40: 147.785 | AI40: 118.228 | AJ40: 147.785 | AK40: 177.342 | AO40: 3L | AP40: 0.85 | AQ40: 1 | AR40: 1.25
B41: Manager, Organizational Governance & Support | D41: 4 | E41: 726 | F41: 775 | H41: * | I41: * | J41: * | K41: * | L41: * | M41: * | N41: 179.1 | O41: 1.229238161 | P41: 1.252009787 | Q41: 1.240519481 | S41: * | T41: * | U41: * | V41: * | W41: * | X41: * | Y41: 127.09 | Z41: 145.7 | AA41: 145.7 | AB41: 117.8 | AC41: 143.05 | AD41: 0.05789473684 | AE41: 149.87 | AF41: 122.445 | AG41: 144.375 | AH41: 147.785 | AI41: 118.228 | AJ41: 147.785 | AK41: 177.342 | AO41: 3H | AP41: 0.85 | AQ41: 1 | AR41: 1.25
B42: Manager, Technology Support | D42: 4 | E42: 726 | F42: 775 | H42: * | I42: * | J42: * | K42: * | L42: * | M42: * | N42: 179.1 | O42: 1.229238161 | P42: 1.252009787 | Q42: 1.240519481 | S42: * | T42: * | U42: * | V42: * | W42: * | X42: * | Y42: 127.09 | Z42: 145.7 | AA42: 145.7 | AB42: 117.8 | AC42: 143.05 | AD42: 0.05789473684 | AE42: 149.87 | AF42: 122.445 | AG42: 144.375 | AH42: 147.785 | AI42: 118.228 | AJ42: 147.785 | AK42: 177.342 | AO42: 2L | AP42: 0.85 | AQ42: 1 | AR42: 1.25
A43: Director Strategic Engagement & Innovation | B43: Director, Strategic Engagement & Innovation | D43: 4 | E43: 726 | F43: 750 | G43: 145 | H43: 1.140923755 | I43: 1.23089983 | J43: 1.184205153 | K43: 0.9951956074 | L43: 0.9675051711 | M43: 0.9811550563 | N43: 253.3 | O43: 1.738503775 | P43: 1.770709542 | Q43: 1.754458874 | R43: 145 | S43: 0.9951956074 | T43: 1.013631597 | U43: 1.004329004 | V43: 0.9951956074 | W43: 0.9675051711 | X43: 0.9811550563 | Y43: 127.09 | Z43: 145.7 | AA43: 145.7 | AB43: 117.8 | AC43: 143.05 | AD43: 0.05789473684 | AE43: 149.87 | AF43: 122.445 | AG43: 144.375 | AH43: 147.785 | AI43: 118.228 | AJ43: 147.785 | AK43: 177.342 | AO43: 2H | AP43: 0.85 | AQ43: 1 | AR43: 1.25
A44: Manager Program Delivery & Partner Services | B44: Manager, Program Delivery & Partner Services | D44: 4 | E44: 726 | F44: 750 | G44: 115 | H44: 0.9048705642 | I44: 0.9762308998 | J44: 0.9391971906 | K44: 0.7892930679 | L44: 0.7673316875 | M44: 0.7781574585 | N44: 179.1 | O44: 1.229238161 | P44: 1.252009787 | Q44: 1.240519481 | R44: 115 | S44: 0.7892930679 | T44: 0.8039147151 | U44: 0.7965367965 | V44: 0.7892930679 | W44: 0.7673316875 | X44: 0.7781574585 | Y44: 127.09 | Z44: 145.7 | AA44: 145.7 | AB44: 117.8 | AC44: 143.05 | AD44: 0.05789473684 | AE44: 149.87 | AF44: 122.445 | AG44: 144.375 | AH44: 147.785 | AI44: 118.228 | AJ44: 147.785 | AK44: 177.342 | AL44: -3.228
A45: Manager - Smart Metering | B45: Manager, Meter Data Management | D45: 4 | E45: 726 | F45: 702 | G45: 197.08988 | H45: 1.550789834 | I45: 1.673088964 | J45: 1.609619666 | K45: 1.352710226 | L45: 1.315072263 | M45: 1.33362574 | N45: 179.1 | O45: 1.229238161 | P45: 1.252009787 | Q45: 1.240519481 | R45: 197.08988 | S45: 1.352710226 | T45: 1.377769172 | U45: 1.36512471 | V45: 1.352710226 | W45: 1.315072263 | X45: 1.33362574 | Y45: 127.09 | Z45: 145.7 | AA45: 145.7 | AB45: 117.8 | AC45: 143.05 | AD45: 0.05789473684 | AE45: 149.87 | AF45: 122.445 | AG45: 144.375 | AH45: 147.785 | AI45: 118.228 | AJ45: 147.785 | AK45: 177.342 | AM45: 19.74788
A46: Mgr-Human Resources | B46: Manager, Human Resources (Employee & Labour Relations) | D46: 4 | E46: 726 | F46: 702 | G46: 175.40978 | H46: 1.380201275 | I46: 1.489047368 | J46: 1.432559762 | K46: 1.203910638 | L46: 1.170412891 | M46: 1.186925466 | N46: 179.1 | O46: 1.229238161 | P46: 1.252009787 | Q46: 1.240519481 | R46: 175.40978 | S46: 1.203910638 | T46: 1.226213072 | U46: 1.214959515 | V46: 1.203910638 | W46: 1.170412891 | X46: 1.186925466 | Y46: 127.09 | Z46: 145.7 | AA46: 145.7 | AB46: 117.8 | AC46: 143.05 | AD46: 0.05789473684 | AE46: 149.87 | AF46: 122.445 | AG46: 144.375 | AH46: 147.785 | AI46: 118.228 | AJ46: 147.785 | AK46: 177.342
A47: Mgr-Settlmnt Support | B47: Manager, Settlement Support | D47: 4 | E47: 726 | F47: 702 | G47: 168.5541 | H47: 1.32625777 | I47: 1.430849745 | J47: 1.376569889 | K47: 1.156857241 | L47: 1.124668713 | M47: 1.140535914 | N47: 179.1 | O47: 1.229238161 | P47: 1.252009787 | Q47: 1.240519481 | R47: 168.5541 | S47: 1.156857241 | T47: 1.178288011 | U47: 1.167474286 | V47: 1.156857241 | W47: 1.124668713 | X47: 1.140535914 | Y47: 127.09 | Z47: 145.7 | AA47: 145.7 | AB47: 117.8 | AC47: 143.05 | AD47: 0.05789473684 | AE47: 149.87 | AF47: 122.445 | AG47: 144.375 | AH47: 147.785 | AI47: 118.228 | AJ47: 147.785 | AK47: 177.342
B48: Manager, Special Projects | D48: 4 | E48: 726 | F48: 702 | H48: * | I48: * | J48: * | K48: * | L48: * | M48: * | N48: 179.1 | O48: 1.229238161 | P48: 1.252009787 | Q48: 1.240519481 | S48: * | T48: * | U48: * | V48: * | W48: * | X48: * | Y48: 127.09 | Z48: 145.7 | AA48: 145.7 | AB48: 117.8 | AC48: 143.05 | AD48: 0.05789473684 | AE48: 149.87 | AF48: 122.445 | AG48: 144.375 | AH48: 147.785 | AI48: 118.228 | AJ48: 147.785 | AK48: 177.342
B49: Manager, First Nations | D49: 4 | E49: 726 | F49: 677 | H49: * | I49: * | J49: * | K49: * | L49: * | M49: * | N49: 179.1 | O49: 1.229238161 | P49: 1.252009787 | Q49: 1.240519481 | S49: * | T49: * | U49: * | V49: * | W49: * | X49: * | Y49: 127.09 | Z49: 145.7 | AA49: 145.7 | AB49: 117.8 | AC49: 143.05 | AD49: 0.05789473684 | AE49: 149.87 | AF49: 122.445 | AG49: 144.375 | AH49: 147.785 | AI49: 118.228 | AJ49: 147.785 | AK49: 177.342
B50: Manager, Regulatory Affairs | D50: 4 | E50: 726 | F50: 677 | H50: * | I50: * | J50: * | K50: * | L50: * | M50: * | N50: 179.1 | O50: 1.229238161 | P50: 1.252009787 | Q50: 1.240519481 | S50: * | T50: * | U50: * | V50: * | W50: * | X50: * | Y50: 127.09 | Z50: 145.7 | AA50: 145.7 | AB50: 117.8 | AC50: 143.05 | AD50: 0.05789473684 | AE50: 149.87 | AF50: 122.445 | AG50: 144.375 | AH50: 147.785 | AI50: 118.228 | AJ50: 147.785 | AK50: 177.342
B51: Manager, Smart Metering | D51: 4 | E51: 726 | F51: 677 | H51: * | I51: * | J51: * | K51: * | L51: * | M51: * | N51: 179.1 | O51: 1.229238161 | P51: 1.252009787 | Q51: 1.240519481 | S51: * | T51: * | U51: * | V51: * | W51: * | X51: * | Y51: 127.09 | Z51: 145.7 | AA51: 145.7 | AB51: 117.8 | AC51: 143.05 | AD51: 0.05789473684 | AE51: 149.87 | AF51: 122.445 | AG51: 144.375 | AH51: 147.785 | AI51: 118.228 | AJ51: 147.785 | AK51: 177.342
A52: Mgr-Human Resources | B52: Manager, Human Resources (Total Rewards) | D52: 4 | E52: 726 | F52: 677 | G52: 175.40978 | H52: 1.380201275 | I52: 1.489047368 | J52: 1.432559762 | K52: 1.203910638 | L52: 1.170412891 | M52: 1.186925466 | N52: 179.1 | O52: 1.229238161 | P52: 1.252009787 | Q52: 1.240519481 | R52: 160.0001 | S52: 1.098147563 | T52: 1.118490738 | U52: 1.108225801 | V52: 1.098147563 | W52: 1.06759258 | X52: 1.082654532 | Y52: 127.09 | Z52: 145.7 | AA52: 145.7 | AB52: 117.8 | AC52: 143.05 | AD52: 0.05789473684 | AE52: 149.87 | AF52: 122.445 | AG52: 144.375 | AH52: 147.785 | AI52: 118.228 | AJ52: 147.785 | AK52: 177.342
A53: Acting Senior Counsel - Manager | B53: Senior Counsel Manager | D53: 4 | E53: 726 | F53: 654 | G53: 134.3 | H53: 1.05673145 | I53: 1.140067912 | J53: 1.09681898 | K53: 0.921757035 | L53: 0.896109962 | M53: 0.9087525798 | N53: 179.1 | O53: 1.229238161 | P53: 1.252009787 | Q53: 1.240519481 | R53: 134.3 | S53: 0.921757035 | T53: 0.938832576 | U53: 0.9302164502 | V53: 0.921757035 | W53: 0.896109962 | X53: 0.9087525798 | Y53: 127.09 | Z53: 145.7 | AA53: 145.7 | AB53: 117.8 | AC53: 143.05 | AD53: 0.05789473684 | AE53: 149.87 | AF53: 122.445 | AG53: 144.375 | AH53: 147.785 | AI53: 118.228 | AJ53: 147.785 | AK53: 177.342
A54: Senior Counsel - Manager | B54: Senior Counsel Manager | D54: 4 | E54: 726 | F54: 654 | G54: 147 | H54: 1.156660634 | I54: 1.247877759 | J54: 1.200539018 | K54: 1.008922443 | L54: 0.9808500701 | M54: 0.9946882295 | N54: 179.1 | O54: 1.229238161 | P54: 1.252009787 | Q54: 1.240519481 | R54: 147 | S54: 1.008922443 | T54: 1.027612723 | U54: 1.018181818 | V54: 1.008922443 | W54: 0.9808500701 | X54: 0.9946882295 | Y54: 127.09 | Z54: 145.7 | AA54: 145.7 | AB54: 117.8 | AC54: 143.05 | AD54: 0.05789473684 | AE54: 149.87 | AF54: 122.445 | AG54: 144.375 | AH54: 147.785 | AI54: 118.228 | AJ54: 147.785 | AK54: 177.342
A55: Manager Human Resources | B55: Manager, Human Resources (Business Partner) | D55: 5H | E55: 573 | F55: 551 | G55: 104.701 | H55: 0.947520362 | I55: 1.105840727 | J55: 1.020577054 | K55: 0.8609571581 | L55: 0.9669468046 | M55: 0.9108791161 | N55: 179.1 | O55: 1.472740729 | P55: 1.659255142 | Q55: 1.560444348 | R55: 104.701 | S55: 0.8609571581 | T55: 0.9699925885 | U55: 0.9122282727 | V55: 0.8609571581 | W55: 0.9669468046 | X55: 0.9108791161 | Y55: 110.5 | Z55: 121.61 | AA55: 121.61 | AB55: 94.68 | AC55: 107.94 | AD55: 0.003591043515 | AE55: 108.28 | AF55: 102.59 | AG55: 114.775 | AH55: 114.945 | AI55: 91.956 | AJ55: 114.945 | AK55: 137.934
A56: Manager Commercial Services | B56: Manager, Contract Management (Commercial Services) | D56: 5H | E56: 573 | F56: 588 | G56: 111.714 | H56: 1.010986425 | I56: 1.17991128 | J56: 1.088936544 | K56: 0.9186251131 | L56: 1.031714075 | M56: 0.9718909043 | N56: 179.1 | O56: 1.472740729 | P56: 1.659255142 | Q56: 1.560444348 | R56: 111.714 | S56: 0.9186251131 | T56: 1.034963869 | U56: 0.9733304291 | V56: 0.9186251131 | W56: 1.031714075 | X56: 0.9718909043 | Y56: 110.5 | Z56: 121.61 | AA56: 121.61 | AB56: 94.68 | AC56: 107.94 | AD56: 0.003591043515 | AE56: 108.28 | AF56: 102.59 | AG56: 114.775 | AH56: 114.945 | AI56: 91.956 | AJ56: 114.945 | AK56: 137.934
A57: Manager Finance & Accounting | B57: Manager, Finance & Accounting | D57: 5H | E57: 573 | F57: 588 | G57: 140 | H57: 1.266968326 | I57: 1.478664977 | J57: 1.364655425 | K57: 1.151221117 | L57: 1.292944219 | M57: 1.217973814 | N57: 179.1 | O57: 1.472740729 | P57: 1.659255142 | Q57: 1.560444348 | R57: 140 | S57: 1.151221117 | T57: 1.297016861 | U57: 1.219777826 | V57: 1.151221117 | W57: 1.292944219 | X57: 1.217973814 | Y57: 110.5 | Z57: 121.61 | AA57: 121.61 | AB57: 94.68 | AC57: 107.94 | AD57: 0.003591043515 | AE57: 108.28 | AF57: 102.59 | AG57: 114.775 | AH57: 114.945 | AI57: 91.956 | AJ57: 114.945 | AK57: 137.934 | AM57: 2.066
A58: Manager Procurement Operations | B58: Manager, Procurement Operations | D58: 5H | E58: 573 | F58: 588 | G58: 116 | H58: 1.049773756 | I58: 1.225179552 | J58: 1.130714495 | K58: 0.9538689253 | L58: 1.071296638 | M58: 1.009178303 | N58: 179.1 | O58: 1.472740729 | P58: 1.659255142 | Q58: 1.560444348 | R58: 116 | S58: 0.9538689253 | T58: 1.074671114 | U58: 1.010673056 | V58: 0.9538689253 | W58: 1.071296638 | X58: 1.009178303 | Y58: 110.5 | Z58: 121.61 | AA58: 121.61 | AB58: 94.68 | AC58: 107.94 | AD58: 0.003591043515 | AE58: 108.28 | AF58: 102.59 | AG58: 114.775 | AH58: 114.945 | AI58: 91.956 | AJ58: 114.945 | AK58: 137.934
A59: Manager Renewable Generation Procurement | B59: Manager, Renewable Generation Procurement | D59: 5H | E59: 573 | F59: 588 | G59: 120 | H59: 1.085972851 | I59: 1.267427123 | J59: 1.16970465 | K59: 0.9867609572 | L59: 1.108237902 | M59: 1.043977554 | N59: 179.1 | O59: 1.472740729 | P59: 1.659255142 | Q59: 1.560444348 | R59: 120 | S59: 0.9867609572 | T59: 1.111728738 | U59: 1.045523851 | V59: 0.9867609572 | W59: 1.108237902 | X59: 1.043977554 | Y59: 110.5 | Z59: 121.61 | AA59: 121.61 | AB59: 94.68 | AC59: 107.94 | AD59: 0.003591043515 | AE59: 108.28 | AF59: 102.59 | AG59: 114.775 | AH59: 114.945 | AI59: 91.956 | AJ59: 114.945 | AK59: 137.934
A60: Section Head - Communications | B60: Section Head Communications | D60: 5H | E60: 573 | F60: 588 | G60: 145.00018 | H60: 1.312218824 | I60: 1.531476341 | J60: 1.413394873 | K60: 1.192337637 | L60: 1.33912246 | M60: 1.261474444 | R60: 145.00018 | S60: 1.192337637 | T60: 1.34334056 | U60: 1.263342888 | V60: 1.192337637 | W60: 1.33912246 | X60: 1.261474444 | Y60: 110.5 | Z60: 121.61 | AA60: 121.61 | AB60: 94.68 | AC60: 107.94 | AD60: 0.003591043515 | AE60: 108.28 | AF60: 102.59 | AG60: 114.775 | AH60: 114.945 | AI60: 91.956 | AJ60: 114.945 | AK60: 137.934 | AM60: 7.06618
B61: Manager, Learning & Organizational Development | D61: 5H | E61: 573 | F61: 588 | H61: * | I61: * | J61: * | K61: * | L61: * | M61: * | N61: 179.1 | O61: 1.472740729 | P61: 1.659255142 | Q61: 1.560444348 | S61: * | T61: * | U61: * | V61: * | W61: * | X61: * | Y61: 110.5 | Z61: 121.61 | AA61: 121.61 | AB61: 94.68 | AC61: 107.94 | AD61: 0.003591043515 | AE61: 108.28 | AF61: 102.59 | AG61: 114.775 | AH61: 114.945 | AI61: 91.956 | AJ61: 114.945 | AK61: 137.934
A62: Manager RESOP/FIT | B62: Manager, RESOP/FIT | D62: 5H | E62: 573 | F62: 588 | G62: 130.047 | H62: 1.176895928 | I62: 1.373542459 | J62: 1.267638171 | K62: 1.069377518 | L62: 1.20102512 | M62: 1.131384575 | N62: 179.1 | O62: 1.472740729 | P62: 1.659255142 | Q62: 1.560444348 | R62: 130.047 | S62: 1.069377518 | T62: 1.204808227 | U62: 1.133060335 | V62: 1.069377518 | W62: 1.20102512 | X62: 1.131384575 | Y62: 110.5 | Z62: 121.61 | AA62: 121.61 | AB62: 94.68 | AC62: 107.94 | AD62: 0.003591043515 | AE62: 108.28 | AF62: 102.59 | AG62: 114.775 | AH62: 114.945 | AI62: 91.956 | AJ62: 114.945 | AK62: 137.934
A63: Manager, FIT & microFIT | B63: Manager, FIT & microFIT | D63: 5H | E63: 573 | F63: 588 | G63: 107.1 | H63: 0.9692307692 | I63: 1.131178707 | J63: 1.0439614 | K63: 0.8806841543 | L63: 0.9891023273 | M63: 0.9317499674 | N63: 179.1 | O63: 1.472740729 | P63: 1.659255142 | Q63: 1.560444348 | R63: 107.1 | S63: 0.8806841543 | T63: 0.9922178988 | U63: 0.933130037 | V63: 0.8806841543 | W63: 0.9891023273 | X63: 0.9317499674 | Y63: 110.5 | Z63: 121.61 | AA63: 121.61 | AB63: 94.68 | AC63: 107.94 | AD63: 0.003591043515 | AE63: 108.28 | AF63: 102.59 | AG63: 114.775 | AH63: 114.945 | AI63: 91.956 | AJ63: 114.945 | AK63: 137.934
B64: Manager, Contract Management (Vacant role) | D64: 5H | E64: 573 | F64: 588 | H64: * | I64: * | J64: * | K64: * | L64: * | M64: * | N64: 179.1 | O64: 1.472740729 | P64: 1.659255142 | Q64: 1.560444348 | S64: * | T64: * | U64: * | V64: * | W64: * | X64: * | Y64: 110.5 | Z64: 121.61 | AA64: 121.61 | AB64: 94.68 | AC64: 107.94 | AD64: 0.003591043515 | AE64: 108.28 | AF64: 102.59 | AG64: 114.775 | AH64: 114.945 | AI64: 91.956 | AJ64: 114.945 | AK64: 137.934
B65: Manager, Market Change Initiatives | D65: 5H | E65: 573 | F65: 588 | H65: * | I65: * | J65: * | K65: * | L65: * | M65: * | N65: 179.1 | O65: 1.472740729 | P65: 1.659255142 | Q65: 1.560444348 | S65: * | T65: * | U65: * | V65: * | W65: * | X65: * | Y65: 110.5 | Z65: 121.61 | AA65: 121.61 | AB65: 94.68 | AC65: 107.94 | AD65: 0.003591043515 | AE65: 108.28 | AF65: 102.59 | AG65: 114.775 | AH65: 114.945 | AI65: 91.956 | AJ65: 114.945 | AK65: 137.934
B66: Control Room Supervisor | D66: 5H | E66: 573 | F66: 588 | H66: * | I66: * | J66: * | K66: * | L66: * | M66: * | S66: * | T66: * | U66: * | V66: * | W66: * | X66: * | Y66: 110.5 | Z66: 121.61 | AA66: 121.61 | AB66: 94.68 | AC66: 107.94 | AD66: 0.003591043515 | AE66: 108.28 | AF66: 102.59 | AG66: 114.775 | AH66: 114.945 | AI66: 91.956 | AJ66: 114.945 | AK66: 137.934
B67: Section Head, IT Operations | D67: 5H | E67: 573 | F67: 571 | H67: * | I67: * | J67: * | K67: * | L67: * | M67: * | S67: * | T67: * | U67: * | V67: * | W67: * | X67: * | Y67: 110.5 | Z67: 121.61 | AA67: 121.61 | AB67: 94.68 | AC67: 107.94 | AD67: 0.003591043515 | AE67: 108.28 | AF67: 102.59 | AG67: 114.775 | AH67: 114.945 | AI67: 91.956 | AJ67: 114.945 | AK67: 137.934
A68: Acting Manager, Market Transformation | B68: Market Transformation Manager | D68: 5H | E68: 573 | F68: 571 | G68: 118.238 | H68: 1.070027149 | I68: 1.248817068 | J68: 1.152529486 | K68: 0.9722720171 | L68: 1.091965275 | M68: 1.028648484 | N68: 179.1 | O68: 1.472740729 | P68: 1.659255142 | Q68: 1.560444348 | R68: 118.238 | S68: 0.9722720171 | T68: 1.095404855 | U68: 1.030172076 | V68: 0.9722720171 | W68: 1.091965275 | X68: 1.028648484 | Y68: 110.5 | Z68: 121.61 | AA68: 121.61 | AB68: 94.68 | AC68: 107.94 | AD68: 0.003591043515 | AE68: 108.28 | AF68: 102.59 | AG68: 114.775 | AH68: 114.945 | AI68: 91.956 | AJ68: 114.945 | AK68: 137.934
A69: Manager Alliances | B69: Manager Alliances | D69: 5H | E69: 573 | F69: 571 | G69: 115.652 | H69: 1.046624434 | I69: 1.221504014 | J69: 1.127322351 | K69: 0.9510073185 | L69: 1.068082748 | M69: 1.006150768 | N69: 179.1 | O69: 1.472740729 | P69: 1.659255142 | Q69: 1.560444348 | R69: 115.652 | S69: 0.9510073185 | T69: 1.0714471 | U69: 1.007641037 | V69: 0.9510073185 | W69: 1.068082748 | X69: 1.006150768 | Y69: 110.5 | Z69: 121.61 | AA69: 121.61 | AB69: 94.68 | AC69: 107.94 | AD69: 0.003591043515 | AE69: 108.28 | AF69: 102.59 | AG69: 114.775 | AH69: 114.945 | AI69: 91.956 | AJ69: 114.945 | AK69: 137.934
A70: Superintendent-Operations | B70: Superintendent Operations | D70: 5H | E70: 573 | F70: 571 | G70: 179.81496 | H70: 1.627284706 | I70: 1.899186312 | J70: 1.75275329 | K70: 1.47861985 | L70: 1.66064795 | M70: 1.564356518 | N70: 179.1 | O70: 1.472740729 | P70: 1.659255142 | Q70: 1.560444348 | R70: 179.81496 | S70: 1.47861985 | T70: 1.665878822 | U70: 1.566673579 | V70: 1.47861985 | W70: 1.66064795 | X70: 1.564356518 | Y70: 110.5 | Z70: 121.61 | AA70: 121.61 | AB70: 94.68 | AC70: 107.94 | AD70: 0.003591043515 | AE70: 108.28 | AF70: 102.59 | AG70: 114.775 | AH70: 114.945 | AI70: 91.956 | AJ70: 114.945 | AK70: 137.934 | AM70: 41.88096
A71: Superintendent-Operations | B71: Superintendent Operations | D71: 5H | E71: 573 | F71: 571 | G71: 179.81496 | H71: 1.627284706 | I71: 1.899186312 | J71: 1.75275329 | K71: 1.47861985 | L71: 1.66064795 | M71: 1.564356518 | N71: 179.1 | O71: 1.472740729 | P71: 1.659255142 | Q71: 1.560444348 | R71: 178.94214 | S71: 1.471442645 | T71: 1.657792663 | U71: 1.559068961 | V71: 1.471442645 | W71: 1.652587181 | X71: 1.556763148 | Y71: 110.5 | Z71: 121.61 | AA71: 121.61 | AB71: 94.68 | AC71: 107.94 | AD71: 0.003591043515 | AE71: 108.28 | AF71: 102.59 | AG71: 114.775 | AH71: 114.945 | AI71: 91.956 | AJ71: 114.945 | AK71: 137.934 | AM71: 41.88096
A72: Superintendent-Operations | B72: Superintendent Operations | D72: 5H | E72: 573 | F72: 571 | G72: 179.81496 | H72: 1.627284706 | I72: 1.899186312 | J72: 1.75275329 | K72: 1.47861985 | L72: 1.66064795 | M72: 1.564356518 | N72: 179.1 | O72: 1.472740729 | P72: 1.659255142 | Q72: 1.560444348 | R72: 173.12308 | S72: 1.423592468 | T72: 1.603882527 | U72: 1.508369244 | V72: 1.423592468 | W72: 1.598846324 | X72: 1.506138414 | Y72: 110.5 | Z72: 121.61 | AA72: 121.61 | AB72: 94.68 | AC72: 107.94 | AD72: 0.003591043515 | AE72: 108.28 | AF72: 102.59 | AG72: 114.775 | AH72: 114.945 | AI72: 91.956 | AJ72: 114.945 | AK72: 137.934 | AM72: 41.88096
A73: Superintendent-Operations | B73: Superintendent Operations | D73: 5H | E73: 573 | F73: 571 | G73: 179.81496 | H73: 1.627284706 | I73: 1.899186312 | J73: 1.75275329 | K73: 1.47861985 | L73: 1.66064795 | M73: 1.564356518 | N73: 179.1 | O73: 1.472740729 | P73: 1.659255142 | Q73: 1.560444348 | R73: 173.12308 | S73: 1.423592468 | T73: 1.603882527 | U73: 1.508369244 | V73: 1.423592468 | W73: 1.598846324 | X73: 1.506138414 | Y73: 110.5 | Z73: 121.61 | AA73: 121.61 | AB73: 94.68 | AC73: 107.94 | AD73: 0.003591043515 | AE73: 108.28 | AF73: 102.59 | AG73: 114.775 | AH73: 114.945 | AI73: 91.956 | AJ73: 114.945 | AK73: 137.934 | AM73: 41.88096
A74: Superintendent-Operations | B74: Superintendent Operations | D74: 5H | E74: 573 | F74: 571 | G74: 179.81496 | H74: 1.627284706 | I74: 1.899186312 | J74: 1.75275329 | K74: 1.47861985 | L74: 1.66064795 | M74: 1.564356518 | N74: 179.1 | O74: 1.472740729 | P74: 1.659255142 | Q74: 1.560444348 | R74: 170.3689 | S74: 1.400944824 | T74: 1.578366685 | U74: 1.484372904 | V74: 1.400944824 | W74: 1.573410602 | X74: 1.482177563 | Y74: 110.5 | Z74: 121.61 | AA74: 121.61 | AB74: 94.68 | AC74: 107.94 | AD74: 0.003591043515 | AE74: 108.28 | AF74: 102.59 | AG74: 114.775 | AH74: 114.945 | AI74: 91.956 | AJ74: 114.945 | AK74: 137.934 | AM74: 41.88096
A75: Superintendent-Operations | B75: Superintendent Operations | D75: 5H | E75: 573 | F75: 571 | G75: 179.81496 | H75: 1.627284706 | I75: 1.899186312 | J75: 1.75275329 | K75: 1.47861985 | L75: 1.66064795 | M75: 1.564356518 | N75: 179.1 | O75: 1.472740729 | P75: 1.659255142 | Q75: 1.560444348 | R75: 167.2801 | S75: 1.375545597 | T75: 1.549750787 | U75: 1.45746112 | V75: 1.375545597 | W75: 1.544884559 | X75: 1.455305581 | Y75: 110.5 | Z75: 121.61 | AA75: 121.61 | AB75: 94.68 | AC75: 107.94 | AD75: 0.003591043515 | AE75: 108.28 | AF75: 102.59 | AG75: 114.775 | AH75: 114.945 | AI75: 91.956 | AJ75: 114.945 | AK75: 137.934 | AM75: 41.88096
A76: Manager Technical Services | B76: Manager Technical Services | D76: 5H | E76: 573 | F76: 571 | G76: 110.5 | H76: 1 | I76: 1.167089142 | J76: 1.077103031 | K76: 0.9086423814 | L76: 1.020502401 | M76: 0.9613293314 | N76: 179.1 | O76: 1.472740729 | P76: 1.659255142 | Q76: 1.560444348 | R76: 110.5 | S76: 0.9086423814 | T76: 1.02371688 | U76: 0.9627532128 | V76: 0.9086423814 | W76: 1.020502401 | X76: 0.9613293314 | Y76: 110.5 | Z76: 121.61 | AA76: 121.61 | AB76: 94.68 | AC76: 107.94 | AD76: 0.003591043515 | AE76: 108.28 | AF76: 102.59 | AG76: 114.775 | AH76: 114.945 | AI76: 91.956 | AJ76: 114.945 | AK76: 137.934
A77: Section Head - IT&I | B77: Section Head, ITI | D77: 5H | E77: 573 | F77: 571 | G77: 170.5639 | H77: 1.543564706 | I77: 1.801477609 | J77: 1.662578224 | K77: 1.40254831 | L77: 1.575211489 | M77: 1.483874027 | N77: 179.1 | O77: 1.472740729 | P77: 1.659255142 | Q77: 1.560444348 | R77: 170.5639 | S77: 1.40254831 | T77: 1.580173244 | U77: 1.48607188 | V77: 1.40254831 | W77: 1.575211489 | X77: 1.483874027 | Y77: 110.5 | Z77: 121.61 | AA77: 121.61 | AB77: 94.68 | AC77: 107.94 | AD77: 0.003591043515 | AE77: 108.28 | AF77: 102.59 | AG77: 114.775 | AH77: 114.945 | AI77: 91.956 | AJ77: 114.945 | AK77: 137.934 | AM77: 32.6299
A78: Section Head - IT&I | B78: Section Head, ITI | D78: 5H | E78: 573 | F78: 571 | G78: 170.5639 | H78: 1.543564706 | I78: 1.801477609 | J78: 1.662578224 | K78: 1.40254831 | L78: 1.575211489 | M78: 1.483874027 | N78: 179.1 | O78: 1.472740729 | P78: 1.659255142 | Q78: 1.560444348 | R78: 161.28216 | S78: 1.326224488 | T78: 1.494183435 | U78: 1.405202875 | V78: 1.326224488 | W78: 1.489491688 | X78: 1.403124625 | Y78: 110.5 | Z78: 121.61 | AA78: 121.61 | AB78: 94.68 | AC78: 107.94 | AD78: 0.003591043515 | AE78: 108.28 | AF78: 102.59 | AG78: 114.775 | AH78: 114.945 | AI78: 91.956 | AJ78: 114.945 | AK78: 137.934 | AM78: 32.6299
A79: Section Head - IT&I | B79: Section Head, ITI | D79: 5H | E79: 573 | F79: 571 | G79: 170.5639 | H79: 1.543564706 | I79: 1.801477609 | J79: 1.662578224 | K79: 1.40254831 | L79: 1.575211489 | M79: 1.483874027 | N79: 179.1 | O79: 1.472740729 | P79: 1.659255142 | Q79: 1.560444348 | R79: 160.42286 | S79: 1.319158457 | T79: 1.486222531 | U79: 1.397716053 | V79: 1.319158457 | W79: 1.481555781 | X79: 1.395648876 | Y79: 110.5 | Z79: 121.61 | AA79: 121.61 | AB79: 94.68 | AC79: 107.94 | AD79: 0.003591043515 | AE79: 108.28 | AF79: 102.59 | AG79: 114.775 | AH79: 114.945 | AI79: 91.956 | AJ79: 114.945 | AK79: 137.934 | AM79: 32.6299
A80: Section Head - IT&I | B80: Section Head, ITI | D80: 5H | E80: 573 | F80: 571 | G80: 170.5639 | H80: 1.543564706 | I80: 1.801477609 | J80: 1.662578224 | K80: 1.40254831 | L80: 1.575211489 | M80: 1.483874027 | N80: 179.1 | O80: 1.472740729 | P80: 1.659255142 | Q80: 1.560444348 | R80: 155.50782 | S80: 1.278742044 | T80: 1.440687604 | U80: 1.35489279 | V80: 1.278742044 | W80: 1.436163835 | X80: 1.352888947 | Y80: 110.5 | Z80: 121.61 | AA80: 121.61 | AB80: 94.68 | AC80: 107.94 | AD80: 0.003591043515 | AE80: 108.28 | AF80: 102.59 | AG80: 114.775 | AH80: 114.945 | AI80: 91.956 | AJ80: 114.945 | AK80: 137.934 | AM80: 32.6299
A81: Section Head - IT&I | B81: Section Head, ITI | D81: 5H | E81: 573 | F81: 571 | G81: 170.5639 | H81: 1.543564706 | I81: 1.801477609 | J81: 1.662578224 | K81: 1.40254831 | L81: 1.575211489 | M81: 1.483874027 | N81: 179.1 | O81: 1.472740729 | P81: 1.659255142 | Q81: 1.560444348 | R81: 154.60302 | S81: 1.271301867 | T81: 1.43230517 | U81: 1.34700954 | V81: 1.271301867 | W81: 1.427807721 | X81: 1.345017356 | Y81: 110.5 | Z81: 121.61 | AA81: 121.61 | AB81: 94.68 | AC81: 107.94 | AD81: 0.003591043515 | AE81: 108.28 | AF81: 102.59 | AG81: 114.775 | AH81: 114.945 | AI81: 91.956 | AJ81: 114.945 | AK81: 137.934 | AM81: 32.6299
A82: Section Head - IT&I | B82: Section Head, ITI | D82: 5H | E82: 573 | F82: 571 | G82: 170.5639 | H82: 1.543564706 | I82: 1.801477609 | J82: 1.662578224 | K82: 1.40254831 | L82: 1.575211489 | M82: 1.483874027 | N82: 179.1 | O82: 1.472740729 | P82: 1.659255142 | Q82: 1.560444348 | R82: 136.36922 | S82: 1.121365184 | T82: 1.263379841 | U82: 1.188143934 | V82: 1.121365184 | W82: 1.259412819 | X82: 1.186386707 | Y82: 110.5 | Z82: 121.61 | AA82: 121.61 | AB82: 94.68 | AC82: 107.94 | AD82: 0.003591043515 | AE82: 108.28 | AF82: 102.59 | AG82: 114.775 | AH82: 114.945 | AI82: 91.956 | AJ82: 114.945 | AK82: 137.934 | AM82: 32.6299
A83: Section Head-Planning & Assess | B83: Section Head Planning & Assessments | D83: 5H | E83: 573 | F83: 571 | G83: 149.5728 | H83: 1.3536 | I83: 1.579771863 | J83: 1.457966663 | K83: 1.229938327 | L83: 1.38135205 | M83: 1.301255383 | N83: 179.1 | O83: 1.472740729 | P83: 1.659255142 | Q83: 1.560444348 | R83: 149.5728 | S83: 1.229938327 | T83: 1.385703168 | U83: 1.303182749 | V83: 1.229938327 | W83: 1.38135205 | X83: 1.301255383 | Y83: 110.5 | Z83: 121.61 | AA83: 121.61 | AB83: 94.68 | AC83: 107.94 | AD83: 0.003591043515 | AE83: 108.28 | AF83: 102.59 | AG83: 114.775 | AH83: 114.945 | AI83: 91.956 | AJ83: 114.945 | AK83: 137.934 | AM83: 11.6388
A84: Section Head-Planning & Assess | B84: Section Head Planning & Assessments | D84: 5H | E84: 573 | F84: 571 | G84: 149.5728 | H84: 1.3536 | I84: 1.579771863 | J84: 1.457966663 | K84: 1.229938327 | L84: 1.38135205 | M84: 1.301255383 | N84: 179.1 | O84: 1.472740729 | P84: 1.659255142 | Q84: 1.560444348 | R84: 148.93216 | S84: 1.22467034 | T84: 1.379768019 | U84: 1.297601046 | V84: 1.22467034 | W84: 1.375435537 | X84: 1.295681935 | Y84: 110.5 | Z84: 121.61 | AA84: 121.61 | AB84: 94.68 | AC84: 107.94 | AD84: 0.003591043515 | AE84: 108.28 | AF84: 102.59 | AG84: 114.775 | AH84: 114.945 | AI84: 91.956 | AJ84: 114.945 | AK84: 137.934 | AM84: 11.6388
A85: Section Head-Planning & Assess | B85: Section Head Planning & Assessments | D85: 5H | E85: 573 | F85: 571 | G85: 149.5728 | H85: 1.3536 | I85: 1.579771863 | J85: 1.457966663 | K85: 1.229938327 | L85: 1.38135205 | M85: 1.301255383 | N85: 179.1 | O85: 1.472740729 | P85: 1.659255142 | Q85: 1.560444348 | R85: 148.10432 | S85: 1.217863005 | T85: 1.372098573 | U85: 1.290388325 | V85: 1.217863005 | W85: 1.367790174 | X85: 1.288479882 | Y85: 110.5 | Z85: 121.61 | AA85: 121.61 | AB85: 94.68 | AC85: 107.94 | AD85: 0.003591043515 | AE85: 108.28 | AF85: 102.59 | AG85: 114.775 | AH85: 114.945 | AI85: 91.956 | AJ85: 114.945 | AK85: 137.934 | AM85: 11.6388
A86: Section Head-Planning & Assess | B86: Section Head Planning & Assessments | D86: 5H | E86: 573 | F86: 571 | G86: 149.5728 | H86: 1.3536 | I86: 1.579771863 | J86: 1.457966663 | K86: 1.229938327 | L86: 1.38135205 | M86: 1.301255383 | N86: 179.1 | O86: 1.472740729 | P86: 1.659255142 | Q86: 1.560444348 | R86: 148.10432 | S86: 1.217863005 | T86: 1.372098573 | U86: 1.290388325 | V86: 1.217863005 | W86: 1.367790174 | X86: 1.288479882 | Y86: 110.5 | Z86: 121.61 | AA86: 121.61 | AB86: 94.68 | AC86: 107.94 | AD86: 0.003591043515 | AE86: 108.28 | AF86: 102.59 | AG86: 114.775 | AH86: 114.945 | AI86: 91.956 | AJ86: 114.945 | AK86: 137.934 | AM86: 11.6388
A87: Section Head-Planning & Assess | B87: Section Head Planning & Assessments | D87: 5H | E87: 573 | F87: 571 | G87: 149.5728 | H87: 1.3536 | I87: 1.579771863 | J87: 1.457966663 | K87: 1.229938327 | L87: 1.38135205 | M87: 1.301255383 | N87: 179.1 | O87: 1.472740729 | P87: 1.659255142 | Q87: 1.560444348 | R87: 148.0466 | S87: 1.217388373 | T87: 1.371563832 | U87: 1.289885428 | V87: 1.217388373 | W87: 1.367257111 | X87: 1.287977728 | Y87: 110.5 | Z87: 121.61 | AA87: 121.61 | AB87: 94.68 | AC87: 107.94 | AD87: 0.003591043515 | AE87: 108.28 | AF87: 102.59 | AG87: 114.775 | AH87: 114.945 | AI87: 91.956 | AJ87: 114.945 | AK87: 137.934 | AM87: 11.6388
A88: Section Head-Planning & Assess | B88: Section Head Planning & Assessments | D88: 5H | E88: 573 | F88: 571 | G88: 149.5728 | H88: 1.3536 | I88: 1.579771863 | J88: 1.457966663 | K88: 1.229938327 | L88: 1.38135205 | M88: 1.301255383 | N88: 179.1 | O88: 1.472740729 | P88: 1.659255142 | Q88: 1.560444348 | R88: 138.49992 | S88: 1.138885947 | T88: 1.283119511 | U88: 1.206708081 | V88: 1.138885947 | W88: 1.279090506 | X88: 1.204923398 | Y88: 110.5 | Z88: 121.61 | AA88: 121.61 | AB88: 94.68 | AC88: 107.94 | AD88: 0.003591043515 | AE88: 108.28 | AF88: 102.59 | AG88: 114.775 | AH88: 114.945 | AI88: 91.956 | AJ88: 114.945 | AK88: 137.934 | AM88: 11.6388
A89: Section Head-Planning & Assess | B89: Section Head Planning & Assessments | D89: 5H | E89: 573 | F89: 571 | G89: 149.5728 | H89: 1.3536 | I89: 1.579771863 | J89: 1.457966663 | K89: 1.229938327 | L89: 1.38135205 | M89: 1.301255383 | N89: 179.1 | O89: 1.472740729 | P89: 1.659255142 | Q89: 1.560444348 | R89: 135.00006 | S89: 1.11010657 | T89: 1.250695386 | U89: 1.176214855 | V89: 1.11010657 | W89: 1.246768194 | X89: 1.174475271 | Y89: 110.5 | Z89: 121.61 | AA89: 121.61 | AB89: 94.68 | AC89: 107.94 | AD89: 0.003591043515 | AE89: 108.28 | AF89: 102.59 | AG89: 114.775 | AH89: 114.945 | AI89: 91.956 | AJ89: 114.945 | AK89: 137.934 | AM89: 11.6388
A90: Section Head-Shift Oper Supprt | B90: Section Head Shift Operations Support | D90: 5H | E90: 573 | F90: 571 | G90: 143.96876 | H90: 1.302884706 | I90: 1.520582594 | J90: 1.403341066 | K90: 1.183856262 | L90: 1.329596971 | M90: 1.252501283 | N90: 179.1 | O90: 1.472740729 | P90: 1.659255142 | Q90: 1.560444348 | R90: 143.96876 | S90: 1.183856262 | T90: 1.333785066 | U90: 1.254356437 | V90: 1.183856262 | W90: 1.329596971 | X90: 1.252501283 | Y90: 110.5 | Z90: 121.61 | AA90: 121.61 | AB90: 94.68 | AC90: 107.94 | AD90: 0.003591043515 | AE90: 108.28 | AF90: 102.59 | AG90: 114.775 | AH90: 114.945 | AI90: 91.956 | AJ90: 114.945 | AK90: 137.934 | AM90: 6.03476
B91: Manager Customer Relations | D91: 5H | E91: 573 | F91: 551 | H91: * | I91: * | J91: * | K91: * | L91: * | M91: * | S91: * | T91: * | U91: * | V91: * | W91: * | X91: * | Y91: 110.5 | Z91: 121.61 | AA91: 121.61 | AB91: 94.68 | AC91: 107.94 | AD91: 0.003591043515 | AE91: 108.28 | AF91: 102.59 | AG91: 114.775 | AH91: 114.945 | AI91: 91.956 | AJ91: 114.945 | AK91: 137.934
B92: Manager, Conservation Intelligence and Analytics | D92: 5H | E92: 573 | F92: 551 | H92: * | I92: * | J92: * | K92: * | L92: * | M92: * | S92: * | T92: * | U92: * | V92: * | W92: * | X92: * | Y92: 110.5 | Z92: 121.61 | AA92: 121.61 | AB92: 94.68 | AC92: 107.94 | AD92: 0.003591043515 | AE92: 108.28 | AF92: 102.59 | AG92: 114.775 | AH92: 114.945 | AI92: 91.956 | AJ92: 114.945 | AK92: 137.934
B93: Manager, Financial Planning & Analysis | D93: 5H | E93: 573 | F93: 551 | H93: * | I93: * | J93: * | K93: * | L93: * | M93: * | S93: * | T93: * | U93: * | V93: * | W93: * | X93: * | Y93: 110.5 | Z93: 121.61 | AA93: 121.61 | AB93: 94.68 | AC93: 107.94 | AD93: 0.003591043515 | AE93: 108.28 | AF93: 102.59 | AG93: 114.775 | AH93: 114.945 | AI93: 91.956 | AJ93: 114.945 | AK93: 137.934
B94: Manager, Procure to Pay | D94: 5H | E94: 573 | F94: 551 | H94: * | I94: * | J94: * | K94: * | L94: * | M94: * | S94: * | T94: * | U94: * | V94: * | W94: * | X94: * | Y94: 110.5 | Z94: 121.61 | AA94: 121.61 | AB94: 94.68 | AC94: 107.94 | AD94: 0.003591043515 | AE94: 108.28 | AF94: 102.59 | AG94: 114.775 | AH94: 114.945 | AI94: 91.956 | AJ94: 114.945 | AK94: 137.934
B95: Manager, Contract Management (Contract & Support Services) | D95: 5L | E95: 467 | F95: 479 | H95: * | I95: * | J95: * | K95: * | L95: * | M95: * | S95: * | T95: * | U95: * | V95: * | W95: * | X95: * | Y95: 100.16 | Z95: 109.36 | AA95: 109.36 | AB95: 82.01 | AC95: 90.47 | AD95: 0 | AE95: 90.47 | AF95: 91.085 | AG95: 99.915 | AH95: 99.915 | AI95: 79.932 | AJ95: 99.915 | AK95: 119.898
B96: Manager, IT Solutions | D96: 5L | E96: 467 | F96: 479 | H96: * | I96: * | J96: * | K96: * | L96: * | M96: * | S96: * | T96: * | U96: * | V96: * | W96: * | X96: * | Y96: 100.16 | Z96: 109.36 | AA96: 109.36 | AB96: 82.01 | AC96: 90.47 | AD96: 0 | AE96: 90.47 | AF96: 91.085 | AG96: 99.915 | AH96: 99.915 | AI96: 79.932 | AJ96: 99.915 | AK96: 119.898
A97: Manager IT Operations | B97: Manager, IT Operations | D97: 5L | E97: 467 | F97: 479 | G97: 115 | H97: 1.148162939 | I97: 1.402268016 | J97: 1.262556952 | K97: 1.051572787 | L97: 1.271139604 | M97: 1.150978332 | N97: 179.1 | O97: 1.637710315 | P97: 1.979661766 | Q97: 1.792523645 | R97: 115 | S97: 1.051572787 | T97: 1.271139604 | U97: 1.150978332 | V97: 1.051572787 | W97: 1.271139604 | X97: 1.150978332 | Y97: 100.16 | Z97: 109.36 | AA97: 109.36 | AB97: 82.01 | AC97: 90.47 | AD97: 0 | AE97: 90.47 | AF97: 91.085 | AG97: 99.915 | AH97: 99.915 | AI97: 79.932 | AJ97: 99.915 | AK97: 119.898
A98: Mgr - IT Operations | B98: Manager, IT Operations | D98: 5L | E98: 467 | F98: 479 | G98: 180.7676 | H98: 1.804788339 | I98: 2.20421412 | J98: 1.984603392 | K98: 1.652959034 | L98: 1.998094396 | M98: 1.809213832 | N98: 179.1 | O98: 1.637710315 | P98: 1.979661766 | Q98: 1.792523645 | R98: 180.7676 | S98: 1.652959034 | T98: 1.998094396 | U98: 1.809213832 | V98: 1.652959034 | W98: 1.998094396 | X98: 1.809213832 | Y98: 100.16 | Z98: 109.36 | AA98: 109.36 | AB98: 82.01 | AC98: 90.47 | AD98: 0 | AE98: 90.47 | AF98: 91.085 | AG98: 99.915 | AH98: 99.915 | AI98: 79.932 | AJ98: 99.915 | AK98: 119.898 | AM98: 60.8696
D99: 6H | E99: 381 | H99: * | I99: * | J99: * | K99: * | L99: * | M99: * | N99: 179.1 | O99: * | P99: * | Q99: * | S99: * | T99: * | U99: * | V99: * | W99: * | X99: * | Y99: * | Z99: * | AA99: * | AB99: * | AC99: * | AD99: * | AE99: * | AF99: * | AG99: * | AH99: * | AI99: * | AJ99: * | AK99: *
D100: 6L | E100: 310 | H100: * | I100: * | J100: * | K100: * | L100: * | M100: * | N100: 179.1 | O100: * | P100: * | Q100: * | S100: * | T100: * | U100: * | V100: * | W100: * | X100: * | Y100: * | Z100: * | AA100: * | AB100: * | AC100: * | AD100: * | AE100: * | AF100: * | AG100: * | AH100: * | AI100: * | AJ100: * | AK100: *
D101: 7H | E101: 253 | H101: * | I101: * | J101: * | K101: * | L101: * | M101: * | N101: 179.1 | O101: * | P101: * | Q101: * | S101: * | T101: * | U101: * | V101: * | W101: * | X101: * | Y101: * | Z101: * | AA101: * | AB101: * | AC101: * | AD101: * | AE101: * | AF101: * | AG101: * | AH101: * | AI101: * | AJ101: * | AK101: *
D102: 7L | E102: 206 | H102: * | I102: * | J102: * | K102: * | L102: * | M102: * | N102: 179.1 | O102: * | P102: * | Q102: * | S102: * | T102: * | U102: * | V102: * | W102: * | X102: * | Y102: * | Z102: * | AA102: * | AB102: * | AC102: * | AD102: * | AE102: * | AF102: * | AG102: * | AH102: * | AI102: * | AJ102: * | AK102: *
D103: 8H | E103: 167 | H103: * | I103: * | J103: * | K103: * | L103: * | M103: * | N103: 179.1 | O103: * | P103: * | Q103: * | S103: * | T103: * | U103: * | V103: * | W103: * | X103: * | Y103: * | Z103: * | AA103: * | AB103: * | AC103: * | AD103: * | AE103: * | AF103: * | AG103: * | AH103: * | AI103: * | AJ103: * | AK103: *
D104: 8L | E104: 136 | H104: * | I104: * | J104: * | K104: * | L104: * | M104: * | N104: 179.1 | O104: * | P104: * | Q104: * | S104: * | T104: * | U104: * | V104: * | W104: * | X104: * | Y104: * | Z104: * | AA104: * | AB104: * | AC104: * | AD104: * | AE104: * | AF104: * | AG104: * | AH104: * | AI104: * | AJ104: * | AK104: *
A105: Section Head - Corp Bus Mgmt | B105: Section Head Corporate Business Management | G105: 150.00024 | H105: * | I105: * | J105: * | K105: * | L105: * | M105: * | R105: 150.00024 | S105: * | T105: * | U105: * | V105: * | W105: * | X105: * | Y105: * | Z105: * | AA105: * | AB105: * | AC105: * | AD105: * | AE105: * | AF105: * | AG105: * | AH105: * | AI105: * | AJ105: * | AK105: *
A106: Section Head-Talent Acq & Mgmt | B106: Section Head-Talent Acquisition & Management | G106: 132.00018 | H106: * | I106: * | J106: * | K106: * | L106: * | M106: * | R106: 132.00018 | S106: * | T106: * | U106: * | V106: * | W106: * | X106: * | Y106: * | Z106: * | AA106: * | AB106: * | AC106: * | AD106: * | AE106: * | AF106: * | AG106: * | AH106: * | AI106: * | AJ106: * | AK106: *
B107: Manager, Project & Portfolio | H107: * | I107: * | J107: * | K107: * | L107: * | M107: * | S107: * | T107: * | U107: * | V107: * | W107: * | X107: * | Y107: * | Z107: * | AA107: * | AB107: * | AC107: * | AD107: * | AE107: * | AF107: * | AG107: * | AH107: * | AI107: * | AJ107: * | AK107: *
A108: Data & Reporting Manager | G108: 91 | H108: * | I108: * | J108: * | K108: * | L108: * | M108: * | R108: 91 | S108: * | T108: * | U108: * | V108: * | W108: * | X108: * | Y108: * | Z108: * | AA108: * | AB108: * | AC108: * | AD108: * | AE108: * | AF108: * | AG108: * | AH108: * | AI108: * | AJ108: * | AK108: *
A109: Director Conservation Integration | G109: 193.429 | H109: * | I109: * | J109: * | K109: * | L109: * | M109: * | R109: 193.429 | S109: * | T109: * | U109: * | V109: * | W109: * | X109: * | Y109: * | Z109: * | AA109: * | AB109: * | AC109: * | AD109: * | AE109: * | AF109: * | AG109: * | AH109: * | AI109: * | AJ109: * | AK109: *
A110: Director, Marketing | G110: 195 | H110: * | I110: * | J110: * | K110: * | L110: * | M110: * | R110: 195 | S110: * | T110: * | U110: * | V110: * | W110: * | X110: * | Y110: * | Z110: * | AA110: * | AB110: * | AC110: * | AD110: * | AE110: * | AF110: * | AG110: * | AH110: * | AI110: * | AJ110: * | AK110: *
A111: Director-Planning & Assessment | G111: 221.69784 | H111: * | I111: * | J111: * | K111: * | L111: * | M111: * | R111: 221.69784 | S111: * | T111: * | U111: * | V111: * | W111: * | X111: * | Y111: * | Z111: * | AA111: * | AB111: * | AC111: * | AD111: * | AE111: * | AF111: * | AG111: * | AH111: * | AI111: * | AJ111: * | AK111: *
A112: Dir-Mrkt Assmt & Cmp | G112: 223.93618 | H112: * | I112: * | J112: * | K112: * | L112: * | M112: * | R112: 223.93618 | S112: * | T112: * | U112: * | V112: * | W112: * | X112: * | Y112: * | Z112: * | AA112: * | AB112: * | AC112: * | AD112: * | AE112: * | AF112: * | AG112: * | AH112: * | AI112: * | AJ112: * | AK112: *
A113: Manager - Economics | G113: 160.0001 | H113: * | I113: * | J113: * | K113: * | L113: * | M113: * | R113: 160.0001 | S113: * | T113: * | U113: * | V113: * | W113: * | X113: * | Y113: * | Z113: * | AA113: * | AB113: * | AC113: * | AD113: * | AE113: * | AF113: * | AG113: * | AH113: * | AI113: * | AJ113: * | AK113: *
A114: Manager Regulatory Proceedings | G114: 115.842 | H114: * | I114: * | J114: * | K114: * | L114: * | M114: * | R114: 115.842 | S114: * | T114: * | U114: * | V114: * | W114: * | X114: * | Y114: * | Z114: * | AA114: * | AB114: * | AC114: * | AD114: * | AE114: * | AF114: * | AG114: * | AH114: * | AI114: * | AJ114: * | AK114: *
A115: Manager, Office and Facility Management | G115: 106.313 | H115: * | I115: * | J115: * | K115: * | L115: * | M115: * | R115: 106.313 | S115: * | T115: * | U115: * | V115: * | W115: * | X115: * | Y115: * | Z115: * | AA115: * | AB115: * | AC115: * | AD115: * | AE115: * | AF115: * | AG115: * | AH115: * | AI115: * | AJ115: * | AK115: *
A116: Mgr IT Security and Risk Mgmt | G116: 184.38082 | H116: * | I116: * | J116: * | K116: * | L116: * | M116: * | R116: 184.38082 | S116: * | T116: * | U116: * | V116: * | W116: * | X116: * | Y116: * | Z116: * | AA116: * | AB116: * | AC116: * | AD116: * | AE116: * | AF116: * | AG116: * | AH116: * | AI116: * | AJ116: * | AK116: *
A117: Mgr/Business Architect EDAC | G117: 177.15204 | H117: * | I117: * | J117: * | K117: * | L117: * | M117: * | R117: 177.15204 | S117: * | T117: * | U117: * | V117: * | W117: * | X117: * | Y117: * | Z117: * | AA117: * | AB117: * | AC117: * | AD117: * | AE117: * | AF117: * | AG117: * | AH117: * | AI117: * | AJ117: * | AK117: *
A118: Mgr/Business Architect EDAC | G118: 177.15204 | H118: * | I118: * | J118: * | K118: * | L118: * | M118: * | R118: 157.00022 | S118: * | T118: * | U118: * | V118: * | W118: * | X118: * | Y118: * | Z118: * | AA118: * | AB118: * | AC118: * | AD118: * | AE118: * | AF118: * | AG118: * | AH118: * | AI118: * | AJ118: * | AK118: *
A119: Program Manager Intake and Finance | G119: 113.763 | H119: * | I119: * | J119: * | K119: * | L119: * | M119: * | R119: 113.763 | S119: * | T119: * | U119: * | V119: * | W119: * | X119: * | Y119: * | Z119: * | AA119: * | AB119: * | AC119: * | AD119: * | AE119: * | AF119: * | AG119: * | AH119: * | AI119: * | AJ119: * | AK119: *
A120: Sttlmt Prod Manager | G120: 153.99982 | H120: * | I120: * | J120: * | K120: * | L120: * | M120: * | R120: 153.99982 | S120: * | T120: * | U120: * | V120: * | W120: * | X120: * | Y120: * | Z120: * | AA120: * | AB120: * | AC120: * | AD120: * | AE120: * | AF120: * | AG120: * | AH120: * | AI120: * | AJ120: * | AK120: *
AK121: Totals: | AL121: -24.45808 | AM121: 648.3024
AK122: N: | AL122: 6 | AM122: 26

Sheet Public_Interp (hidden)
B1: INTERPOLATION SPREADSHEET - PLEASE INPUT DATA IN RANGE B10 TO X56
B4: IESO
B5: 2015
B6: Total Direct
B7: INPUT | AG7: SLOPE | AL7: =" "&$B$4&" "&$B$5 ->  | BL7: INTERCEPT | BQ7: =" "&$B$4&" "&$B$5 ->  | CQ7: OUTPUT | CR7: =" "&$B$4&" "&$B$5 -> 
CQ8: Total Pts | CR8: ='Grade Structure'!$H14 -> 136 | CS8: ='Grade Structure'!$H15 -> 167 | CT8: ='Grade Structure'!$H16 -> 206 | CU8: ='Grade Structure'!$H17 -> 253 | CV8: ='Grade Structure'!$H18 -> 310 | CW8: ='Grade Structure'!$H19 -> 381 | CX8: ='Grade Structure'!$H20 -> 467 | CY8: ='Grade Structure'!$H21 -> 573 | CZ8: ='Grade Structure'!$H22 -> 726 | DA8: ='Grade Structure'!$H23 -> 913 | DB8: ='Grade Structure'!$H24 -> 1119 | DC8: ='Grade Structure'!$H25 -> 1372 | DD8: ='Grade Structure'!$H26 -> 1681 | DE8: 0 | DF8: 0 | DG8: 0 | DH8: 0 | DI8: 0 | DJ8: 0 | DK8: 0 | DL8: 0
AG9: S POINTS | AH9: =C10 -> 78 | AI9: =AH$10+1 -> 92 | AJ9: =AI$10+1 -> 106 | AK9: 125 | AL9: 148 | AM9: 177 | AN9: 210 | AO9: 249 | AP9: 292 | AQ9: 343 | AR9: 405 | AS9: 479 | AT9: 567 | AU9: 675 | AV9: 808 | AW9: 968 | AX9: 1159 | AY9: 1385 | AZ9: 1655 | BA9: 1971 | BB9: 2346 | BC9: 2786 | BD9: 3301 | BE9: 3916 | BF9: 4656 | BG9: 5541 | BH9: =BF$10+1 -> 5541 | BI9: =BH$10+1 -> 7741 | BJ9: =BI$10+1 -> 8981 | BL9: S POINTS | BM9: =C10 -> 78 | BN9: =BM$10+1 -> 92 | BO9: =BN$10+1 -> 106 | BP9: 125 | BQ9: 148 | BR9: 177 | BS9: 210 | BT9: 249 | BU9: 292 | BV9: 343 | BW9: 405 | BX9: 479 | BY9: 567 | BZ9: 675 | CA9: 808 | CB9: 968 | CC9: 1159 | CD9: 1385 | CE9: 1655 | CF9: 1971 | CG9: 2346 | CH9: 2786 | CI9: 3301 | CJ9: 3916 | CK9: 4656 | CL9: =CK$10+1 -> 5541 | CM9: 6591 | CN9: 8981 | CQ9: S-Correlation | CR9: 1 | CT9: Aged | CU9: 0 | CW9: Round | CX9: 2
C10: 78 | D10: 91 | E10: 105 | F10: 124 | G10: 147 | H10: 176 | I10: 209 | J10: 248 | K10: 291 | L10: 342 | M10: 404 | N10: 478 | O10: 566 | P10: 674 | Q10: 807 | R10: 967 | S10: 1158 | T10: 1384 | U10: 1654 | V10: 1970 | W10: 2345 | X10: 2785 | Y10: 3300 | Z10: 3915 | AA10: 4655 | AB10: 5540 | AC10: 6590 | AD10: 7740 | AE10: 8980 | AH10: =D$10 -> 91 | AI10: 105 | AJ10: 124 | AK10: 147 | AL10: 176 | AM10: 209 | AN10: 248 | AO10: 291 | AP10: 342 | AQ10: 404 | AR10: 478 | AS10: 566 | AT10: 674 | AU10: 807 | AV10: 967 | AW10: 1158 | AX10: 1384 | AY10: 1654 | AZ10: 1970 | BA10: 2345 | BB10: 2785 | BC10: 3300 | BD10: 3915 | BE10: 4655 | BF10: 5540 | BG10: 6590 | BH10: 7740 | BI10: 8980 | BM10: =D$10 -> 91 | BN10: 105 | BO10: 124 | BP10: 147 | BQ10: 176 | BR10: 209 | BS10: 248 | BT10: 291 | BU10: 342 | BV10: 404 | BW10: 478 | BX10: 566 | BY10: 674 | BZ10: 807 | CA10: 967 | CB10: 1158 | CC10: 1384 | CD10: 1654 | CE10: 1970 | CF10: 2345 | CG10: 2785 | CH10: 3300 | CI10: 3915 | CJ10: 4655 | CK10: 5540 | CL10: 6590 | CM10: =AE$10 -> 8980 | CP10: 1 | CQ10: S-Pts | CR10: =CR8 -> 136 | CS10: =CS8 -> 167 | CT10: 206 | CU10: 253 | CV10: 310 | CW10: 381 | CX10: 467 | CY10: 573 | CZ10: 726 | DA10: 913 | DB10: 1119 | DC10: 1372 | DD10: 1681 | DE10: 0 | DF10: 0 | DG10: 0 | DH10: 0 | DI10: 0 | DJ10: 0 | DK10: 0 | DL10: 0
CP11: =CP10+1 -> 2
A12: 1 | B12: POL | AG12: =B12 -> POL | AH12: =(D12-C12)/(D$10-C$10) -> 0 | AI12: 0 | AJ12: 0 | AK12: 0 | AL12: 0 | AM12: 0 | AN12: 0 | AO12: 0 | AP12: 0 | AQ12: 0 | AR12: 0 | AS12: 0 | AT12: 0 | AU12: 0 | AV12: 0 | AW12: 0 | AX12: =(T12-S12)/(T$10-S$10) -> 0 | AY12: 0 | AZ12: 0 | BA12: 0 | BL12: =B12 -> POL | BM12: =D12-(AH12*D$10) -> 0 | BN12: 0 | BO12: 0 | BP12: 0 | BQ12: 0 | BR12: 0 | BS12: 0 | BT12: 0 | BU12: 0 | BV12: 0 | BW12: 0 | BX12: 0 | BY12: 0 | BZ12: 0 | CA12: 0 | CB12: 0 | CC12: =T12-(AX12*T$10) -> 0 | CD12: 0 | CE12: 0 | CF12: 0 | CG12: 0 | CH12: 0 | CI12: 0 | CJ12: 0 | CK12: 0 | CL12: =AC12-(BH12*AC$10) -> 0 | CM12: =AE12-(BI12*AE$10) -> 0 | CN12: 0 | CP12: 3 | CQ12: =B12 -> POL | CR12: =ROUND((1+$CU$9)*(HLOOKUP(CR$10,$AH$9:$AW$180,$A12+3)*CR$10+HLOOKUP(CR$10,$BM$9:$CO$180,$A12+3)),$CX$9) -> 0 | CS12: 0 | CT12: 0 | CU12: 0 | CV12: 0 | CW12: 0 | CX12: 0 | CY12: 0 | CZ12: 0 | DA12: 0 | DB12: 0 | DC12: 0 | DD12: =ROUND((1+$CU$9)*(HLOOKUP(DD$10,$AL$9:$AW$180,$A12+3)*DD$10+HLOOKUP(DD$10,$BQ$9:$CO$180,$A12+3)),$CX$9) -> 0
A13: =A12+1 -> 2 | B13: P90 | J13: 86.7 | K13: 92.3 | L13: 103.3 | M13: 107.6 | N13: 119.9 | O13: 126.4 | P13: 140.4 | Q13: 155.3 | R13: 174.5 | S13: 204.1 | AG13: P90 | AH13: 0 | AO13: 0.1302325581 | AP13: 0.2156862745 | AQ13: 0.06935483871 | AR13: 0.1662162162 | AS13: 0.07386363636 | AT13: 0.1296296296 | AU13: 0.1120300752 | AV13: 0.12 | AW13: 0.154973822 | BE13: 0 | BF13: 0 | BG13: 0 | BH13: 0 | BI13: 0 | BL13: P90 | BM13: 0 | BT13: 54.40232558 | BU13: 29.53529412 | BV13: 79.58064516 | BW13: 40.44864865 | BX13: 84.59318182 | BY13: 53.02962963 | BZ13: 64.89172932 | CA13: 58.46 | CB13: 24.64031414 | CJ13: 0 | CK13: 0 | CL13: 0 | CM13: 0 | CN13: 0 | CP13: 4 | CQ13: P90 | CR13: =ROUND((1+$CU$9)*(HLOOKUP(CR$10,$AH$9:$BI$180,$A13+3)*CR$10+HLOOKUP(CR$10,$BM$9:$CO$180,$A13+3)),$CX$9) ->  | CU13: 87.35 | CV13: 96.4 | CW13: 106 | CX13: 118.07 | CY13: 127.31 | CZ13: 146.23 | DA13: 168.02 | DB13: =ROUND((1+$CU$9)*(HLOOKUP(DB$10,$AH$9:$BI$180,$A13+3)*DB$10+HLOOKUP(DB$10,$BM$9:$CO$180,$A13+3)),$CX$9) -> 198.06
A14: 3 | B14: P75 | H14: 68.1 | I14: 75.9 | J14: 77.8 | K14: 83.1 | L14: 96.4 | M14: 96.5 | N14: 112.3 | O14: 116.2 | P14: 130 | Q14: 146.7 | R14: 165 | S14: 200 | T14: 230.7 | U14: 260 | V14: 292.8 | W14: 330 | AG14: P75 | AH14: 0 | AM14: 0.2363636364 | AN14: 0.04871794872 | AO14: 0.123255814 | AP14: 0.2607843137 | AQ14: 0.001612903226 | AR14: 0.2135135135 | AS14: 0.04431818182 | AT14: 0.1277777778 | AU14: 0.1255639098 | AV14: 0.114375 | AW14: 0.1832460733 | AX14: 0.135840708 | AY14: 0.1085185185 | AZ14: 0.1037974684 | BA14: 0.0992 | BE14: 0 | BF14: 0 | BG14: 0 | BH14: 0 | BI14: 0 | BL14: P75 | BM14: 0 | BR14: 26.5 | BS14: 65.71794872 | BT14: 47.23255814 | BU14: 7.211764706 | BV14: 95.8483871 | BW14: 10.24054054 | BX14: 91.11590909 | BY14: 43.87777778 | BZ14: 45.36992481 | CA14: 54.399375 | CB14: -12.19895288 | CC14: 42.69646018 | CD14: 80.51037037 | CE14: 88.31898734 | CF14: 97.376 | CJ14: 0 | CK14: 0 | CL14: 0 | CM14: 0 | CN14: 0 | CP14: 5 | CQ14: P75 | CT14: 75.19 | CU14: 78.42 | CV14: 88.05 | CW14: 96.46 | CX14: 109.95 | CY14: 117.09 | CZ14: 136.53 | DA14: 158.82 | DB14: 192.85 | DC14: 229.07 | DD14: 262.8
A15: 4 | B15: P50 | E15: 47 | F15: 51.6 | G15: 56.1 | H15: 58.7 | I15: 67.1 | J15: 71.9 | K15: 76.6 | L15: 86.3 | M15: 94.6 | N15: 101.6 | O15: 110.4 | P15: 116.2 | Q15: 134.7 | R15: 152.2 | S15: 183.9 | T15: 218.1 | U15: 246.8 | V15: 287.1 | W15: 318.2 | X15: 348.8 | AG15: P50 | AH15: 0 | AI15: 3.357142857 | AJ15: 0.2421052632 | AK15: 0.1956521739 | AL15: 0.08965517241 | AM15: 0.2545454545 | AN15: 0.1230769231 | AO15: 0.1093023256 | AP15: 0.1901960784 | AQ15: 0.1338709677 | AR15: 0.09459459459 | AS15: 0.1 | AT15: 0.0537037037 | AU15: 0.1390977444 | AV15: 0.109375 | AW15: 0.1659685864 | AX15: 0.1513274336 | AY15: 0.1062962963 | AZ15: 0.1275316456 | BA15: 0.08293333333 | BB15: 0.06954545455 | BE15: 0 | BF15: 0 | BG15: 0 | BH15: 0 | BI15: 0 | BL15: P50 | BM15: 0 | BN15: -305.5 | BO15: 21.57894737 | BP15: 27.33913043 | BQ15: 42.92068966 | BR15: 13.9 | BS15: 41.37692308 | BT15: 44.79302326 | BU15: 21.25294118 | BV15: 40.51612903 | BW15: 56.38378378 | BX15: 53.8 | BY15: 80.0037037 | BZ15: 22.4481203 | CA15: 46.434375 | CB15: -8.291623037 | CC15: 8.662831858 | CD15: 70.98592593 | CE15: 35.86265823 | CF15: 123.7213333 | CG15: 155.1159091 | CJ15: 0 | CK15: 0 | CL15: 0 | CM15: 0 | CN15: 0 | CP15: 6 | CQ15: P50 | CR15: 53.95 | CS15: 57.89 | CT15: 66.34 | CU15: 72.45 | CV15: 80.21 | CW15: 91.52 | CX15: 100.56 | CY15: 110.78 | CZ15: 123.43 | DA15: 146.29 | DB15: 177.43 | DC15: 216.28 | DD15: 250.24
A16: 5 | B16: P25 | H16: 55.8 | I16: 56.9 | J16: 64.3 | K16: 72.3 | L16: 80.4 | M16: 87.6 | N16: 94.7 | O16: 101.4 | P16: 105 | Q16: 122.9 | R16: 139 | S16: 175.9 | T16: 200 | U16: 231.1 | V16: 270.1 | W16: 287.1 | AG16: P25 | AH16: 0 | AM16: 0.03333333333 | AN16: 0.1897435897 | AO16: 0.1860465116 | AP16: 0.1588235294 | AQ16: 0.1161290323 | AR16: 0.09594594595 | AS16: 0.07613636364 | AT16: 0.03333333333 | AU16: 0.1345864662 | AV16: 0.100625 | AW16: 0.1931937173 | AX16: 0.1066371681 | AY16: 0.1151851852 | AZ16: 0.1234177215 | BA16: 0.04533333333 | BE16: 0 | BF16: 0 | BG16: 0 | BH16: 0 | BI16: 0 | BL16: P25 | BM16: 0 | BR16: 49.93333333 | BS16: 17.24358974 | BT16: 18.16046512 | BU16: 26.08235294 | BV16: 40.68387097 | BW16: 48.83783784 | BX16: 58.30681818 | BY16: 82.53333333 | BZ16: 14.2887218 | CA16: 41.695625 | CB16: -47.81832461 | CC16: 52.41415929 | CD16: 40.5837037 | CE16: 26.96708861 | CF16: 180.7933333 | CJ16: 0 | CK16: 0 | CL16: 0 | CM16: 0 | CN16: 0 | CP16: 7 | CQ16: P25 | CT16: 56.8 | CU16: 65.23 | CV16: 75.32 | CW16: 84.93 | CX16: 93.64 | CY16: 101.63 | CZ16: 112 | DA16: 133.57 | DB16: 168.37 | DC16: 198.72 | DD16: 234.43
A17: 6 | B17: P10 | J17: 57.8 | K17: 67.5 | L17: 72.5 | M17: 78.9 | N17: 81.4 | O17: 88.8 | P17: 96.2 | Q17: 113.3 | R17: 126.7 | S17: 150.9 | AG17: P10 | AH17: 0 | AO17: 0.2255813953 | AP17: 0.09803921569 | AQ17: 0.1032258065 | AR17: 0.03378378378 | AS17: 0.08409090909 | AT17: 0.06851851852 | AU17: 0.1285714286 | AV17: 0.08375 | AW17: 0.1267015707 | BE17: 0 | BF17: 0 | BG17: 0 | BH17: 0 | BI17: 0 | BL17: P10 | BM17: 0 | BT17: 1.855813953 | BU17: 38.97058824 | BV17: 37.19677419 | BW17: 65.25135135 | BX17: 41.20454545 | BY17: 50.01851852 | BZ17: 9.542857143 | CA17: 45.71375 | CB17: 4.179581152 | CJ17: 0 | CK17: 0 | CL17: 0 | CM17: 0 | CN17: 0 | CP17: 8 | CQ17: P10 | CU17: 58.93 | CV17: 69.36 | CW17: 76.53 | CX17: 81.03 | CY17: 89.28 | CZ17: 102.89 | DA17: 122.18 | DB17: 145.96
A18: 7 | B18: AVG | E18: 48.7 | F18: 49.5 | G18: 54.9 | H18: 58.7 | I18: 66.7 | J18: 71.1 | K18: 77.8 | L18: 87 | M18: 92.9 | N18: 102.4 | O18: 109.3 | P18: 118.8 | Q18: 135 | R18: 153.1 | S18: 183.7 | T18: 218.2 | U18: 246.3 | V18: 275.5 | W18: 321 | X18: 333.6 | AG18: AVG | AH18: 0 | AI18: 3.478571429 | AJ18: 0.04210526316 | AK18: 0.2347826087 | AL18: 0.1310344828 | AM18: 0.2424242424 | AN18: 0.1128205128 | AO18: 0.1558139535 | AP18: 0.1803921569 | AQ18: 0.09516129032 | AR18: 0.1283783784 | AS18: 0.07840909091 | AT18: 0.08796296296 | AU18: 0.1218045113 | AV18: 0.113125 | AW18: 0.1602094241 | AX18: 0.1526548673 | AY18: 0.1040740741 | AZ18: 0.09240506329 | BA18: 0.1213333333 | BB18: 0.02863636364 | BE18: 0 | BF18: 0 | BG18: 0 | BH18: 0 | BI18: 0 | BL18: AVG | BM18: 0 | BN18: -316.55 | BO18: 44.27894737 | BP18: 20.38695652 | BQ18: 35.63793103 | BR18: 16.03333333 | BS18: 43.12051282 | BT18: 32.45813953 | BU18: 25.30588235 | BV18: 54.45483871 | BW18: 41.03513514 | BX18: 64.92045455 | BY18: 59.51296296 | BZ18: 36.7037594 | CA18: 43.708125 | CB18: -1.822513089 | CC18: 6.925663717 | CD18: 74.16148148 | CE18: 93.46202532 | CF18: 36.47333333 | CG18: 253.8477273 | CJ18: 0 | CK18: 0 | CL18: 0 | CM18: 0 | CN18: 0 | CP18: 9 | CQ18: AVG | CR18: 52.32 | CS18: 57.52 | CT18: 65.97 | CU18: 71.88 | CV18: 81.23 | CW18: 90.71 | CX18: 100.99 | CY18: 109.92 | CZ18: 125.13 | DA18: 146.99 | DB18: 177.45 | DC18: 216.37 | DD18: 248.79
A19: 8 | B19: N | E19: 4 | F19: 4 | G19: 5 | H19: 9 | I19: 11 | J19: 13 | K19: 13 | L19: 13 | M19: 13 | N19: 15 | O19: 15 | P19: 15 | Q19: 15 | R19: 15 | S19: 14 | T19: 11 | U19: 11 | V19: 10 | W19: 8 | X19: 5 | AG19: N | AH19: 0 | AI19: 0.2857142857 | AJ19: 0 | AK19: 0.04347826087 | AL19: 0.1379310345 | AM19: 0.06060606061 | AN19: 0.05128205128 | AO19: 0 | AP19: 0 | AQ19: 0 | AR19: 0.02702702703 | AS19: 0 | AT19: 0 | AU19: 0 | AV19: 0 | AW19: -0.005235602094 | AX19: -0.01327433628 | AY19: 0 | AZ19: -0.003164556962 | BA19: -0.005333333333 | BB19: -0.006818181818 | BE19: 0 | BF19: 0 | BG19: 0 | BH19: 0 | BI19: 0 | BL19: N | BM19: 0 | BN19: -26 | BO19: 4 | BP19: -1.391304348 | BQ19: -15.27586207 | BR19: -1.666666667 | BS19: 0.2820512821 | BT19: 13 | BU19: 13 | BV19: 13 | BW19: 2.081081081 | BX19: 15 | BY19: 15 | BZ19: 15 | CA19: 15 | CB19: 20.06282723 | CC19: 29.37168142 | CD19: 11 | CE19: 16.23417722 | CF19: 20.50666667 | CG19: 23.98863636 | CJ19: 0 | CK19: 0 | CL19: 0 | CM19: 0 | CN19: 0 | CP19: 10 | CQ19: N | CR19: 4.52 | CS19: 7.76 | CT19: 10.82 | CU19: 13 | CV19: 13 | CW19: 13 | CX19: 14.7 | CY19: 15 | CZ19: 15 | DA19: 15 | DB19: 14.2 | DC19: 11.16 | DD19: 10.91
A20: 9 | B20: ACT | AG20: ACT | AH20: 0 | AI20: 0 | AJ20: 0 | AK20: 0 | AL20: 0 | AM20: 0 | AN20: 0 | AO20: 0 | AP20: 0 | AQ20: 0 | AR20: 0 | AS20: 0 | AT20: 0 | AU20: 0 | AV20: 0 | AW20: 0 | AX20: 0 | AY20: 0 | AZ20: 0 | BA20: 0 | BB20: 0 | BC20: 0 | BD20: 0 | BE20: 0 | BF20: 0 | BG20: 0 | BH20: 0 | BI20: 0 | BL20: ACT | BM20: 0 | BN20: 0 | BO20: 0 | BP20: 0 | BQ20: 0 | BR20: 0 | BS20: 0 | BT20: 0 | BU20: 0 | BV20: 0 | BW20: 0 | BX20: 0 | BY20: 0 | BZ20: 0 | CA20: 0 | CB20: 0 | CC20: 0 | CD20: 0 | CE20: 0 | CF20: 0 | CG20: 0 | CH20: 0 | CI20: 0 | CJ20: 0 | CK20: 0 | CL20: 0 | CM20: 0 | CN20: 0 | CP20: 11 | CQ20: ACT | CR20: 0 | CS20: 0 | CT20: 0 | CU20: 0 | CV20: 0 | CW20: 0 | CX20: 0 | CY20: 0 | CZ20: 0 | DA20: 0 | DB20: 0 | DC20: 0 | DD20: 0
A21: 10 | B21: P90 | J21: 90.9 | K21: 91.1 | L21: 103.7 | M21: 108.5 | N21: 120 | O21: 126.6 | P21: 143.8 | Q21: 163.1 | R21: 191.1 | S21: 207.4 | AG21: P90 | AH21: 0 | AO21: 0.004651162791 | AP21: 0.2470588235 | AQ21: 0.07741935484 | AR21: 0.1554054054 | AS21: 0.075 | AT21: 0.1592592593 | AU21: 0.145112782 | AV21: 0.175 | AW21: 0.08534031414 | BE21: 0 | BF21: 0 | BG21: 0 | BH21: 0 | BI21: 0 | BL21: P90 | BM21: 0 | BT21: 89.74651163 | BU21: 19.20588235 | BV21: 77.22258065 | BW21: 45.71621622 | BX21: 84.15 | BY21: 36.45925926 | BZ21: 45.99398496 | CA21: 21.875 | CB21: 108.5759162 | CJ21: 0 | CK21: 0 | CL21: 0 | CM21: 0 | CN21: 0 | CP21: 12 | CQ21: P90 | CU21: 90.92 | CV21: 95.79 | CW21: 106.72 | CX21: 118.29 | CY21: 127.71 | CZ21: 151.35 | DA21: 181.65 | DB21: 204.07
A22: 11 | B22: P75 | H22: 71.8 | I22: 78.4 | J22: 82 | K22: 85.1 | L22: 96.5 | M22: 101.5 | N22: 111.2 | O22: 119.7 | P22: 132.8 | Q22: 151.3 | R22: 168.9 | S22: 198.2 | T22: 235.8 | U22: 271.4 | V22: 306.3 | W22: 360 | AG22: P75 | AH22: 0 | AM22: 0.2 | AN22: 0.09230769231 | AO22: 0.07209302326 | AP22: 0.2235294118 | AQ22: 0.08064516129 | AR22: 0.1310810811 | AS22: 0.09659090909 | AT22: 0.1212962963 | AU22: 0.1390977444 | AV22: 0.11 | AW22: 0.1534031414 | AX22: 0.1663716814 | AY22: 0.1318518519 | AZ22: 0.110443038 | BA22: 0.1432 | BE22: 0 | BF22: 0 | BG22: 0 | BH22: 0 | BI22: 0 | BL22: P75 | BM22: 0 | BR22: 36.6 | BS22: 59.10769231 | BT22: 64.12093023 | BU22: 20.05294118 | BV22: 68.91935484 | BW22: 48.54324324 | BX22: 65.02954545 | BY22: 51.0462963 | BZ22: 39.0481203 | CA22: 62.53 | CB22: 20.5591623 | CC22: 5.54159292 | CD22: 53.31703704 | CE22: 88.72721519 | CF22: 24.196 | CJ22: 0 | CK22: 0 | CL22: 0 | CM22: 0 | CN22: 0 | CP22: 13 | CQ22: P75 | CT22: 77.8 | CU22: 82.36 | CV22: 89.35 | CW22: 99.65 | CX22: 109.76 | CY22: 120.55 | CZ22: 140.03 | DA22: 162.96 | DB22: 192.22 | DC22: 233.8 | DD22: 274.38
A23: 12 | B23: P50 | E23: 56.9 | F23: 51.8 | G23: 56.4 | H23: 63.1 | I23: 74.2 | J23: 68.1 | K23: 78.4 | L23: 87.7 | M23: 93.6 | N23: 101.3 | O23: 109.8 | P23: 120.6 | Q23: 137.2 | R23: 151 | S23: 184.9 | T23: 218.3 | U23: 250 | V23: 291.6 | W23: 309 | X23: 346.8 | AG23: P50 | AH23: 0 | AI23: 4.064285714 | AJ23: -0.2684210526 | AK23: 0.2 | AL23: 0.2310344828 | AM23: 0.3363636364 | AN23: -0.1564102564 | AO23: 0.2395348837 | AP23: 0.1823529412 | AQ23: 0.09516129032 | AR23: 0.1040540541 | AS23: 0.09659090909 | AT23: 0.1 | AU23: 0.1248120301 | AV23: 0.08625 | AW23: 0.177486911 | AX23: 0.1477876106 | AY23: 0.1174074074 | AZ23: 0.1316455696 | BA23: 0.0464 | BB23: 0.08590909091 | BE23: 0 | BF23: 0 | BG23: 0 | BH23: 0 | BI23: 0 | BL23: P50 | BM23: 0 | BN23: -369.85 | BO23: 85.08421053 | BP23: 27 | BQ23: 22.43793103 | BR23: 3.9 | BS23: 106.8897436 | BT23: 8.695348837 | BU23: 25.33529412 | BV23: 55.15483871 | BW23: 51.56216216 | BX23: 55.12954545 | BY23: 53.2 | BZ23: 36.47669173 | CA23: 67.59625 | CB23: -20.62984293 | CC23: 13.7619469 | CD23: 55.80814815 | CE23: 32.25822785 | CF23: 200.192 | CG23: 107.5431818 | CJ23: 0 | CK23: 0 | CL23: 0 | CM23: 0 | CN23: 0 | CP23: 14 | CQ23: P50 | CR23: =ROUND((1+$CU$9)*(HLOOKUP(CR$10,$AH$9:$BI$180,$A23+3)*CR$10+HLOOKUP(CR$10,$BM$9:$CO$180,$A23+3)),$CX$9) -> 54.2 | CS23: 61.02 | CT23: 73.19 | CU23: 69.3 | CV23: 81.86 | CW23: 91.41 | CX23: 100.16 | CY23: 110.5 | CZ23: 127.09 | DA23: 146.34 | DB23: =ROUND((1+$CU$9)*(HLOOKUP(DB$10,$AH$9:$BI$180,$A23+3)*DB$10+HLOOKUP(DB$10,$BM$9:$CO$180,$A23+3)),$CX$9) -> 177.98 | DC23: 216.53 | DD23: 253.55
A24: 13 | B24: P25 | H24: 53.1 | I24: 54.4 | J24: 62.9 | K24: 69.7 | L24: 79.2 | M24: 85.7 | N24: 93.5 | O24: 101.4 | P24: 101.9 | Q24: 120 | R24: 140.4 | S24: 173.4 | T24: 201.3 | U24: 232.1 | V24: 259.2 | W24: 285 | AG24: P25 | AH24: 0 | AM24: 0.03939393939 | AN24: 0.2179487179 | AO24: 0.1581395349 | AP24: 0.1862745098 | AQ24: 0.1048387097 | AR24: 0.1054054054 | AS24: 0.08977272727 | AT24: 0.00462962963 | AU24: 0.1360902256 | AV24: 0.1275 | AW24: 0.1727748691 | AX24: 0.1234513274 | AY24: 0.1140740741 | AZ24: 0.08575949367 | BA24: 0.0688 | BE24: 0 | BF24: 0 | BG24: 0 | BH24: 0 | BI24: 0 | BL24: P25 | BM24: 0 | BR24: 46.16666667 | BS24: 8.848717949 | BT24: 23.68139535 | BU24: 15.49411765 | BV24: 43.34516129 | BW24: 43.11621622 | BX24: 50.58863636 | BY24: 98.77962963 | BZ24: 10.17518797 | CA24: 17.1075 | CB24: -26.67329843 | CC24: 30.44336283 | CD24: 43.42148148 | CE24: 90.25379747 | CF24: 123.664 | CJ24: 0 | CK24: 0 | CL24: 0 | CM24: 0 | CN24: 0 | CP24: 15 | CQ24: P25 | CT24: 54.28 | CU24: 63.69 | CV24: 73.24 | CW24: 83.29 | CX24: 92.34 | CY24: 101.43 | CZ24: 108.98 | DA24: 133.52 | DB24: 166.66 | DC24: 199.82 | DD24: 234.42
A25: 14 | B25: P10 | J25: 54.7 | K25: 60.8 | L25: 69 | M25: 72.9 | N25: 81 | O25: 89.4 | P25: 95.3 | Q25: 110 | R25: 128.2 | S25: 152.9 | AG25: P10 | AH25: 0 | AO25: 0.1418604651 | AP25: 0.1607843137 | AQ25: 0.06290322581 | AR25: 0.1094594595 | AS25: 0.09545454545 | AT25: 0.05462962963 | AU25: 0.1105263158 | AV25: 0.11375 | AW25: 0.1293193717 | BE25: 0 | BF25: 0 | BG25: 0 | BH25: 0 | BI25: 0 | BL25: P10 | BM25: 0 | BT25: 19.51860465 | BU25: 14.01176471 | BV25: 47.48709677 | BW25: 28.67837838 | BX25: 35.37272727 | BY25: 58.47962963 | BZ25: 20.80526316 | CA25: 18.20375 | CB25: 3.148167539 | CJ25: 0 | CK25: 0 | CL25: 0 | CM25: 0 | CN25: 0 | CP25: 16 | CQ25: P10 | CU25: 55.41 | CV25: 63.85 | CW25: 71.45 | CX25: 79.8 | CY25: 89.78 | CZ25: 101.05 | DA25: 122.06 | DB25: 147.86
A26: 15 | B26: AVG | E26: 52.5 | F26: 53.1 | G26: 56.4 | H26: 60.3 | I26: 67.2 | J26: 71.4 | K26: 76.8 | L26: 87.1 | M26: 92.5 | N26: 102.1 | O26: 109.6 | P26: 119.5 | Q26: 136.6 | R26: 155.8 | S26: 183.5 | T26: 218.5 | U26: 247.2 | V26: 275.6 | W26: 309 | X26: 330.9 | AG26: AVG | AH26: 0 | AI26: 3.75 | AJ26: 0.03157894737 | AK26: 0.1434782609 | AL26: 0.1344827586 | AM26: 0.2090909091 | AN26: 0.1076923077 | AO26: 0.1255813953 | AP26: 0.2019607843 | AQ26: 0.08709677419 | AR26: 0.1297297297 | AS26: 0.08522727273 | AT26: 0.09166666667 | AU26: 0.1285714286 | AV26: 0.12 | AW26: 0.145026178 | AX26: 0.1548672566 | AY26: 0.1062962963 | AZ26: 0.08987341772 | BA26: 0.08906666667 | BB26: 0.04977272727 | BE26: 0 | BF26: 0 | BG26: 0 | BH26: 0 | BI26: 0 | BL26: AVG | BM26: 0 | BN26: -341.25 | BO26: 49.18421053 | BP26: 35.30869565 | BQ26: 36.63103448 | BR26: 23.5 | BS26: 44.69230769 | BT26: 40.25581395 | BU26: 18.02941176 | BV26: 57.31290323 | BW26: 40.08918919 | BX26: 61.36136364 | BY26: 57.71666667 | BZ26: 32.84285714 | CA26: 39.76 | CB26: 15.55968586 | CC26: 4.163716814 | CD26: 71.38592593 | CE26: 98.54936709 | CF26: 100.1386667 | CG26: 192.2829545 | CJ26: 0 | CK26: 0 | CL26: 0 | CM26: 0 | CN26: 0 | CP26: 17 | CQ26: AVG | CR26: 54.82 | CS26: 59.09 | CT26: 66.57 | CU26: 72.03 | CV26: 80.64 | CW26: 90.5 | CX26: 100.67 | CY26: 110.24 | CZ26: 126.19 | DA26: 149.32 | DB26: 177.84 | DC26: 216.64 | DD26: 249.63
A27: 16 | B27: N | E27: 4 | F27: 4 | G27: 5 | H27: 9 | I27: 11 | J27: 13 | K27: 13 | L27: 13 | M27: 13 | N27: 15 | O27: 15 | P27: 15 | Q27: 15 | R27: 15 | S27: 14 | T27: 11 | U27: 11 | V27: 10 | W27: 8 | X27: 5 | AG27: N | AH27: 0 | AI27: 0.2857142857 | AJ27: 0 | AK27: 0.04347826087 | AL27: 0.1379310345 | AM27: 0.06060606061 | AN27: 0.05128205128 | AO27: 0 | AP27: 0 | AQ27: 0 | AR27: 0.02702702703 | AS27: 0 | AT27: 0 | AU27: 0 | AV27: 0 | AW27: =(S27-R27)/(S$10-R$10) -> -0.005235602094 | AX27: -0.01327433628 | AY27: 0 | AZ27: -0.003164556962 | BA27: -0.005333333333 | BB27: -0.006818181818 | BE27: 0 | BF27: 0 | BG27: 0 | BH27: 0 | BI27: 0 | BL27: N | BM27: 0 | BN27: -26 | BO27: 4 | BP27: -1.391304348 | BQ27: -15.27586207 | BR27: -1.666666667 | BS27: 0.2820512821 | BT27: 13 | BU27: 13 | BV27: 13 | BW27: 2.081081081 | BX27: 15 | BY27: 15 | BZ27: 15 | CA27: 15 | CB27: =S27-(AW27*S$10) -> 20.06282723 | CC27: 29.37168142 | CD27: 11 | CE27: 16.23417722 | CF27: 20.50666667 | CG27: 23.98863636 | CJ27: 0 | CK27: 0 | CL27: 0 | CM27: 0 | CN27: 0 | CP27: 18 | CQ27: N | CR27: 4.52 | CS27: 7.76 | CT27: 10.82 | CU27: 13 | CV27: 13 | CW27: 13 | CX27: 14.7 | CY27: 15 | CZ27: 15 | DA27: 15 | DB27: 14.2 | DC27: 11.16 | DD27: 10.91
A28: 17 | B28: TC_T | AG28: TC_T | AH28: 0 | AI28: 0 | AJ28: 0 | AK28: 0 | AL28: 0 | AM28: 0 | AN28: 0 | AO28: 0 | AP28: 0 | AQ28: 0 | AR28: 0 | AS28: 0 | AT28: 0 | AU28: 0 | AV28: 0 | AW28: 0 | AX28: 0 | AY28: 0 | AZ28: 0 | BA28: 0 | BB28: 0 | BC28: 0 | BD28: 0 | BE28: 0 | BF28: 0 | BG28: 0 | BH28: 0 | BI28: 0 | BL28: TC_T | BM28: 0 | BN28: 0 | BO28: 0 | BP28: 0 | BQ28: 0 | BR28: 0 | BS28: 0 | BT28: 0 | BU28: 0 | BV28: 0 | BW28: 0 | BX28: 0 | BY28: 0 | BZ28: 0 | CA28: 0 | CB28: 0 | CC28: 0 | CD28: 0 | CE28: 0 | CF28: 0 | CG28: 0 | CH28: 0 | CI28: 0 | CJ28: 0 | CK28: 0 | CL28: 0 | CM28: 0 | CN28: 0 | CP28: 19 | CQ28: TC_T | CR28: 0 | CS28: 0 | CT28: 0 | CU28: 0 | CV28: 0 | CW28: 0 | CX28: 0 | CY28: 0 | CZ28: 0 | DA28: 0 | DB28: 0 | DC28: 0 | DD28: 0
A29: 18 | B29: P90 | J29: 90.9 | K29: 93.4 | L29: 107.1 | M29: 116.7 | N29: 129.4 | O29: 136.1 | P29: 163.2 | Q29: 196 | R29: 250.3 | S29: 287.9 | AG29: P90 | AH29: 0 | AO29: 0.05813953488 | AP29: 0.268627451 | AQ29: 0.1548387097 | AR29: 0.1716216216 | AS29: 0.07613636364 | AT29: 0.2509259259 | AU29: 0.2466165414 | AV29: 0.339375 | AW29: 0.1968586387 | BE29: 0 | BF29: 0 | BG29: 0 | BH29: 0 | BI29: 0 | BL29: P90 | BM29: 0 | BT29: 76.48139535 | BU29: 15.22941176 | BV29: 54.14516129 | BW29: 47.36486486 | BX29: 93.00681818 | BY29: -5.924074074 | BZ29: -3.019548872 | CA29: -77.875625 | CB29: 59.93769634 | CJ29: 0 | CK29: 0 | CL29: 0 | CM29: 0 | CN29: 0 | CP29: 20 | CQ29: P90 | CU29: 91.19 | CV29: 98.5 | CW29: 113.14 | CX29: 127.51 | CY29: 137.86 | CZ29: 176.02 | DA29: 231.97 | DB29: 280.22
A30: 19 | B30: P75 | H30: 72.1 | I30: 78.4 | J30: 85.7 | K30: 91 | L30: 102 | M30: 105.5 | N30: 119.3 | O30: 131.4 | P30: 152.7 | Q30: 179.8 | R30: 214.8 | S30: 233.8 | T30: 291.1 | U30: 345 | V30: 387.1 | W30: 522 | AG30: P75 | AH30: 0 | AM30: 0.1909090909 | AN30: 0.1871794872 | AO30: 0.123255814 | AP30: 0.2156862745 | AQ30: 0.0564516129 | AR30: 0.1864864865 | AS30: 0.1375 | AT30: 0.1972222222 | AU30: 0.2037593985 | AV30: 0.21875 | AW30: 0.09947643979 | AX30: 0.253539823 | AY30: 0.1996296296 | AZ30: 0.1332278481 | BA30: 0.3597333333 | BE30: 0 | BF30: 0 | BG30: 0 | BH30: 0 | BI30: 0 | BL30: P75 | BM30: 0 | BR30: 38.5 | BS30: 39.27948718 | BT30: 55.13255814 | BU30: 28.23529412 | BV30: 82.69354839 | BW30: 30.15945946 | BX30: 53.575 | BY30: 19.77222222 | BZ30: 15.36616541 | CA30: 3.26875 | CB30: 118.6062827 | CC30: -59.79911504 | CD30: 14.81259259 | CE30: 124.6411392 | CF30: -321.5746667 | CJ30: 0 | CK30: 0 | CL30: 0 | CM30: 0 | CN30: 0 | CP30: 21 | CQ30: P75 | CT30: 77.83 | CU30: 86.32 | CV30: 95.1 | CW30: 104.2 | CX30: 117.25 | CY30: 132.78 | CZ30: 163.3 | DA30: 202.99 | DB30: 229.92 | DC30: 288.06 | DD30: 348.6
A31: 20 | B31: P50 | E31: 56.9 | F31: 51.8 | G31: 56.4 | H31: 65.4 | I31: 75.1 | J31: 70.3 | K31: 78.9 | L31: 88.5 | M31: 99.4 | N31: 111.1 | O31: 120.6 | P31: 136.2 | Q31: 160.5 | R31: 179.6 | S31: 219.9 | T31: 272.5 | U31: 310.5 | V31: 365.3 | W31: 406.4 | X31: 416.6 | AG31: P50 | AH31: 0 | AI31: 4.064285714 | AJ31: -0.2684210526 | AK31: 0.2 | AL31: 0.3103448276 | AM31: 0.2939393939 | AN31: -0.1230769231 | AO31: 0.2 | AP31: 0.1882352941 | AQ31: 0.1758064516 | AR31: 0.1581081081 | AS31: 0.1079545455 | AT31: 0.1444444444 | AU31: 0.1827067669 | AV31: 0.119375 | AW31: 0.2109947644 | AX31: =(T31-S31)/(T$10-S$10) -> 0.2327433628 | AY31: 0.1407407407 | AZ31: 0.1734177215 | BA31: 0.1096 | BB31: 0.02318181818 | BE31: 0 | BF31: 0 | BG31: 0 | BH31: 0 | BI31: 0 | BL31: P50 | BM31: 0 | BN31: -369.85 | BO31: 85.08421053 | BP31: 27 | BQ31: 10.77931034 | BR31: 13.66666667 | BS31: 100.8230769 | BT31: 20.7 | BU31: 24.12352941 | BV31: 28.37419355 | BW31: 35.52432432 | BX31: 59.49772727 | BY31: 38.84444444 | BZ31: 13.0556391 | CA31: 64.164375 | CB31: -24.43193717 | CC31: -49.61681416 | CD31: 77.71481481 | CE31: 23.66708861 | CF31: 149.388 | CG31: 352.0386364 | CJ31: 0 | CK31: 0 | CL31: 0 | CM31: 0 | CN31: 0 | CP31: 22 | CQ31: P50 | CR31: 54.2 | CS31: 62.61 | CT31: 74.22 | CU31: 71.3 | CV31: 82.48 | CW31: 95.36 | CX31: 109.36 | CY31: 121.61 | CZ31: 145.7 | DA31: 173.15 | DB31: 211.67 | DC31: 269.71 | DD31: 315.18
A32: 21 | B32: P25 | H32: 53.2 | I32: 54.9 | J32: 63.4 | K32: 70.4 | L32: 80.3 | M32: 85.7 | N32: 96.4 | O32: 108.7 | P32: 119.6 | Q32: 136.1 | R32: 159.8 | S32: 198.1 | T32: 246.4 | U32: 273.3 | V32: 337 | W32: 368.5 | AG32: P25 | AH32: 0 | AM32: 0.05151515152 | AN32: 0.2179487179 | AO32: 0.1627906977 | AP32: 0.1941176471 | AQ32: 0.08709677419 | AR32: 0.1445945946 | AS32: 0.1397727273 | AT32: 0.1009259259 | AU32: 0.1240601504 | AV32: 0.148125 | AW32: 0.2005235602 | AX32: 0.2137168142 | AY32: 0.09962962963 | AZ32: 0.2015822785 | BA32: 0.084 | BE32: 0 | BF32: 0 | BG32: 0 | BH32: 0 | BI32: 0 | BL32: P25 | BM32: 0 | BR32: 44.13333333 | BS32: 9.348717949 | BT32: 23.02790698 | BU32: 13.91176471 | BV32: 50.51290323 | BW32: 27.28378378 | BX32: 29.58863636 | BY32: 51.57592593 | BZ32: 35.98345865 | CA32: 16.563125 | CB32: -34.10628272 | CC32: -49.3840708 | CD32: 108.5125926 | CE32: -60.11708861 | CF32: 171.52 | CJ32: 0 | CK32: 0 | CL32: 0 | CM32: 0 | CN32: 0 | CP32: 23 | CQ32: P25 | CT32: 54.75 | CU32: 64.21 | CV32: 74.09 | CW32: 83.7 | CX32: 94.81 | CY32: 109.41 | CZ32: 126.05 | DA32: 151.8 | DB32: 190.28 | DC32: 243.84 | DD32: 278.74
A33: 22 | B33: P10 | J33: 54.8 | K33: 61.1 | L33: 70.6 | M33: 73.7 | N33: 87.1 | O33: 98.9 | P33: 99.6 | Q33: 121.7 | R33: 144.8 | S33: 182.6 | AG33: P10 | AH33: 0 | AO33: 0.1465116279 | AP33: 0.1862745098 | AQ33: 0.05 | AR33: 0.1810810811 | AS33: 0.1340909091 | AT33: 0.006481481481 | AU33: 0.1661654135 | AV33: 0.144375 | AW33: 0.1979057592 | BE33: 0 | BF33: 0 | BG33: 0 | BH33: 0 | BI33: 0 | BL33: P10 | BM33: 0 | BT33: 18.46511628 | BU33: 6.894117647 | BV33: 53.5 | BW33: 0.5432432432 | BX33: 23.00454545 | BY33: 95.23148148 | BZ33: -12.39548872 | CA33: 5.189375 | CB33: -46.57486911 | CJ33: 0 | CK33: 0 | CL33: 0 | CM33: 0 | CN33: 0 | CP33: 24 | CQ33: P10 | CR33: =ROUND((1+$CU$9)*(HLOOKUP(CR$10,$AH$9:$BI$180,$A33+3)*CR$10+HLOOKUP(CR$10,$BM$9:$CO$180,$A33+3)),$CX$9) ->  | CU33: 55.53 | CV33: 64.64 | CW33: 72.55 | CX33: 85.11 | CY33: 98.95 | CZ33: 108.24 | DA33: 137 | DB33: =ROUND((1+$CU$9)*(HLOOKUP(DB$10,$AH$9:$BI$180,$A33+3)*DB$10+HLOOKUP(DB$10,$BM$9:$CO$180,$A33+3)),$CX$9) -> 174.88
A34: 23 | B34: AVG | E34: 52.6 | F34: 53.3 | G34: 56.9 | H34: 61.6 | I34: 68.6 | J34: 73.5 | K34: 79 | L34: 90 | M34: 96.7 | N34: 108.7 | O34: 119.2 | P34: 135.6 | Q34: 160.1 | R34: 190.5 | S34: 222.6 | T34: 273.4 | U34: 311.3 | V34: 352.8 | W34: 417 | X34: 409.1 | AG34: AVG | AH34: 0 | AI34: 3.757142857 | AJ34: 0.03684210526 | AK34: 0.1565217391 | AL34: 0.1620689655 | AM34: 0.2121212121 | AN34: 0.1256410256 | AO34: 0.1279069767 | AP34: 0.2156862745 | AQ34: 0.1080645161 | AR34: 0.1621621622 | AS34: 0.1193181818 | AT34: 0.1518518519 | AU34: 0.1842105263 | AV34: 0.19 | AW34: 0.1680628272 | AX34: 0.2247787611 | AY34: 0.1403703704 | AZ34: 0.1313291139 | BA34: 0.1712 | BB34: -0.01795454545 | BE34: 0 | BF34: 0 | BG34: 0 | BH34: 0 | BI34: 0 | BL34: AVG | BM34: 0 | BN34: -341.9 | BO34: 48.73157895 | BP34: 33.89130435 | BQ34: 33.07586207 | BR34: 24.26666667 | BS34: 42.34102564 | BT34: 41.77906977 | BU34: 16.23529412 | BV34: 53.04193548 | BW34: 31.18648649 | BX34: 51.66590909 | BY34: 33.25185185 | BZ34: 11.44210526 | CA34: 6.77 | CB34: 27.98324607 | CC34: -37.69380531 | CD34: 79.12740741 | CE34: 94.08164557 | CF34: 15.536 | CG34: 459.1034091 | CJ34: 0 | CK34: 0 | CL34: 0 | CM34: 0 | CN34: 0 | CP34: 25 | CQ34: AVG | CR34: 55.18 | CS34: 60.14 | CT34: 67.96 | CU34: 74.14 | CV34: 83.1 | CW34: 94.21 | CX34: 106.92 | CY34: 120.26 | CZ34: 145.18 | DA34: 180.24 | DB34: 216.05 | DC34: 270.7 | DD34: 314.85
A35: 24 | B35: N | E35: 4 | F35: 4 | G35: 5 | H35: 9 | I35: 11 | J35: 13 | K35: 13 | L35: 13 | M35: 13 | N35: 15 | O35: 15 | P35: 15 | Q35: 15 | R35: 15 | S35: 14 | T35: 11 | U35: 11 | V35: 10 | W35: 8 | X35: 5 | AG35: N | AH35: 0 | AI35: 0.2857142857 | AJ35: 0 | AK35: 0.04347826087 | AL35: 0.1379310345 | AM35: 0.06060606061 | AN35: 0.05128205128 | AO35: 0 | AP35: 0 | AQ35: 0 | AR35: 0.02702702703 | AS35: 0 | AT35: 0 | AU35: 0 | AV35: 0 | AW35: -0.005235602094 | AX35: -0.01327433628 | AY35: 0 | AZ35: -0.003164556962 | BA35: -0.005333333333 | BB35: -0.006818181818 | BE35: 0 | BF35: 0 | BG35: 0 | BH35: 0 | BI35: 0 | BL35: N | BM35: 0 | BN35: -26 | BO35: 4 | BP35: -1.391304348 | BQ35: -15.27586207 | BR35: -1.666666667 | BS35: 0.2820512821 | BT35: 13 | BU35: 13 | BV35: 13 | BW35: 2.081081081 | BX35: 15 | BY35: 15 | BZ35: 15 | CA35: 15 | CB35: 20.06282723 | CC35: 29.37168142 | CD35: 11 | CE35: 16.23417722 | CF35: 20.50666667 | CG35: 23.98863636 | CJ35: 0 | CK35: 0 | CL35: 0 | CM35: 0 | CN35: 0 | CP35: 26 | CQ35: N | CR35: 4.52 | CS35: 7.76 | CT35: 10.82 | CU35: 13 | CV35: 13 | CW35: 13 | CX35: 14.7 | CY35: 15 | CZ35: 15 | DA35: 15 | DB35: 14.2 | DC35: 11.16 | DD35: 10.91
A36: 25 | B36: TC_D | AG36: TC_D | AH36: 0 | AI36: 0 | AJ36: 0 | AK36: 0 | AL36: 0 | AM36: 0 | AN36: 0 | AO36: 0 | AP36: 0 | AQ36: 0 | AR36: 0 | AS36: 0 | AT36: 0 | AU36: 0 | AV36: 0 | AW36: 0 | AX36: 0 | AY36: 0 | AZ36: 0 | BA36: 0 | BB36: 0 | BC36: 0 | BD36: 0 | BE36: 0 | BF36: 0 | BG36: 0 | BH36: 0 | BI36: 0 | BL36: TC_D | BM36: 0 | BN36: 0 | BO36: 0 | BP36: 0 | BQ36: 0 | BR36: 0 | BS36: 0 | BT36: 0 | BU36: 0 | BV36: 0 | BW36: 0 | BX36: 0 | BY36: 0 | BZ36: 0 | CA36: 0 | CB36: 0 | CC36: 0 | CD36: 0 | CE36: 0 | CF36: 0 | CG36: 0 | CH36: 0 | CI36: 0 | CJ36: 0 | CK36: 0 | CL36: 0 | CM36: 0 | CN36: 0 | CP36: 27 | CQ36: TC_D | CR36: 0 | CS36: 0 | CT36: 0 | CU36: 0 | CV36: 0 | CW36: 0 | CX36: 0 | CY36: 0 | CZ36: 0 | DA36: 0 | DB36: 0 | DC36: 0 | DD36: 0
A37: 26 | B37: P90 | J37: 86.7 | K37: 92.7 | L37: 104.7 | M37: 115.5 | N37: 127.8 | O37: 128.9 | P37: 160 | Q37: 188 | R37: 251 | S37: 250 | AG37: P90 | AH37: 0 | AO37: 0.1395348837 | AP37: 0.2352941176 | AQ37: 0.1741935484 | AR37: 0.1662162162 | AS37: 0.0125 | AT37: 0.287962963 | AU37: 0.2105263158 | AV37: 0.39375 | AW37: -0.005235602094 | BE37: 0 | BF37: 0 | BG37: 0 | BH37: 0 | BI37: 0 | BL37: P90 | BM37: 0 | BT37: 52.09534884 | BU37: 24.22941176 | BV37: 45.12580645 | BW37: 48.34864865 | BX37: 121.825 | BY37: -34.08703704 | BZ37: 18.10526316 | CA37: -129.75625 | CB37: 256.0628272 | CJ37: 0 | CK37: 0 | CL37: 0 | CM37: 0 | CN37: 0 | CP37: 28 | CQ37: P90 | CU37: 87.4 | CV37: 97.17 | CW37: 111.49 | CX37: 125.97 | CY37: 130.92 | CZ37: 170.95 | DA37: 229.74 | DB37: 250.2
A38: 27 | B38: P75 | H38: 68.9 | I38: 75.9 | J38: 85.6 | K38: 88.3 | L38: 98.6 | M38: 105.4 | N38: 117.3 | O38: 127.5 | P38: 149.5 | Q38: 179 | R38: 209.4 | S38: 247.1 | T38: 293.3 | U38: 330.6 | V38: 401.2 | W38: 478.5 | AG38: P75 | AH38: 0 | AM38: 0.2121212121 | AN38: 0.2487179487 | AO38: 0.06279069767 | AP38: 0.2019607843 | AQ38: 0.1096774194 | AR38: 0.1608108108 | AS38: 0.1159090909 | AT38: 0.2037037037 | AU38: 0.2218045113 | AV38: 0.19 | AW38: 0.197382199 | AX38: 0.2044247788 | AY38: 0.1381481481 | AZ38: 0.2234177215 | BA38: 0.2061333333 | BE38: 0 | BF38: 0 | BG38: 0 | BH38: 0 | BI38: 0 | BL38: P75 | BM38: 0 | BR38: 31.56666667 | BS38: 23.91794872 | BT38: 70.02790698 | BU38: 29.52941176 | BV38: 61.09032258 | BW38: 40.43243243 | BX38: 61.89545455 | BY38: 12.2037037 | BZ38: 0.003759398496 | CA38: 25.67 | CB38: 18.53141361 | CC38: =T38-(AX38*T$10) -> 10.37610619 | CD38: 102.102963 | CE38: -38.93291139 | CF38: -4.882666667 | CJ38: 0 | CK38: 0 | CL38: 0 | CM38: 0 | CN38: 0 | CP38: 29 | CQ38: P75 | CT38: 75.26 | CU38: 85.91 | CV38: 92.14 | CW38: 102.88 | CX38: 115.53 | CY38: 128.93 | CZ38: 161.03 | DA38: 199.14 | DB38: 239.4 | DC38: 290.85 | DD38: 336.63
A39: 28 | B39: P50 | E39: 47 | F39: 51.6 | G39: 56.1 | H39: 59.6 | I39: 69.7 | J39: 71.9 | K39: 77.7 | L39: 88.2 | M39: 96.5 | N39: 111.3 | O39: 120.6 | P39: 136.2 | Q39: 161.4 | R39: 180.5 | S39: 212.7 | T39: 272.3 | U39: 300 | V39: 338.5 | W39: 387.6 | X39: 415.1 | AG39: P50 | AH39: 0 | AI39: 3.357142857 | AJ39: 0.2421052632 | AK39: 0.1956521739 | AL39: =(H39-G39)/(H$10-G$10) -> 0.1206896552 | AM39: 0.3060606061 | AN39: 0.05641025641 | AO39: 0.1348837209 | AP39: 0.2058823529 | AQ39: 0.1338709677 | AR39: 0.2 | AS39: 0.1056818182 | AT39: 0.1444444444 | AU39: 0.1894736842 | AV39: 0.119375 | AW39: 0.1685863874 | AX39: 0.2637168142 | AY39: 0.1025925926 | AZ39: 0.121835443 | BA39: 0.1309333333 | BB39: 0.0625 | BE39: 0 | BF39: 0 | BG39: 0 | BH39: 0 | BI39: 0 | BL39: P50 | BM39: 0 | BN39: -305.5 | BO39: 21.57894737 | BP39: 27.33913043 | BQ39: =H39-(AL39*H$10) -> 38.35862069 | BR39: 5.733333333 | BS39: 57.91025641 | BT39: 38.44883721 | BU39: 17.78823529 | BV39: 42.41612903 | BW39: 15.7 | BX39: 60.78409091 | BY39: 38.84444444 | BZ39: 8.494736842 | CA39: 65.064375 | CB39: 17.47696335 | CC39: -92.6840708 | CD39: 130.3118519 | CE39: 98.48417722 | CF39: 80.56133333 | CG39: 241.0375 | CJ39: 0 | CK39: 0 | CL39: 0 | CM39: 0 | CN39: 0 | CP39: 30 | CQ39: P50 | CR39: 53.95 | CS39: 58.51 | CT39: 68.78 | CU39: 72.57 | CV39: 81.61 | CW39: 93.42 | CX39: 109.1 | CY39: 121.61 | CZ39: 146.05 | DA39: 174.05 | DB39: 206.13 | DC39: 269.14 | DD39: 303.29
A40: 29 | B40: P25 | H40: 55.8 | I40: 56.9 | J40: 66.2 | K40: 73.1 | L40: 83.1 | M40: 91.8 | N40: 96.5 | O40: 112.1 | P40: 124.1 | Q40: 138.7 | R40: 160.6 | S40: 200.9 | T40: 258.6 | U40: 296.2 | V40: 324.1 | W40: 368.1 | AG40: P25 | AH40: 0 | AM40: 0.03333333333 | AN40: 0.2384615385 | AO40: 0.1604651163 | AP40: 0.1960784314 | AQ40: 0.1403225806 | AR40: 0.06351351351 | AS40: 0.1772727273 | AT40: 0.1111111111 | AU40: 0.1097744361 | AV40: 0.136875 | AW40: 0.2109947644 | AX40: 0.2553097345 | AY40: 0.1392592593 | AZ40: 0.08829113924 | BA40: 0.1173333333 | BE40: 0 | BF40: 0 | BG40: 0 | BH40: 0 | BI40: 0 | BL40: P25 | BM40: 0 | BR40: 49.93333333 | BS40: 7.061538462 | BT40: 26.40465116 | BU40: 16.04117647 | BV40: 35.10967742 | BW40: 66.14054054 | BX40: 11.76363636 | BY40: 49.21111111 | BZ40: 50.11203008 | CA40: 28.241875 | CB40: -43.43193717 | CC40: -94.74867257 | CD40: 65.86518519 | CE40: 150.1664557 | CF40: 92.95333333 | CJ40: 0 | CK40: 0 | CL40: 0 | CM40: 0 | CN40: 0 | CP40: 31 | CQ40: P25 | CT40: 56.8 | CU40: 67 | CV40: 76.83 | CW40: 88.57 | CX40: 95.8 | CY40: 112.88 | CZ40: 129.81 | DA40: 153.21 | DB40: 192.67 | DC40: 255.54 | DD40: 298.58
A41: 30 | B41: P10 | J41: 59.8 | K41: 68.4 | L41: 74.1 | M41: 78.9 | N41: 90 | O41: 101.2 | P41: 100.3 | Q41: 124.5 | R41: 146.5 | S41: 183.9 | AG41: P10 | AH41: 0 | AO41: 0.2 | AP41: 0.1117647059 | AQ41: 0.07741935484 | AR41: 0.15 | AS41: 0.1272727273 | AT41: -0.008333333333 | AU41: 0.1819548872 | AV41: 0.1375 | AW41: 0.1958115183 | BE41: 0 | BF41: 0 | BG41: 0 | BH41: 0 | BI41: 0 | BL41: P10 | BM41: 0 | BT41: 10.2 | BU41: 35.87647059 | BV41: 47.62258065 | BW41: 18.3 | BX41: 29.16363636 | BY41: 105.9166667 | BZ41: -22.33759398 | CA41: 13.5375 | CB41: -42.84973822 | CJ41: 0 | CK41: 0 | CL41: 0 | CM41: 0 | CN41: 0 | CP41: 32 | CQ41: P10 | CU41: 60.8 | CV41: 70.52 | CW41: 77.12 | CX41: 88.35 | CY41: 101.14 | CZ41: 109.76 | DA41: 139.08 | DB41: 176.26
A42: 31 | B42: AVG | E42: 48.9 | F42: 49.8 | G42: 55.4 | H42: 60 | I42: 68.1 | J42: 73.1 | K42: 80.1 | L42: 89.8 | M42: 97.1 | N42: 109 | O42: 118.6 | P42: 134.7 | Q42: 157.7 | R42: 186.7 | S42: 222.2 | T42: 272 | U42: 310.1 | V42: 353.8 | W42: 432.8 | X42: 409.7 | AG42: AVG | AH42: 0 | AI42: 3.492857143 | AJ42: 0.04736842105 | AK42: 0.2434782609 | AL42: 0.1586206897 | AM42: 0.2454545455 | AN42: 0.1282051282 | AO42: 0.1627906977 | AP42: 0.1901960784 | AQ42: 0.1177419355 | AR42: 0.1608108108 | AS42: 0.1090909091 | AT42: 0.1490740741 | AU42: 0.1729323308 | AV42: 0.18125 | AW42: 0.1858638743 | AX42: 0.2203539823 | AY42: 0.1411111111 | AZ42: 0.1382911392 | BA42: 0.2106666667 | BB42: -0.0525 | BE42: 0 | BF42: 0 | BG42: 0 | BH42: 0 | BI42: 0 | BL42: AVG | BM42: 0 | BN42: -317.85 | BO42: 43.92631579 | BP42: 19.60869565 | BQ42: 32.08275862 | BR42: 16.8 | BS42: 41.30512821 | BT42: 32.72790698 | BU42: 24.75294118 | BV42: 49.53225806 | BW42: 32.13243243 | BX42: 56.85454545 | BY42: 34.22407407 | BZ42: 18.14360902 | CA42: 11.43125 | CB42: 6.969633508 | CC42: -32.9699115 | CD42: 76.70222222 | CE42: 81.3664557 | CF42: -61.21333333 | CG42: 555.9125 | CJ42: 0 | CK42: 0 | CL42: 0 | CM42: 0 | CN42: 0 | CP42: 33 | CQ42: AVG | CR42: 52.72 | CS42: 58.57 | CT42: 67.36 | CU42: 73.91 | CV42: 83.71 | CW42: 94.39 | CX42: 107.23 | CY42: 119.64 | CZ42: 143.69 | DA42: 176.91 | DB42: 214.95 | DC42: 269.36 | DD42: 313.83
A43: 32 | B43: N | E43: 4 | F43: 4 | G43: 5 | H43: 9 | I43: 11 | J43: 13 | K43: 13 | L43: 13 | M43: 13 | N43: 15 | O43: 15 | P43: 15 | Q43: 15 | R43: 15 | S43: 14 | T43: 11 | U43: 11 | V43: 10 | W43: 8 | X43: 5 | AG43: N | AH43: =(D43-C43)/(D$10-C$10) -> 0 | AI43: 0.2857142857 | AJ43: 0 | AK43: 0.04347826087 | AL43: 0.1379310345 | AM43: 0.06060606061 | AN43: 0.05128205128 | AO43: 0 | AP43: 0 | AQ43: 0 | AR43: 0.02702702703 | AS43: 0 | AT43: 0 | AU43: 0 | AV43: =(R43-Q43)/(R$10-Q$10) -> 0 | AW43: -0.005235602094 | AX43: -0.01327433628 | AY43: 0 | AZ43: -0.003164556962 | BA43: -0.005333333333 | BB43: -0.006818181818 | BE43: 0 | BF43: 0 | BG43: 0 | BH43: 0 | BI43: 0 | BL43: N | BM43: =D43-(AH43*D$10) -> 0 | BN43: -26 | BO43: 4 | BP43: -1.391304348 | BQ43: -15.27586207 | BR43: -1.666666667 | BS43: 0.2820512821 | BT43: 13 | BU43: 13 | BV43: 13 | BW43: 2.081081081 | BX43: 15 | BY43: 15 | BZ43: 15 | CA43: =R43-(AV43*R$10) -> 15 | CB43: 20.06282723 | CC43: 29.37168142 | CD43: 11 | CE43: 16.23417722 | CF43: 20.50666667 | CG43: 23.98863636 | CJ43: 0 | CK43: 0 | CL43: 0 | CM43: 0 | CN43: 0 | CP43: 34 | CQ43: N | CR43: =ROUND((1+$CU$9)*(HLOOKUP(CR$10,$AH$9:$BI$180,$A43+3)*CR$10+HLOOKUP(CR$10,$BM$9:$CO$180,$A43+3)),$CX$9) -> 4.52 | CS43: 7.76 | CT43: 10.82 | CU43: 13 | CV43: 13 | CW43: 13 | CX43: 14.7 | CY43: 15 | CZ43: 15 | DA43: 15 | DB43: =ROUND((1+$CU$9)*(HLOOKUP(DB$10,$AH$9:$BI$180,$A43+3)*DB$10+HLOOKUP(DB$10,$BM$9:$CO$180,$A43+3)),$CX$9) -> 14.2 | DC43: 11.16 | DD43: 10.91
A44: 33 | B44: TD_T | AG44: TD_T | AH44: 0 | AI44: 0 | AJ44: 0 | AK44: 0 | AL44: 0 | AM44: 0 | AN44: 0 | AO44: 0 | AP44: 0 | AQ44: 0 | AR44: 0 | AS44: 0 | AT44: 0 | AU44: 0 | AV44: 0 | AW44: 0 | AX44: 0 | AY44: 0 | AZ44: 0 | BA44: 0 | BB44: 0 | BC44: 0 | BD44: 0 | BE44: 0 | BF44: 0 | BG44: 0 | BH44: 0 | BI44: 0 | BL44: TD_T | BM44: 0 | BN44: 0 | BO44: 0 | BP44: 0 | BQ44: 0 | BR44: 0 | BS44: 0 | BT44: 0 | BU44: 0 | BV44: 0 | BW44: 0 | BX44: 0 | BY44: 0 | BZ44: 0 | CA44: 0 | CB44: 0 | CC44: 0 | CD44: 0 | CE44: 0 | CF44: 0 | CG44: 0 | CH44: 0 | CI44: 0 | CJ44: 0 | CK44: 0 | CL44: 0 | CM44: =AE44-(BI44*AE$10) -> 0 | CN44: 0 | CP44: 35 | CQ44: TD_T | CR44: 0 | CS44: 0 | CT44: 0 | CU44: 0 | CV44: 0 | CW44: 0 | CX44: 0 | CY44: 0 | CZ44: 0 | DA44: 0 | DB44: 0 | DC44: 0 | DD44: 0
A45: 34 | B45: P90 | J45: 90.9 | K45: 93.4 | L45: 107.1 | M45: 116.7 | N45: 129.4 | O45: 136.1 | P45: 163.2 | Q45: 209.9 | R45: 329.9 | S45: 287.9 | AG45: P90 | AH45: 0 | AO45: 0.05813953488 | AP45: 0.268627451 | AQ45: 0.1548387097 | AR45: 0.1716216216 | AS45: 0.07613636364 | AT45: 0.2509259259 | AU45: 0.3511278195 | AV45: 0.75 | AW45: -0.219895288 | BE45: 0 | BF45: 0 | BG45: 0 | BH45: 0 | BI45: 0 | BL45: P90 | BM45: 0 | BT45: 76.48139535 | BU45: 15.22941176 | BV45: 54.14516129 | BW45: 47.36486486 | BX45: 93.00681818 | BY45: -5.924074074 | BZ45: -73.46015038 | CA45: -395.35 | CB45: 542.5387435 | CJ45: 0 | CK45: 0 | CL45: 0 | CM45: 0 | CN45: 0 | CP45: 36 | CQ45: P90 | CU45: 91.19 | CV45: 98.5 | CW45: 113.14 | CX45: 127.51 | CY45: 137.86 | CZ45: 181.46 | DA45: 289.4 | DB45: 296.48
A46: 35 | B46: P75 | H46: 72.1 | I46: 78.4 | J46: 85.7 | K46: 91 | L46: 102 | M46: 105.5 | N46: 119.3 | O46: 131.4 | P46: 152.7 | Q46: 185 | R46: 221 | S46: 244.5 | T46: 302.5 | U46: 362.4 | V46: 428.8 | W46: 522 | AG46: P75 | AH46: 0 | AM46: 0.1909090909 | AN46: 0.1871794872 | AO46: 0.123255814 | AP46: 0.2156862745 | AQ46: 0.0564516129 | AR46: 0.1864864865 | AS46: 0.1375 | AT46: 0.1972222222 | AU46: 0.2428571429 | AV46: 0.225 | AW46: 0.1230366492 | AX46: 0.2566371681 | AY46: 0.2218518519 | AZ46: 0.2101265823 | BA46: 0.2485333333 | BE46: 0 | BF46: 0 | BG46: 0 | BH46: 0 | BI46: 0 | BL46: P75 | BM46: 0 | BR46: 38.5 | BS46: 39.27948718 | BT46: 55.13255814 | BU46: 28.23529412 | BV46: 82.69354839 | BW46: 30.15945946 | BX46: 53.575 | BY46: 19.77222222 | BZ46: -10.98571429 | CA46: 3.425 | CB46: 102.0235602 | CC46: -52.68584071 | CD46: -4.542962963 | CE46: 14.85063291 | CF46: -60.81066667 | CJ46: 0 | CK46: 0 | CL46: 0 | CM46: 0 | CN46: 0 | CP46: 37 | CQ46: P75 | CT46: 77.83 | CU46: 86.32 | CV46: 95.1 | CW46: 104.2 | CX46: 117.25 | CY46: 132.78 | CZ46: 165.33 | DA46: 208.85 | DB46: 239.7 | DC46: 299.42 | DD46: 368.07
A47: 36 | B47: P50 | E47: 56.9 | F47: 51.8 | G47: 56.4 | H47: 65.4 | I47: 75.1 | J47: 70.3 | K47: 78.9 | L47: 88.5 | M47: 99.4 | N47: 111.1 | O47: 120.6 | P47: 136.2 | Q47: 160.5 | R47: 180 | S47: 221.3 | T47: 277.2 | U47: 320.8 | V47: 365.4 | W47: 413.3 | X47: 416.6 | AG47: P50 | AH47: 0 | AI47: 4.064285714 | AJ47: -0.2684210526 | AK47: 0.2 | AL47: 0.3103448276 | AM47: 0.2939393939 | AN47: -0.1230769231 | AO47: 0.2 | AP47: 0.1882352941 | AQ47: 0.1758064516 | AR47: 0.1581081081 | AS47: 0.1079545455 | AT47: 0.1444444444 | AU47: 0.1827067669 | AV47: 0.121875 | AW47: 0.2162303665 | AX47: 0.2473451327 | AY47: 0.1614814815 | AZ47: 0.1411392405 | BA47: 0.1277333333 | BB47: 0.0075 | BE47: 0 | BF47: 0 | BG47: 0 | BH47: 0 | BI47: 0 | BL47: P50 | BM47: 0 | BN47: -369.85 | BO47: 85.08421053 | BP47: 27 | BQ47: 10.77931034 | BR47: 13.66666667 | BS47: 100.8230769 | BT47: 20.7 | BU47: 24.12352941 | BV47: 28.37419355 | BW47: 35.52432432 | BX47: 59.49772727 | BY47: 38.84444444 | BZ47: 13.0556391 | CA47: 62.146875 | CB47: -29.0947644 | CC47: -65.12566372 | CD47: 53.70962963 | CE47: 87.3556962 | CF47: 113.7653333 | CG47: 395.7125 | CJ47: 0 | CK47: 0 | CL47: 0 | CM47: 0 | CN47: 0 | CP47: 38 | CQ47: P50 | CR47: 54.2 | CS47: 62.61 | CT47: 74.22 | CU47: 71.3 | CV47: 82.48 | CW47: 95.36 | CX47: 109.36 | CY47: 121.61 | CZ47: 145.7 | DA47: 173.42 | DB47: 212.87 | DC47: 274.23 | DD47: 324.61
A48: 37 | B48: P25 | H48: 53.2 | I48: 54.9 | J48: 63.4 | K48: 70.4 | L48: 80.3 | M48: 85.7 | N48: 96.4 | O48: 108.7 | P48: 119.6 | Q48: 136.1 | R48: 160.5 | S48: 201.9 | T48: 246.4 | U48: 278 | V48: 337 | W48: 368.5 | AG48: P25 | AH48: 0 | AM48: 0.05151515152 | AN48: 0.2179487179 | AO48: 0.1627906977 | AP48: 0.1941176471 | AQ48: 0.08709677419 | AR48: 0.1445945946 | AS48: 0.1397727273 | AT48: 0.1009259259 | AU48: 0.1240601504 | AV48: 0.1525 | AW48: 0.2167539267 | AX48: 0.1969026549 | AY48: 0.117037037 | AZ48: 0.1867088608 | BA48: 0.084 | BE48: 0 | BF48: 0 | BG48: 0 | BH48: 0 | BI48: 0 | BL48: P25 | BM48: 0 | BR48: 44.13333333 | BS48: 9.348717949 | BT48: 23.02790698 | BU48: 13.91176471 | BV48: 50.51290323 | BW48: 27.28378378 | BX48: 29.58863636 | BY48: 51.57592593 | BZ48: 35.98345865 | CA48: 13.0325 | CB48: -49.10104712 | CC48: -26.11327434 | CD48: 84.42074074 | CE48: -30.8164557 | CF48: 171.52 | CJ48: 0 | CK48: 0 | CL48: 0 | CM48: 0 | CN48: 0 | CP48: 39 | CQ48: P25 | CT48: 54.75 | CU48: 64.21 | CV48: 74.09 | CW48: 83.7 | CX48: 94.81 | CY48: 109.41 | CZ48: 126.05 | DA48: 152.27 | DB48: 193.45 | DC48: 244.04 | DD48: 283.04
A49: 38 | B49: P10 | J49: 54.8 | K49: 61.1 | L49: 70.6 | M49: 73.7 | N49: 87.1 | O49: 98.9 | P49: 99.6 | Q49: 121.7 | R49: 144.8 | S49: 182.6 | AG49: P10 | AH49: 0 | AO49: 0.1465116279 | AP49: 0.1862745098 | AQ49: 0.05 | AR49: 0.1810810811 | AS49: 0.1340909091 | AT49: 0.006481481481 | AU49: 0.1661654135 | AV49: 0.144375 | AW49: 0.1979057592 | BE49: 0 | BF49: 0 | BG49: 0 | BH49: 0 | BI49: 0 | BL49: P10 | BM49: 0 | BT49: 18.46511628 | BU49: 6.894117647 | BV49: 53.5 | BW49: 0.5432432432 | BX49: 23.00454545 | BY49: 95.23148148 | BZ49: -12.39548872 | CA49: 5.189375 | CB49: -46.57486911 | CJ49: 0 | CK49: 0 | CL49: 0 | CM49: 0 | CN49: 0 | CP49: 40 | CQ49: P10 | CU49: 55.53 | CV49: 64.64 | CW49: 72.55 | CX49: 85.11 | CY49: 98.95 | CZ49: 108.24 | DA49: 137 | DB49: 174.88
A50: 39 | B50: AVG | E50: 52.6 | F50: 53.3 | G50: 56.9 | H50: 61.6 | I50: 68.6 | J50: 73.5 | K50: 79 | L50: 90 | M50: 96.7 | N50: 108.7 | O50: 119.2 | P50: 135.6 | Q50: 165.5 | R50: 205.5 | S50: 232 | T50: 278.7 | U50: 318 | V50: 358.3 | W50: 431.3 | X50: 409.1 | AG50: AVG | AH50: 0 | AI50: 3.757142857 | AJ50: 0.03684210526 | AK50: 0.1565217391 | AL50: 0.1620689655 | AM50: 0.2121212121 | AN50: 0.1256410256 | AO50: 0.1279069767 | AP50: 0.2156862745 | AQ50: 0.1080645161 | AR50: 0.1621621622 | AS50: 0.1193181818 | AT50: 0.1518518519 | AU50: 0.2248120301 | AV50: 0.25 | AW50: 0.1387434555 | AX50: 0.2066371681 | AY50: 0.1455555556 | AZ50: 0.1275316456 | BA50: 0.1946666667 | BB50: -0.05045454545 | BE50: 0 | BF50: 0 | BG50: 0 | BH50: 0 | BI50: 0 | BL50: AVG | BM50: 0 | BN50: -341.9 | BO50: 48.73157895 | BP50: 33.89130435 | BQ50: 33.07586207 | BR50: 24.26666667 | BS50: 42.34102564 | BT50: 41.77906977 | BU50: 16.23529412 | BV50: 53.04193548 | BW50: 31.18648649 | BX50: 51.66590909 | BY50: 33.25185185 | BZ50: -15.92330827 | CA50: -36.25 | CB50: 71.33507853 | CC50: -7.285840708 | CD50: 77.25111111 | CE50: 107.0626582 | CF50: -25.19333333 | CG50: 549.6159091 | CJ50: 0 | CK50: 0 | CL50: 0 | CM50: 0 | CN50: 0 | CP50: 41 | CQ50: AVG | CR50: 55.18 | CS50: 60.14 | CT50: 67.96 | CU50: 74.14 | CV50: 83.1 | CW50: 94.21 | CX50: 106.92 | CY50: 120.26 | CZ50: 147.29 | DA50: 192 | DB50: 226.59 | DC50: 276.22 | DD50: 321.44
A51: 40 | B51: N | E51: 4 | F51: 4 | G51: 5 | H51: 9 | I51: 11 | J51: 13 | K51: 13 | L51: 13 | M51: 13 | N51: 15 | O51: 15 | P51: 15 | Q51: 15 | R51: 15 | S51: 14 | T51: 11 | U51: 11 | V51: 10 | W51: 8 | X51: 5 | AG51: N | AH51: 0 | AI51: 0.2857142857 | AJ51: 0 | AK51: 0.04347826087 | AL51: 0.1379310345 | AM51: 0.06060606061 | AN51: 0.05128205128 | AO51: 0 | AP51: 0 | AQ51: 0 | AR51: 0.02702702703 | AS51: 0 | AT51: 0 | AU51: 0 | AV51: 0 | AW51: -0.005235602094 | AX51: -0.01327433628 | AY51: 0 | AZ51: -0.003164556962 | BA51: -0.005333333333 | BB51: -0.006818181818 | BE51: 0 | BF51: 0 | BG51: 0 | BH51: 0 | BI51: 0 | BL51: N | BM51: 0 | BN51: -26 | BO51: 4 | BP51: -1.391304348 | BQ51: -15.27586207 | BR51: -1.666666667 | BS51: 0.2820512821 | BT51: 13 | BU51: 13 | BV51: 13 | BW51: 2.081081081 | BX51: 15 | BY51: 15 | BZ51: 15 | CA51: 15 | CB51: 20.06282723 | CC51: 29.37168142 | CD51: 11 | CE51: 16.23417722 | CF51: 20.50666667 | CG51: 23.98863636 | CJ51: 0 | CK51: 0 | CL51: 0 | CM51: 0 | CN51: 0 | CP51: 42 | CQ51: N | CR51: 4.52 | CS51: 7.76 | CT51: 10.82 | CU51: 13 | CV51: 13 | CW51: 13 | CX51: 14.7 | CY51: 15 | CZ51: 15 | DA51: 15 | DB51: 14.2 | DC51: 11.16 | DD51: 10.91
A52: 41 | B52: TD_T / TC_T | AG52: TD_T / TC_T | AH52: 0 | AI52: 0 | AJ52: 0 | AK52: 0 | AL52: 0 | AM52: 0 | AN52: 0 | AO52: 0 | AP52: 0 | AQ52: 0 | AR52: 0 | AS52: 0 | AT52: 0 | AU52: 0 | AV52: 0 | AW52: 0 | AX52: 0 | AY52: 0 | AZ52: 0 | BA52: 0 | BB52: 0 | BC52: 0 | BD52: 0 | BE52: 0 | BF52: 0 | BG52: 0 | BH52: 0 | BI52: 0 | BL52: TD_T / TC_T | BM52: 0 | BN52: 0 | BO52: 0 | BP52: 0 | BQ52: 0 | BR52: 0 | BS52: 0 | BT52: 0 | BU52: 0 | BV52: 0 | BW52: 0 | BX52: 0 | BY52: 0 | BZ52: 0 | CA52: 0 | CB52: 0 | CC52: 0 | CD52: 0 | CE52: 0 | CF52: 0 | CG52: 0 | CH52: 0 | CI52: 0 | CJ52: 0 | CK52: 0 | CL52: 0 | CM52: 0 | CN52: 0 | CP52: 43 | CQ52: TD_T / TC_T | CR52: 0 | CS52: 0 | CT52: 0 | CU52: 0 | CV52: 0 | CW52: 0 | CX52: 0 | CY52: 0 | CZ52: 0 | DA52: 0 | DB52: 0 | DC52: 0 | DD52: 0
A53: 42 | B53: P90 | J53: =IFERROR(J45/J29,"*") -> 1 | K53: 1 | L53: 1 | M53: 1 | N53: 1 | O53: 1 | P53: 1 | Q53: 1.070918367 | R53: 1.318018378 | S53: 1 | AG53: P90 | AH53: 0 | AO53: 0 | AP53: 0 | AQ53: 0 | AR53: 0 | AS53: 0 | AT53: 0 | AU53: 0.0005332208071 | AV53: 0.001544375066 | AW53: -0.001665017686 | BF53: 0 | BG53: 0 | BH53: 0 | BI53: 0 | BL53: P90 | BM53: 0 | BT53: 1 | BU53: 1 | BV53: 1 | BW53: 1 | BX53: 1 | BY53: 1 | BZ53: 0.640609176 | CA53: -0.1753923111 | CB53: 2.92809048 | CK53: 0 | CL53: 0 | CM53: 0 | CN53: 0 | CP53: 44 | CQ53: P90 | CR53: =ROUND((1+$CU$9)*(HLOOKUP(CR$10,$AH$9:$BI$180,$A53+3)*CR$10+HLOOKUP(CR$10,$BM$9:$CO$180,$A53+3)),$CX$9) ->  | CU53: 1 | CV53: 1 | CW53: 1 | CX53: 1 | CY53: 1 | CZ53: 1.03 | DA53: 1.23 | DB53: =ROUND((1+$CU$9)*(HLOOKUP(DB$10,$AH$9:$BI$180,$A53+3)*DB$10+HLOOKUP(DB$10,$BM$9:$CO$180,$A53+3)),$CX$9) -> 1.06
A54: 43 | B54: P75 | H54: =IFERROR(H46/H30,"*") -> 1 | I54: 1 | J54: 1 | K54: 1 | L54: 1 | M54: 1 | N54: 1 | O54: 1 | P54: 1 | Q54: 1.028921023 | R54: 1.02886406 | S54: 1.045765612 | T54: 1.0391618 | U54: 1.050434783 | V54: 1.107724102 | W54: 1 | AG54: P75 | AH54: 0 | AM54: 0 | AN54: 0 | AO54: 0 | AP54: 0 | AQ54: 0 | AR54: 0 | AS54: 0 | AT54: 0 | AU54: 0.0002174513035 | AV54: -3.560235561e-07 | AW54: 8.848980128e-05 | AX54: =(T54-S54)/(T$10-S$10) -> -2.922040516e-05 | AY54: 4.175178719e-05 | AZ54: 0.0001812953155 | BA54: -0.0002872642728 | BF54: 0 | BG54: 0 | BH54: 0 | BI54: 0 | BL54: P75 | BM54: 0 | BR54: 1 | BS54: 1 | BT54: 1 | BU54: 1 | BV54: 1 | BW54: 1 | BX54: 1 | BY54: 1 | BZ54: 0.8534378215 | CA54: 1.029208334 | CB54: 0.9432944218 | CC54: 1.079602841 | CD54: 0.9813773266 | CE54: 0.7505723308 | CF54: 1.67363472 | CK54: 0 | CL54: 0 | CM54: 0 | CN54: 0 | CP54: 45 | CQ54: P75 | CT54: 1 | CU54: 1 | CV54: 1 | CW54: 1 | CX54: 1 | CY54: 1 | CZ54: 1.01 | DA54: 1.03 | DB54: 1.04 | DC54: 1.04 | DD54: 1.06
A55: 44 | B55: P50 | E55: 1 | F55: 1 | G55: 1 | H55: 1 | I55: 1 | J55: 1 | K55: 1 | L55: 1 | M55: 1 | N55: 1 | O55: 1 | P55: 1 | Q55: 1 | R55: 1.002227171 | S55: 1.00636653 | T55: 1.017247706 | U55: 1.033172303 | V55: 1.000273748 | W55: 1.016978346 | X55: 1 | AG55: P50 | AH55: 0 | AI55: 0.07142857143 | AJ55: 0 | AK55: 0 | AL55: 0 | AM55: 0 | AN55: 0 | AO55: 0 | AP55: 0 | AQ55: 0 | AR55: 0 | AS55: 0 | AT55: 0 | AU55: 0 | AV55: 1.391982183e-05 | AW55: 2.167203533e-05 | AX55: 4.814679726e-05 | AY55: 5.897998635e-05 | AZ55: -0.0001041093517 | BA55: 4.454559694e-05 | BB55: -3.858715104e-05 | BF55: 0 | BG55: 0 | BH55: 0 | BI55: 0 | BL55: P50 | BM55: 0 | BN55: -6.5 | BO55: 1 | BP55: 1 | BQ55: 1 | BR55: 1 | BS55: 1 | BT55: 1 | BU55: 1 | BV55: 1 | BW55: 1 | BX55: 1 | BY55: 1 | BZ55: 1 | CA55: 0.9887667038 | CB55: 0.9812703133 | CC55: 0.950612539 | CD55: 0.9356194053 | CE55: 1.20536917 | CF55: 0.9125189216 | CG55: 1.107465216 | CK55: 0 | CL55: 0 | CM55: 0 | CN55: 0 | CP55: 46 | CQ55: P50 | CR55: 1 | CS55: 1 | CT55: 1 | CU55: 1 | CV55: 1 | CW55: 1 | CX55: 1 | CY55: 1 | CZ55: 1 | DA55: 1 | DB55: 1.01 | DC55: 1.02 | DD55: 1.03
A56: 45 | B56: P25 | H56: 1 | I56: 1 | J56: 1 | K56: 1 | L56: 1 | M56: 1 | N56: 1 | O56: 1 | P56: 1 | Q56: 1 | R56: 1.004380476 | S56: 1.019182231 | T56: 1 | U56: 1.017197219 | V56: 1 | W56: 1 | AG56: P25 | AH56: 0 | AM56: 0 | AN56: 0 | AO56: 0 | AP56: 0 | AQ56: 0 | AR56: 0 | AS56: 0 | AT56: 0 | AU56: 0 | AV56: 2.737797247e-05 | AW56: 7.749610263e-05 | AX56: -8.487712919e-05 | AY56: 6.369340434e-05 | AZ56: -5.442157966e-05 | BA56: 0 | BF56: 0 | BG56: 0 | BH56: 0 | BI56: 0 | BL56: P25 | BM56: 0 | BR56: 1 | BS56: 1 | BT56: 1 | BU56: 1 | BV56: 1 | BW56: 1 | BX56: 1 | BY56: 1 | BZ56: 1 | CA56: 0.9779059762 | CB56: 0.9294417444 | CC56: 1.117469947 | CD56: 0.9118483284 | CE56: 1.107210512 | CF56: 1 | CK56: 0 | CL56: 0 | CM56: 0 | CN56: 0 | CP56: 47 | CQ56: P25 | CT56: 1 | CU56: 1 | CV56: 1 | CW56: 1 | CX56: 1 | CY56: 1 | CZ56: 1 | DA56: 1 | DB56: 1.02 | DC56: 1 | DD56: 1.02
A57: 46 | B57: P10 | J57: 1 | K57: 1 | L57: 1 | M57: 1 | N57: 1 | O57: 1 | P57: 1 | Q57: 1 | R57: 1 | S57: 1 | AG57: P10 | AH57: 0 | AO57: 0 | AP57: 0 | AQ57: 0 | AR57: 0 | AS57: 0 | AT57: 0 | AU57: 0 | AV57: 0 | AW57: 0 | BF57: 0 | BG57: 0 | BH57: 0 | BI57: 0 | BL57: P10 | BM57: 0 | BT57: 1 | BU57: 1 | BV57: 1 | BW57: 1 | BX57: 1 | BY57: 1 | BZ57: 1 | CA57: 1 | CB57: 1 | CK57: 0 | CL57: 0 | CM57: 0 | CN57: 0 | CP57: 48 | CQ57: P10 | CU57: 1 | CV57: 1 | CW57: 1 | CX57: 1 | CY57: 1 | CZ57: 1 | DA57: 1 | DB57: 1
A58: 47 | B58: AVG | E58: 1 | F58: 1 | G58: 1 | H58: 1 | I58: 1 | J58: 1 | K58: 1 | L58: 1 | M58: 1 | N58: 1 | O58: 1 | P58: 1 | Q58: 1.033728919 | R58: 1.078740157 | S58: 1.042228212 | T58: 1.019385516 | U58: 1.021522647 | V58: 1.015589569 | W58: 1.034292566 | X58: 1 | AG58: AVG | AH58: 0 | AI58: 0.07142857143 | AJ58: 0 | AK58: 0 | AL58: 0 | AM58: 0 | AN58: 0 | AO58: 0 | AP58: 0 | AQ58: 0 | AR58: 0 | AS58: 0 | AT58: 0 | AU58: 0.0002536008979 | AV58: 0.0002813202378 | AW58: -0.000191162018 | AX58: -0.0001010738775 | AY58: 7.915300876e-06 | AZ58: -1.877556267e-05 | BA58: 4.98746581e-05 | BB58: -7.793764988e-05 | BF58: 0 | BG58: 0 | BH58: 0 | BI58: 0 | BL58: AVG | BM58: 0 | BN58: -6.5 | BO58: 1 | BP58: 1 | BQ58: 1 | BR58: 1 | BS58: 1 | BT58: 1 | BU58: 1 | BV58: 1 | BW58: 1 | BX58: 1 | BY58: 1 | BZ58: 0.8290729948 | CA58: 0.8067034875 | CB58: 1.263593829 | CC58: 1.159271762 | CD58: 1.008430739 | CE58: 1.052577428 | CF58: 0.9173364927 | CG58: 1.217056355 | CK58: 0 | CL58: 0 | CM58: 0 | CN58: 0 | CP58: 49 | CQ58: AVG | CR58: 1 | CS58: 1 | CT58: 1 | CU58: 1 | CV58: 1 | CW58: 1 | CX58: 1 | CY58: 1 | CZ58: 1.01 | DA58: 1.06 | DB58: 1.05 | DC58: 1.02 | DD58: 1.02
A59: 48 | B59: N | AG59: N | AH59: =(D59-C59)/(D$10-C$10) -> 0 | AI59: 0 | AJ59: 0 | AK59: 0 | AL59: 0 | AM59: 0 | AN59: 0 | AO59: 0 | AP59: 0 | AQ59: 0 | AR59: 0 | AS59: 0 | AT59: 0 | AU59: 0 | AV59: 0 | AW59: 0 | AX59: 0 | AY59: 0 | AZ59: 0 | BA59: 0 | BB59: 0 | BC59: 0 | BD59: 0 | BE59: 0 | BF59: 0 | BG59: 0 | BH59: 0 | BI59: 0 | BL59: N | BM59: 0 | BN59: 0 | BO59: 0 | BP59: 0 | BQ59: 0 | BR59: 0 | BS59: 0 | BT59: 0 | BU59: 0 | BV59: 0 | BW59: 0 | BX59: 0 | BY59: 0 | BZ59: 0 | CA59: 0 | CB59: 0 | CC59: 0 | CD59: 0 | CE59: 0 | CF59: 0 | CG59: 0 | CH59: 0 | CI59: 0 | CJ59: 0 | CK59: 0 | CL59: 0 | CM59: 0 | CN59: 0 | CP59: 50 | CQ59: N | CR59: 0 | CS59: 0 | CT59: 0 | CU59: 0 | CV59: 0 | CW59: 0 | CX59: 0 | CY59: 0 | CZ59: 0 | DA59: 0 | DB59: 0 | DC59: 0 | DD59: 0
A60: 49 | B60: TC_T | AG60: TC_T | AH60: 0 | AI60: 0 | AJ60: 0 | AK60: 0 | AL60: 0 | AM60: 0 | AN60: 0 | AO60: 0 | AP60: 0 | AQ60: 0 | AR60: 0 | AS60: 0 | AT60: 0 | AU60: 0 | AV60: 0 | AW60: 0 | AX60: 0 | AY60: 0 | AZ60: 0 | BA60: 0 | BB60: 0 | BC60: 0 | BD60: 0 | BE60: 0 | BF60: 0 | BG60: 0 | BH60: 0 | BI60: 0 | BL60: TC_T | BM60: =D60-(AH60*D$10) -> 0 | BN60: 0 | BO60: 0 | BP60: 0 | BQ60: 0 | BR60: 0 | BS60: 0 | BT60: 0 | BU60: 0 | BV60: 0 | BW60: 0 | BX60: 0 | BY60: 0 | BZ60: 0 | CA60: 0 | CB60: 0 | CC60: 0 | CD60: 0 | CE60: 0 | CF60: 0 | CG60: 0 | CH60: 0 | CI60: 0 | CJ60: 0 | CK60: 0 | CL60: 0 | CM60: 0 | CN60: 0 | CP60: 51 | CQ60: TC_T | CR60: 0 | CS60: 0 | CT60: 0 | CU60: 0 | CV60: 0 | CW60: 0 | CX60: 0 | CY60: 0 | CZ60: 0 | DA60: 0 | DB60: 0 | DC60: 0 | DD60: 0
A61: 50 | B61: P90 | AG61: P90 | AH61: 0 | AI61: 0 | AJ61: 0 | AK61: 0 | AL61: 0 | AM61: 0 | AN61: 0 | AO61: 0 | AP61: 0 | AQ61: 0 | AR61: 0 | AS61: 0 | AT61: 0 | AU61: 0 | AV61: 0 | AW61: 0 | AX61: 0 | AY61: 0 | AZ61: 0 | BA61: 0 | BB61: 0 | BC61: 0 | BD61: 0 | BE61: 0 | BF61: 0 | BG61: 0 | BH61: 0 | BI61: 0 | BL61: P90 | BM61: 0 | BN61: 0 | BO61: 0 | BP61: 0 | BQ61: 0 | BR61: 0 | BS61: 0 | BT61: 0 | BU61: 0 | BV61: 0 | BW61: 0 | BX61: 0 | BY61: 0 | BZ61: 0 | CA61: 0 | CB61: 0 | CC61: 0 | CD61: 0 | CE61: 0 | CF61: 0 | CG61: 0 | CH61: 0 | CI61: 0 | CJ61: 0 | CK61: 0 | CL61: 0 | CM61: 0 | CN61: 0 | CP61: 52 | CQ61: P90 | CR61: 0 | CS61: 0 | CT61: 0 | CU61: 0 | CV61: 0 | CW61: 0 | CX61: 0 | CY61: 0 | CZ61: 0 | DA61: 0 | DB61: 0 | DC61: 0 | DD61: 0
A62: 51 | B62: P75 | AG62: P75 | AH62: 0 | AI62: 0 | AJ62: 0 | AK62: 0 | AL62: 0 | AM62: 0 | AN62: 0 | AO62: 0 | AP62: 0 | AQ62: 0 | AR62: 0 | AS62: 0 | AT62: 0 | AU62: 0 | AV62: 0 | AW62: 0 | AX62: 0 | AY62: 0 | AZ62: 0 | BA62: 0 | BB62: 0 | BC62: 0 | BD62: 0 | BE62: 0 | BF62: 0 | BG62: 0 | BH62: 0 | BI62: 0 | BL62: P75 | BM62: 0 | BN62: 0 | BO62: 0 | BP62: 0 | BQ62: 0 | BR62: 0 | BS62: 0 | BT62: 0 | BU62: 0 | BV62: 0 | BW62: 0 | BX62: 0 | BY62: 0 | BZ62: 0 | CA62: 0 | CB62: 0 | CC62: 0 | CD62: 0 | CE62: 0 | CF62: 0 | CG62: 0 | CH62: 0 | CI62: 0 | CJ62: 0 | CK62: 0 | CL62: 0 | CM62: 0 | CN62: 0 | CP62: 53 | CQ62: P75 | CR62: 0 | CS62: 0 | CT62: 0 | CU62: 0 | CV62: 0 | CW62: 0 | CX62: 0 | CY62: 0 | CZ62: 0 | DA62: 0 | DB62: 0 | DC62: 0 | DD62: 0
A63: 52 | B63: P50 | AG63: P50 | AH63: 0 | AI63: 0 | AJ63: 0 | AK63: 0 | AL63: 0 | AM63: 0 | AN63: 0 | AO63: 0 | AP63: 0 | AQ63: 0 | AR63: 0 | AS63: 0 | AT63: 0 | AU63: 0 | AV63: 0 | AW63: 0 | AX63: 0 | AY63: 0 | AZ63: 0 | BA63: 0 | BB63: 0 | BC63: 0 | BD63: 0 | BE63: 0 | BF63: 0 | BG63: 0 | BH63: 0 | BI63: 0 | BL63: P50 | BM63: 0 | BN63: 0 | BO63: 0 | BP63: 0 | BQ63: 0 | BR63: 0 | BS63: 0 | BT63: 0 | BU63: 0 | BV63: 0 | BW63: 0 | BX63: 0 | BY63: 0 | BZ63: 0 | CA63: 0 | CB63: 0 | CC63: 0 | CD63: 0 | CE63: 0 | CF63: 0 | CG63: 0 | CH63: 0 | CI63: 0 | CJ63: 0 | CK63: 0 | CL63: 0 | CM63: 0 | CN63: 0 | CP63: 54 | CQ63: P50 | CR63: =ROUND((1+$CU$9)*(HLOOKUP(CR$10,$AH$9:$BI$180,$A63+3)*CR$10+HLOOKUP(CR$10,$BM$9:$CO$180,$A63+3)),$CX$9) -> 0 | CS63: 0 | CT63: 0 | CU63: 0 | CV63: 0 | CW63: 0 | CX63: 0 | CY63: 0 | CZ63: 0 | DA63: 0 | DB63: =ROUND((1+$CU$9)*(HLOOKUP(DB$10,$AH$9:$BI$180,$A63+3)*DB$10+HLOOKUP(DB$10,$BM$9:$CO$180,$A63+3)),$CX$9) -> 0 | DC63: 0 | DD63: 0
A64: 53 | B64: P25 | AG64: P25 | AH64: 0 | AI64: 0 | AJ64: 0 | AK64: 0 | AL64: 0 | AM64: 0 | AN64: 0 | AO64: 0 | AP64: 0 | AQ64: 0 | AR64: 0 | AS64: 0 | AT64: 0 | AU64: 0 | AV64: 0 | AW64: 0 | AX64: 0 | AY64: 0 | AZ64: 0 | BA64: 0 | BB64: 0 | BC64: 0 | BD64: 0 | BE64: 0 | BF64: 0 | BG64: 0 | BH64: 0 | BI64: 0 | BL64: P25 | BM64: 0 | BN64: 0 | BO64: 0 | BP64: 0 | BQ64: 0 | BR64: 0 | BS64: 0 | BT64: 0 | BU64: 0 | BV64: 0 | BW64: 0 | BX64: 0 | BY64: 0 | BZ64: 0 | CA64: 0 | CB64: 0 | CC64: =T64-(AX64*T$10) -> 0 | CD64: 0 | CE64: 0 | CF64: 0 | CG64: 0 | CH64: 0 | CI64: 0 | CJ64: 0 | CK64: 0 | CL64: 0 | CM64: 0 | CN64: 0 | CP64: 55 | CQ64: P25 | CR64: 0 | CS64: 0 | CT64: 0 | CU64: 0 | CV64: 0 | CW64: 0 | CX64: 0 | CY64: 0 | CZ64: 0 | DA64: 0 | DB64: 0 | DC64: 0 | DD64: 0
A65: 54 | B65: P10 | AG65: P10 | AH65: 0 | AI65: 0 | AJ65: 0 | AK65: 0 | AL65: 0 | AM65: 0 | AN65: 0 | AO65: 0 | AP65: 0 | AQ65: 0 | AR65: 0 | AS65: 0 | AT65: 0 | AU65: 0 | AV65: 0 | AW65: 0 | AX65: 0 | AY65: 0 | AZ65: 0 | BA65: 0 | BB65: 0 | BC65: 0 | BD65: 0 | BE65: 0 | BF65: 0 | BG65: 0 | BH65: 0 | BI65: 0 | BL65: P10 | BM65: 0 | BN65: 0 | BO65: 0 | BP65: 0 | BQ65: 0 | BR65: 0 | BS65: 0 | BT65: 0 | BU65: 0 | BV65: 0 | BW65: 0 | BX65: 0 | BY65: 0 | BZ65: 0 | CA65: 0 | CB65: 0 | CC65: 0 | CD65: 0 | CE65: 0 | CF65: 0 | CG65: 0 | CH65: 0 | CI65: 0 | CJ65: 0 | CK65: 0 | CL65: 0 | CM65: 0 | CN65: 0 | CP65: 56 | CQ65: P10 | CR65: 0 | CS65: 0 | CT65: 0 | CU65: 0 | CV65: 0 | CW65: 0 | CX65: 0 | CY65: 0 | CZ65: 0 | DA65: 0 | DB65: 0 | DC65: 0 | DD65: 0
A66: 55 | B66: AVG | AG66: AVG | AH66: 0 | AI66: 0 | AJ66: 0 | AK66: 0 | AL66: 0 | AM66: 0 | AN66: 0 | AO66: 0 | AP66: 0 | AQ66: 0 | AR66: 0 | AS66: 0 | AT66: 0 | AU66: 0 | AV66: 0 | AW66: 0 | AX66: 0 | AY66: 0 | AZ66: 0 | BA66: 0 | BB66: 0 | BC66: 0 | BD66: 0 | BE66: 0 | BF66: 0 | BG66: 0 | BH66: 0 | BI66: 0 | BL66: AVG | BM66: 0 | BN66: 0 | BO66: 0 | BP66: 0 | BQ66: 0 | BR66: 0 | BS66: 0 | BT66: 0 | BU66: 0 | BV66: 0 | BW66: 0 | BX66: 0 | BY66: 0 | BZ66: 0 | CA66: 0 | CB66: 0 | CC66: 0 | CD66: 0 | CE66: 0 | CF66: 0 | CG66: 0 | CH66: 0 | CI66: 0 | CJ66: 0 | CK66: 0 | CL66: 0 | CM66: 0 | CN66: 0 | CP66: 57 | CQ66: AVG | CR66: 0 | CS66: 0 | CT66: 0 | CU66: 0 | CV66: 0 | CW66: 0 | CX66: 0 | CY66: 0 | CZ66: 0 | DA66: 0 | DB66: 0 | DC66: 0 | DD66: 0
A67: 56 | B67: N | AG67: N | AH67: 0 | AI67: 0 | AJ67: 0 | AK67: 0 | AL67: 0 | AM67: 0 | AN67: 0 | AO67: 0 | AP67: 0 | AQ67: 0 | AR67: 0 | AS67: 0 | AT67: 0 | AU67: 0 | AV67: 0 | AW67: 0 | AX67: 0 | AY67: 0 | AZ67: 0 | BA67: 0 | BB67: 0 | BC67: 0 | BD67: 0 | BE67: 0 | BF67: 0 | BG67: 0 | BH67: 0 | BI67: 0 | BL67: N | BM67: 0 | BN67: 0 | BO67: 0 | BP67: 0 | BQ67: 0 | BR67: 0 | BS67: 0 | BT67: 0 | BU67: 0 | BV67: 0 | BW67: 0 | BX67: 0 | BY67: 0 | BZ67: 0 | CA67: 0 | CB67: 0 | CC67: 0 | CD67: 0 | CE67: 0 | CF67: 0 | CG67: 0 | CH67: 0 | CI67: 0 | CJ67: 0 | CK67: 0 | CL67: 0 | CM67: 0 | CN67: 0 | CP67: 58 | CQ67: N | CR67: 0 | CS67: 0 | CT67: 0 | CU67: 0 | CV67: 0 | CW67: 0 | CX67: 0 | CY67: 0 | CZ67: 0 | DA67: 0 | DB67: 0 | DC67: 0 | DD67: 0
A68: 57 | B68: TD_T | AG68: TD_T | AH68: 0 | AI68: 0 | AJ68: 0 | AK68: 0 | AL68: 0 | AM68: 0 | AN68: 0 | AO68: 0 | AP68: 0 | AQ68: 0 | AR68: 0 | AS68: 0 | AT68: 0 | AU68: 0 | AV68: 0 | AW68: 0 | AX68: 0 | AY68: 0 | AZ68: 0 | BA68: 0 | BB68: 0 | BC68: 0 | BD68: 0 | BE68: 0 | BF68: 0 | BG68: 0 | BH68: 0 | BI68: 0 | BL68: TD_T | BM68: 0 | BN68: 0 | BO68: 0 | BP68: 0 | BQ68: 0 | BR68: 0 | BS68: 0 | BT68: 0 | BU68: 0 | BV68: 0 | BW68: 0 | BX68: 0 | BY68: 0 | BZ68: 0 | CA68: 0 | CB68: 0 | CC68: 0 | CD68: 0 | CE68: 0 | CF68: 0 | CG68: 0 | CH68: 0 | CI68: 0 | CJ68: 0 | CK68: 0 | CL68: 0 | CM68: 0 | CN68: 0 | CP68: 59 | CQ68: TD_T | CR68: 0 | CS68: 0 | CT68: 0 | CU68: 0 | CV68: 0 | CW68: 0 | CX68: 0 | CY68: 0 | CZ68: 0 | DA68: 0 | DB68: 0 | DC68: 0 | DD68: 0
A69: 58 | B69: P90 | AG69: P90 | AH69: 0 | AI69: 0 | AJ69: 0 | AK69: 0 | AL69: 0 | AM69: 0 | AN69: 0 | AO69: 0 | AP69: 0 | AQ69: 0 | AR69: 0 | AS69: 0 | AT69: 0 | AU69: 0 | AV69: 0 | AW69: 0 | AX69: 0 | AY69: 0 | AZ69: 0 | BA69: 0 | BB69: 0 | BC69: 0 | BD69: 0 | BE69: 0 | BF69: 0 | BG69: 0 | BH69: 0 | BI69: 0 | BL69: P90 | BM69: 0 | BN69: 0 | BO69: 0 | BP69: 0 | BQ69: 0 | BR69: 0 | BS69: 0 | BT69: 0 | BU69: 0 | BV69: 0 | BW69: 0 | BX69: 0 | BY69: 0 | BZ69: 0 | CA69: 0 | CB69: 0 | CC69: 0 | CD69: 0 | CE69: 0 | CF69: 0 | CG69: 0 | CH69: 0 | CI69: 0 | CJ69: 0 | CK69: 0 | CL69: 0 | CM69: 0 | CN69: 0 | CP69: 60 | CQ69: P90 | CR69: 0 | CS69: 0 | CT69: 0 | CU69: 0 | CV69: 0 | CW69: 0 | CX69: 0 | CY69: 0 | CZ69: 0 | DA69: 0 | DB69: 0 | DC69: 0 | DD69: 0
A70: 59 | B70: P75 | AG70: P75 | AH70: 0 | AI70: 0 | AJ70: 0 | AK70: 0 | AL70: 0 | AM70: 0 | AN70: 0 | AO70: 0 | AP70: 0 | AQ70: 0 | AR70: 0 | AS70: 0 | AT70: 0 | AU70: 0 | AV70: 0 | AW70: 0 | AX70: 0 | AY70: 0 | AZ70: 0 | BA70: 0 | BB70: 0 | BC70: 0 | BD70: 0 | BE70: 0 | BF70: 0 | BG70: 0 | BH70: 0 | BI70: 0 | BL70: P75 | BM70: 0 | BN70: 0 | BO70: 0 | BP70: 0 | BQ70: 0 | BR70: 0 | BS70: 0 | BT70: 0 | BU70: 0 | BV70: 0 | BW70: 0 | BX70: 0 | BY70: 0 | BZ70: 0 | CA70: 0 | CB70: 0 | CC70: 0 | CD70: 0 | CE70: 0 | CF70: 0 | CG70: 0 | CH70: 0 | CI70: 0 | CJ70: 0 | CK70: 0 | CL70: 0 | CM70: 0 | CN70: 0 | CP70: 61 | CQ70: P75 | CR70: 0 | CS70: 0 | CT70: 0 | CU70: 0 | CV70: 0 | CW70: 0 | CX70: 0 | CY70: 0 | CZ70: 0 | DA70: 0 | DB70: 0 | DC70: 0 | DD70: 0
A71: 60 | B71: P50 | AG71: P50 | AH71: 0 | AI71: 0 | AJ71: 0 | AK71: 0 | AL71: 0 | AM71: 0 | AN71: 0 | AO71: 0 | AP71: 0 | AQ71: 0 | AR71: 0 | AS71: 0 | AT71: 0 | AU71: 0 | AV71: 0 | AW71: 0 | AX71: 0 | AY71: 0 | AZ71: 0 | BA71: 0 | BB71: 0 | BC71: 0 | BD71: 0 | BE71: 0 | BF71: 0 | BG71: 0 | BH71: 0 | BI71: 0 | BL71: P50 | BM71: 0 | BN71: 0 | BO71: 0 | BP71: 0 | BQ71: 0 | BR71: 0 | BS71: 0 | BT71: 0 | BU71: 0 | BV71: 0 | BW71: 0 | BX71: 0 | BY71: 0 | BZ71: 0 | CA71: 0 | CB71: 0 | CC71: 0 | CD71: 0 | CE71: 0 | CF71: 0 | CG71: 0 | CH71: 0 | CI71: 0 | CJ71: 0 | CK71: 0 | CL71: 0 | CM71: 0 | CN71: 0 | CP71: 62 | CQ71: P50 | CR71: 0 | CS71: 0 | CT71: 0 | CU71: 0 | CV71: 0 | CW71: 0 | CX71: 0 | CY71: 0 | CZ71: 0 | DA71: 0 | DB71: 0 | DC71: 0 | DD71: 0
A72: 61 | B72: P25 | AG72: P25 | AH72: 0 | AI72: 0 | AJ72: 0 | AK72: 0 | AL72: 0 | AM72: 0 | AN72: 0 | AO72: 0 | AP72: 0 | AQ72: 0 | AR72: 0 | AS72: 0 | AT72: 0 | AU72: 0 | AV72: 0 | AW72: 0 | AX72: 0 | AY72: 0 | AZ72: 0 | BA72: 0 | BB72: 0 | BC72: 0 | BD72: 0 | BE72: 0 | BF72: 0 | BG72: 0 | BH72: 0 | BI72: 0 | BL72: P25 | BM72: 0 | BN72: 0 | BO72: 0 | BP72: 0 | BQ72: 0 | BR72: 0 | BS72: 0 | BT72: 0 | BU72: 0 | BV72: 0 | BW72: 0 | BX72: 0 | BY72: 0 | BZ72: 0 | CA72: 0 | CB72: 0 | CC72: 0 | CD72: 0 | CE72: 0 | CF72: 0 | CG72: 0 | CH72: 0 | CI72: 0 | CJ72: 0 | CK72: 0 | CL72: 0 | CM72: 0 | CN72: 0 | CP72: 63 | CQ72: P25 | CR72: 0 | CS72: 0 | CT72: 0 | CU72: 0 | CV72: 0 | CW72: 0 | CX72: 0 | CY72: 0 | CZ72: 0 | DA72: 0 | DB72: 0 | DC72: 0 | DD72: 0
A73: 62 | B73: P10 | AG73: P10 | AH73: 0 | AI73: 0 | AJ73: 0 | AK73: 0 | AL73: 0 | AM73: 0 | AN73: 0 | AO73: 0 | AP73: 0 | AQ73: 0 | AR73: 0 | AS73: 0 | AT73: 0 | AU73: 0 | AV73: 0 | AW73: 0 | AX73: 0 | AY73: 0 | AZ73: 0 | BA73: 0 | BB73: 0 | BC73: 0 | BD73: 0 | BE73: 0 | BF73: 0 | BG73: 0 | BH73: 0 | BI73: 0 | BL73: P10 | BM73: 0 | BN73: 0 | BO73: 0 | BP73: 0 | BQ73: 0 | BR73: 0 | BS73: 0 | BT73: 0 | BU73: 0 | BV73: 0 | BW73: 0 | BX73: 0 | BY73: 0 | BZ73: 0 | CA73: 0 | CB73: 0 | CC73: 0 | CD73: 0 | CE73: 0 | CF73: 0 | CG73: 0 | CH73: 0 | CI73: 0 | CJ73: 0 | CK73: 0 | CL73: 0 | CM73: 0 | CN73: 0 | CP73: 64 | CQ73: P10 | CR73: =ROUND((1+$CU$9)*(HLOOKUP(CR$10,$AH$9:$BI$180,$A73+3)*CR$10+HLOOKUP(CR$10,$BM$9:$CO$180,$A73+3)),$CX$9) -> 0 | CS73: 0 | CT73: 0 | CU73: 0 | CV73: 0 | CW73: 0 | CX73: 0 | CY73: 0 | CZ73: 0 | DA73: 0 | DB73: =ROUND((1+$CU$9)*(HLOOKUP(DB$10,$AH$9:$BI$180,$A73+3)*DB$10+HLOOKUP(DB$10,$BM$9:$CO$180,$A73+3)),$CX$9) -> 0 | DC73: 0 | DD73: 0
A74: 63 | B74: AVG | AG74: AVG | AH74: 0 | AI74: 0 | AJ74: 0 | AK74: 0 | AL74: 0 | AM74: 0 | AN74: 0 | AO74: 0 | AP74: 0 | AQ74: 0 | AR74: 0 | AS74: 0 | AT74: 0 | AU74: 0 | AV74: 0 | AW74: 0 | AX74: 0 | AY74: 0 | AZ74: 0 | BA74: 0 | BB74: 0 | BC74: 0 | BD74: =(Z74-Y74)/(Z$10-Y$10) -> 0 | BE74: 0 | BF74: 0 | BG74: 0 | BH74: 0 | BI74: 0 | BL74: AVG | BM74: 0 | BN74: 0 | BO74: 0 | BP74: 0 | BQ74: 0 | BR74: 0 | BS74: 0 | BT74: 0 | BU74: 0 | BV74: 0 | BW74: 0 | BX74: 0 | BY74: 0 | BZ74: 0 | CA74: 0 | CB74: 0 | CC74: 0 | CD74: 0 | CE74: 0 | CF74: 0 | CG74: 0 | CH74: 0 | CI74: 0 | CJ74: 0 | CK74: 0 | CL74: 0 | CM74: 0 | CN74: 0 | CP74: 65 | CQ74: AVG | CR74: 0 | CS74: 0 | CT74: 0 | CU74: 0 | CV74: 0 | CW74: 0 | CX74: 0 | CY74: 0 | CZ74: 0 | DA74: 0 | DB74: 0 | DC74: 0 | DD74: 0
A75: 64 | B75: N | AG75: N | AH75: 0 | AI75: 0 | AJ75: 0 | AK75: 0 | AL75: 0 | AM75: 0 | AN75: 0 | AO75: 0 | AP75: =(L75-K75)/(L$10-K$10) -> 0 | AQ75: 0 | AR75: 0 | AS75: 0 | AT75: 0 | AU75: 0 | AV75: 0 | AW75: 0 | AX75: 0 | AY75: 0 | AZ75: 0 | BA75: 0 | BB75: 0 | BC75: 0 | BD75: 0 | BE75: 0 | BF75: 0 | BG75: 0 | BH75: 0 | BI75: 0 | BL75: N | BM75: 0 | BN75: 0 | BO75: 0 | BP75: 0 | BQ75: 0 | BR75: 0 | BS75: 0 | BT75: 0 | BU75: 0 | BV75: 0 | BW75: 0 | BX75: 0 | BY75: 0 | BZ75: 0 | CA75: 0 | CB75: =S75-(AW75*S$10) -> 0 | CC75: 0 | CD75: 0 | CE75: 0 | CF75: 0 | CG75: 0 | CH75: 0 | CI75: 0 | CJ75: 0 | CK75: 0 | CL75: 0 | CM75: 0 | CN75: 0 | CP75: =CP74+1 -> 66 | CQ75: N | CR75: 0 | CS75: 0 | CT75: 0 | CU75: 0 | CV75: 0 | CW75: 0 | CX75: 0 | CY75: 0 | CZ75: 0 | DA75: 0 | DB75: 0 | DC75: 0 | DD75: 0
A76: 65 | B76: BV | AG76: =B76 -> BV | AH76: 0 | AI76: 0 | AJ76: 0 | AK76: 0 | AL76: 0 | AM76: 0 | AN76: 0 | AO76: 0 | AP76: 0 | AQ76: 0 | AR76: 0 | AS76: 0 | AT76: 0 | AU76: 0 | AV76: 0 | AW76: 0 | AX76: 0 | AY76: 0 | AZ76: 0 | BA76: 0 | BB76: 0 | BC76: 0 | BD76: 0 | BE76: 0 | BF76: 0 | BG76: 0 | BH76: 0 | BI76: 0 | BL76: =B76 -> BV | BM76: =D76-(AH76*D$10) -> 0 | BN76: 0 | BO76: 0 | BP76: 0 | BQ76: 0 | BR76: 0 | BS76: 0 | BT76: 0 | BU76: 0 | BV76: 0 | BW76: 0 | BX76: 0 | BY76: 0 | BZ76: 0 | CA76: 0 | CB76: 0 | CC76: 0 | CD76: 0 | CE76: 0 | CF76: 0 | CG76: 0 | CH76: 0 | CI76: 0 | CJ76: 0 | CK76: 0 | CL76: =AC76-(BH76*AC$10) -> 0 | CM76: =AE76-(BI76*AE$10) -> 0 | CN76: 0 | CP76: 67 | CQ76: =B76 -> BV | CR76: 0 | CS76: 0 | CT76: 0 | CU76: 0 | CV76: 0 | CW76: 0 | CX76: 0 | CY76: 0 | CZ76: 0 | DA76: 0 | DB76: 0 | DC76: 0 | DD76: 0
A77: =A76+1 -> 66 | B77: P90 | AG77: P90 | AH77: 0 | AI77: 0 | AJ77: 0 | AK77: 0 | AL77: 0 | AM77: 0 | AN77: 0 | AO77: 0 | AP77: 0 | AQ77: 0 | AR77: 0 | AS77: 0 | AT77: 0 | AU77: 0 | AV77: 0 | AW77: 0 | AX77: 0 | AY77: 0 | AZ77: 0 | BA77: 0 | BB77: 0 | BC77: 0 | BD77: 0 | BE77: 0 | BF77: 0 | BG77: 0 | BH77: 0 | BI77: 0 | BL77: P90 | BM77: 0 | BN77: 0 | BO77: 0 | BP77: 0 | BQ77: 0 | BR77: 0 | BS77: 0 | BT77: 0 | BU77: 0 | BV77: 0 | BW77: 0 | BX77: 0 | BY77: 0 | BZ77: 0 | CA77: 0 | CB77: 0 | CC77: 0 | CD77: 0 | CE77: 0 | CF77: 0 | CG77: 0 | CH77: 0 | CI77: 0 | CJ77: 0 | CK77: 0 | CL77: 0 | CM77: 0 | CN77: 0 | CP77: 68 | CQ77: P90 | CR77: 0 | CS77: 0 | CT77: 0 | CU77: 0 | CV77: 0 | CW77: 0 | CX77: 0 | CY77: 0 | CZ77: 0 | DA77: 0 | DB77: 0 | DC77: 0 | DD77: 0
A78: 67 | B78: P75 | AG78: P75 | AH78: 0 | AI78: 0 | AJ78: 0 | AK78: 0 | AL78: 0 | AM78: 0 | AN78: 0 | AO78: 0 | AP78: 0 | AQ78: 0 | AR78: 0 | AS78: 0 | AT78: 0 | AU78: 0 | AV78: 0 | AW78: 0 | AX78: 0 | AY78: 0 | AZ78: 0 | BA78: 0 | BB78: 0 | BC78: 0 | BD78: 0 | BE78: 0 | BF78: 0 | BG78: 0 | BH78: 0 | BI78: 0 | BL78: P75 | BM78: 0 | BN78: 0 | BO78: 0 | BP78: 0 | BQ78: 0 | BR78: 0 | BS78: 0 | BT78: 0 | BU78: 0 | BV78: 0 | BW78: 0 | BX78: 0 | BY78: 0 | BZ78: 0 | CA78: 0 | CB78: 0 | CC78: 0 | CD78: 0 | CE78: 0 | CF78: 0 | CG78: 0 | CH78: 0 | CI78: 0 | CJ78: 0 | CK78: 0 | CL78: 0 | CM78: 0 | CN78: 0 | CP78: 69 | CQ78: P75 | CR78: 0 | CS78: 0 | CT78: 0 | CU78: 0 | CV78: 0 | CW78: 0 | CX78: 0 | CY78: 0 | CZ78: 0 | DA78: 0 | DB78: 0 | DC78: 0 | DD78: 0
A79: 68 | B79: P50 | AG79: P50 | AH79: 0 | AI79: 0 | AJ79: 0 | AK79: 0 | AL79: 0 | AM79: 0 | AN79: 0 | AO79: 0 | AP79: 0 | AQ79: 0 | AR79: 0 | AS79: 0 | AT79: 0 | AU79: 0 | AV79: 0 | AW79: 0 | AX79: 0 | AY79: 0 | AZ79: 0 | BA79: 0 | BB79: 0 | BC79: 0 | BD79: 0 | BE79: 0 | BF79: 0 | BG79: 0 | BH79: 0 | BI79: 0 | BL79: P50 | BM79: 0 | BN79: 0 | BO79: 0 | BP79: 0 | BQ79: 0 | BR79: 0 | BS79: 0 | BT79: 0 | BU79: 0 | BV79: 0 | BW79: 0 | BX79: 0 | BY79: 0 | BZ79: 0 | CA79: 0 | CB79: 0 | CC79: 0 | CD79: 0 | CE79: 0 | CF79: 0 | CG79: 0 | CH79: 0 | CI79: 0 | CJ79: 0 | CK79: 0 | CL79: 0 | CM79: 0 | CN79: 0 | CP79: 70 | CQ79: P50 | CR79: 0 | CS79: 0 | CT79: 0 | CU79: 0 | CV79: 0 | CW79: 0 | CX79: 0 | CY79: 0 | CZ79: 0 | DA79: 0 | DB79: 0 | DC79: 0 | DD79: 0
A80: 69 | B80: P25 | AG80: P25 | AH80: 0 | AI80: 0 | AJ80: 0 | AK80: 0 | AL80: 0 | AM80: 0 | AN80: 0 | AO80: 0 | AP80: 0 | AQ80: 0 | AR80: 0 | AS80: 0 | AT80: 0 | AU80: 0 | AV80: 0 | AW80: 0 | AX80: 0 | AY80: 0 | AZ80: 0 | BA80: 0 | BB80: 0 | BC80: 0 | BD80: 0 | BE80: 0 | BF80: 0 | BG80: 0 | BH80: 0 | BI80: 0 | BL80: P25 | BM80: 0 | BN80: 0 | BO80: 0 | BP80: 0 | BQ80: 0 | BR80: 0 | BS80: 0 | BT80: 0 | BU80: 0 | BV80: 0 | BW80: 0 | BX80: 0 | BY80: 0 | BZ80: 0 | CA80: 0 | CB80: 0 | CC80: 0 | CD80: 0 | CE80: 0 | CF80: 0 | CG80: 0 | CH80: 0 | CI80: 0 | CJ80: 0 | CK80: 0 | CL80: 0 | CM80: 0 | CN80: 0 | CP80: 71 | CQ80: P25 | CR80: 0 | CS80: 0 | CT80: 0 | CU80: 0 | CV80: 0 | CW80: 0 | CX80: 0 | CY80: 0 | CZ80: 0 | DA80: 0 | DB80: 0 | DC80: 0 | DD80: 0
A81: 70 | B81: P10 | AG81: P10 | AH81: 0 | AI81: 0 | AJ81: 0 | AK81: 0 | AL81: 0 | AM81: 0 | AN81: 0 | AO81: 0 | AP81: 0 | AQ81: 0 | AR81: 0 | AS81: 0 | AT81: 0 | AU81: 0 | AV81: 0 | AW81: 0 | AX81: 0 | AY81: 0 | AZ81: 0 | BA81: 0 | BB81: 0 | BC81: 0 | BD81: 0 | BE81: 0 | BF81: 0 | BG81: 0 | BH81: 0 | BI81: 0 | BL81: P10 | BM81: 0 | BN81: 0 | BO81: 0 | BP81: 0 | BQ81: 0 | BR81: 0 | BS81: 0 | BT81: 0 | BU81: 0 | BV81: 0 | BW81: 0 | BX81: 0 | BY81: 0 | BZ81: 0 | CA81: 0 | CB81: 0 | CC81: 0 | CD81: 0 | CE81: 0 | CF81: 0 | CG81: 0 | CH81: 0 | CI81: 0 | CJ81: 0 | CK81: 0 | CL81: 0 | CM81: 0 | CN81: 0 | CP81: 72 | CQ81: P10 | CR81: 0 | CS81: 0 | CT81: 0 | CU81: 0 | CV81: 0 | CW81: 0 | CX81: 0 | CY81: 0 | CZ81: 0 | DA81: 0 | DB81: 0 | DC81: 0 | DD81: 0
A82: 71 | B82: AVG | AG82: AVG | AH82: 0 | AI82: 0 | AJ82: 0 | AK82: 0 | AL82: 0 | AM82: 0 | AN82: 0 | AO82: 0 | AP82: 0 | AQ82: 0 | AR82: 0 | AS82: 0 | AT82: 0 | AU82: 0 | AV82: 0 | AW82: 0 | AX82: 0 | AY82: 0 | AZ82: 0 | BA82: 0 | BB82: 0 | BC82: 0 | BD82: 0 | BE82: 0 | BF82: 0 | BG82: 0 | BH82: 0 | BI82: 0 | BL82: AVG | BM82: 0 | BN82: 0 | BO82: 0 | BP82: 0 | BQ82: 0 | BR82: 0 | BS82: 0 | BT82: 0 | BU82: 0 | BV82: 0 | BW82: 0 | BX82: 0 | BY82: 0 | BZ82: 0 | CA82: 0 | CB82: 0 | CC82: 0 | CD82: 0 | CE82: 0 | CF82: 0 | CG82: 0 | CH82: 0 | CI82: 0 | CJ82: 0 | CK82: 0 | CL82: 0 | CM82: 0 | CN82: 0 | CP82: 73 | CQ82: AVG | CR82: 0 | CS82: 0 | CT82: 0 | CU82: 0 | CV82: 0 | CW82: 0 | CX82: 0 | CY82: 0 | CZ82: 0 | DA82: 0 | DB82: 0 | DC82: 0 | DD82: 0
A83: 72 | B83: N | AG83: N | AH83: 0 | AI83: 0 | AJ83: 0 | AK83: 0 | AL83: 0 | AM83: 0 | AN83: 0 | AO83: 0 | AP83: 0 | AQ83: 0 | AR83: 0 | AS83: 0 | AT83: 0 | AU83: 0 | AV83: 0 | AW83: 0 | AX83: 0 | AY83: 0 | AZ83: 0 | BA83: 0 | BB83: 0 | BC83: 0 | BD83: 0 | BE83: 0 | BF83: 0 | BG83: 0 | BH83: 0 | BI83: 0 | BL83: N | BM83: 0 | BN83: 0 | BO83: 0 | BP83: 0 | BQ83: 0 | BR83: 0 | BS83: 0 | BT83: 0 | BU83: 0 | BV83: 0 | BW83: 0 | BX83: 0 | BY83: 0 | BZ83: 0 | CA83: 0 | CB83: 0 | CC83: 0 | CD83: 0 | CE83: 0 | CF83: 0 | CG83: 0 | CH83: 0 | CI83: 0 | CJ83: 0 | CK83: 0 | CL83: 0 | CM83: 0 | CN83: 0 | CP83: 74 | CQ83: N | CR83: =ROUND((1+$CU$9)*(HLOOKUP(CR$10,$AH$9:$BI$180,$A83+3)*CR$10+HLOOKUP(CR$10,$BM$9:$CO$180,$A83+3)),$CX$9) -> 0 | CS83: 0 | CT83: 0 | CU83: 0 | CV83: 0 | CW83: 0 | CX83: 0 | CY83: 0 | CZ83: 0 | DA83: 0 | DB83: =ROUND((1+$CU$9)*(HLOOKUP(DB$10,$AH$9:$BI$180,$A83+3)*DB$10+HLOOKUP(DB$10,$BM$9:$CO$180,$A83+3)),$CX$9) -> 0 | DC83: 0 | DD83: 0
A84: 73 | B84: BV+TA | AG84: BV+TA | AH84: 0 | AI84: 0 | AJ84: 0 | AK84: 0 | AL84: 0 | AM84: 0 | AN84: 0 | AO84: 0 | AP84: 0 | AQ84: 0 | AR84: 0 | AS84: 0 | AT84: 0 | AU84: 0 | AV84: 0 | AW84: 0 | AX84: 0 | AY84: 0 | AZ84: 0 | BA84: 0 | BB84: 0 | BC84: 0 | BD84: 0 | BE84: 0 | BF84: 0 | BG84: 0 | BH84: 0 | BI84: 0 | BL84: BV+TA | BM84: 0 | BN84: 0 | BO84: 0 | BP84: 0 | BQ84: 0 | BR84: 0 | BS84: 0 | BT84: 0 | BU84: 0 | BV84: 0 | BW84: 0 | BX84: 0 | BY84: 0 | BZ84: 0 | CA84: 0 | CB84: 0 | CC84: 0 | CD84: 0 | CE84: 0 | CF84: 0 | CG84: 0 | CH84: 0 | CI84: 0 | CJ84: 0 | CK84: 0 | CL84: 0 | CM84: 0 | CN84: 0 | CP84: 75 | CQ84: BV+TA | CR84: 0 | CS84: 0 | CT84: 0 | CU84: 0 | CV84: 0 | CW84: 0 | CX84: 0 | CY84: 0 | CZ84: 0 | DA84: 0 | DB84: 0 | DC84: 0 | DD84: 0
A85: 74 | B85: P90 | AG85: P90 | AH85: 0 | AI85: 0 | AJ85: 0 | AK85: 0 | AL85: 0 | AM85: 0 | AN85: 0 | AO85: 0 | AP85: 0 | AQ85: 0 | AR85: 0 | AS85: 0 | AT85: 0 | AU85: 0 | AV85: 0 | AW85: 0 | AX85: 0 | AY85: 0 | AZ85: 0 | BA85: 0 | BB85: 0 | BC85: 0 | BD85: 0 | BE85: 0 | BF85: 0 | BG85: 0 | BH85: 0 | BI85: 0 | BL85: P90 | BM85: 0 | BN85: 0 | BO85: 0 | BP85: 0 | BQ85: 0 | BR85: 0 | BS85: 0 | BT85: 0 | BU85: 0 | BV85: 0 | BW85: 0 | BX85: 0 | BY85: 0 | BZ85: 0 | CA85: 0 | CB85: 0 | CC85: 0 | CD85: 0 | CE85: 0 | CF85: 0 | CG85: 0 | CH85: 0 | CI85: 0 | CJ85: 0 | CK85: 0 | CL85: 0 | CM85: 0 | CN85: 0 | CP85: 76 | CQ85: P90 | CR85: 0 | CS85: 0 | CT85: 0 | CU85: 0 | CV85: 0 | CW85: 0 | CX85: 0 | CY85: 0 | CZ85: 0 | DA85: 0 | DB85: 0 | DC85: 0 | DD85: 0
A86: 75 | B86: P75 | AG86: P75 | AH86: 0 | AI86: 0 | AJ86: 0 | AK86: 0 | AL86: 0 | AM86: 0 | AN86: 0 | AO86: 0 | AP86: 0 | AQ86: 0 | AR86: 0 | AS86: 0 | AT86: 0 | AU86: 0 | AV86: 0 | AW86: 0 | AX86: 0 | AY86: 0 | AZ86: 0 | BA86: 0 | BB86: 0 | BC86: 0 | BD86: 0 | BE86: 0 | BF86: 0 | BG86: 0 | BH86: 0 | BI86: 0 | BL86: P75 | BM86: 0 | BN86: 0 | BO86: 0 | BP86: 0 | BQ86: 0 | BR86: 0 | BS86: 0 | BT86: 0 | BU86: 0 | BV86: 0 | BW86: 0 | BX86: 0 | BY86: 0 | BZ86: 0 | CA86: 0 | CB86: 0 | CC86: 0 | CD86: 0 | CE86: 0 | CF86: 0 | CG86: 0 | CH86: 0 | CI86: 0 | CJ86: 0 | CK86: 0 | CL86: 0 | CM86: 0 | CN86: 0 | CP86: 77 | CQ86: P75 | CR86: 0 | CS86: 0 | CT86: 0 | CU86: 0 | CV86: 0 | CW86: 0 | CX86: 0 | CY86: 0 | CZ86: 0 | DA86: 0 | DB86: 0 | DC86: 0 | DD86: 0
A87: 76 | B87: P50 | AG87: P50 | AH87: 0 | AI87: 0 | AJ87: 0 | AK87: 0 | AL87: 0 | AM87: 0 | AN87: 0 | AO87: 0 | AP87: 0 | AQ87: 0 | AR87: 0 | AS87: 0 | AT87: 0 | AU87: 0 | AV87: 0 | AW87: 0 | AX87: 0 | AY87: 0 | AZ87: 0 | BA87: 0 | BB87: 0 | BC87: 0 | BD87: 0 | BE87: 0 | BF87: 0 | BG87: 0 | BH87: 0 | BI87: 0 | BL87: P50 | BM87: 0 | BN87: 0 | BO87: 0 | BP87: 0 | BQ87: 0 | BR87: 0 | BS87: 0 | BT87: 0 | BU87: 0 | BV87: 0 | BW87: 0 | BX87: 0 | BY87: 0 | BZ87: 0 | CA87: 0 | CB87: 0 | CC87: 0 | CD87: 0 | CE87: 0 | CF87: 0 | CG87: 0 | CH87: 0 | CI87: 0 | CJ87: 0 | CK87: 0 | CL87: 0 | CM87: 0 | CN87: 0 | CP87: 78 | CQ87: P50 | CR87: 0 | CS87: 0 | CT87: 0 | CU87: 0 | CV87: 0 | CW87: 0 | CX87: 0 | CY87: 0 | CZ87: 0 | DA87: 0 | DB87: 0 | DC87: 0 | DD87: 0
A88: 77 | B88: P25 | AG88: P25 | AH88: 0 | AI88: 0 | AJ88: 0 | AK88: 0 | AL88: 0 | AM88: 0 | AN88: 0 | AO88: 0 | AP88: 0 | AQ88: 0 | AR88: 0 | AS88: 0 | AT88: 0 | AU88: 0 | AV88: 0 | AW88: 0 | AX88: 0 | AY88: 0 | AZ88: 0 | BA88: 0 | BB88: 0 | BC88: 0 | BD88: 0 | BE88: 0 | BF88: 0 | BG88: 0 | BH88: 0 | BI88: 0 | BL88: P25 | BM88: 0 | BN88: 0 | BO88: 0 | BP88: 0 | BQ88: 0 | BR88: 0 | BS88: 0 | BT88: 0 | BU88: 0 | BV88: 0 | BW88: 0 | BX88: 0 | BY88: 0 | BZ88: 0 | CA88: 0 | CB88: 0 | CC88: 0 | CD88: 0 | CE88: 0 | CF88: 0 | CG88: 0 | CH88: 0 | CI88: 0 | CJ88: 0 | CK88: 0 | CL88: 0 | CM88: 0 | CN88: 0 | CP88: 79 | CQ88: P25 | CR88: 0 | CS88: 0 | CT88: 0 | CU88: 0 | CV88: 0 | CW88: 0 | CX88: 0 | CY88: 0 | CZ88: 0 | DA88: 0 | DB88: 0 | DC88: 0 | DD88: 0
A89: 78 | B89: P10 | AG89: P10 | AH89: 0 | AI89: 0 | AJ89: 0 | AK89: 0 | AL89: 0 | AM89: 0 | AN89: 0 | AO89: 0 | AP89: 0 | AQ89: 0 | AR89: 0 | AS89: 0 | AT89: 0 | AU89: 0 | AV89: 0 | AW89: 0 | AX89: 0 | AY89: 0 | AZ89: 0 | BA89: 0 | BB89: 0 | BC89: 0 | BD89: 0 | BE89: 0 | BF89: 0 | BG89: 0 | BH89: 0 | BI89: 0 | BL89: P10 | BM89: 0 | BN89: 0 | BO89: 0 | BP89: 0 | BQ89: 0 | BR89: 0 | BS89: 0 | BT89: 0 | BU89: 0 | BV89: 0 | BW89: 0 | BX89: 0 | BY89: 0 | BZ89: 0 | CA89: 0 | CB89: 0 | CC89: 0 | CD89: 0 | CE89: 0 | CF89: 0 | CG89: 0 | CH89: 0 | CI89: 0 | CJ89: 0 | CK89: 0 | CL89: 0 | CM89: 0 | CN89: 0 | CP89: 80 | CQ89: P10 | CR89: 0 | CS89: 0 | CT89: 0 | CU89: 0 | CV89: 0 | CW89: 0 | CX89: 0 | CY89: 0 | CZ89: 0 | DA89: 0 | DB89: 0 | DC89: 0 | DD89: 0
A90: 79 | B90: AVG | AG90: AVG | AH90: 0 | AI90: 0 | AJ90: 0 | AK90: 0 | AL90: 0 | AM90: 0 | AN90: 0 | AO90: 0 | AP90: 0 | AQ90: 0 | AR90: 0 | AS90: 0 | AT90: 0 | AU90: 0 | AV90: 0 | AW90: 0 | AX90: 0 | AY90: 0 | AZ90: 0 | BA90: 0 | BB90: 0 | BC90: 0 | BD90: 0 | BE90: 0 | BF90: 0 | BG90: 0 | BH90: 0 | BI90: 0 | BL90: AVG | BM90: 0 | BN90: 0 | BO90: 0 | BP90: 0 | BQ90: 0 | BR90: 0 | BS90: 0 | BT90: 0 | BU90: 0 | BV90: 0 | BW90: 0 | BX90: 0 | BY90: 0 | BZ90: 0 | CA90: 0 | CB90: 0 | CC90: 0 | CD90: 0 | CE90: 0 | CF90: 0 | CG90: 0 | CH90: 0 | CI90: 0 | CJ90: 0 | CK90: 0 | CL90: 0 | CM90: 0 | CN90: 0 | CP90: 81 | CQ90: AVG | CR90: 0 | CS90: 0 | CT90: 0 | CU90: 0 | CV90: 0 | CW90: 0 | CX90: 0 | CY90: 0 | CZ90: 0 | DA90: 0 | DB90: 0 | DC90: 0 | DD90: 0
A91: 80 | B91: N | AG91: N | AH91: 0 | AI91: 0 | AJ91: 0 | AK91: 0 | AL91: 0 | AM91: 0 | AN91: 0 | AO91: =(K91-J91)/(K$10-J$10) -> 0 | AP91: 0 | AQ91: 0 | AR91: 0 | AS91: 0 | AT91: 0 | AU91: 0 | AV91: 0 | AW91: 0 | AX91: 0 | AY91: 0 | AZ91: 0 | BA91: 0 | BB91: 0 | BC91: 0 | BD91: 0 | BE91: 0 | BF91: 0 | BG91: 0 | BH91: 0 | BI91: 0 | BL91: N | BM91: 0 | BN91: 0 | BO91: 0 | BP91: 0 | BQ91: 0 | BR91: 0 | BS91: 0 | BT91: 0 | BU91: 0 | BV91: 0 | BW91: 0 | BX91: 0 | BY91: 0 | BZ91: 0 | CA91: 0 | CB91: 0 | CC91: 0 | CD91: 0 | CE91: 0 | CF91: 0 | CG91: 0 | CH91: 0 | CI91: 0 | CJ91: 0 | CK91: 0 | CL91: 0 | CM91: 0 | CN91: 0 | CP91: 82 | CQ91: N | CR91: 0 | CS91: 0 | CT91: 0 | CU91: 0 | CV91: 0 | CW91: 0 | CX91: 0 | CY91: 0 | CZ91: 0 | DA91: 0 | DB91: 0 | DC91: 0 | DD91: 0
A92: 81 | B92: TAR_A | AG92: TAR_A | AH92: 0 | AI92: 0 | AJ92: 0 | AK92: 0 | AL92: 0 | AM92: 0 | AN92: 0 | AO92: 0 | AP92: 0 | AQ92: 0 | AR92: 0 | AS92: 0 | AT92: 0 | AU92: 0 | AV92: 0 | AW92: 0 | AX92: 0 | AY92: 0 | AZ92: 0 | BA92: 0 | BB92: 0 | BC92: 0 | BD92: 0 | BE92: 0 | BF92: 0 | BG92: 0 | BH92: 0 | BI92: 0 | BL92: TAR_A | BM92: 0 | BN92: 0 | BO92: 0 | BP92: 0 | BQ92: 0 | BR92: 0 | BS92: 0 | BT92: 0 | BU92: 0 | BV92: 0 | BW92: 0 | BX92: 0 | BY92: 0 | BZ92: 0 | CA92: 0 | CB92: 0 | CC92: 0 | CD92: 0 | CE92: 0 | CF92: 0 | CG92: 0 | CH92: 0 | CI92: 0 | CJ92: 0 | CK92: 0 | CL92: 0 | CM92: 0 | CN92: 0 | CP92: 83 | CQ92: TAR_A | CR92: 0 | CS92: 0 | CT92: 0 | CU92: 0 | CV92: 0 | CW92: 0 | CX92: 0 | CY92: 0 | CZ92: 0 | DA92: 0 | DB92: 0 | DC92: 0 | DD92: 0
A93: 82 | B93: P90 | AG93: P90 | AH93: 0 | AI93: 0 | AJ93: 0 | AK93: 0 | AL93: 0 | AM93: 0 | AN93: 0 | AO93: 0 | AP93: 0 | AQ93: 0 | AR93: 0 | AS93: 0 | AT93: 0 | AU93: 0 | AV93: 0 | AW93: 0 | AX93: 0 | AY93: 0 | AZ93: 0 | BA93: 0 | BB93: 0 | BC93: 0 | BD93: 0 | BE93: 0 | BF93: 0 | BG93: 0 | BH93: 0 | BI93: 0 | BL93: P90 | BM93: 0 | BN93: 0 | BO93: 0 | BP93: 0 | BQ93: 0 | BR93: 0 | BS93: 0 | BT93: 0 | BU93: 0 | BV93: 0 | BW93: 0 | BX93: 0 | BY93: 0 | BZ93: 0 | CA93: 0 | CB93: 0 | CC93: 0 | CD93: 0 | CE93: 0 | CF93: 0 | CG93: 0 | CH93: 0 | CI93: 0 | CJ93: 0 | CK93: 0 | CL93: 0 | CM93: 0 | CN93: 0 | CP93: 84 | CQ93: P90 | CR93: =ROUND((1+$CU$9)*(HLOOKUP(CR$10,$AH$9:$BI$180,$A93+3)*CR$10+HLOOKUP(CR$10,$BM$9:$CO$180,$A93+3)),$CX$9) -> 0 | CS93: 0 | CT93: 0 | CU93: 0 | CV93: 0 | CW93: 0 | CX93: 0 | CY93: 0 | CZ93: 0 | DA93: 0 | DB93: =ROUND((1+$CU$9)*(HLOOKUP(DB$10,$AH$9:$BI$180,$A93+3)*DB$10+HLOOKUP(DB$10,$BM$9:$CO$180,$A93+3)),$CX$9) -> 0 | DC93: 0 | DD93: 0
A94: 83 | B94: P75 | AG94: P75 | AH94: 0 | AI94: 0 | AJ94: 0 | AK94: 0 | AL94: 0 | AM94: 0 | AN94: 0 | AO94: 0 | AP94: 0 | AQ94: 0 | AR94: 0 | AS94: 0 | AT94: 0 | AU94: 0 | AV94: 0 | AW94: 0 | AX94: 0 | AY94: 0 | AZ94: 0 | BA94: 0 | BB94: 0 | BC94: 0 | BD94: 0 | BE94: 0 | BF94: 0 | BG94: 0 | BH94: 0 | BI94: 0 | BL94: P75 | BM94: 0 | BN94: 0 | BO94: 0 | BP94: 0 | BQ94: 0 | BR94: 0 | BS94: 0 | BT94: 0 | BU94: 0 | BV94: 0 | BW94: 0 | BX94: 0 | BY94: 0 | BZ94: 0 | CA94: 0 | CB94: 0 | CC94: 0 | CD94: 0 | CE94: 0 | CF94: 0 | CG94: 0 | CH94: 0 | CI94: 0 | CJ94: 0 | CK94: 0 | CL94: 0 | CM94: 0 | CN94: 0 | CP94: 85 | CQ94: P75 | CR94: 0 | CS94: 0 | CT94: 0 | CU94: 0 | CV94: 0 | CW94: 0 | CX94: 0 | CY94: 0 | CZ94: 0 | DA94: 0 | DB94: 0 | DC94: 0 | DD94: 0
A95: 84 | B95: P50 | AG95: P50 | AH95: 0 | AI95: 0 | AJ95: 0 | AK95: 0 | AL95: 0 | AM95: 0 | AN95: 0 | AO95: 0 | AP95: 0 | AQ95: 0 | AR95: 0 | AS95: 0 | AT95: 0 | AU95: 0 | AV95: 0 | AW95: 0 | AX95: 0 | AY95: 0 | AZ95: 0 | BA95: 0 | BB95: 0 | BC95: 0 | BD95: 0 | BE95: 0 | BF95: 0 | BG95: =(AC95-AB95)/(AC$10-AB$10) -> 0 | BH95: 0 | BI95: 0 | BL95: P50 | BM95: 0 | BN95: 0 | BO95: =F95-(AJ95*F$10) -> 0 | BP95: 0 | BQ95: 0 | BR95: 0 | BS95: 0 | BT95: 0 | BU95: 0 | BV95: 0 | BW95: 0 | BX95: 0 | BY95: 0 | BZ95: 0 | CA95: 0 | CB95: 0 | CC95: 0 | CD95: 0 | CE95: 0 | CF95: 0 | CG95: 0 | CH95: 0 | CI95: 0 | CJ95: 0 | CK95: 0 | CL95: 0 | CM95: 0 | CN95: 0 | CP95: 86 | CQ95: P50 | CR95: 0 | CS95: 0 | CT95: 0 | CU95: 0 | CV95: 0 | CW95: 0 | CX95: 0 | CY95: 0 | CZ95: 0 | DA95: 0 | DB95: 0 | DC95: 0 | DD95: 0
A96: 85 | B96: P25 | AG96: P25 | AH96: 0 | AI96: 0 | AJ96: 0 | AK96: 0 | AL96: 0 | AM96: 0 | AN96: 0 | AO96: 0 | AP96: 0 | AQ96: 0 | AR96: 0 | AS96: 0 | AT96: 0 | AU96: 0 | AV96: 0 | AW96: 0 | AX96: =(T96-S96)/(T$10-S$10) -> 0 | AY96: 0 | AZ96: 0 | BA96: 0 | BB96: 0 | BC96: 0 | BD96: 0 | BE96: 0 | BF96: 0 | BG96: 0 | BH96: 0 | BI96: 0 | BL96: P25 | BM96: =D96-(AH96*D$10) -> 0 | BN96: 0 | BO96: 0 | BP96: 0 | BQ96: 0 | BR96: 0 | BS96: 0 | BT96: 0 | BU96: 0 | BV96: 0 | BW96: 0 | BX96: 0 | BY96: 0 | BZ96: 0 | CA96: 0 | CB96: 0 | CC96: 0 | CD96: 0 | CE96: 0 | CF96: 0 | CG96: 0 | CH96: 0 | CI96: 0 | CJ96: 0 | CK96: 0 | CL96: 0 | CM96: 0 | CN96: 0 | CP96: 87 | CQ96: P25 | CR96: 0 | CS96: 0 | CT96: 0 | CU96: 0 | CV96: 0 | CW96: 0 | CX96: 0 | CY96: 0 | CZ96: 0 | DA96: 0 | DB96: 0 | DC96: 0 | DD96: 0
A97: 86 | B97: P10 | AG97: P10 | AH97: 0 | AI97: 0 | AJ97: 0 | AK97: 0 | AL97: 0 | AM97: 0 | AN97: 0 | AO97: 0 | AP97: 0 | AQ97: 0 | AR97: 0 | AS97: 0 | AT97: 0 | AU97: 0 | AV97: 0 | AW97: 0 | AX97: 0 | AY97: 0 | AZ97: 0 | BA97: 0 | BB97: 0 | BC97: 0 | BD97: 0 | BE97: 0 | BF97: 0 | BG97: 0 | BH97: 0 | BI97: 0 | BL97: P10 | BM97: 0 | BN97: 0 | BO97: 0 | BP97: 0 | BQ97: 0 | BR97: 0 | BS97: 0 | BT97: 0 | BU97: 0 | BV97: 0 | BW97: 0 | BX97: 0 | BY97: 0 | BZ97: 0 | CA97: 0 | CB97: 0 | CC97: 0 | CD97: 0 | CE97: 0 | CF97: 0 | CG97: 0 | CH97: 0 | CI97: 0 | CJ97: 0 | CK97: 0 | CL97: 0 | CM97: 0 | CN97: 0 | CP97: 88 | CQ97: P10 | CR97: 0 | CS97: 0 | CT97: 0 | CU97: 0 | CV97: 0 | CW97: 0 | CX97: 0 | CY97: 0 | CZ97: 0 | DA97: 0 | DB97: 0 | DC97: 0 | DD97: 0
A98: 87 | B98: AVG | AG98: AVG | AH98: 0 | AI98: 0 | AJ98: 0 | AK98: 0 | AL98: 0 | AM98: 0 | AN98: 0 | AO98: 0 | AP98: 0 | AQ98: 0 | AR98: 0 | AS98: 0 | AT98: 0 | AU98: 0 | AV98: 0 | AW98: 0 | AX98: 0 | AY98: 0 | AZ98: 0 | BA98: 0 | BB98: 0 | BC98: 0 | BD98: 0 | BE98: 0 | BF98: 0 | BG98: 0 | BH98: 0 | BI98: 0 | BL98: AVG | BM98: 0 | BN98: 0 | BO98: 0 | BP98: 0 | BQ98: 0 | BR98: 0 | BS98: 0 | BT98: 0 | BU98: 0 | BV98: 0 | BW98: 0 | BX98: 0 | BY98: 0 | BZ98: 0 | CA98: 0 | CB98: 0 | CC98: 0 | CD98: 0 | CE98: 0 | CF98: 0 | CG98: 0 | CH98: 0 | CI98: 0 | CJ98: 0 | CK98: 0 | CL98: 0 | CM98: 0 | CN98: 0 | CP98: 89 | CQ98: AVG | CR98: 0 | CS98: 0 | CT98: 0 | CU98: 0 | CV98: 0 | CW98: 0 | CX98: 0 | CY98: 0 | CZ98: 0 | DA98: 0 | DB98: 0 | DC98: 0 | DD98: 0
A99: 88 | B99: N | AG99: N | AH99: 0 | AI99: 0 | AJ99: 0 | AK99: 0 | AL99: 0 | AM99: 0 | AN99: 0 | AO99: 0 | AP99: 0 | AQ99: 0 | AR99: 0 | AS99: 0 | AT99: 0 | AU99: 0 | AV99: 0 | AW99: 0 | AX99: 0 | AY99: 0 | AZ99: 0 | BA99: 0 | BB99: 0 | BC99: 0 | BD99: 0 | BE99: 0 | BF99: 0 | BG99: 0 | BH99: 0 | BI99: 0 | BL99: N | BM99: 0 | BN99: 0 | BO99: 0 | BP99: 0 | BQ99: 0 | BR99: 0 | BS99: 0 | BT99: 0 | BU99: 0 | BV99: 0 | BW99: 0 | BX99: 0 | BY99: 0 | BZ99: 0 | CA99: 0 | CB99: 0 | CC99: 0 | CD99: 0 | CE99: 0 | CF99: 0 | CG99: 0 | CH99: 0 | CI99: 0 | CJ99: 0 | CK99: 0 | CL99: 0 | CM99: 0 | CN99: 0 | CP99: 90 | CQ99: N | CR99: 0 | CS99: 0 | CT99: 0 | CU99: 0 | CV99: 0 | CW99: 0 | CX99: 0 | CY99: 0 | CZ99: 0 | DA99: 0 | DB99: 0 | DC99: 0 | DD99: 0
A100: 89 | B100: TAR_T | AG100: TAR_T | AH100: 0 | AI100: 0 | AJ100: 0 | AK100: 0 | AL100: 0 | AM100: 0 | AN100: 0 | AO100: 0 | AP100: 0 | AQ100: 0 | AR100: 0 | AS100: 0 | AT100: 0 | AU100: 0 | AV100: 0 | AW100: 0 | AX100: 0 | AY100: 0 | AZ100: 0 | BA100: 0 | BB100: 0 | BC100: 0 | BD100: 0 | BE100: 0 | BF100: 0 | BG100: 0 | BH100: 0 | BI100: 0 | BL100: TAR_T | BM100: 0 | BN100: 0 | BO100: 0 | BP100: 0 | BQ100: 0 | BR100: 0 | BS100: 0 | BT100: 0 | BU100: 0 | BV100: 0 | BW100: 0 | BX100: 0 | BY100: 0 | BZ100: 0 | CA100: 0 | CB100: 0 | CC100: 0 | CD100: 0 | CE100: 0 | CF100: 0 | CG100: 0 | CH100: 0 | CI100: 0 | CJ100: 0 | CK100: 0 | CL100: 0 | CM100: 0 | CN100: 0 | CP100: 91 | CQ100: TAR_T | CR100: 0 | CS100: 0 | CT100: 0 | CU100: 0 | CV100: 0 | CW100: 0 | CX100: 0 | CY100: 0 | CZ100: 0 | DA100: 0 | DB100: 0 | DC100: 0 | DD100: 0
A101: 90 | B101: P90 | AG101: P90 | AH101: 0 | AI101: 0 | AJ101: 0 | AK101: 0 | AL101: 0 | AM101: 0 | AN101: 0 | AO101: 0 | AP101: 0 | AQ101: 0 | AR101: 0 | AS101: 0 | AT101: 0 | AU101: 0 | AV101: 0 | AW101: 0 | AX101: 0 | AY101: 0 | AZ101: 0 | BA101: 0 | BB101: 0 | BC101: 0 | BD101: 0 | BE101: 0 | BF101: 0 | BG101: 0 | BH101: 0 | BI101: 0 | BL101: P90 | BM101: 0 | BN101: 0 | BO101: 0 | BP101: 0 | BQ101: 0 | BR101: 0 | BS101: 0 | BT101: 0 | BU101: 0 | BV101: 0 | BW101: 0 | BX101: 0 | BY101: 0 | BZ101: 0 | CA101: 0 | CB101: 0 | CC101: 0 | CD101: 0 | CE101: 0 | CF101: 0 | CG101: 0 | CH101: 0 | CI101: 0 | CJ101: 0 | CK101: 0 | CL101: 0 | CM101: 0 | CN101: 0 | CP101: 92 | CQ101: P90 | CR101: 0 | CS101: 0 | CT101: 0 | CU101: 0 | CV101: 0 | CW101: 0 | CX101: 0 | CY101: 0 | CZ101: 0 | DA101: 0 | DB101: 0 | DC101: 0 | DD101: 0
A102: 91 | B102: P75 | AG102: P75 | AH102: 0 | AI102: 0 | AJ102: 0 | AK102: 0 | AL102: 0 | AM102: 0 | AN102: 0 | AO102: 0 | AP102: 0 | AQ102: 0 | AR102: 0 | AS102: 0 | AT102: 0 | AU102: 0 | AV102: 0 | AW102: 0 | AX102: 0 | AY102: 0 | AZ102: 0 | BA102: 0 | BB102: 0 | BC102: 0 | BD102: 0 | BE102: 0 | BF102: 0 | BG102: 0 | BH102: 0 | BI102: 0 | BL102: P75 | BM102: 0 | BN102: 0 | BO102: 0 | BP102: 0 | BQ102: 0 | BR102: 0 | BS102: 0 | BT102: 0 | BU102: 0 | BV102: 0 | BW102: 0 | BX102: 0 | BY102: 0 | BZ102: 0 | CA102: 0 | CB102: 0 | CC102: 0 | CD102: 0 | CE102: 0 | CF102: 0 | CG102: 0 | CH102: 0 | CI102: 0 | CJ102: 0 | CK102: 0 | CL102: 0 | CM102: 0 | CN102: 0 | CP102: 93 | CQ102: P75 | CR102: 0 | CS102: 0 | CT102: 0 | CU102: 0 | CV102: 0 | CW102: 0 | CX102: 0 | CY102: 0 | CZ102: 0 | DA102: 0 | DB102: 0 | DC102: 0 | DD102: 0
A103: 92 | B103: P50 | AG103: P50 | AH103: 0 | AI103: 0 | AJ103: 0 | AK103: 0 | AL103: 0 | AM103: 0 | AN103: 0 | AO103: 0 | AP103: 0 | AQ103: 0 | AR103: 0 | AS103: 0 | AT103: 0 | AU103: 0 | AV103: 0 | AW103: 0 | AX103: 0 | AY103: 0 | AZ103: 0 | BA103: 0 | BB103: 0 | BC103: 0 | BD103: 0 | BE103: 0 | BF103: 0 | BG103: 0 | BH103: 0 | BI103: 0 | BL103: P50 | BM103: 0 | BN103: 0 | BO103: 0 | BP103: 0 | BQ103: 0 | BR103: 0 | BS103: 0 | BT103: 0 | BU103: 0 | BV103: 0 | BW103: 0 | BX103: 0 | BY103: 0 | BZ103: 0 | CA103: 0 | CB103: 0 | CC103: 0 | CD103: 0 | CE103: 0 | CF103: 0 | CG103: 0 | CH103: 0 | CI103: 0 | CJ103: 0 | CK103: 0 | CL103: 0 | CM103: 0 | CN103: 0 | CP103: 94 | CQ103: P50 | CR103: =ROUND((1+$CU$9)*(HLOOKUP(CR$10,$AH$9:$BI$180,$A103+3)*CR$10+HLOOKUP(CR$10,$BM$9:$CO$180,$A103+3)),$CX$9) -> 0 | CS103: 0 | CT103: 0 | CU103: 0 | CV103: 0 | CW103: 0 | CX103: 0 | CY103: 0 | CZ103: 0 | DA103: 0 | DB103: =ROUND((1+$CU$9)*(HLOOKUP(DB$10,$AH$9:$BI$180,$A103+3)*DB$10+HLOOKUP(DB$10,$BM$9:$CO$180,$A103+3)),$CX$9) -> 0 | DC103: 0 | DD103: 0
A104: 93 | B104: P25 | AG104: P25 | AH104: 0 | AI104: 0 | AJ104: 0 | AK104: 0 | AL104: 0 | AM104: 0 | AN104: 0 | AO104: 0 | AP104: 0 | AQ104: 0 | AR104: 0 | AS104: 0 | AT104: 0 | AU104: 0 | AV104: 0 | AW104: 0 | AX104: 0 | AY104: 0 | AZ104: 0 | BA104: 0 | BB104: 0 | BC104: 0 | BD104: 0 | BE104: 0 | BF104: 0 | BG104: 0 | BH104: 0 | BI104: 0 | BL104: P25 | BM104: 0 | BN104: 0 | BO104: 0 | BP104: 0 | BQ104: 0 | BR104: 0 | BS104: 0 | BT104: 0 | BU104: 0 | BV104: 0 | BW104: 0 | BX104: 0 | BY104: 0 | BZ104: 0 | CA104: 0 | CB104: 0 | CC104: 0 | CD104: 0 | CE104: 0 | CF104: 0 | CG104: 0 | CH104: 0 | CI104: 0 | CJ104: 0 | CK104: 0 | CL104: 0 | CM104: 0 | CN104: 0 | CP104: 95 | CQ104: P25 | CR104: 0 | CS104: 0 | CT104: 0 | CU104: 0 | CV104: 0 | CW104: 0 | CX104: 0 | CY104: 0 | CZ104: 0 | DA104: 0 | DB104: 0 | DC104: 0 | DD104: 0
A105: 94 | B105: P10 | AG105: P10 | AH105: 0 | AI105: 0 | AJ105: 0 | AK105: 0 | AL105: 0 | AM105: 0 | AN105: 0 | AO105: 0 | AP105: 0 | AQ105: 0 | AR105: 0 | AS105: 0 | AT105: 0 | AU105: 0 | AV105: 0 | AW105: 0 | AX105: 0 | AY105: 0 | AZ105: 0 | BA105: 0 | BB105: 0 | BC105: 0 | BD105: 0 | BE105: 0 | BF105: 0 | BG105: 0 | BH105: 0 | BI105: 0 | BL105: P10 | BM105: 0 | BN105: 0 | BO105: 0 | BP105: 0 | BQ105: 0 | BR105: 0 | BS105: 0 | BT105: 0 | BU105: 0 | BV105: 0 | BW105: 0 | BX105: 0 | BY105: 0 | BZ105: 0 | CA105: 0 | CB105: 0 | CC105: 0 | CD105: 0 | CE105: 0 | CF105: 0 | CG105: 0 | CH105: 0 | CI105: 0 | CJ105: 0 | CK105: 0 | CL105: 0 | CM105: 0 | CN105: 0 | CP105: 96 | CQ105: P10 | CR105: 0 | CS105: 0 | CT105: 0 | CU105: 0 | CV105: 0 | CW105: 0 | CX105: 0 | CY105: 0 | CZ105: 0 | DA105: 0 | DB105: 0 | DC105: 0 | DD105: 0
A106: 95 | B106: AVG | AG106: AVG | AH106: 0 | AI106: 0 | AJ106: 0 | AK106: 0 | AL106: 0 | AM106: 0 | AN106: 0 | AO106: 0 | AP106: 0 | AQ106: 0 | AR106: 0 | AS106: 0 | AT106: 0 | AU106: 0 | AV106: 0 | AW106: 0 | AX106: 0 | AY106: 0 | AZ106: 0 | BA106: 0 | BB106: 0 | BC106: 0 | BD106: 0 | BE106: 0 | BF106: 0 | BG106: 0 | BH106: 0 | BI106: 0 | BL106: AVG | BM106: 0 | BN106: 0 | BO106: 0 | BP106: 0 | BQ106: 0 | BR106: 0 | BS106: 0 | BT106: 0 | BU106: 0 | BV106: 0 | BW106: 0 | BX106: 0 | BY106: 0 | BZ106: 0 | CA106: 0 | CB106: 0 | CC106: 0 | CD106: 0 | CE106: 0 | CF106: 0 | CG106: 0 | CH106: 0 | CI106: 0 | CJ106: 0 | CK106: 0 | CL106: 0 | CM106: 0 | CN106: 0 | CP106: 97 | CQ106: AVG | CR106: 0 | CS106: 0 | CT106: 0 | CU106: 0 | CV106: 0 | CW106: 0 | CX106: 0 | CY106: 0 | CZ106: 0 | DA106: 0 | DB106: 0 | DC106: 0 | DD106: 0
A107: 96 | B107: N | AG107: N | AH107: 0 | AI107: 0 | AJ107: 0 | AK107: 0 | AL107: 0 | AM107: 0 | AN107: =(J107-I107)/(J$10-I$10) -> 0 | AO107: 0 | AP107: 0 | AQ107: 0 | AR107: 0 | AS107: 0 | AT107: 0 | AU107: 0 | AV107: 0 | AW107: 0 | AX107: 0 | AY107: 0 | AZ107: 0 | BA107: 0 | BB107: 0 | BC107: 0 | BD107: 0 | BE107: 0 | BF107: 0 | BG107: 0 | BH107: 0 | BI107: 0 | BL107: N | BM107: 0 | BN107: 0 | BO107: 0 | BP107: 0 | BQ107: 0 | BR107: 0 | BS107: 0 | BT107: 0 | BU107: 0 | BV107: 0 | BW107: 0 | BX107: 0 | BY107: 0 | BZ107: 0 | CA107: 0 | CB107: 0 | CC107: =T107-(AX107*T$10) -> 0 | CD107: 0 | CE107: 0 | CF107: 0 | CG107: 0 | CH107: 0 | CI107: 0 | CJ107: 0 | CK107: 0 | CL107: 0 | CM107: 0 | CN107: 0 | CP107: 98 | CQ107: N | CR107: 0 | CS107: 0 | CT107: 0 | CU107: 0 | CV107: 0 | CW107: 0 | CX107: 0 | CY107: 0 | CZ107: 0 | DA107: 0 | DB107: 0 | DC107: 0 | DD107: 0
A108: 97 | B108: TR_A | AG108: TR_A | AH108: 0 | AI108: 0 | AJ108: 0 | AK108: 0 | AL108: 0 | AM108: 0 | AN108: 0 | AO108: 0 | AP108: 0 | AQ108: 0 | AR108: 0 | AS108: 0 | AT108: 0 | AU108: 0 | AV108: 0 | AW108: 0 | AX108: 0 | AY108: 0 | AZ108: 0 | BA108: 0 | BB108: 0 | BC108: 0 | BD108: 0 | BE108: 0 | BF108: 0 | BG108: 0 | BH108: 0 | BI108: 0 | BL108: TR_A | BM108: 0 | BN108: 0 | BO108: 0 | BP108: 0 | BQ108: 0 | BR108: 0 | BS108: 0 | BT108: 0 | BU108: 0 | BV108: 0 | BW108: 0 | BX108: 0 | BY108: 0 | BZ108: 0 | CA108: 0 | CB108: 0 | CC108: 0 | CD108: 0 | CE108: 0 | CF108: 0 | CG108: 0 | CH108: 0 | CI108: 0 | CJ108: 0 | CK108: 0 | CL108: 0 | CM108: =AE108-(BI108*AE$10) -> 0 | CN108: 0 | CP108: 99 | CQ108: TR_A | CR108: 0 | CS108: 0 | CT108: 0 | CU108: 0 | CV108: 0 | CW108: 0 | CX108: 0 | CY108: 0 | CZ108: 0 | DA108: 0 | DB108: 0 | DC108: 0 | DD108: 0
A109: 98 | B109: P90 | AG109: P90 | AH109: 0 | AI109: 0 | AJ109: 0 | AK109: 0 | AL109: 0 | AM109: 0 | AN109: 0 | AO109: 0 | AP109: 0 | AQ109: 0 | AR109: 0 | AS109: 0 | AT109: 0 | AU109: 0 | AV109: 0 | AW109: 0 | AX109: 0 | AY109: 0 | AZ109: 0 | BA109: 0 | BB109: 0 | BC109: 0 | BD109: 0 | BE109: 0 | BF109: 0 | BG109: 0 | BH109: 0 | BI109: 0 | BL109: P90 | BM109: 0 | BN109: 0 | BO109: 0 | BP109: 0 | BQ109: 0 | BR109: 0 | BS109: 0 | BT109: 0 | BU109: 0 | BV109: 0 | BW109: 0 | BX109: 0 | BY109: 0 | BZ109: 0 | CA109: 0 | CB109: 0 | CC109: 0 | CD109: 0 | CE109: 0 | CF109: 0 | CG109: 0 | CH109: 0 | CI109: 0 | CJ109: 0 | CK109: 0 | CL109: 0 | CM109: 0 | CN109: 0 | CP109: 100 | CQ109: P90 | CR109: 0 | CS109: 0 | CT109: 0 | CU109: 0 | CV109: 0 | CW109: 0 | CX109: 0 | CY109: 0 | CZ109: 0 | DA109: 0 | DB109: 0 | DC109: 0 | DD109: 0
A110: 99 | B110: P75 | AG110: P75 | AH110: 0 | AI110: 0 | AJ110: 0 | AK110: 0 | AL110: 0 | AM110: 0 | AN110: 0 | AO110: 0 | AP110: 0 | AQ110: 0 | AR110: 0 | AS110: 0 | AT110: 0 | AU110: 0 | AV110: 0 | AW110: 0 | AX110: 0 | AY110: 0 | AZ110: 0 | BA110: 0 | BB110: 0 | BC110: 0 | BD110: 0 | BE110: 0 | BF110: 0 | BG110: 0 | BH110: 0 | BI110: 0 | BL110: P75 | BM110: 0 | BN110: 0 | BO110: 0 | BP110: 0 | BQ110: 0 | BR110: 0 | BS110: 0 | BT110: 0 | BU110: 0 | BV110: 0 | BW110: 0 | BX110: 0 | BY110: 0 | BZ110: 0 | CA110: 0 | CB110: 0 | CC110: 0 | CD110: 0 | CE110: 0 | CF110: 0 | CG110: 0 | CH110: 0 | CI110: 0 | CJ110: 0 | CK110: 0 | CL110: 0 | CM110: 0 | CN110: 0 | CP110: 101 | CQ110: P75 | CR110: 0 | CS110: 0 | CT110: 0 | CU110: 0 | CV110: 0 | CW110: 0 | CX110: 0 | CY110: 0 | CZ110: 0 | DA110: 0 | DB110: 0 | DC110: 0 | DD110: 0
A111: 100 | B111: P50 | AG111: P50 | AH111: 0 | AI111: 0 | AJ111: 0 | AK111: 0 | AL111: 0 | AM111: 0 | AN111: 0 | AO111: 0 | AP111: 0 | AQ111: 0 | AR111: 0 | AS111: 0 | AT111: 0 | AU111: 0 | AV111: 0 | AW111: 0 | AX111: 0 | AY111: 0 | AZ111: 0 | BA111: 0 | BB111: 0 | BC111: 0 | BD111: 0 | BE111: 0 | BF111: 0 | BG111: 0 | BH111: 0 | BI111: 0 | BL111: P50 | BM111: 0 | BN111: 0 | BO111: 0 | BP111: 0 | BQ111: 0 | BR111: 0 | BS111: 0 | BT111: 0 | BU111: 0 | BV111: 0 | BW111: 0 | BX111: 0 | BY111: 0 | BZ111: 0 | CA111: 0 | CB111: 0 | CC111: 0 | CD111: 0 | CE111: 0 | CF111: 0 | CG111: 0 | CH111: 0 | CI111: 0 | CJ111: 0 | CK111: 0 | CL111: 0 | CM111: 0 | CN111: 0 | CP111: 102 | CQ111: P50 | CR111: 0 | CS111: 0 | CT111: 0 | CU111: 0 | CV111: 0 | CW111: 0 | CX111: 0 | CY111: 0 | CZ111: 0 | DA111: 0 | DB111: 0 | DC111: 0 | DD111: 0
A112: 101 | B112: P25 | AG112: P25 | AH112: 0 | AI112: 0 | AJ112: 0 | AK112: 0 | AL112: 0 | AM112: 0 | AN112: 0 | AO112: 0 | AP112: 0 | AQ112: 0 | AR112: 0 | AS112: 0 | AT112: 0 | AU112: 0 | AV112: 0 | AW112: 0 | AX112: 0 | AY112: 0 | AZ112: 0 | BA112: 0 | BB112: 0 | BC112: 0 | BD112: 0 | BE112: 0 | BF112: 0 | BG112: 0 | BH112: 0 | BI112: 0 | BL112: P25 | BM112: 0 | BN112: 0 | BO112: 0 | BP112: 0 | BQ112: 0 | BR112: 0 | BS112: 0 | BT112: 0 | BU112: 0 | BV112: 0 | BW112: 0 | BX112: 0 | BY112: 0 | BZ112: 0 | CA112: 0 | CB112: 0 | CC112: 0 | CD112: 0 | CE112: 0 | CF112: 0 | CG112: 0 | CH112: 0 | CI112: 0 | CJ112: 0 | CK112: 0 | CL112: 0 | CM112: 0 | CN112: 0 | CP112: 103 | CQ112: P25 | CR112: 0 | CS112: 0 | CT112: 0 | CU112: 0 | CV112: 0 | CW112: 0 | CX112: 0 | CY112: 0 | CZ112: 0 | DA112: 0 | DB112: 0 | DC112: 0 | DD112: 0
A113: 102 | B113: P10 | AG113: P10 | AH113: 0 | AI113: 0 | AJ113: 0 | AK113: 0 | AL113: 0 | AM113: 0 | AN113: 0 | AO113: 0 | AP113: 0 | AQ113: 0 | AR113: 0 | AS113: 0 | AT113: 0 | AU113: 0 | AV113: 0 | AW113: 0 | AX113: 0 | AY113: 0 | AZ113: 0 | BA113: 0 | BB113: 0 | BC113: 0 | BD113: 0 | BE113: 0 | BF113: 0 | BG113: 0 | BH113: 0 | BI113: 0 | BL113: P10 | BM113: 0 | BN113: 0 | BO113: 0 | BP113: 0 | BQ113: 0 | BR113: 0 | BS113: 0 | BT113: 0 | BU113: 0 | BV113: 0 | BW113: 0 | BX113: 0 | BY113: 0 | BZ113: 0 | CA113: 0 | CB113: 0 | CC113: 0 | CD113: 0 | CE113: 0 | CF113: 0 | CG113: 0 | CH113: 0 | CI113: 0 | CJ113: 0 | CK113: 0 | CL113: 0 | CM113: 0 | CN113: 0 | CP113: 104 | CQ113: P10 | CR113: =ROUND((1+$CU$9)*(HLOOKUP(CR$10,$AH$9:$BI$180,$A113+3)*CR$10+HLOOKUP(CR$10,$BM$9:$CO$180,$A113+3)),$CX$9) -> 0 | CS113: 0 | CT113: 0 | CU113: 0 | CV113: 0 | CW113: 0 | CX113: 0 | CY113: 0 | CZ113: 0 | DA113: 0 | DB113: =ROUND((1+$CU$9)*(HLOOKUP(DB$10,$AH$9:$BI$180,$A113+3)*DB$10+HLOOKUP(DB$10,$BM$9:$CO$180,$A113+3)),$CX$9) -> 0 | DC113: 0 | DD113: 0
A114: 103 | B114: AVG | AG114: AVG | AH114: 0 | AI114: 0 | AJ114: 0 | AK114: 0 | AL114: 0 | AM114: 0 | AN114: 0 | AO114: 0 | AP114: 0 | AQ114: 0 | AR114: 0 | AS114: 0 | AT114: 0 | AU114: 0 | AV114: 0 | AW114: 0 | AX114: 0 | AY114: 0 | AZ114: 0 | BA114: 0 | BB114: 0 | BC114: 0 | BD114: 0 | BE114: 0 | BF114: 0 | BG114: 0 | BH114: 0 | BI114: 0 | BL114: AVG | BM114: 0 | BN114: 0 | BO114: 0 | BP114: 0 | BQ114: 0 | BR114: 0 | BS114: 0 | BT114: 0 | BU114: 0 | BV114: 0 | BW114: 0 | BX114: 0 | BY114: 0 | BZ114: 0 | CA114: 0 | CB114: 0 | CC114: 0 | CD114: 0 | CE114: 0 | CF114: 0 | CG114: 0 | CH114: 0 | CI114: 0 | CJ114: 0 | CK114: 0 | CL114: 0 | CM114: 0 | CN114: 0 | CP114: 105 | CQ114: AVG | CR114: 0 | CS114: 0 | CT114: 0 | CU114: 0 | CV114: 0 | CW114: 0 | CX114: 0 | CY114: 0 | CZ114: 0 | DA114: 0 | DB114: 0 | DC114: 0 | DD114: 0
A115: 104 | B115: N | AG115: N | AH115: 0 | AI115: 0 | AJ115: 0 | AK115: 0 | AL115: 0 | AM115: 0 | AN115: 0 | AO115: 0 | AP115: 0 | AQ115: 0 | AR115: 0 | AS115: 0 | AT115: 0 | AU115: 0 | AV115: 0 | AW115: 0 | AX115: 0 | AY115: 0 | AZ115: 0 | BA115: 0 | BB115: 0 | BC115: 0 | BD115: 0 | BE115: 0 | BF115: 0 | BG115: 0 | BH115: 0 | BI115: 0 | BL115: N | BM115: 0 | BN115: 0 | BO115: 0 | BP115: 0 | BQ115: 0 | BR115: 0 | BS115: 0 | BT115: 0 | BU115: 0 | BV115: 0 | BW115: 0 | BX115: 0 | BY115: 0 | BZ115: 0 | CA115: 0 | CB115: 0 | CC115: 0 | CD115: 0 | CE115: 0 | CF115: 0 | CG115: 0 | CH115: 0 | CI115: 0 | CJ115: 0 | CK115: 0 | CL115: 0 | CM115: 0 | CN115: 0 | CP115: 106 | CQ115: N | CR115: 0 | CS115: 0 | CT115: 0 | CU115: 0 | CV115: 0 | CW115: 0 | CX115: 0 | CY115: 0 | CZ115: 0 | DA115: 0 | DB115: 0 | DC115: 0 | DD115: 0
A116: 105 | B116: TR_T | AG116: TR_T | AH116: 0 | AI116: 0 | AJ116: 0 | AK116: 0 | AL116: 0 | AM116: 0 | AN116: 0 | AO116: 0 | AP116: 0 | AQ116: 0 | AR116: 0 | AS116: 0 | AT116: 0 | AU116: 0 | AV116: 0 | AW116: 0 | AX116: 0 | AY116: 0 | AZ116: 0 | BA116: 0 | BB116: 0 | BC116: 0 | BD116: 0 | BE116: 0 | BF116: 0 | BG116: 0 | BH116: 0 | BI116: 0 | BL116: TR_T | BM116: 0 | BN116: 0 | BO116: 0 | BP116: 0 | BQ116: 0 | BR116: 0 | BS116: 0 | BT116: 0 | BU116: 0 | BV116: 0 | BW116: 0 | BX116: 0 | BY116: 0 | BZ116: 0 | CA116: 0 | CB116: 0 | CC116: 0 | CD116: 0 | CE116: 0 | CF116: 0 | CG116: 0 | CH116: 0 | CI116: 0 | CJ116: 0 | CK116: 0 | CL116: 0 | CM116: 0 | CN116: 0 | CP116: 107 | CQ116: TR_T | CR116: 0 | CS116: 0 | CT116: 0 | CU116: 0 | CV116: 0 | CW116: 0 | CX116: 0 | CY116: 0 | CZ116: 0 | DA116: 0 | DB116: 0 | DC116: 0 | DD116: 0
A117: 106 | B117: P90 | AG117: =B117 -> P90 | AH117: 0 | AI117: 0 | AJ117: 0 | AK117: 0 | AL117: 0 | AM117: 0 | AN117: 0 | AO117: 0 | AP117: 0 | AQ117: 0 | AR117: 0 | AS117: 0 | AT117: 0 | AU117: 0 | AV117: 0 | AW117: 0 | AX117: 0 | AY117: 0 | AZ117: 0 | BA117: 0 | BB117: 0 | BC117: 0 | BD117: 0 | BE117: 0 | BF117: 0 | BG117: 0 | BH117: 0 | BI117: 0 | BL117: =B117 -> P90 | BM117: 0 | BN117: 0 | BO117: 0 | BP117: 0 | BQ117: 0 | BR117: 0 | BS117: 0 | BT117: 0 | BU117: 0 | BV117: 0 | BW117: 0 | BX117: 0 | BY117: 0 | BZ117: 0 | CA117: 0 | CB117: 0 | CC117: 0 | CD117: 0 | CE117: 0 | CF117: 0 | CG117: 0 | CH117: 0 | CI117: 0 | CJ117: 0 | CK117: 0 | CL117: 0 | CM117: 0 | CN117: 0 | CP117: 108 | CQ117: =B117 -> P90 | CR117: 0 | CS117: 0 | CT117: 0 | CU117: 0 | CV117: 0 | CW117: 0 | CX117: 0 | CY117: 0 | CZ117: 0 | DA117: 0 | DB117: 0 | DC117: 0 | DD117: 0
A118: 107 | B118: P75 | AG118: =B118 -> P75 | AH118: 0 | AI118: 0 | AJ118: 0 | AK118: 0 | AL118: 0 | AM118: 0 | AN118: 0 | AO118: 0 | AP118: 0 | AQ118: 0 | AR118: 0 | AS118: 0 | AT118: 0 | AU118: 0 | AV118: 0 | AW118: 0 | AX118: 0 | AY118: 0 | AZ118: 0 | BA118: 0 | BB118: 0 | BC118: 0 | BD118: 0 | BE118: 0 | BF118: 0 | BG118: 0 | BH118: 0 | BI118: 0 | BL118: =B118 -> P75 | BM118: 0 | BN118: 0 | BO118: 0 | BP118: 0 | BQ118: 0 | BR118: 0 | BS118: 0 | BT118: 0 | BU118: 0 | BV118: 0 | BW118: 0 | BX118: 0 | BY118: 0 | BZ118: 0 | CA118: 0 | CB118: 0 | CC118: 0 | CD118: 0 | CE118: 0 | CF118: 0 | CG118: 0 | CH118: 0 | CI118: 0 | CJ118: 0 | CK118: 0 | CL118: 0 | CM118: 0 | CN118: 0 | CP118: 109 | CQ118: =B118 -> P75 | CR118: 0 | CS118: 0 | CT118: 0 | CU118: 0 | CV118: 0 | CW118: 0 | CX118: 0 | CY118: 0 | CZ118: 0 | DA118: 0 | DB118: 0 | DC118: 0 | DD118: 0
A119: 108 | B119: P50 | AG119: =B119 -> P50 | AH119: 0 | AI119: 0 | AJ119: 0 | AK119: 0 | AL119: 0 | AM119: 0 | AN119: 0 | AO119: 0 | AP119: 0 | AQ119: 0 | AR119: 0 | AS119: 0 | AT119: 0 | AU119: 0 | AV119: 0 | AW119: 0 | AX119: 0 | AY119: 0 | AZ119: 0 | BA119: 0 | BB119: 0 | BC119: 0 | BD119: 0 | BE119: 0 | BF119: 0 | BG119: 0 | BH119: 0 | BI119: 0 | BL119: =B119 -> P50 | BM119: 0 | BN119: 0 | BO119: 0 | BP119: 0 | BQ119: 0 | BR119: 0 | BS119: 0 | BT119: 0 | BU119: 0 | BV119: 0 | BW119: 0 | BX119: 0 | BY119: 0 | BZ119: 0 | CA119: 0 | CB119: 0 | CC119: 0 | CD119: 0 | CE119: 0 | CF119: 0 | CG119: 0 | CH119: 0 | CI119: 0 | CJ119: 0 | CK119: 0 | CL119: 0 | CM119: 0 | CN119: 0 | CP119: 110 | CQ119: =B119 -> P50 | CR119: 0 | CS119: 0 | CT119: 0 | CU119: 0 | CV119: 0 | CW119: 0 | CX119: 0 | CY119: 0 | CZ119: 0 | DA119: 0 | DB119: 0 | DC119: 0 | DD119: 0
A120: 109 | B120: P25 | AG120: =B120 -> P25 | AH120: 0 | AI120: 0 | AJ120: 0 | AK120: 0 | AL120: 0 | AM120: 0 | AN120: 0 | AO120: 0 | AP120: 0 | AQ120: 0 | AR120: 0 | AS120: 0 | AT120: 0 | AU120: 0 | AV120: 0 | AW120: 0 | AX120: 0 | AY120: 0 | AZ120: 0 | BA120: 0 | BB120: 0 | BC120: 0 | BD120: 0 | BE120: 0 | BF120: 0 | BG120: 0 | BH120: 0 | BI120: 0 | BL120: =B120 -> P25 | BM120: 0 | BN120: 0 | BO120: 0 | BP120: 0 | BQ120: 0 | BR120: 0 | BS120: 0 | BT120: 0 | BU120: 0 | BV120: 0 | BW120: 0 | BX120: 0 | BY120: 0 | BZ120: 0 | CA120: 0 | CB120: 0 | CC120: 0 | CD120: 0 | CE120: 0 | CF120: 0 | CG120: 0 | CH120: 0 | CI120: 0 | CJ120: 0 | CK120: 0 | CL120: 0 | CM120: 0 | CN120: 0 | CP120: 111 | CQ120: =B120 -> P25 | CR120: 0 | CS120: 0 | CT120: 0 | CU120: 0 | CV120: 0 | CW120: 0 | CX120: 0 | CY120: 0 | CZ120: 0 | DA120: 0 | DB120: 0 | DC120: 0 | DD120: 0
A121: 110 | B121: P10 | AG121: =B121 -> P10 | AH121: 0 | AI121: 0 | AJ121: 0 | AK121: 0 | AL121: 0 | AM121: 0 | AN121: 0 | AO121: 0 | AP121: 0 | AQ121: 0 | AR121: 0 | AS121: 0 | AT121: 0 | AU121: 0 | AV121: 0 | AW121: 0 | AX121: 0 | AY121: 0 | AZ121: 0 | BA121: 0 | BB121: 0 | BC121: 0 | BD121: 0 | BE121: 0 | BF121: 0 | BG121: 0 | BH121: 0 | BI121: 0 | BL121: =B121 -> P10 | BM121: 0 | BN121: 0 | BO121: 0 | BP121: 0 | BQ121: 0 | BR121: =I121-(AM121*I$10) -> 0 | BS121: 0 | BT121: 0 | BU121: 0 | BV121: 0 | BW121: 0 | BX121: 0 | BY121: 0 | BZ121: 0 | CA121: 0 | CB121: 0 | CC121: 0 | CD121: 0 | CE121: 0 | CF121: 0 | CG121: 0 | CH121: 0 | CI121: 0 | CJ121: 0 | CK121: 0 | CL121: 0 | CM121: 0 | CN121: 0 | CP121: 112 | CQ121: =B121 -> P10 | CR121: 0 | CS121: 0 | CT121: 0 | CU121: 0 | CV121: 0 | CW121: 0 | CX121: 0 | CY121: 0 | CZ121: 0 | DA121: 0 | DB121: 0 | DC121: 0 | DD121: 0
A122: 111 | B122: AVG | AG122: AVG | AH122: 0 | AI122: 0 | AJ122: 0 | AK122: 0 | AL122: 0 | AM122: 0 | AN122: 0 | AO122: 0 | AP122: 0 | AQ122: 0 | AR122: 0 | AS122: 0 | AT122: 0 | AU122: 0 | AV122: 0 | AW122: 0 | AX122: 0 | AY122: 0 | AZ122: 0 | BA122: 0 | BB122: 0 | BC122: 0 | BD122: 0 | BE122: 0 | BF122: 0 | BG122: 0 | BH122: 0 | BI122: 0 | BL122: AVG | BM122: 0 | BN122: 0 | BO122: 0 | BP122: 0 | BQ122: 0 | BR122: 0 | BS122: 0 | BT122: 0 | BU122: 0 | BV122: 0 | BW122: 0 | BX122: 0 | BY122: 0 | BZ122: 0 | CA122: 0 | CB122: 0 | CC122: 0 | CD122: 0 | CE122: 0 | CF122: 0 | CG122: 0 | CH122: 0 | CI122: 0 | CJ122: 0 | CK122: 0 | CL122: 0 | CM122: 0 | CN122: 0 | CP122: 113 | CQ122: AVG | CR122: 0 | CS122: 0 | CT122: 0 | CU122: 0 | CV122: 0 | CW122: 0 | CX122: 0 | CY122: 0 | CZ122: 0 | DA122: 0 | DB122: 0 | DC122: 0 | DD122: 0
A123: 112 | B123: N | AG123: N | AH123: =(D123-C123)/(D$10-C$10) -> 0 | AI123: 0 | AJ123: 0 | AK123: 0 | AL123: 0 | AM123: 0 | AN123: 0 | AO123: 0 | AP123: 0 | AQ123: 0 | AR123: 0 | AS123: 0 | AT123: 0 | AU123: 0 | AV123: 0 | AW123: 0 | AX123: 0 | AY123: 0 | AZ123: 0 | BA123: 0 | BB123: 0 | BC123: 0 | BD123: 0 | BE123: 0 | BF123: 0 | BG123: 0 | BH123: 0 | BI123: 0 | BL123: N | BM123: 0 | BN123: 0 | BO123: 0 | BP123: 0 | BQ123: 0 | BR123: 0 | BS123: 0 | BT123: 0 | BU123: 0 | BV123: 0 | BW123: 0 | BX123: 0 | BY123: 0 | BZ123: 0 | CA123: 0 | CB123: 0 | CC123: 0 | CD123: 0 | CE123: 0 | CF123: 0 | CG123: 0 | CH123: 0 | CI123: 0 | CJ123: 0 | CK123: 0 | CL123: 0 | CM123: 0 | CN123: 0 | CP123: 114 | CQ123: N | CR123: =ROUND((1+$CU$9)*(HLOOKUP(CR$10,$AH$9:$BI$180,$A123+3)*CR$10+HLOOKUP(CR$10,$BM$9:$CO$180,$A123+3)),$CX$9) -> 0 | CS123: 0 | CT123: 0 | CU123: 0 | CV123: 0 | CW123: 0 | CX123: 0 | CY123: 0 | CZ123: 0 | DA123: 0 | DB123: =ROUND((1+$CU$9)*(HLOOKUP(DB$10,$AH$9:$BI$180,$A123+3)*DB$10+HLOOKUP(DB$10,$BM$9:$CO$180,$A123+3)),$CX$9) -> 0 | DC123: 0 | DD123: 0
A124: 113 | AG124: 0 | AH124: 0 | AI124: 0 | AJ124: 0 | AK124: 0 | AL124: 0 | AM124: 0 | AN124: 0 | AO124: 0 | AP124: 0 | AQ124: 0 | AR124: 0 | AS124: 0 | AT124: 0 | AU124: 0 | AV124: 0 | AW124: 0 | AX124: =(T124-S124)/(T$10-S$10) -> 0 | AY124: 0 | AZ124: 0 | BA124: 0 | BB124: 0 | BC124: 0 | BD124: 0 | BE124: 0 | BF124: 0 | BG124: 0 | BH124: 0 | BI124: 0 | BL124: 0 | BM124: 0 | BN124: 0 | BO124: 0 | BP124: 0 | BQ124: 0 | BR124: 0 | BS124: 0 | BT124: 0 | BU124: 0 | BV124: 0 | BW124: 0 | BX124: 0 | BY124: 0 | BZ124: 0 | CA124: 0 | CB124: 0 | CC124: 0 | CD124: 0 | CE124: 0 | CF124: 0 | CG124: 0 | CH124: 0 | CI124: 0 | CJ124: 0 | CK124: 0 | CL124: 0 | CM124: 0 | CN124: 0 | CP124: 115 | CQ124: 0 | CR124: 0 | CS124: 0 | CT124: 0 | CU124: 0 | CV124: 0 | CW124: 0 | CX124: 0 | CY124: 0 | CZ124: 0 | DA124: 0 | DB124: 0 | DC124: 0 | DD124: 0
A125: 114 | B125: P90 | AG125: P90 | AH125: 0 | AI125: 0 | AJ125: 0 | AK125: 0 | AL125: 0 | AM125: 0 | AN125: 0 | AO125: 0 | AP125: 0 | AQ125: 0 | AR125: 0 | AS125: 0 | AT125: 0 | AU125: 0 | AV125: 0 | AW125: 0 | AX125: 0 | AY125: 0 | AZ125: 0 | BA125: 0 | BB125: 0 | BC125: 0 | BD125: 0 | BE125: 0 | BF125: 0 | BG125: 0 | BH125: 0 | BI125: 0 | BL125: P90 | BM125: 0 | BN125: 0 | BO125: 0 | BP125: 0 | BQ125: 0 | BR125: 0 | BS125: 0 | BT125: 0 | BU125: 0 | BV125: 0 | BW125: 0 | BX125: 0 | BY125: 0 | BZ125: 0 | CA125: 0 | CB125: 0 | CC125: =T125-(AX125*T$10) -> 0 | CD125: 0 | CE125: 0 | CF125: 0 | CG125: 0 | CH125: 0 | CI125: 0 | CJ125: 0 | CK125: 0 | CL125: 0 | CM125: 0 | CN125: 0 | CP125: 116 | CQ125: P90 | CR125: 0 | CS125: 0 | CT125: 0 | CU125: 0 | CV125: 0 | CW125: 0 | CX125: 0 | CY125: 0 | CZ125: 0 | DA125: 0 | DB125: 0 | DC125: 0 | DD125: 0
A126: 115 | B126: P75 | AG126: P75 | AH126: 0 | AI126: 0 | AJ126: 0 | AK126: 0 | AL126: 0 | AM126: 0 | AN126: 0 | AO126: 0 | AP126: 0 | AQ126: 0 | AR126: 0 | AS126: 0 | AT126: 0 | AU126: 0 | AV126: 0 | AW126: 0 | AX126: 0 | AY126: 0 | AZ126: 0 | BA126: 0 | BB126: 0 | BC126: 0 | BD126: 0 | BE126: 0 | BF126: 0 | BG126: 0 | BH126: 0 | BI126: 0 | BL126: P75 | BM126: 0 | BN126: 0 | BO126: 0 | BP126: 0 | BQ126: 0 | BR126: 0 | BS126: 0 | BT126: 0 | BU126: 0 | BV126: 0 | BW126: 0 | BX126: 0 | BY126: 0 | BZ126: 0 | CA126: 0 | CB126: 0 | CC126: 0 | CD126: 0 | CE126: 0 | CF126: 0 | CG126: 0 | CH126: 0 | CI126: 0 | CJ126: 0 | CK126: 0 | CL126: 0 | CM126: 0 | CN126: 0 | CP126: 117 | CQ126: P75 | CR126: 0 | CS126: 0 | CT126: 0 | CU126: 0 | CV126: 0 | CW126: 0 | CX126: 0 | CY126: 0 | CZ126: 0 | DA126: 0 | DB126: 0 | DC126: 0 | DD126: 0
A127: 116 | B127: P50 | AG127: P50 | AH127: 0 | AI127: 0 | AJ127: 0 | AK127: 0 | AL127: 0 | AM127: 0 | AN127: 0 | AO127: 0 | AP127: 0 | AQ127: 0 | AR127: 0 | AS127: 0 | AT127: 0 | AU127: 0 | AV127: 0 | AW127: 0 | AX127: 0 | AY127: 0 | AZ127: 0 | BA127: 0 | BB127: 0 | BC127: 0 | BD127: 0 | BE127: 0 | BF127: 0 | BG127: 0 | BH127: 0 | BI127: 0 | BL127: P50 | BM127: 0 | BN127: 0 | BO127: 0 | BP127: 0 | BQ127: 0 | BR127: 0 | BS127: 0 | BT127: 0 | BU127: 0 | BV127: 0 | BW127: 0 | BX127: 0 | BY127: 0 | BZ127: 0 | CA127: 0 | CB127: 0 | CC127: 0 | CD127: 0 | CE127: 0 | CF127: 0 | CG127: 0 | CH127: 0 | CI127: 0 | CJ127: 0 | CK127: 0 | CL127: 0 | CM127: 0 | CN127: 0 | CP127: 118 | CQ127: P50 | CR127: 0 | CS127: 0 | CT127: 0 | CU127: 0 | CV127: 0 | CW127: 0 | CX127: 0 | CY127: 0 | CZ127: 0 | DA127: 0 | DB127: 0 | DC127: 0 | DD127: 0
A128: 117 | B128: P25 | AG128: P25 | AH128: 0 | AI128: 0 | AJ128: 0 | AK128: 0 | AL128: 0 | AM128: 0 | AN128: 0 | AO128: 0 | AP128: 0 | AQ128: 0 | AR128: 0 | AS128: 0 | AT128: 0 | AU128: 0 | AV128: 0 | AW128: 0 | AX128: 0 | AY128: 0 | AZ128: 0 | BA128: 0 | BB128: 0 | BC128: 0 | BD128: 0 | BE128: 0 | BF128: 0 | BG128: 0 | BH128: 0 | BI128: 0 | BL128: P25 | BM128: 0 | BN128: 0 | BO128: 0 | BP128: 0 | BQ128: 0 | BR128: 0 | BS128: 0 | BT128: 0 | BU128: 0 | BV128: 0 | BW128: 0 | BX128: 0 | BY128: 0 | BZ128: 0 | CA128: 0 | CB128: 0 | CC128: 0 | CD128: 0 | CE128: 0 | CF128: 0 | CG128: 0 | CH128: 0 | CI128: 0 | CJ128: 0 | CK128: 0 | CL128: 0 | CM128: 0 | CN128: 0 | CP128: 119 | CQ128: P25 | CR128: 0 | CS128: 0 | CT128: 0 | CU128: 0 | CV128: 0 | CW128: 0 | CX128: 0 | CY128: 0 | CZ128: 0 | DA128: 0 | DB128: 0 | DC128: 0 | DD128: 0
A129: 118 | B129: P10 | AG129: P10 | AH129: 0 | AI129: 0 | AJ129: 0 | AK129: 0 | AL129: 0 | AM129: 0 | AN129: 0 | AO129: 0 | AP129: 0 | AQ129: 0 | AR129: 0 | AS129: 0 | AT129: 0 | AU129: 0 | AV129: 0 | AW129: 0 | AX129: 0 | AY129: 0 | AZ129: 0 | BA129: 0 | BB129: 0 | BC129: 0 | BD129: 0 | BE129: 0 | BF129: 0 | BG129: 0 | BH129: 0 | BI129: 0 | BL129: P10 | BM129: 0 | BN129: 0 | BO129: 0 | BP129: 0 | BQ129: 0 | BR129: 0 | BS129: 0 | BT129: 0 | BU129: 0 | BV129: 0 | BW129: 0 | BX129: 0 | BY129: 0 | BZ129: 0 | CA129: 0 | CB129: 0 | CC129: 0 | CD129: 0 | CE129: 0 | CF129: 0 | CG129: 0 | CH129: 0 | CI129: 0 | CJ129: 0 | CK129: 0 | CL129: 0 | CM129: 0 | CN129: 0 | CP129: 120 | CQ129: P10 | CR129: 0 | CS129: 0 | CT129: 0 | CU129: 0 | CV129: 0 | CW129: 0 | CX129: 0 | CY129: 0 | CZ129: 0 | DA129: 0 | DB129: 0 | DC129: 0 | DD129: 0
A130: 119 | B130: AVG | AG130: AVG | AH130: 0 | AI130: 0 | AJ130: 0 | AK130: 0 | AL130: 0 | AM130: 0 | AN130: 0 | AO130: 0 | AP130: 0 | AQ130: 0 | AR130: 0 | AS130: 0 | AT130: 0 | AU130: 0 | AV130: 0 | AW130: 0 | AX130: 0 | AY130: 0 | AZ130: 0 | BA130: 0 | BB130: 0 | BC130: 0 | BD130: 0 | BE130: 0 | BF130: 0 | BG130: 0 | BH130: 0 | BI130: 0 | BL130: AVG | BM130: 0 | BN130: 0 | BO130: 0 | BP130: 0 | BQ130: 0 | BR130: 0 | BS130: 0 | BT130: 0 | BU130: 0 | BV130: 0 | BW130: 0 | BX130: 0 | BY130: 0 | BZ130: 0 | CA130: 0 | CB130: 0 | CC130: 0 | CD130: 0 | CE130: 0 | CF130: 0 | CG130: 0 | CH130: 0 | CI130: 0 | CJ130: 0 | CK130: 0 | CL130: 0 | CM130: 0 | CN130: 0 | CP130: 121 | CQ130: AVG | CR130: 0 | CS130: 0 | CT130: 0 | CU130: 0 | CV130: 0 | CW130: 0 | CX130: 0 | CY130: 0 | CZ130: 0 | DA130: 0 | DB130: 0 | DC130: 0 | DD130: 0
A131: 120 | B131: N | AG131: N | AH131: 0 | AI131: 0 | AJ131: 0 | AK131: 0 | AL131: 0 | AM131: 0 | AN131: 0 | AO131: 0 | AP131: 0 | AQ131: 0 | AR131: 0 | AS131: 0 | AT131: 0 | AU131: 0 | AV131: 0 | AW131: 0 | AX131: 0 | AY131: 0 | AZ131: 0 | BA131: 0 | BB131: 0 | BC131: 0 | BD131: 0 | BE131: 0 | BF131: 0 | BG131: 0 | BH131: 0 | BI131: 0 | BL131: N | BM131: 0 | BN131: 0 | BO131: 0 | BP131: 0 | BQ131: 0 | BR131: 0 | BS131: 0 | BT131: 0 | BU131: 0 | BV131: 0 | BW131: 0 | BX131: 0 | BY131: 0 | BZ131: 0 | CA131: 0 | CB131: 0 | CC131: 0 | CD131: 0 | CE131: 0 | CF131: 0 | CG131: 0 | CH131: 0 | CI131: 0 | CJ131: 0 | CK131: 0 | CL131: 0 | CM131: 0 | CN131: 0 | CP131: 122 | CQ131: N | CR131: 0 | CS131: 0 | CT131: 0 | CU131: 0 | CV131: 0 | CW131: 0 | CX131: 0 | CY131: 0 | CZ131: 0 | DA131: 0 | DB131: 0 | DC131: 0 | DD131: 0
A132: 121 | B132: POL | AG132: POL | AH132: 0 | AI132: 0 | AJ132: 0 | AK132: 0 | AL132: 0 | AM132: 0 | AN132: 0 | AO132: =(Q132-J132)/(Q$10-J$10) -> 0 | AP132: =(R132-Q132)/(R$10-Q$10) -> 0 | AQ132: 0 | AR132: 0 | AS132: 0 | AT132: 0 | AU132: =(#REF!-#REF!)/(#REF!-#REF!) ->  | AV132: =(#REF!-#REF!)/(#REF!-#REF!) ->  | AW132: =(#REF!-#REF!)/(#REF!-#REF!) ->  | BL132: POL | BM132: 0 | BN132: 0 | BO132: 0 | BP132: 0 | BQ132: 0 | BR132: 0 | BS132: 0 | BT132: =Q132-(AO132*Q$10) -> 0 | BU132: 0 | BV132: 0 | BW132: 0 | BX132: 0 | BY132: 0 | BZ132: =#REF!-(AU132*#REF!) ->  | CA132: =#REF!-(AV132*#REF!) ->  | CB132: =#REF!-(AW132*#REF!) ->  | CC132: =#REF!-(#REF!*#REF!) ->  | CP132: =CP131+1 -> 123 | CQ132: POL | CR132: =ROUND((1+$CU$9)*(HLOOKUP(CR$10,$AH$9:$AW$180,$A132+3)*CR$10+HLOOKUP(CR$10,$BM$9:$CO$180,$A132+3)),$CX$9) -> 0 | CS132: 0 | CT132: 0 | CU132: 0 | CV132: 0 | CW132: 0 | CX132: 0 | CY132: 0 | DD132: =ROUND((1+$CU$9)*(HLOOKUP(DD$10,$AL$9:$AW$244,$A132+3)*DD$10+HLOOKUP(DD$10,$BQ$9:$CO$244,$A132+3)),$CX$9) -> 
A133: 122 | B133: P90 | AG133: P90 | AH133: 0 | AI133: 0 | AJ133: 0 | AK133: 0 | AL133: 0 | AM133: 0 | AN133: 0 | AO133: 0 | AP133: 0 | AQ133: 0 | AR133: 0 | AS133: 0 | AT133: 0 | AU133: =(#REF!-#REF!)/(#REF!-#REF!) ->  | AV133: =(#REF!-#REF!)/(#REF!-#REF!) ->  | AW133: =(#REF!-#REF!)/(#REF!-#REF!) ->  | BL133: P90 | BM133: 0 | BN133: 0 | BO133: 0 | BP133: 0 | BQ133: 0 | BR133: 0 | BS133: 0 | BT133: 0 | BU133: 0 | BV133: 0 | BW133: 0 | BX133: 0 | BY133: 0 | BZ133: =#REF!-(AU133*#REF!) ->  | CA133: =#REF!-(AV133*#REF!) ->  | CB133: =#REF!-(AW133*#REF!) ->  | CC133: =#REF!-(#REF!*#REF!) ->  | CP133: 124 | CQ133: P90 | CR133: =ROUND((1+$DA$9)*(HLOOKUP(CR$10,$AH$9:$AW$180,$A133+3)*CR$10+HLOOKUP(CR$10,$BM$9:$CO$180,$A133+3)),$CX$9) -> 0 | CS133: 0 | CT133: 0 | CU133: 0 | CV133: 0 | CW133: 0 | CX133: 0 | CY133: 0 | DD133: =ROUND((1+$DA$9)*(HLOOKUP(DD$10,$AL$9:$AW$244,$A133+3)*DD$10+HLOOKUP(DD$10,$BQ$9:$CO$244,$A133+3)),$CX$9) -> 
A134: 123 | B134: P75 | AG134: P75 | AH134: 0 | AI134: 0 | AJ134: 0 | AK134: 0 | AL134: 0 | AM134: 0 | AN134: 0 | AO134: 0 | AP134: 0 | AQ134: 0 | AR134: 0 | AS134: 0 | AT134: 0 | AU134: =(#REF!-#REF!)/(#REF!-#REF!) ->  | AV134: =(#REF!-#REF!)/(#REF!-#REF!) ->  | AW134: =(#REF!-#REF!)/(#REF!-#REF!) ->  | BL134: P75 | BM134: 0 | BN134: 0 | BO134: 0 | BP134: 0 | BQ134: 0 | BR134: 0 | BS134: 0 | BT134: 0 | BU134: 0 | BV134: 0 | BW134: 0 | BX134: 0 | BY134: 0 | BZ134: =#REF!-(AU134*#REF!) ->  | CA134: =#REF!-(AV134*#REF!) ->  | CB134: =#REF!-(AW134*#REF!) ->  | CC134: =#REF!-(#REF!*#REF!) ->  | CP134: 125 | CQ134: P75 | CR134: 0 | CS134: 0 | CT134: 0 | CU134: 0 | CV134: 0 | CW134: 0 | CX134: 0 | CY134: 0
A135: 124 | B135: P50 | AG135: P50 | AH135: 0 | AI135: 0 | AJ135: 0 | AK135: 0 | AL135: 0 | AM135: 0 | AN135: 0 | AO135: 0 | AP135: 0 | AQ135: 0 | AR135: 0 | AS135: 0 | AT135: 0 | AU135: =(#REF!-#REF!)/(#REF!-#REF!) ->  | AV135: =(#REF!-#REF!)/(#REF!-#REF!) ->  | AW135: =(#REF!-#REF!)/(#REF!-#REF!) ->  | BL135: P50 | BM135: 0 | BN135: 0 | BO135: 0 | BP135: 0 | BQ135: 0 | BR135: 0 | BS135: 0 | BT135: 0 | BU135: 0 | BV135: 0 | BW135: 0 | BX135: 0 | BY135: 0 | BZ135: =#REF!-(AU135*#REF!) ->  | CA135: =#REF!-(AV135*#REF!) ->  | CB135: =#REF!-(AW135*#REF!) ->  | CC135: =#REF!-(#REF!*#REF!) ->  | CP135: 126 | CQ135: P50 | CR135: 0 | CS135: 0 | CT135: 0 | CU135: 0 | CV135: 0 | CW135: 0 | CX135: 0 | CY135: 0
A136: 125 | B136: P25 | AG136: P25 | AH136: 0 | AI136: 0 | AJ136: 0 | AK136: 0 | AL136: 0 | AM136: 0 | AN136: 0 | AO136: 0 | AP136: 0 | AQ136: 0 | AR136: 0 | AS136: 0 | AT136: 0 | AU136: =(#REF!-#REF!)/(#REF!-#REF!) ->  | AV136: =(#REF!-#REF!)/(#REF!-#REF!) ->  | AW136: =(#REF!-#REF!)/(#REF!-#REF!) ->  | BL136: P25 | BM136: 0 | BN136: 0 | BO136: 0 | BP136: 0 | BQ136: 0 | BR136: 0 | BS136: 0 | BT136: 0 | BU136: 0 | BV136: 0 | BW136: 0 | BX136: 0 | BY136: 0 | BZ136: =#REF!-(AU136*#REF!) ->  | CA136: =#REF!-(AV136*#REF!) ->  | CB136: =#REF!-(AW136*#REF!) ->  | CC136: =#REF!-(#REF!*#REF!) ->  | CP136: =CP135+1 -> 127 | CQ136: P25 | CR136: 0 | CS136: 0 | CT136: 0 | CU136: 0 | CV136: 0 | CW136: 0 | CX136: 0 | CY136: 0
A137: 126 | B137: P10 | AG137: P10 | AH137: 0 | AI137: 0 | AJ137: 0 | AK137: 0 | AL137: 0 | AM137: 0 | AN137: 0 | AO137: 0 | AP137: 0 | AQ137: 0 | AR137: 0 | AS137: 0 | AT137: 0 | AU137: =(#REF!-#REF!)/(#REF!-#REF!) ->  | AV137: =(#REF!-#REF!)/(#REF!-#REF!) ->  | AW137: =(#REF!-#REF!)/(#REF!-#REF!) ->  | BL137: P10 | BM137: 0 | BN137: 0 | BO137: 0 | BP137: 0 | BQ137: 0 | BR137: 0 | BS137: 0 | BT137: 0 | BU137: 0 | BV137: 0 | BW137: 0 | BX137: 0 | BY137: 0 | BZ137: =#REF!-(AU137*#REF!) ->  | CA137: =#REF!-(AV137*#REF!) ->  | CB137: =#REF!-(AW137*#REF!) ->  | CC137: =#REF!-(#REF!*#REF!) ->  | CP137: 128 | CQ137: P10 | CR137: 0 | CS137: 0 | CT137: 0 | CU137: 0 | CV137: 0 | CW137: 0 | CX137: 0 | CY137: 0
A138: 127 | B138: AVG | AG138: AVG | AH138: 0 | AI138: 0 | AJ138: 0 | AK138: 0 | AL138: 0 | AM138: 0 | AN138: 0 | AO138: 0 | AP138: 0 | AQ138: 0 | AR138: 0 | AS138: 0 | AT138: 0 | AU138: =(#REF!-#REF!)/(#REF!-#REF!) ->  | AV138: =(#REF!-#REF!)/(#REF!-#REF!) ->  | AW138: =(#REF!-#REF!)/(#REF!-#REF!) ->  | BL138: AVG | BM138: 0 | BN138: 0 | BO138: 0 | BP138: 0 | BQ138: 0 | BR138: 0 | BS138: 0 | BT138: 0 | BU138: 0 | BV138: 0 | BW138: 0 | BX138: 0 | BY138: 0 | BZ138: =#REF!-(AU138*#REF!) ->  | CA138: =#REF!-(AV138*#REF!) ->  | CB138: =#REF!-(AW138*#REF!) ->  | CC138: =#REF!-(#REF!*#REF!) ->  | CP138: 129 | CQ138: AVG | CR138: 0 | CS138: 0 | CT138: 0 | CU138: 0 | CV138: 0 | CW138: 0 | CX138: 0 | CY138: 0
A139: 128 | B139: N | AG139: N | AH139: 0 | AI139: 0 | AJ139: 0 | AK139: 0 | AL139: 0 | AM139: 0 | AN139: 0 | AO139: 0 | AP139: 0 | AQ139: 0 | AR139: 0 | AS139: 0 | AT139: 0 | AU139: =(#REF!-#REF!)/(#REF!-#REF!) ->  | AV139: =(#REF!-#REF!)/(#REF!-#REF!) ->  | AW139: =(#REF!-#REF!)/(#REF!-#REF!) ->  | BL139: N | BM139: 0 | BN139: 0 | BO139: 0 | BP139: 0 | BQ139: 0 | BR139: 0 | BS139: 0 | BT139: 0 | BU139: 0 | BV139: 0 | BW139: 0 | BX139: 0 | BY139: 0 | BZ139: =#REF!-(AU139*#REF!) ->  | CA139: =#REF!-(AV139*#REF!) ->  | CB139: =#REF!-(AW139*#REF!) ->  | CC139: =#REF!-(#REF!*#REF!) ->  | CP139: 130 | CQ139: N | CR139: =HLOOKUP(CR$10,$AH$9:$AW$180,$A139+3)*CR$10+HLOOKUP(CR$10,$BM$9:$CO$180,$A139+3) -> 0 | CS139: 0 | CT139: 0 | CU139: 0 | CV139: 0 | CW139: 0 | CX139: 0 | CY139: 0 | DD139: =ROUND((1+$CU$9)*(HLOOKUP(DD$10,$AL$9:$AW$244,$A139+3)*DD$10+HLOOKUP(DD$10,$BQ$9:$CO$244,$A139+3)),$CX$9) -> 
A140: 129 | B140: TC_D | AG140: =B140 -> TC_D | AH140: 0 | AI140: 0 | AJ140: 0 | AK140: 0 | AL140: 0 | AM140: 0 | AN140: 0 | AO140: 0 | AP140: 0 | AQ140: 0 | AR140: 0 | AS140: 0 | AT140: 0 | AU140: =(#REF!-#REF!)/(#REF!-#REF!) ->  | AV140: =(#REF!-#REF!)/(#REF!-#REF!) ->  | AW140: =(#REF!-#REF!)/(#REF!-#REF!) ->  | BL140: =B140 -> TC_D | BM140: 0 | BN140: 0 | BO140: 0 | BP140: 0 | BQ140: 0 | BR140: 0 | BS140: 0 | BT140: 0 | BU140: 0 | BV140: 0 | BW140: 0 | BX140: 0 | BY140: 0 | BZ140: =#REF!-(AU140*#REF!) ->  | CA140: =#REF!-(AV140*#REF!) ->  | CB140: =#REF!-(AW140*#REF!) ->  | CC140: =#REF!-(#REF!*#REF!) ->  | CP140: 131 | CQ140: =B140 -> TC_D | CR140: =ROUND((1+$CU$9)*(HLOOKUP(CR$10,$AH$9:$AW$180,$A140+3)*CR$10+HLOOKUP(CR$10,$BM$9:$CO$180,$A140+3)),$CX$9) -> 0 | CS140: 0 | CT140: 0 | CU140: 0 | CV140: 0 | CW140: 0 | CX140: 0 | CY140: 0
A141: =A140+1 -> 130 | B141: P90 | AG141: P90 | AH141: 0 | AI141: 0 | AJ141: 0 | AK141: 0 | AL141: 0 | AM141: 0 | AN141: 0 | AO141: 0 | AP141: 0 | AQ141: 0 | AR141: 0 | AS141: 0 | AT141: 0 | AU141: =(#REF!-#REF!)/(#REF!-#REF!) ->  | AV141: =(#REF!-#REF!)/(#REF!-#REF!) ->  | AW141: =(#REF!-#REF!)/(#REF!-#REF!) ->  | BL141: P90 | BM141: 0 | BN141: 0 | BO141: 0 | BP141: 0 | BQ141: 0 | BR141: 0 | BS141: 0 | BT141: 0 | BU141: 0 | BV141: 0 | BW141: 0 | BX141: 0 | BY141: 0 | BZ141: =#REF!-(AU141*#REF!) ->  | CA141: =#REF!-(AV141*#REF!) ->  | CB141: =#REF!-(AW141*#REF!) ->  | CC141: =#REF!-(#REF!*#REF!) ->  | CP141: 132 | CQ141: P90 | CR141: =ROUND((1+$DA$9)*(HLOOKUP(CR$10,$AH$9:$AW$180,$A141+3)*CR$10+HLOOKUP(CR$10,$BM$9:$CO$180,$A141+3)),$CX$9) -> 0 | CS141: 0 | CT141: 0 | CU141: 0 | CV141: 0 | CW141: 0 | CX141: 0 | CY141: 0 | DD141: =ROUND((1+$DA$9)*(HLOOKUP(DD$10,$AL$9:$AW$244,$A141+3)*DD$10+HLOOKUP(DD$10,$BQ$9:$CO$244,$A141+3)),$CX$9) -> 
A142: 131 | B142: P75 | AG142: P75 | AH142: 0 | AI142: 0 | AJ142: 0 | AK142: 0 | AL142: 0 | AM142: 0 | AN142: 0 | AO142: 0 | AP142: 0 | AQ142: 0 | AR142: 0 | AS142: 0 | AT142: 0 | AU142: =(#REF!-#REF!)/(#REF!-#REF!) ->  | AV142: =(#REF!-#REF!)/(#REF!-#REF!) ->  | AW142: =(#REF!-#REF!)/(#REF!-#REF!) ->  | BL142: P75 | BM142: 0 | BN142: 0 | BO142: 0 | BP142: 0 | BQ142: 0 | BR142: 0 | BS142: 0 | BT142: 0 | BU142: 0 | BV142: 0 | BW142: 0 | BX142: 0 | BY142: 0 | BZ142: =#REF!-(AU142*#REF!) ->  | CA142: =#REF!-(AV142*#REF!) ->  | CB142: =#REF!-(AW142*#REF!) ->  | CC142: =#REF!-(#REF!*#REF!) ->  | CP142: 133 | CQ142: P75 | CR142: 0 | CS142: 0 | CT142: 0 | CU142: 0 | CV142: 0 | CW142: 0 | CX142: 0 | CY142: 0
A143: 132 | B143: P50 | AG143: P50 | AH143: 0 | AI143: 0 | AJ143: 0 | AK143: 0 | AL143: 0 | AM143: 0 | AN143: 0 | AO143: 0 | AP143: 0 | AQ143: 0 | AR143: 0 | AS143: 0 | AT143: 0 | AU143: =(#REF!-#REF!)/(#REF!-#REF!) ->  | AV143: =(#REF!-#REF!)/(#REF!-#REF!) ->  | AW143: =(#REF!-#REF!)/(#REF!-#REF!) ->  | BL143: P50 | BM143: 0 | BN143: 0 | BO143: 0 | BP143: 0 | BQ143: 0 | BR143: 0 | BS143: 0 | BT143: 0 | BU143: 0 | BV143: 0 | BW143: 0 | BX143: 0 | BY143: 0 | BZ143: =#REF!-(AU143*#REF!) ->  | CA143: =#REF!-(AV143*#REF!) ->  | CB143: =#REF!-(AW143*#REF!) ->  | CC143: =#REF!-(#REF!*#REF!) ->  | CP143: 134 | CQ143: P50 | CR143: 0 | CS143: 0 | CT143: 0 | CU143: 0 | CV143: 0 | CW143: 0 | CX143: 0 | CY143: 0
A144: 133 | B144: P25 | AG144: P25 | AH144: =(D144-C144)/(D$10-C$10) -> 0 | AI144: 0 | AJ144: 0 | AK144: 0 | AL144: 0 | AM144: 0 | AN144: 0 | AO144: 0 | AP144: 0 | AQ144: 0 | AR144: 0 | AS144: 0 | AT144: 0 | AU144: =(#REF!-#REF!)/(#REF!-#REF!) ->  | AV144: =(#REF!-#REF!)/(#REF!-#REF!) ->  | AW144: =(#REF!-#REF!)/(#REF!-#REF!) ->  | BL144: P25 | BM144: 0 | BN144: 0 | BO144: 0 | BP144: 0 | BQ144: 0 | BR144: 0 | BS144: 0 | BT144: 0 | BU144: 0 | BV144: 0 | BW144: 0 | BX144: 0 | BY144: 0 | BZ144: =#REF!-(AU144*#REF!) ->  | CA144: =#REF!-(AV144*#REF!) ->  | CB144: =#REF!-(AW144*#REF!) ->  | CC144: =#REF!-(#REF!*#REF!) ->  | CP144: 135 | CQ144: P25 | CR144: 0 | CS144: 0 | CT144: 0 | CU144: 0 | CV144: 0 | CW144: 0 | CX144: 0 | CY144: 0
A145: 134 | B145: P10 | AG145: P10 | AH145: 0 | AI145: 0 | AJ145: 0 | AK145: 0 | AL145: 0 | AM145: 0 | AN145: 0 | AO145: 0 | AP145: 0 | AQ145: 0 | AR145: 0 | AS145: 0 | AT145: 0 | AU145: =(#REF!-#REF!)/(#REF!-#REF!) ->  | AV145: =(#REF!-#REF!)/(#REF!-#REF!) ->  | AW145: =(#REF!-#REF!)/(#REF!-#REF!) ->  | BL145: P10 | BM145: =D145-(AH145*D$10) -> 0 | BN145: 0 | BO145: 0 | BP145: 0 | BQ145: 0 | BR145: 0 | BS145: 0 | BT145: 0 | BU145: 0 | BV145: 0 | BW145: 0 | BX145: 0 | BY145: 0 | BZ145: =#REF!-(AU145*#REF!) ->  | CA145: =#REF!-(AV145*#REF!) ->  | CB145: =#REF!-(AW145*#REF!) ->  | CC145: =#REF!-(#REF!*#REF!) ->  | CP145: 136 | CQ145: P10 | CR145: 0 | CS145: 0 | CT145: 0 | CU145: 0 | CV145: 0 | CW145: 0 | CX145: 0 | CY145: 0
A146: 135 | B146: AVG | AG146: AVG | AH146: 0 | AI146: 0 | AJ146: 0 | AK146: 0 | AL146: 0 | AM146: 0 | AN146: 0 | AO146: 0 | AP146: 0 | AQ146: 0 | AR146: 0 | AS146: 0 | AT146: 0 | AU146: =(#REF!-#REF!)/(#REF!-#REF!) ->  | AV146: =(#REF!-#REF!)/(#REF!-#REF!) ->  | AW146: =(#REF!-#REF!)/(#REF!-#REF!) ->  | BL146: AVG | BM146: 0 | BN146: 0 | BO146: 0 | BP146: 0 | BQ146: 0 | BR146: 0 | BS146: 0 | BT146: 0 | BU146: 0 | BV146: 0 | BW146: 0 | BX146: 0 | BY146: 0 | BZ146: =#REF!-(AU146*#REF!) ->  | CA146: =#REF!-(AV146*#REF!) ->  | CB146: =#REF!-(AW146*#REF!) ->  | CC146: =#REF!-(#REF!*#REF!) ->  | CP146: 137 | CQ146: AVG | CR146: 0 | CS146: 0 | CT146: 0 | CU146: 0 | CV146: 0 | CW146: 0 | CX146: 0 | CY146: 0
A147: 136 | B147: N | AG147: N | AH147: 0 | AI147: 0 | AJ147: 0 | AK147: 0 | AL147: 0 | AM147: 0 | AN147: 0 | AO147: 0 | AP147: 0 | AQ147: 0 | AR147: 0 | AS147: 0 | AT147: 0 | AU147: =(#REF!-#REF!)/(#REF!-#REF!) ->  | AV147: =(#REF!-#REF!)/(#REF!-#REF!) ->  | AW147: =(#REF!-#REF!)/(#REF!-#REF!) ->  | BL147: N | BM147: 0 | BN147: 0 | BO147: 0 | BP147: 0 | BQ147: 0 | BR147: 0 | BS147: 0 | BT147: 0 | BU147: 0 | BV147: 0 | BW147: 0 | BX147: 0 | BY147: 0 | BZ147: =#REF!-(AU147*#REF!) ->  | CA147: =#REF!-(AV147*#REF!) ->  | CB147: =#REF!-(AW147*#REF!) ->  | CC147: =#REF!-(#REF!*#REF!) ->  | CP147: 138 | CQ147: N | CR147: =HLOOKUP(CR$10,$AH$9:$AW$180,$A147+3)*CR$10+HLOOKUP(CR$10,$BM$9:$CO$180,$A147+3) -> 0 | CS147: 0 | CT147: 0 | CU147: 0 | CV147: 0 | CW147: 0 | CX147: 0 | CY147: 0 | DD147: =ROUND((1+$CU$9)*(HLOOKUP(DD$10,$AL$9:$AW$244,$A147+3)*DD$10+HLOOKUP(DD$10,$BQ$9:$CO$244,$A147+3)),$CX$9) -> 
A148: 137 | B148: TD_D | AG148: TD_D | AH148: 0 | AI148: 0 | AJ148: 0 | AK148: 0 | AL148: 0 | AM148: 0 | AN148: 0 | AO148: 0 | AP148: 0 | AQ148: 0 | AR148: 0 | AS148: 0 | AT148: 0 | AU148: =(#REF!-#REF!)/(#REF!-#REF!) ->  | AV148: =(#REF!-#REF!)/(#REF!-#REF!) ->  | AW148: =(#REF!-#REF!)/(#REF!-#REF!) ->  | BL148: TD_D | BM148: 0 | BN148: 0 | BO148: 0 | BP148: 0 | BQ148: 0 | BR148: 0 | BS148: 0 | BT148: 0 | BU148: 0 | BV148: 0 | BW148: 0 | BX148: 0 | BY148: 0 | BZ148: =#REF!-(AU148*#REF!) ->  | CA148: =#REF!-(AV148*#REF!) ->  | CB148: =#REF!-(AW148*#REF!) ->  | CC148: =#REF!-(#REF!*#REF!) ->  | CP148: 139 | CQ148: TD_D | CR148: =ROUND((1+$CU$9)*(HLOOKUP(CR$10,$AH$9:$AW$180,$A148+3)*CR$10+HLOOKUP(CR$10,$BM$9:$CO$180,$A148+3)),$CX$9) -> 0 | CS148: 0 | CT148: 0 | CU148: 0 | CV148: 0 | CW148: 0 | CX148: 0 | CY148: 0
A149: 138 | B149: P90 | AG149: P90 | AH149: 0 | AI149: 0 | AJ149: 0 | AK149: 0 | AL149: 0 | AM149: 0 | AN149: 0 | AO149: 0 | AP149: 0 | AQ149: 0 | AR149: 0 | AS149: 0 | AT149: 0 | AU149: =(#REF!-#REF!)/(#REF!-#REF!) ->  | AV149: =(#REF!-#REF!)/(#REF!-#REF!) ->  | AW149: =(#REF!-#REF!)/(#REF!-#REF!) ->  | BL149: P90 | BM149: 0 | BN149: 0 | BO149: 0 | BP149: 0 | BQ149: 0 | BR149: 0 | BS149: 0 | BT149: 0 | BU149: 0 | BV149: 0 | BW149: 0 | BX149: 0 | BY149: 0 | BZ149: =#REF!-(AU149*#REF!) ->  | CA149: =#REF!-(AV149*#REF!) ->  | CB149: =#REF!-(AW149*#REF!) ->  | CC149: =#REF!-(#REF!*#REF!) ->  | CP149: 140 | CQ149: P90 | CR149: =ROUND((1+$DA$9)*(HLOOKUP(CR$10,$AH$9:$AW$180,$A149+3)*CR$10+HLOOKUP(CR$10,$BM$9:$CO$180,$A149+3)),$CX$9) -> 0 | CS149: 0 | CT149: 0 | CU149: 0 | CV149: 0 | CW149: 0 | CX149: 0 | CY149: 0 | DD149: =ROUND((1+$DA$9)*(HLOOKUP(DD$10,$AL$9:$AW$244,$A149+3)*DD$10+HLOOKUP(DD$10,$BQ$9:$CO$244,$A149+3)),$CX$9) -> 
A150: 139 | B150: P75 | AG150: P75 | AH150: 0 | AI150: 0 | AJ150: 0 | AK150: 0 | AL150: 0 | AM150: 0 | AN150: 0 | AO150: 0 | AP150: 0 | AQ150: 0 | AR150: 0 | AS150: 0 | AT150: 0 | AU150: =(#REF!-#REF!)/(#REF!-#REF!) ->  | AV150: =(#REF!-#REF!)/(#REF!-#REF!) ->  | AW150: =(#REF!-#REF!)/(#REF!-#REF!) ->  | BL150: P75 | BM150: 0 | BN150: 0 | BO150: 0 | BP150: 0 | BQ150: 0 | BR150: 0 | BS150: 0 | BT150: 0 | BU150: 0 | BV150: 0 | BW150: 0 | BX150: 0 | BY150: 0 | BZ150: =#REF!-(AU150*#REF!) ->  | CA150: =#REF!-(AV150*#REF!) ->  | CB150: =#REF!-(AW150*#REF!) ->  | CC150: =#REF!-(#REF!*#REF!) ->  | CP150: 141 | CQ150: P75 | CR150: 0 | CS150: 0 | CT150: 0 | CU150: 0 | CV150: 0 | CW150: 0 | CX150: 0 | CY150: 0
A151: 140 | B151: P50 | AG151: P50 | AH151: 0 | AI151: 0 | AJ151: 0 | AK151: 0 | AL151: 0 | AM151: 0 | AN151: 0 | AO151: 0 | AP151: 0 | AQ151: 0 | AR151: 0 | AS151: 0 | AT151: 0 | AU151: =(#REF!-#REF!)/(#REF!-#REF!) ->  | AV151: =(#REF!-#REF!)/(#REF!-#REF!) ->  | AW151: =(#REF!-#REF!)/(#REF!-#REF!) ->  | BL151: P50 | BM151: 0 | BN151: 0 | BO151: 0 | BP151: 0 | BQ151: 0 | BR151: 0 | BS151: 0 | BT151: 0 | BU151: 0 | BV151: 0 | BW151: 0 | BX151: 0 | BY151: 0 | BZ151: =#REF!-(AU151*#REF!) ->  | CA151: =#REF!-(AV151*#REF!) ->  | CB151: =#REF!-(AW151*#REF!) ->  | CC151: =#REF!-(#REF!*#REF!) ->  | CP151: 142 | CQ151: P50 | CR151: 0 | CS151: 0 | CT151: 0 | CU151: 0 | CV151: 0 | CW151: 0 | CX151: 0 | CY151: 0
A152: 141 | B152: P25 | AG152: P25 | AH152: 0 | AI152: 0 | AJ152: 0 | AK152: 0 | AL152: 0 | AM152: 0 | AN152: 0 | AO152: 0 | AP152: 0 | AQ152: 0 | AR152: 0 | AS152: 0 | AT152: 0 | AU152: =(#REF!-#REF!)/(#REF!-#REF!) ->  | AV152: =(#REF!-#REF!)/(#REF!-#REF!) ->  | AW152: =(#REF!-#REF!)/(#REF!-#REF!) ->  | BL152: P25 | BM152: 0 | BN152: 0 | BO152: 0 | BP152: 0 | BQ152: 0 | BR152: 0 | BS152: 0 | BT152: 0 | BU152: 0 | BV152: 0 | BW152: 0 | BX152: 0 | BY152: 0 | BZ152: =#REF!-(AU152*#REF!) ->  | CA152: =#REF!-(AV152*#REF!) ->  | CB152: =#REF!-(AW152*#REF!) ->  | CC152: =#REF!-(#REF!*#REF!) ->  | CP152: 143 | CQ152: P25 | CR152: 0 | CS152: 0 | CT152: 0 | CU152: 0 | CV152: 0 | CW152: 0 | CX152: 0 | CY152: 0
A153: 142 | B153: P10 | AG153: P10 | AH153: 0 | AI153: 0 | AJ153: 0 | AK153: 0 | AL153: 0 | AM153: 0 | AN153: 0 | AO153: 0 | AP153: 0 | AQ153: 0 | AR153: 0 | AS153: 0 | AT153: 0 | AU153: =(#REF!-#REF!)/(#REF!-#REF!) ->  | AV153: =(#REF!-#REF!)/(#REF!-#REF!) ->  | AW153: =(#REF!-#REF!)/(#REF!-#REF!) ->  | BL153: P10 | BM153: 0 | BN153: 0 | BO153: 0 | BP153: 0 | BQ153: 0 | BR153: 0 | BS153: 0 | BT153: 0 | BU153: 0 | BV153: 0 | BW153: 0 | BX153: 0 | BY153: 0 | BZ153: =#REF!-(AU153*#REF!) ->  | CA153: =#REF!-(AV153*#REF!) ->  | CB153: =#REF!-(AW153*#REF!) ->  | CC153: =#REF!-(#REF!*#REF!) ->  | CP153: 144 | CQ153: P10 | CR153: 0 | CS153: 0 | CT153: 0 | CU153: 0 | CV153: 0 | CW153: 0 | CX153: 0 | CY153: 0
A154: 143 | B154: AVG | AG154: AVG | AH154: 0 | AI154: 0 | AJ154: 0 | AK154: 0 | AL154: 0 | AM154: 0 | AN154: 0 | AO154: 0 | AP154: 0 | AQ154: 0 | AR154: 0 | AS154: 0 | AT154: 0 | AU154: =(#REF!-#REF!)/(#REF!-#REF!) ->  | AV154: =(#REF!-#REF!)/(#REF!-#REF!) ->  | AW154: =(#REF!-#REF!)/(#REF!-#REF!) ->  | BL154: AVG | BM154: 0 | BN154: 0 | BO154: 0 | BP154: 0 | BQ154: 0 | BR154: 0 | BS154: 0 | BT154: 0 | BU154: 0 | BV154: 0 | BW154: 0 | BX154: 0 | BY154: 0 | BZ154: =#REF!-(AU154*#REF!) ->  | CA154: =#REF!-(AV154*#REF!) ->  | CB154: =#REF!-(AW154*#REF!) ->  | CC154: =#REF!-(#REF!*#REF!) ->  | CP154: 145 | CQ154: AVG | CR154: 0 | CS154: 0 | CT154: 0 | CU154: 0 | CV154: 0 | CW154: 0 | CX154: 0 | CY154: 0
A155: 144 | B155: N | AG155: N | AH155: 0 | AI155: 0 | AJ155: 0 | AK155: 0 | AL155: 0 | AM155: 0 | AN155: 0 | AO155: 0 | AP155: 0 | AQ155: 0 | AR155: 0 | AS155: 0 | AT155: 0 | AU155: =(#REF!-#REF!)/(#REF!-#REF!) ->  | AV155: =(#REF!-#REF!)/(#REF!-#REF!) ->  | AW155: =(#REF!-#REF!)/(#REF!-#REF!) ->  | BL155: N | BM155: 0 | BN155: 0 | BO155: 0 | BP155: 0 | BQ155: 0 | BR155: 0 | BS155: 0 | BT155: 0 | BU155: 0 | BV155: 0 | BW155: 0 | BX155: 0 | BY155: 0 | BZ155: =#REF!-(AU155*#REF!) ->  | CA155: =#REF!-(AV155*#REF!) ->  | CB155: =#REF!-(AW155*#REF!) ->  | CC155: =#REF!-(#REF!*#REF!) ->  | CP155: 146 | CQ155: N | CR155: =HLOOKUP(CR$10,$AH$9:$AW$180,$A155+3)*CR$10+HLOOKUP(CR$10,$BM$9:$CO$180,$A155+3) -> 0 | CS155: 0 | CT155: 0 | CU155: 0 | CV155: 0 | CW155: 0 | CX155: 0 | CY155: 0 | DD155: =ROUND((1+$CU$9)*(HLOOKUP(DD$10,$AL$9:$AW$244,$A155+3)*DD$10+HLOOKUP(DD$10,$BQ$9:$CO$244,$A155+3)),$CX$9) -> 
A156: 145 | B156: TP_D | AG156: TP_D | AH156: 0 | AI156: 0 | AJ156: 0 | AK156: 0 | AL156: 0 | AM156: 0 | AN156: 0 | AO156: 0 | AP156: 0 | AQ156: 0 | AR156: 0 | AS156: 0 | AT156: 0 | AU156: =(#REF!-#REF!)/(#REF!-#REF!) ->  | AV156: =(#REF!-#REF!)/(#REF!-#REF!) ->  | AW156: =(#REF!-#REF!)/(#REF!-#REF!) ->  | BL156: TP_D | BM156: 0 | BN156: 0 | BO156: 0 | BP156: 0 | BQ156: 0 | BR156: 0 | BS156: 0 | BT156: 0 | BU156: 0 | BV156: 0 | BW156: 0 | BX156: 0 | BY156: 0 | BZ156: =#REF!-(AU156*#REF!) ->  | CA156: =#REF!-(AV156*#REF!) ->  | CB156: =#REF!-(AW156*#REF!) ->  | CC156: =#REF!-(#REF!*#REF!) ->  | CP156: 147 | CQ156: TP_D | CR156: =ROUND((1+$CU$9)*(HLOOKUP(CR$10,$AH$9:$AW$180,$A156+3)*CR$10+HLOOKUP(CR$10,$BM$9:$CO$180,$A156+3)),$CX$9) -> 0 | CS156: 0 | CT156: 0 | CU156: 0 | CV156: 0 | CW156: 0 | CX156: 0 | CY156: 0
A157: 146 | B157: P90 | AG157: P90 | AH157: 0 | AI157: 0 | AJ157: 0 | AK157: 0 | AL157: 0 | AM157: 0 | AN157: 0 | AO157: 0 | AP157: 0 | AQ157: 0 | AR157: 0 | AS157: 0 | AT157: 0 | AU157: =(#REF!-#REF!)/(#REF!-#REF!) ->  | AV157: =(#REF!-#REF!)/(#REF!-#REF!) ->  | AW157: =(#REF!-#REF!)/(#REF!-#REF!) ->  | BL157: P90 | BM157: 0 | BN157: 0 | BO157: 0 | BP157: 0 | BQ157: 0 | BR157: 0 | BS157: 0 | BT157: 0 | BU157: 0 | BV157: 0 | BW157: 0 | BX157: 0 | BY157: 0 | BZ157: =#REF!-(AU157*#REF!) ->  | CA157: =#REF!-(AV157*#REF!) ->  | CB157: =#REF!-(AW157*#REF!) ->  | CC157: =#REF!-(#REF!*#REF!) ->  | CP157: 148 | CQ157: P90 | CR157: =ROUND((1+$DA$9)*(HLOOKUP(CR$10,$AH$9:$AW$180,$A157+3)*CR$10+HLOOKUP(CR$10,$BM$9:$CO$180,$A157+3)),$CX$9) -> 0 | CS157: 0 | CT157: 0 | CU157: 0 | CV157: 0 | CW157: 0 | CX157: 0 | CY157: 0 | DD157: =ROUND((1+$DA$9)*(HLOOKUP(DD$10,$AL$9:$AW$244,$A157+3)*DD$10+HLOOKUP(DD$10,$BQ$9:$CO$244,$A157+3)),$CX$9) -> 
A158: 147 | B158: P75 | AG158: P75 | AH158: 0 | AI158: 0 | AJ158: 0 | AK158: 0 | AL158: 0 | AM158: 0 | AN158: 0 | AO158: 0 | AP158: 0 | AQ158: 0 | AR158: 0 | AS158: 0 | AT158: 0 | AU158: =(#REF!-#REF!)/(#REF!-#REF!) ->  | AV158: =(#REF!-#REF!)/(#REF!-#REF!) ->  | AW158: =(#REF!-#REF!)/(#REF!-#REF!) ->  | BL158: P75 | BM158: 0 | BN158: 0 | BO158: 0 | BP158: 0 | BQ158: 0 | BR158: 0 | BS158: 0 | BT158: 0 | BU158: 0 | BV158: 0 | BW158: 0 | BX158: 0 | BY158: 0 | BZ158: =#REF!-(AU158*#REF!) ->  | CA158: =#REF!-(AV158*#REF!) ->  | CB158: =#REF!-(AW158*#REF!) ->  | CC158: =#REF!-(#REF!*#REF!) ->  | CP158: 149 | CQ158: P75 | CR158: 0 | CS158: 0 | CT158: 0 | CU158: 0 | CV158: 0 | CW158: 0 | CX158: 0 | CY158: 0
A159: 148 | B159: P50 | AG159: P50 | AH159: 0 | AI159: 0 | AJ159: 0 | AK159: 0 | AL159: 0 | AM159: 0 | AN159: 0 | AO159: 0 | AP159: 0 | AQ159: 0 | AR159: 0 | AS159: 0 | AT159: 0 | AU159: =(#REF!-#REF!)/(#REF!-#REF!) ->  | AV159: =(#REF!-#REF!)/(#REF!-#REF!) ->  | AW159: =(#REF!-#REF!)/(#REF!-#REF!) ->  | BL159: P50 | BM159: 0 | BN159: 0 | BO159: 0 | BP159: 0 | BQ159: 0 | BR159: 0 | BS159: 0 | BT159: 0 | BU159: 0 | BV159: 0 | BW159: 0 | BX159: 0 | BY159: 0 | BZ159: =#REF!-(AU159*#REF!) ->  | CA159: =#REF!-(AV159*#REF!) ->  | CB159: =#REF!-(AW159*#REF!) ->  | CC159: =#REF!-(#REF!*#REF!) ->  | CP159: 150 | CQ159: P50 | CR159: 0 | CS159: 0 | CT159: 0 | CU159: 0 | CV159: 0 | CW159: 0 | CX159: 0 | CY159: 0
A160: 149 | B160: P25 | AG160: P25 | AH160: 0 | AI160: 0 | AJ160: 0 | AK160: 0 | AL160: 0 | AM160: 0 | AN160: 0 | AO160: 0 | AP160: 0 | AQ160: 0 | AR160: 0 | AS160: 0 | AT160: 0 | AU160: =(#REF!-#REF!)/(#REF!-#REF!) ->  | AV160: =(#REF!-#REF!)/(#REF!-#REF!) ->  | AW160: =(#REF!-#REF!)/(#REF!-#REF!) ->  | BL160: P25 | BM160: 0 | BN160: 0 | BO160: 0 | BP160: 0 | BQ160: 0 | BR160: 0 | BS160: 0 | BT160: 0 | BU160: 0 | BV160: 0 | BW160: 0 | BX160: 0 | BY160: 0 | BZ160: =#REF!-(AU160*#REF!) ->  | CA160: =#REF!-(AV160*#REF!) ->  | CB160: =#REF!-(AW160*#REF!) ->  | CC160: =#REF!-(#REF!*#REF!) ->  | CP160: 151 | CQ160: P25 | CR160: 0 | CS160: 0 | CT160: 0 | CU160: 0 | CV160: 0 | CW160: 0 | CX160: 0 | CY160: 0
A161: 150 | B161: P10 | AG161: P10 | AH161: 0 | AI161: 0 | AJ161: 0 | AK161: 0 | AL161: 0 | AM161: 0 | AN161: 0 | AO161: 0 | AP161: 0 | AQ161: 0 | AR161: 0 | AS161: 0 | AT161: 0 | AU161: =(#REF!-#REF!)/(#REF!-#REF!) ->  | AV161: =(#REF!-#REF!)/(#REF!-#REF!) ->  | AW161: =(#REF!-#REF!)/(#REF!-#REF!) ->  | BL161: P10 | BM161: 0 | BN161: 0 | BO161: 0 | BP161: 0 | BQ161: 0 | BR161: 0 | BS161: 0 | BT161: 0 | BU161: 0 | BV161: 0 | BW161: 0 | BX161: 0 | BY161: 0 | BZ161: =#REF!-(AU161*#REF!) ->  | CA161: =#REF!-(AV161*#REF!) ->  | CB161: =#REF!-(AW161*#REF!) ->  | CC161: =#REF!-(#REF!*#REF!) ->  | CP161: 152 | CQ161: P10 | CR161: 0 | CS161: 0 | CT161: 0 | CU161: 0 | CV161: 0 | CW161: 0 | CX161: 0 | CY161: 0
A162: 151 | B162: AVG | AG162: AVG | AH162: 0 | AI162: 0 | AJ162: 0 | AK162: 0 | AL162: 0 | AM162: 0 | AN162: 0 | AO162: 0 | AP162: 0 | AQ162: 0 | AR162: 0 | AS162: 0 | AT162: 0 | AU162: =(#REF!-#REF!)/(#REF!-#REF!) ->  | AV162: =(#REF!-#REF!)/(#REF!-#REF!) ->  | AW162: =(#REF!-#REF!)/(#REF!-#REF!) ->  | BL162: AVG | BM162: 0 | BN162: 0 | BO162: 0 | BP162: 0 | BQ162: 0 | BR162: 0 | BS162: 0 | BT162: 0 | BU162: 0 | BV162: 0 | BW162: 0 | BX162: 0 | BY162: 0 | BZ162: =#REF!-(AU162*#REF!) ->  | CA162: =#REF!-(AV162*#REF!) ->  | CB162: =#REF!-(AW162*#REF!) ->  | CC162: =#REF!-(#REF!*#REF!) ->  | CP162: 153 | CQ162: AVG | CR162: 0 | CS162: 0 | CT162: 0 | CU162: 0 | CV162: 0 | CW162: 0 | CX162: 0 | CY162: 0
A163: 152 | B163: N | AG163: N | AH163: 0 | AI163: 0 | AJ163: 0 | AK163: 0 | AL163: 0 | AM163: 0 | AN163: 0 | AO163: 0 | AP163: 0 | AQ163: 0 | AR163: 0 | AS163: 0 | AT163: 0 | AU163: =(#REF!-#REF!)/(#REF!-#REF!) ->  | AV163: =(#REF!-#REF!)/(#REF!-#REF!) ->  | AW163: =(#REF!-#REF!)/(#REF!-#REF!) ->  | BL163: N | BM163: 0 | BN163: 0 | BO163: 0 | BP163: 0 | BQ163: 0 | BR163: 0 | BS163: 0 | BT163: 0 | BU163: 0 | BV163: 0 | BW163: 0 | BX163: 0 | BY163: 0 | BZ163: =#REF!-(AU163*#REF!) ->  | CA163: =#REF!-(AV163*#REF!) ->  | CB163: =#REF!-(AW163*#REF!) ->  | CC163: =#REF!-(#REF!*#REF!) ->  | CP163: 154 | CQ163: N | CR163: =HLOOKUP(CR$10,$AH$9:$AW$180,$A163+3)*CR$10+HLOOKUP(CR$10,$BM$9:$CO$180,$A163+3) -> 0 | CS163: 0 | CT163: 0 | CU163: 0 | CV163: 0 | CW163: 0 | CX163: 0 | CY163: 0 | DD163: =ROUND((1+$CU$9)*(HLOOKUP(DD$10,$AL$9:$AW$244,$A163+3)*DD$10+HLOOKUP(DD$10,$BQ$9:$CO$244,$A163+3)),$CX$9) -> 

Sheet Private_Interp (hidden)
B1: INTERPOLATION SPREADSHEET - PLEASE INPUT DATA IN RANGE B10 TO X56
B4: IESO
B5: 2015
B6: Total Direct
B7: INPUT | AG7: SLOPE | AL7: =" "&$B$4&" "&$B$5 ->  | BL7: INTERCEPT | BQ7: =" "&$B$4&" "&$B$5 ->  | CQ7: OUTPUT | CR7: =" "&$B$4&" "&$B$5 -> 
CQ8: Total Pts | CR8: =Public_Interp!CR8 -> 136 | CS8: =Public_Interp!CS8 -> 167 | CT8: =Public_Interp!CT8 -> 206 | CU8: =Public_Interp!CU8 -> 253 | CV8: =Public_Interp!CV8 -> 310 | CW8: =Public_Interp!CW8 -> 381 | CX8: =Public_Interp!CX8 -> 467 | CY8: =Public_Interp!CY8 -> 573 | CZ8: =Public_Interp!CZ8 -> 726 | DA8: =Public_Interp!DA8 -> 913 | DB8: =Public_Interp!DB8 -> 1119 | DC8: =Public_Interp!DC8 -> 1372 | DD8: =Public_Interp!DD8 -> 1681 | DE8: =Public_Interp!DE8 -> 0 | DF8: =Public_Interp!DF8 -> 0 | DG8: =Public_Interp!DG8 -> 0 | DH8: =Public_Interp!DH8 -> 0 | DI8: =Public_Interp!DI8 -> 0 | DJ8: =Public_Interp!DJ8 -> 0 | DK8: =Public_Interp!DK8 -> 0 | DL8: =Public_Interp!DL8 -> 0
AG9: S POINTS | AH9: =C10 -> 78 | AI9: =AH$10+1 -> 92 | AJ9: =AI$10+1 -> 106 | AK9: 125 | AL9: 148 | AM9: 177 | AN9: 210 | AO9: 249 | AP9: 292 | AQ9: 343 | AR9: 405 | AS9: 479 | AT9: 567 | AU9: 675 | AV9: 808 | AW9: 968 | AX9: 1159 | AY9: 1385 | AZ9: 1655 | BA9: 1971 | BB9: 2346 | BC9: 2786 | BD9: 3301 | BE9: 3916 | BF9: 4656 | BG9: 5541 | BH9: =BF$10+1 -> 5541 | BI9: =BH$10+1 -> 7741 | BJ9: =BI$10+1 -> 8981 | BL9: S POINTS | BM9: =C10 -> 78 | BN9: =BM$10+1 -> 92 | BO9: =BN$10+1 -> 106 | BP9: 125 | BQ9: 148 | BR9: 177 | BS9: 210 | BT9: 249 | BU9: 292 | BV9: 343 | BW9: 405 | BX9: 479 | BY9: 567 | BZ9: 675 | CA9: 808 | CB9: 968 | CC9: 1159 | CD9: 1385 | CE9: 1655 | CF9: 1971 | CG9: 2346 | CH9: 2786 | CI9: 3301 | CJ9: 3916 | CK9: 4656 | CL9: =CK$10+1 -> 5541 | CM9: 6591 | CN9: 8981 | CQ9: S-Correlation | CR9: 1 | CT9: Aged | CU9: 0 | CW9: Round | CX9: 2
C10: 78 | D10: 91 | E10: 105 | F10: 124 | G10: 147 | H10: 176 | I10: 209 | J10: 248 | K10: 291 | L10: 342 | M10: 404 | N10: 478 | O10: 566 | P10: 674 | Q10: 807 | R10: 967 | S10: 1158 | T10: 1384 | U10: 1654 | V10: 1970 | W10: 2345 | X10: 2785 | Y10: 3300 | Z10: 3915 | AA10: 4655 | AB10: 5540 | AC10: 6590 | AD10: 7740 | AE10: 8980 | AH10: =D$10 -> 91 | AI10: 105 | AJ10: 124 | AK10: 147 | AL10: 176 | AM10: 209 | AN10: 248 | AO10: 291 | AP10: 342 | AQ10: 404 | AR10: 478 | AS10: 566 | AT10: 674 | AU10: 807 | AV10: 967 | AW10: 1158 | AX10: 1384 | AY10: 1654 | AZ10: 1970 | BA10: 2345 | BB10: 2785 | BC10: 3300 | BD10: 3915 | BE10: 4655 | BF10: 5540 | BG10: 6590 | BH10: 7740 | BI10: 8980 | BM10: =D$10 -> 91 | BN10: 105 | BO10: 124 | BP10: 147 | BQ10: 176 | BR10: 209 | BS10: 248 | BT10: 291 | BU10: 342 | BV10: 404 | BW10: 478 | BX10: 566 | BY10: 674 | BZ10: 807 | CA10: 967 | CB10: 1158 | CC10: 1384 | CD10: 1654 | CE10: 1970 | CF10: 2345 | CG10: 2785 | CH10: 3300 | CI10: 3915 | CJ10: 4655 | CK10: 5540 | CL10: 6590 | CM10: =AE$10 -> 8980 | CP10: 1 | CQ10: S-Pts | CR10: =CR8 -> 136 | CS10: =CS8 -> 167 | CT10: 206 | CU10: 253 | CV10: 310 | CW10: 381 | CX10: 467 | CY10: 573 | CZ10: 726 | DA10: 913 | DB10: 1119 | DC10: 1372 | DD10: 1681 | DE10: 0 | DF10: 0 | DG10: 0 | DH10: 0 | DI10: 0 | DJ10: 0 | DK10: 0 | DL10: 0
CP11: =CP10+1 -> 2
A12: 1 | B12: POL | AG12: =B12 -> POL | AH12: =(D12-C12)/(D$10-C$10) -> 0 | AI12: 0 | AJ12: 0 | AK12: 0 | AL12: 0 | AM12: 0 | AN12: 0 | AO12: 0 | AP12: 0 | AQ12: 0 | AR12: 0 | AS12: 0 | AT12: 0 | AU12: 0 | AV12: 0 | AW12: 0 | AX12: =(T12-S12)/(T$10-S$10) -> 0 | AY12: 0 | AZ12: 0 | BA12: 0 | BL12: =B12 -> POL | BM12: =D12-(AH12*D$10) -> 0 | BN12: 0 | BO12: 0 | BP12: 0 | BQ12: 0 | BR12: 0 | BS12: 0 | BT12: 0 | BU12: 0 | BV12: 0 | BW12: 0 | BX12: 0 | BY12: 0 | BZ12: 0 | CA12: 0 | CB12: 0 | CC12: =T12-(AX12*T$10) -> 0 | CD12: 0 | CE12: 0 | CF12: 0 | CG12: 0 | CH12: 0 | CI12: 0 | CJ12: 0 | CK12: 0 | CL12: =AC12-(BH12*AC$10) -> 0 | CM12: =AE12-(BI12*AE$10) -> 0 | CN12: 0 | CP12: 3 | CQ12: =B12 -> POL | CR12: =ROUND((1+$CU$9)*(HLOOKUP(CR$10,$AH$9:$AW$180,$A12+3)*CR$10+HLOOKUP(CR$10,$BM$9:$CO$180,$A12+3)),$CX$9) -> 0 | CS12: 0 | CT12: 0 | CU12: 0 | CV12: 0 | CW12: 0 | CX12: 0 | CY12: 0 | CZ12: 0 | DA12: 0 | DB12: 0 | DC12: 0 | DD12: =ROUND((1+$CU$9)*(HLOOKUP(DD$10,$AL$9:$AW$180,$A12+3)*DD$10+HLOOKUP(DD$10,$BQ$9:$CO$180,$A12+3)),$CX$9) -> 0
A13: =A12+1 -> 2 | B13: P90 | H13: 53.6 | I13: 60 | J13: 75 | K13: 82.4 | L13: 96 | M13: 100.1 | N13: 118 | O13: 118.7 | P13: 144 | Q13: 165.6 | R13: 183.4 | AG13: P90 | AH13: 0 | AM13: 0.1939393939 | AN13: 0.3846153846 | AO13: 0.1720930233 | AP13: 0.2666666667 | AQ13: 0.06612903226 | AR13: 0.2418918919 | AS13: 0.007954545455 | AT13: 0.2342592593 | AU13: 0.162406015 | AV13: 0.11125 | BG13: 0 | BH13: 0 | BI13: 0 | BL13: P90 | BM13: 0 | BR13: 19.46666667 | BS13: -20.38461538 | BT13: 32.32093023 | BU13: 4.8 | BV13: 73.38387097 | BW13: 2.375675676 | BX13: 114.1977273 | BY13: -13.89074074 | BZ13: 34.53834586 | CA13: 75.82125 | CL13: 0 | CM13: 0 | CN13: 0 | CP13: 4 | CQ13: P90 | CR13: =ROUND((1+$CU$9)*(HLOOKUP(CR$10,$AH$9:$BI$180,$A13+3)*CR$10+HLOOKUP(CR$10,$BM$9:$CO$180,$A13+3)),$CX$9) ->  | CT13: 59.42 | CU13: 75.86 | CV13: 87.47 | CW13: 98.58 | CX13: 115.34 | CY13: 120.34 | CZ13: 152.45 | DA13: 177.39 | DB13: =ROUND((1+$CU$9)*(HLOOKUP(DB$10,$AH$9:$BI$180,$A13+3)*DB$10+HLOOKUP(DB$10,$BM$9:$CO$180,$A13+3)),$CX$9) -> 
A14: 3 | B14: P75 | F14: 39.2 | G14: 45.8 | H14: 47.1 | I14: 59 | J14: 65 | K14: 66 | L14: 80.3 | M14: 91.4 | N14: 99.4 | O14: 112.7 | P14: 133.1 | Q14: 140 | R14: 157.1 | S14: 192.6 | T14: 235 | U14: 271.2 | V14: 316.2 | W14: 389.3 | X14: 404 | Y14: 612.5 | Z14: 647.4 | AG14: P75 | AH14: 0 | AK14: 0.2869565217 | AL14: 0.04482758621 | AM14: 0.3606060606 | AN14: 0.1538461538 | AO14: 0.02325581395 | AP14: 0.2803921569 | AQ14: 0.1790322581 | AR14: 0.1081081081 | AS14: 0.1511363636 | AT14: 0.1888888889 | AU14: 0.05187969925 | AV14: 0.106875 | AW14: 0.1858638743 | AX14: 0.1876106195 | AY14: 0.1340740741 | AZ14: 0.1424050633 | BA14: 0.1949333333 | BB14: 0.03340909091 | BC14: 0.4048543689 | BD14: 0.05674796748 | BG14: 0 | BH14: 0 | BI14: 0 | BL14: P75 | BM14: 0 | BP14: 3.617391304 | BQ14: 39.21034483 | BR14: -16.36666667 | BS14: 26.84615385 | BT14: 59.23255814 | BU14: -15.59411765 | BV14: 19.07096774 | BW14: 47.72432432 | BX14: 27.15681818 | BY14: 5.788888889 | BZ14: 98.13308271 | CA14: 53.751875 | CB14: -22.63036649 | CC14: -24.65309735 | CD14: 49.44148148 | CE14: 35.66202532 | CF14: -67.81866667 | CG14: 310.9556818 | CH14: -723.5194175 | CI14: 425.2317073 | CL14: 0 | CM14: 0 | CN14: 0 | CP14: 5 | CQ14: P75 | CR14: 42.64 | CS14: 46.7 | CT14: 57.92 | CU14: 65.12 | CV14: 71.33 | CW14: 87.28 | CX14: 98.21 | CY14: 114.02 | CZ14: 135.8 | DA14: 151.33 | DB14: 185.35 | DC14: 232.75 | DD14: 275.04
A15: 4 | B15: P50 | E15: 29.1 | F15: 36.4 | G15: 37 | H15: 44 | I15: 48.6 | J15: 55 | K15: 58 | L15: 61.3 | M15: 75.3 | N15: 82.6 | O15: 95.5 | P15: 112 | Q15: 121 | R15: 138.9 | S15: 160.8 | T15: 201 | U15: 254.5 | V15: 266.8 | W15: 350 | X15: 350 | Y15: 500 | Z15: 531.3 | AG15: P50 | AH15: 0 | AI15: 2.078571429 | AJ15: 0.3842105263 | AK15: 0.02608695652 | AL15: 0.2413793103 | AM15: 0.1393939394 | AN15: 0.1641025641 | AO15: 0.06976744186 | AP15: 0.06470588235 | AQ15: 0.2258064516 | AR15: 0.09864864865 | AS15: 0.1465909091 | AT15: 0.1527777778 | AU15: 0.06766917293 | AV15: 0.111875 | AW15: 0.1146596859 | AX15: 0.1778761062 | AY15: 0.1981481481 | AZ15: 0.03892405063 | BA15: 0.2218666667 | BB15: 0 | BC15: 0.2912621359 | BD15: 0.05089430894 | BG15: 0 | BH15: 0 | BI15: 0 | BL15: P50 | BM15: 0 | BN15: -189.15 | BO15: -11.24210526 | BP15: 33.16521739 | BQ15: 1.517241379 | BR15: 19.46666667 | BS15: 14.3025641 | BT15: 37.69767442 | BU15: 39.17058824 | BV15: -15.92580645 | BW15: 35.44594595 | BX15: 12.52954545 | BY15: 9.027777778 | BZ15: 66.39097744 | CA15: 30.716875 | CB15: 28.02408377 | CC15: -45.18053097 | CD15: -73.23703704 | CE15: 190.1196203 | CF15: -170.2773333 | CG15: 350 | CH15: -461.1650485 | CI15: 332.0487805 | CL15: 0 | CM15: 0 | CN15: 0 | CP15: 6 | CQ15: P50 | CR15: 36.71 | CS15: 41.83 | CT15: 48.18 | CU15: 55.35 | CV15: 59.23 | CW15: 70.11 | CX15: 81.51 | CY15: 96.57 | CZ15: 115.52 | DA15: 132.86 | DB15: 156.33 | DC15: 198.87 | DD15: 255.55
A16: 5 | B16: P25 | F16: 32.7 | G16: 33.9 | H16: 36.7 | I16: 41.3 | J16: 44 | K16: 51.1 | L16: 54.1 | M16: 64.2 | N16: 73.2 | O16: 78.8 | P16: 91 | Q16: 111.7 | R16: 133.3 | S16: 144.8 | T16: 175 | U16: 225.2 | V16: 249.4 | W16: 305 | X16: 303.8 | Y16: 400 | Z16: 500 | AG16: P25 | AH16: 0 | AK16: 0.05217391304 | AL16: 0.09655172414 | AM16: 0.1393939394 | AN16: 0.06923076923 | AO16: 0.1651162791 | AP16: 0.05882352941 | AQ16: 0.1629032258 | AR16: 0.1216216216 | AS16: 0.06363636364 | AT16: 0.112962963 | AU16: 0.1556390977 | AV16: 0.135 | AW16: 0.06020942408 | AX16: 0.1336283186 | AY16: 0.1859259259 | AZ16: 0.07658227848 | BA16: 0.1482666667 | BB16: -0.002727272727 | BC16: 0.1867961165 | BD16: 0.162601626 | BG16: 0 | BH16: 0 | BI16: 0 | BL16: P25 | BM16: 0 | BP16: 26.23043478 | BQ16: 19.70689655 | BR16: 12.16666667 | BS16: 26.83076923 | BT16: 3.051162791 | BU16: 33.98235294 | BV16: -1.612903226 | BW16: 15.06486486 | BX16: 42.78181818 | BY16: 14.86296296 | BZ16: -13.90075188 | CA16: 2.755 | CB16: 75.07748691 | CC16: -9.94159292 | CD16: -82.32148148 | CE16: 98.53291139 | CF16: -42.68533333 | CG16: 311.3954545 | CH16: -216.4271845 | CI16: -136.5853659 | CL16: 0 | CM16: 0 | CN16: 0 | CP16: 7 | CQ16: P25 | CR16: 33.33 | CS16: 35.83 | CT16: 40.88 | CU16: 44.83 | CV16: 52.22 | CW16: 60.45 | CX16: 71.86 | CY16: 79.59 | CZ16: 99.09 | DA16: 126.01 | DB16: 142.45 | DC16: 173.4 | DD16: 227.27
A17: 6 | B17: P10 | H17: 34.1 | I17: 37.5 | J17: 39 | K17: 43.8 | L17: 48.9 | M17: 57.9 | N17: 64.1 | O17: 73.8 | P17: 79.2 | Q17: 103.1 | R17: 121.8 | AG17: P10 | AH17: 0 | AM17: 0.103030303 | AN17: 0.03846153846 | AO17: 0.111627907 | AP17: 0.1 | AQ17: 0.1451612903 | AR17: 0.08378378378 | AS17: 0.1102272727 | AT17: 0.05 | AU17: 0.1796992481 | AV17: 0.116875 | BG17: 0 | BH17: 0 | BI17: 0 | BL17: P10 | BM17: 0 | BR17: 15.96666667 | BS17: 29.46153846 | BT17: 11.31627907 | BU17: 14.7 | BV17: -0.7451612903 | BW17: 24.05135135 | BX17: 11.41136364 | BY17: 45.5 | BZ17: -41.91729323 | CA17: 8.781875 | CL17: 0 | CM17: 0 | CN17: 0 | CP17: 8 | CQ17: P10 | CT17: 37.19 | CU17: 39.56 | CV17: 45.7 | CW17: 54.56 | CX17: 63.18 | CY17: 74.15 | CZ17: 88.54 | DA17: 115.49
A18: 7 | B18: AVG | E18: 31.6 | F18: 44.1 | G18: 43.2 | H18: 46.3 | I18: 52.2 | J18: 55.5 | K18: 61.1 | L18: 67.9 | M18: 78.6 | N18: 86.5 | O18: 96.9 | P18: 112.9 | Q18: 129.6 | R18: 149.2 | S18: 170.5 | T18: 207.3 | U18: 252.2 | V18: 282.7 | W18: 351.2 | X18: 370.4 | Y18: 514.9 | Z18: 567.7 | AG18: AVG | AH18: 0 | AI18: 2.257142857 | AJ18: 0.6578947368 | AK18: -0.03913043478 | AL18: 0.1068965517 | AM18: 0.1787878788 | AN18: 0.08461538462 | AO18: 0.1302325581 | AP18: 0.1333333333 | AQ18: 0.1725806452 | AR18: 0.1067567568 | AS18: 0.1181818182 | AT18: 0.1481481481 | AU18: 0.1255639098 | AV18: 0.1225 | AW18: 0.1115183246 | AX18: 0.1628318584 | AY18: 0.1662962963 | AZ18: 0.09651898734 | BA18: 0.1826666667 | BB18: 0.04363636364 | BC18: 0.2805825243 | BD18: 0.08585365854 | BG18: 0 | BH18: 0 | BI18: 0 | BL18: AVG | BM18: 0 | BN18: -205.4 | BO18: -37.47894737 | BP18: 48.95217391 | BQ18: 27.4862069 | BR18: 14.83333333 | BS18: 34.51538462 | BT18: 23.20232558 | BU18: 22.3 | BV18: 8.877419355 | BW18: 35.47027027 | BX18: 30.00909091 | BY18: 13.04814815 | BZ18: 28.26992481 | CA18: 30.7425 | CB18: 41.3617801 | CC18: -18.05929204 | CD18: -22.85407407 | CE18: 92.55759494 | CF18: -77.15333333 | CG18: 248.8727273 | CH18: -411.0223301 | CI18: 231.5829268 | CL18: 0 | CM18: 0 | CN18: 0 | CP18: 9 | CQ18: AVG | CR18: 43.63 | CS18: 45.34 | CT18: 51.66 | CU18: 56.15 | CV18: 63.63 | CW18: 74.63 | CX18: 85.33 | CY18: 97.94 | CZ18: 119.43 | DA18: 142.59 | DB18: 166.15 | DC18: 205.35 | DD18: 254.81
A19: 8 | B19: N | E19: 4 | F19: 9 | G19: 10 | H19: 12 | I19: 12 | J19: 13 | K19: 13 | L19: 13 | M19: 13 | N19: 13 | O19: 13 | P19: 13 | Q19: 13 | R19: 13 | S19: 11 | T19: 10 | U19: 11 | V19: 10 | W19: 10 | X19: 9 | Y19: 9 | Z19: 9 | AG19: N | AH19: 0 | AI19: 0.2857142857 | AJ19: 0.2631578947 | AK19: 0.04347826087 | AL19: 0.06896551724 | AM19: 0 | AN19: 0.02564102564 | AO19: 0 | AP19: 0 | AQ19: 0 | AR19: 0 | AS19: 0 | AT19: 0 | AU19: 0 | AV19: 0 | AW19: -0.01047120419 | AX19: -0.004424778761 | AY19: 0.003703703704 | AZ19: -0.003164556962 | BA19: 0 | BB19: -0.002272727273 | BC19: 0 | BD19: 0 | BG19: 0 | BH19: 0 | BI19: 0 | BL19: N | BM19: 0 | BN19: -26 | BO19: -23.63157895 | BP19: 3.608695652 | BQ19: -0.1379310345 | BR19: 12 | BS19: 6.641025641 | BT19: 13 | BU19: 13 | BV19: 13 | BW19: 13 | BX19: 13 | BY19: 13 | BZ19: 13 | CA19: 13 | CB19: 23.12565445 | CC19: 16.12389381 | CD19: 4.874074074 | CE19: 16.23417722 | CF19: 10 | CG19: 15.32954545 | CH19: 9 | CI19: 9 | CL19: 0 | CM19: 0 | CN19: 0 | CP19: 10 | CQ19: N | CR19: 9.52 | CS19: 11.38 | CT19: 12 | CU19: 13 | CV19: 13 | CW19: 13 | CX19: 13 | CY19: 13 | CZ19: 13 | DA19: 13 | DB19: 11.41 | DC19: 10.05 | DD19: 10.91
A20: 9 | B20: ACT | AG20: ACT | AH20: 0 | AI20: 0 | AJ20: 0 | AK20: 0 | AL20: 0 | AM20: 0 | AN20: 0 | AO20: 0 | AP20: 0 | AQ20: 0 | AR20: 0 | AS20: 0 | AT20: 0 | AU20: 0 | AV20: 0 | AW20: 0 | AX20: 0 | AY20: 0 | AZ20: 0 | BA20: 0 | BB20: 0 | BC20: 0 | BD20: 0 | BE20: 0 | BF20: 0 | BG20: 0 | BH20: 0 | BI20: 0 | BL20: ACT | BM20: 0 | BN20: 0 | BO20: 0 | BP20: 0 | BQ20: 0 | BR20: 0 | BS20: 0 | BT20: 0 | BU20: 0 | BV20: 0 | BW20: 0 | BX20: 0 | BY20: 0 | BZ20: 0 | CA20: 0 | CB20: 0 | CC20: 0 | CD20: 0 | CE20: 0 | CF20: 0 | CG20: 0 | CH20: 0 | CI20: 0 | CJ20: 0 | CK20: 0 | CL20: 0 | CM20: 0 | CN20: 0 | CP20: 11 | CQ20: ACT | CR20: 0 | CS20: 0 | CT20: 0 | CU20: 0 | CV20: 0 | CW20: 0 | CX20: 0 | CY20: 0 | CZ20: 0 | DA20: 0 | DB20: 0 | DC20: 0 | DD20: 0
A21: 10 | B21: P90 | H21: 57.3 | I21: 67.3 | J21: 75 | K21: 84.8 | L21: 91.2 | M21: 100.8 | N21: 117.3 | O21: 125.6 | P21: 151.8 | Q21: 174.2 | R21: 208.2 | AG21: P90 | AH21: 0 | AM21: 0.303030303 | AN21: 0.1974358974 | AO21: 0.2279069767 | AP21: 0.1254901961 | AQ21: 0.1548387097 | AR21: 0.222972973 | AS21: 0.09431818182 | AT21: 0.2425925926 | AU21: 0.1684210526 | AV21: 0.2125 | BG21: 0 | BH21: 0 | BI21: 0 | BL21: P90 | BM21: 0 | BR21: 3.966666667 | BS21: 26.03589744 | BT21: 18.47906977 | BU21: 48.28235294 | BV21: 38.24516129 | BW21: 10.71891892 | BX21: 72.21590909 | BY21: -11.70740741 | BZ21: 38.28421053 | CA21: 2.7125 | CL21: 0 | CM21: 0 | CN21: 0 | CP21: 12 | CQ21: P90 | CT21: 66.39 | CU21: 76.14 | CV21: 87.18 | CW21: 97.24 | CX21: 114.85 | CY21: 127.3 | CZ21: 160.56 | DA21: 196.73
A22: 11 | B22: P75 | F22: 43.6 | G22: 48.5 | H22: 49.9 | I22: 53.5 | J22: 62.6 | K22: 67.7 | L22: 76.3 | M22: 88.6 | N22: 97.4 | O22: 112.4 | P22: 139.7 | Q22: 150.5 | R22: 178.4 | S22: 210.4 | T22: 240 | U22: 268.4 | V22: 310.7 | W22: 398.6 | X22: 417 | Y22: 625.3 | Z22: 698.9 | AG22: P75 | AH22: 0 | AK22: 0.2130434783 | AL22: 0.04827586207 | AM22: 0.1090909091 | AN22: 0.2333333333 | AO22: 0.1186046512 | AP22: 0.168627451 | AQ22: 0.1983870968 | AR22: 0.1189189189 | AS22: 0.1704545455 | AT22: 0.2527777778 | AU22: 0.08120300752 | AV22: 0.174375 | AW22: 0.167539267 | AX22: 0.1309734513 | AY22: 0.1051851852 | AZ22: 0.1338607595 | BA22: 0.2344 | BB22: 0.04181818182 | BC22: 0.4044660194 | BD22: 0.1196747967 | BG22: 0 | BH22: 0 | BI22: 0 | BL22: P75 | BM22: 0 | BP22: 17.1826087 | BQ22: 41.40344828 | BR22: 30.7 | BS22: 4.733333333 | BT22: 33.18604651 | BU22: 18.62941176 | BV22: 8.451612903 | BW22: 40.55675676 | BX22: 15.92272727 | BY22: -30.67222222 | BZ22: 84.96917293 | CA22: 9.779375 | CB22: 16.3895288 | CC22: 58.73274336 | CD22: 94.4237037 | CE22: 46.9943038 | CF22: -151.068 | CG22: 300.5363636 | CH22: -709.4378641 | CI22: 230.3731707 | CL22: 0 | CM22: 0 | CN22: 0 | CP22: 13 | CQ22: P75 | CR22: 46.16 | CS22: 49.47 | CT22: 53.17 | CU22: 63.19 | CV22: 70.9 | CW22: 84.04 | CX22: 96.09 | CY22: 114.17 | CZ22: 143.92 | DA22: 168.98 | DB22: 203.87 | DC22: 238.43 | DD22: 272.01
A23: 12 | B23: P50 | E23: 31.2 | F23: 36.7 | G23: 37 | H23: 41.9 | I23: 45.6 | J23: 49.5 | K23: 59.1 | L23: 62.7 | M23: 75.2 | N23: 83.2 | O23: 93.5 | P23: 111.7 | Q23: 127.3 | R23: 149.8 | S23: 170 | T23: 201 | U23: 253.2 | V23: 269.8 | W23: 350 | X23: 378.5 | Y23: 500 | Z23: 545 | AG23: P50 | AH23: 0 | AI23: 2.228571429 | AJ23: 0.2894736842 | AK23: 0.01304347826 | AL23: 0.1689655172 | AM23: 0.1121212121 | AN23: 0.1 | AO23: 0.223255814 | AP23: 0.07058823529 | AQ23: 0.2016129032 | AR23: 0.1081081081 | AS23: 0.1170454545 | AT23: 0.1685185185 | AU23: 0.1172932331 | AV23: 0.140625 | AW23: 0.1057591623 | AX23: 0.1371681416 | AY23: 0.1933333333 | AZ23: 0.05253164557 | BA23: 0.2138666667 | BB23: 0.06477272727 | BC23: 0.2359223301 | BD23: 0.07317073171 | BG23: 0 | BH23: 0 | BI23: 0 | BL23: P50 | BM23: 0 | BN23: -202.8 | BO23: 0.8052631579 | BP23: 35.0826087 | BQ23: 12.16206897 | BR23: 22.16666667 | BS23: 24.7 | BT23: -5.86744186 | BU23: 38.55882353 | BV23: -6.251612903 | BW23: 31.52432432 | BX23: 27.25227273 | BY23: -1.881481481 | BZ23: 32.6443609 | CA23: 13.815625 | CB23: 47.53089005 | CC23: 11.15929204 | CD23: -66.57333333 | CE23: 166.3126582 | CF23: -151.5173333 | CG23: 198.1079545 | CH23: -278.5436893 | CI23: 258.5365854 | CL23: 0 | CM23: 0 | CN23: 0 | CP23: 14 | CQ23: P50 | CR23: =ROUND((1+$CU$9)*(HLOOKUP(CR$10,$AH$9:$BI$180,$A23+3)*CR$10+HLOOKUP(CR$10,$BM$9:$CO$180,$A23+3)),$CX$9) -> 36.86 | CS23: 40.38 | CT23: 45.26 | CU23: 50.62 | CV23: 60.44 | CW23: 70.56 | CX23: 82.01 | CY23: 94.68 | CZ23: 117.8 | DA23: 142.21 | DB23: =ROUND((1+$CU$9)*(HLOOKUP(DB$10,$AH$9:$BI$180,$A23+3)*DB$10+HLOOKUP(DB$10,$BM$9:$CO$180,$A23+3)),$CX$9) -> 165.88 | DC23: 199.35 | DD23: 254.62
A24: 13 | B24: P25 | F24: 31.9 | G24: 33.1 | H24: 37.2 | I24: 40.7 | J24: 42.3 | K24: 49.3 | L24: 53.1 | M24: 62 | N24: 70.4 | O24: 81.9 | P24: 93.3 | Q24: 109.6 | R24: 129.9 | S24: 150.7 | T24: 172.5 | U24: 225.2 | V24: 248.1 | W24: 317 | X24: 339.7 | Y24: 440 | Z24: 500 | AG24: P25 | AH24: 0 | AK24: 0.05217391304 | AL24: 0.1413793103 | AM24: 0.1060606061 | AN24: 0.04102564103 | AO24: 0.1627906977 | AP24: 0.07450980392 | AQ24: 0.1435483871 | AR24: 0.1135135135 | AS24: 0.1306818182 | AT24: 0.1055555556 | AU24: 0.122556391 | AV24: 0.126875 | AW24: 0.1089005236 | AX24: 0.09646017699 | AY24: 0.1951851852 | AZ24: 0.07246835443 | BA24: 0.1837333333 | BB24: 0.05159090909 | BC24: 0.1947572816 | BD24: 0.09756097561 | BG24: 0 | BH24: 0 | BI24: 0 | BL24: P25 | BM24: 0 | BP24: 25.43043478 | BQ24: 12.31724138 | BR24: 18.53333333 | BS24: 32.12564103 | BT24: 1.927906977 | BU24: 27.61764706 | BV24: 4.006451613 | BW24: 16.14054054 | BX24: 7.934090909 | BY24: 22.15555556 | BZ24: 10.69699248 | CA24: 7.211875 | CB24: 24.59319372 | CC24: 38.99911504 | CD24: -97.6362963 | CE24: 105.3373418 | CF24: -113.8546667 | CG24: 196.0193182 | CH24: -202.6990291 | CI24: 118.0487805 | CL24: 0 | CM24: 0 | CN24: 0 | CP24: 15 | CQ24: P25 | CR24: 32.53 | CS24: 35.93 | CT24: 40.38 | CU24: 43.11 | CV24: 50.72 | CW24: 58.7 | CX24: 69.15 | CY24: 82.64 | CZ24: 99.67 | DA24: 123.05 | DB24: 146.45 | DC24: 171.34 | DD24: 227.16
A25: 14 | B25: P10 | H25: 33.4 | I25: 34.5 | J25: 38.3 | K25: 43.8 | L25: 48 | M25: 54.5 | N25: 60 | O25: 72.6 | P25: 80 | Q25: 100.7 | R25: 121.6 | AG25: P10 | AH25: 0 | AM25: 0.03333333333 | AN25: 0.09743589744 | AO25: 0.1279069767 | AP25: 0.08235294118 | AQ25: 0.1048387097 | AR25: 0.07432432432 | AS25: 0.1431818182 | AT25: 0.06851851852 | AU25: 0.1556390977 | AV25: 0.130625 | AW25: =(S25-R25)/(S$10-R$10) ->  | BG25: 0 | BH25: 0 | BI25: 0 | BL25: P10 | BM25: 0 | BR25: 27.53333333 | BS25: 14.13589744 | BT25: 6.579069767 | BU25: 19.83529412 | BV25: 12.14516129 | BW25: 24.47297297 | BX25: -8.440909091 | BY25: 33.81851852 | BZ25: -24.90075188 | CA25: -4.714375 | CB25: =S25-(AW25*S$10) ->  | CL25: 0 | CM25: 0 | CN25: 0 | CP25: 16 | CQ25: P10 | CT25: 34.4 | CU25: 38.94 | CV25: 45.36 | CW25: 52.09 | CX25: 59.18 | CY25: 73.08 | CZ25: 88.09 | DA25: 114.55
A26: 15 | B26: AVG | E26: 32.8 | F26: 40.6 | G26: 45 | H26: 46.3 | I26: 51.1 | J26: 54.9 | K26: 61.5 | L26: 66.9 | M26: 77.2 | N26: 85.9 | O26: 97.7 | P26: 116.1 | Q26: 132.9 | R26: 158.6 | S26: 183.9 | T26: 210.3 | U26: 249.5 | V26: 280 | W26: 362.4 | X26: 379.6 | Y26: 535.6 | Z26: 595.4 | AG26: AVG | AH26: 0 | AI26: 2.342857143 | AJ26: 0.4105263158 | AK26: 0.1913043478 | AL26: 0.04482758621 | AM26: 0.1454545455 | AN26: 0.09743589744 | AO26: 0.1534883721 | AP26: 0.1058823529 | AQ26: 0.1661290323 | AR26: 0.1175675676 | AS26: 0.1340909091 | AT26: 0.1703703704 | AU26: 0.1263157895 | AV26: 0.160625 | AW26: 0.132460733 | AX26: 0.1168141593 | AY26: 0.1451851852 | AZ26: 0.09651898734 | BA26: 0.2197333333 | BB26: 0.03909090909 | BC26: 0.3029126214 | BD26: 0.09723577236 | BG26: 0 | BH26: 0 | BI26: 0 | BL26: AVG | BM26: 0 | BN26: -213.2 | BO26: -10.30526316 | BP26: 16.87826087 | BQ26: 38.41034483 | BR26: 20.7 | BS26: 30.73589744 | BT26: 16.83488372 | BU26: 30.68823529 | BV26: 10.08387097 | BW26: 29.7027027 | BX26: 21.80454545 | BY26: 1.27037037 | BZ26: 30.96315789 | CA26: 3.275625 | CB26: 30.5104712 | CC26: 48.62920354 | CD26: 9.363703704 | CE26: 89.85759494 | CF26: -152.8746667 | CG26: 270.7318182 | CH26: -464.0116505 | CI26: 214.7219512 | CL26: 0 | CM26: 0 | CN26: 0 | CP26: 17 | CQ26: AVG | CR26: 42.9 | CS26: 45.9 | CT26: 50.66 | CU26: 55.67 | CV26: 63.51 | CW26: 73.38 | CX26: 84.61 | CY26: 98.89 | CZ26: 122.67 | DA26: 149.93 | DB26: 178.73 | DC26: 208.9 | DD26: 252.11
A27: 16 | B27: N | E27: 4 | F27: 9 | G27: 10 | H27: 12 | I27: 12 | J27: 13 | K27: 13 | L27: 13 | M27: 13 | N27: 13 | O27: 13 | P27: 13 | Q27: 13 | R27: 13 | S27: 11 | T27: 10 | U27: 11 | V27: 10 | W27: 10 | X27: 9 | Y27: 9 | Z27: 9 | AG27: N | AH27: 0 | AI27: 0.2857142857 | AJ27: 0.2631578947 | AK27: 0.04347826087 | AL27: 0.06896551724 | AM27: 0 | AN27: 0.02564102564 | AO27: 0 | AP27: 0 | AQ27: 0 | AR27: 0 | AS27: 0 | AT27: 0 | AU27: 0 | AV27: 0 | AW27: -0.01047120419 | AX27: -0.004424778761 | AY27: 0.003703703704 | AZ27: -0.003164556962 | BA27: 0 | BB27: -0.002272727273 | BC27: 0 | BD27: 0 | BG27: 0 | BH27: 0 | BI27: 0 | BL27: N | BM27: 0 | BN27: -26 | BO27: -23.63157895 | BP27: 3.608695652 | BQ27: -0.1379310345 | BR27: 12 | BS27: 6.641025641 | BT27: 13 | BU27: 13 | BV27: 13 | BW27: 13 | BX27: 13 | BY27: 13 | BZ27: 13 | CA27: 13 | CB27: 23.12565445 | CC27: 16.12389381 | CD27: 4.874074074 | CE27: 16.23417722 | CF27: 10 | CG27: 15.32954545 | CH27: 9 | CI27: 9 | CL27: 0 | CM27: 0 | CN27: 0 | CP27: 18 | CQ27: N | CR27: 9.52 | CS27: 11.38 | CT27: 12 | CU27: 13 | CV27: 13 | CW27: 13 | CX27: 13 | CY27: 13 | CZ27: 13 | DA27: 13 | DB27: 11.41 | DC27: 10.05 | DD27: 10.91
A28: 17 | B28: TC_T | AG28: TC_T | AH28: 0 | AI28: 0 | AJ28: 0 | AK28: 0 | AL28: 0 | AM28: 0 | AN28: 0 | AO28: 0 | AP28: 0 | AQ28: 0 | AR28: 0 | AS28: 0 | AT28: 0 | AU28: 0 | AV28: 0 | AW28: 0 | AX28: 0 | AY28: 0 | AZ28: 0 | BA28: 0 | BB28: 0 | BC28: 0 | BD28: 0 | BE28: 0 | BF28: 0 | BG28: 0 | BH28: 0 | BI28: 0 | BL28: TC_T | BM28: 0 | BN28: 0 | BO28: 0 | BP28: 0 | BQ28: 0 | BR28: 0 | BS28: 0 | BT28: 0 | BU28: 0 | BV28: 0 | BW28: 0 | BX28: 0 | BY28: 0 | BZ28: 0 | CA28: 0 | CB28: 0 | CC28: 0 | CD28: 0 | CE28: 0 | CF28: 0 | CG28: 0 | CH28: 0 | CI28: 0 | CJ28: 0 | CK28: 0 | CL28: 0 | CM28: 0 | CN28: 0 | CP28: 19 | CQ28: TC_T | CR28: 0 | CS28: 0 | CT28: 0 | CU28: 0 | CV28: 0 | CW28: 0 | CX28: 0 | CY28: 0 | CZ28: 0 | DA28: 0 | DB28: 0 | DC28: 0 | DD28: 0
A29: 18 | B29: P90 | H29: 63 | I29: 74 | J29: 82.5 | K29: 90.3 | L29: 111.3 | M29: 114.4 | N29: 128.3 | O29: 146.7 | P29: 183.8 | Q29: 214.5 | R29: 271.9 | AG29: P90 | AH29: 0 | AM29: 0.3333333333 | AN29: 0.2179487179 | AO29: 0.1813953488 | AP29: 0.4117647059 | AQ29: 0.05 | AR29: 0.1878378378 | AS29: 0.2090909091 | AT29: 0.3435185185 | AU29: 0.2308270677 | AV29: 0.35875 | BG29: 0 | BH29: 0 | BI29: 0 | BL29: P90 | BM29: 0 | BR29: 4.333333333 | BS29: 28.44871795 | BT29: 37.51395349 | BU29: -29.52352941 | BV29: 94.2 | BW29: 38.51351351 | BX29: 28.35454545 | BY29: -47.73148148 | BZ29: 28.22255639 | CA29: -75.01125 | CL29: 0 | CM29: 0 | CN29: 0 | CP29: 20 | CQ29: P90 | CT29: 73 | CU29: 83.41 | CV29: 98.12 | CW29: 113.25 | CX29: 126.23 | CY29: 149.1 | CZ29: 195.8 | DA29: 252.53
A30: 19 | B30: P75 | F30: 45.5 | G30: 52.8 | H30: 51.2 | I30: 58.2 | J30: 68.3 | K30: 72.2 | L30: 92.8 | M30: 100.9 | N30: 111.1 | O30: 132 | P30: 166.9 | Q30: 195.2 | R30: 228.8 | S30: 299.8 | T30: 358.2 | U30: 431.6 | V30: 547.4 | W30: 725.6 | X30: 785.5 | Y30: 1214.6 | Z30: 1567.7 | AG30: P75 | AH30: 0 | AK30: 0.3173913043 | AL30: -0.05517241379 | AM30: 0.2121212121 | AN30: 0.258974359 | AO30: 0.09069767442 | AP30: 0.4039215686 | AQ30: 0.1306451613 | AR30: 0.1378378378 | AS30: 0.2375 | AT30: 0.3231481481 | AU30: 0.2127819549 | AV30: 0.21 | AW30: 0.3717277487 | AX30: 0.2584070796 | AY30: 0.2718518519 | AZ30: 0.3664556962 | BA30: 0.4752 | BB30: 0.1361363636 | BC30: 0.8332038835 | BD30: 0.5741463415 | BG30: 0 | BH30: 0 | BI30: 0 | BL30: P75 | BM30: 0 | BP30: 6.143478261 | BQ30: 60.91034483 | BR30: 13.86666667 | BS30: 4.074358974 | BT30: 45.80697674 | BU30: -45.34117647 | BV30: 48.11935484 | BW30: 45.21351351 | BX30: -2.425 | BY30: -50.90185185 | BZ30: 23.48496241 | CA30: 25.73 | CB30: -130.660733 | CC30: 0.5646017699 | CD30: -18.04296296 | CE30: -174.5177215 | CF30: -388.744 | CG30: 406.3602273 | CH30: -1534.972816 | CI30: -680.0829268 | CL30: 0 | CM30: 0 | CN30: 0 | CP30: 21 | CQ30: P75 | CR30: 49.31 | CS30: 51.7 | CT30: 57.56 | CU30: 68.75 | CV30: 79.87 | CW30: 97.9 | CX30: 109.58 | CY30: 134.26 | CZ30: 177.96 | DA30: 217.46 | DB30: 285.3 | DC30: 355.1 | DD30: 441.49
A31: 20 | B31: P50 | E31: 32.4 | F31: 38.5 | G31: 38.4 | H31: 44.2 | I31: 47.1 | J31: 51.1 | K31: 61.9 | L31: 71.8 | M31: 82.3 | N31: 91.9 | O31: 105.9 | P31: 137.3 | Q31: 152 | R31: 192.5 | S31: 244.1 | T31: 302.9 | U31: 370.5 | V31: 461.9 | W31: 668.3 | X31: 711.8 | Y31: 880 | Z31: 1200 | AG31: P50 | AH31: 0 | AI31: 2.314285714 | AJ31: 0.3210526316 | AK31: -0.004347826087 | AL31: 0.2 | AM31: 0.08787878788 | AN31: 0.1025641026 | AO31: 0.2511627907 | AP31: 0.1941176471 | AQ31: 0.1693548387 | AR31: 0.1297297297 | AS31: 0.1590909091 | AT31: 0.2907407407 | AU31: 0.1105263158 | AV31: 0.253125 | AW31: 0.2701570681 | AX31: =(T31-S31)/(T$10-S$10) -> 0.2601769912 | AY31: 0.2503703704 | AZ31: 0.2892405063 | BA31: 0.5504 | BB31: 0.09886363636 | BC31: 0.3266019417 | BD31: 0.5203252033 | BG31: 0 | BH31: 0 | BI31: =(AE31-AD31)/(AE$10-AD$10) -> 0 | BL31: P50 | BM31: 0 | BN31: -210.6 | BO31: -1.310526316 | BP31: 39.03913043 | BQ31: 9 | BR31: 28.73333333 | BS31: 25.66410256 | BT31: -11.18837209 | BU31: 5.411764706 | BV31: 13.88064516 | BW31: 29.88918919 | BX31: 15.85454545 | BY31: -58.65925926 | BZ31: 62.80526316 | CA31: -52.271875 | CB31: -68.74188482 | CC31: -57.18495575 | CD31: -43.61259259 | CE31: -107.9037975 | CF31: -622.388 | CG31: 436.4647727 | CH31: -197.7864078 | CI31: -837.0731707 | CL31: 0 | CM31: 0 | CN31: 0 | CP31: 22 | CQ31: P50 | CR31: 38.45 | CS31: 42.4 | CT31: 46.84 | CU31: 52.36 | CV31: 65.59 | CW31: 78.4 | CX31: 90.47 | CY31: 107.94 | CZ31: 143.05 | DA31: 178.83 | DB31: 233.56 | DC31: 299.78 | DD31: 378.31
A32: 21 | B32: P25 | F32: 33.1 | G32: 34.9 | H32: 39 | I32: 42.7 | J32: 45.1 | K32: 51.6 | L32: 58.4 | M32: 67.9 | N32: 76.4 | O32: 90.1 | P32: 108.8 | Q32: 129.6 | R32: 169.6 | S32: 204.5 | T32: 261.2 | U32: 337.8 | V32: 387.6 | W32: 564.9 | X32: 649.8 | Y32: 837.5 | Z32: 1076.5 | AG32: P25 | AH32: 0 | AK32: 0.07826086957 | AL32: 0.1413793103 | AM32: 0.1121212121 | AN32: 0.06153846154 | AO32: 0.1511627907 | AP32: 0.1333333333 | AQ32: 0.1532258065 | AR32: 0.1148648649 | AS32: 0.1556818182 | AT32: 0.1731481481 | AU32: 0.1563909774 | AV32: 0.25 | AW32: 0.1827225131 | AX32: 0.2508849558 | AY32: 0.2837037037 | AZ32: 0.1575949367 | BA32: 0.4728 | BB32: 0.1929545455 | BC32: 0.3644660194 | BD32: 0.3886178862 | BG32: 0 | BH32: 0 | BI32: 0 | BL32: P25 | BM32: 0 | BP32: 23.39565217 | BQ32: 14.11724138 | BR32: 19.26666667 | BS32: 29.83846154 | BT32: 7.611627907 | BU32: 12.8 | BV32: 5.996774194 | BW32: 21.49459459 | BX32: 1.984090909 | BY32: -7.901851852 | BZ32: 3.392481203 | CA32: -72.15 | CB32: -7.092670157 | CC32: -86.02477876 | CD32: -131.4459259 | CE32: 77.13797468 | CF32: -543.816 | CG32: 112.4215909 | CH32: -365.2378641 | CI32: -444.9390244 | CL32: 0 | CM32: 0 | CN32: 0 | CP32: 23 | CQ32: P25 | CR32: 34.04 | CS32: 37.73 | CT32: 42.36 | CU32: 45.86 | CV32: 54.13 | CW32: 64.38 | CX32: 75.14 | CY32: 91.31 | CZ32: 116.93 | DA32: 156.1 | DB32: 197.37 | DC32: 258.19 | DD32: 342.06
A33: 22 | B33: P10 | H33: 35.2 | I33: 39.3 | J33: 40.3 | K33: 46.3 | L33: 53.1 | M33: 59.1 | N33: 68.5 | O33: 81.7 | P33: 97.5 | Q33: 119.2 | R33: 151.1 | AG33: P10 | AH33: 0 | AM33: 0.1242424242 | AN33: 0.02564102564 | AO33: 0.1395348837 | AP33: 0.1333333333 | AQ33: 0.09677419355 | AR33: 0.127027027 | AS33: 0.15 | AT33: 0.1462962963 | AU33: 0.1631578947 | AV33: 0.199375 | BG33: 0 | BH33: 0 | BI33: 0 | BL33: P10 | BM33: 0 | BR33: 13.33333333 | BS33: 33.94102564 | BT33: 5.695348837 | BU33: 7.5 | BV33: 20.00322581 | BW33: 7.781081081 | BX33: -3.2 | BY33: -1.103703704 | BZ33: -12.46842105 | CA33: -41.695625 | CL33: 0 | CM33: 0 | CN33: 0 | CP33: 24 | CQ33: P10 | CR33: =ROUND((1+$CU$9)*(HLOOKUP(CR$10,$AH$9:$BI$180,$A33+3)*CR$10+HLOOKUP(CR$10,$BM$9:$CO$180,$A33+3)),$CX$9) ->  | CT33: 38.93 | CU33: 41 | CV33: 48.83 | CW33: 56.87 | CX33: 67.1 | CY33: 82.72 | CZ33: 105.98 | DA33: 140.33 | DB33: =ROUND((1+$CU$9)*(HLOOKUP(DB$10,$AH$9:$BI$180,$A33+3)*DB$10+HLOOKUP(DB$10,$BM$9:$CO$180,$A33+3)),$CX$9) -> 
A34: 23 | B34: AVG | E34: 34.9 | F34: 42.3 | G34: 46.8 | H34: 48.4 | I34: 54.1 | J34: 57.8 | K34: 64.9 | L34: 78 | M34: 84.3 | N34: 95.4 | O34: 110.9 | P34: 141.4 | Q34: 161.8 | R34: 204.1 | S34: 256.5 | T34: 309.5 | U34: 396.8 | V34: 485.2 | W34: 663.8 | X34: 701.6 | Y34: 1028.4 | Z34: 1280.3 | AG34: AVG | AH34: 0 | AI34: 2.492857143 | AJ34: 0.3894736842 | AK34: 0.1956521739 | AL34: 0.05517241379 | AM34: 0.1727272727 | AN34: 0.09487179487 | AO34: 0.1651162791 | AP34: 0.2568627451 | AQ34: 0.1016129032 | AR34: 0.15 | AS34: 0.1761363636 | AT34: 0.2824074074 | AU34: 0.1533834586 | AV34: 0.264375 | AW34: 0.2743455497 | AX34: 0.2345132743 | AY34: 0.3233333333 | AZ34: 0.2797468354 | BA34: 0.4762666667 | BB34: 0.08590909091 | BC34: 0.6345631068 | BD34: 0.4095934959 | BG34: 0 | BH34: 0 | BI34: 0 | BL34: AVG | BM34: 0 | BN34: -226.85 | BO34: -5.994736842 | BP34: 18.03913043 | BQ34: 38.68965517 | BR34: 18 | BS34: 34.27179487 | BT34: 16.85116279 | BU34: -9.847058824 | BV34: 43.2483871 | BW34: 23.7 | BX34: 11.20681818 | BY34: -48.94259259 | BZ34: 38.01954887 | CA34: -51.550625 | CB34: -61.1921466 | CC34: -15.06637168 | CD34: -137.9933333 | CE34: -65.90126582 | CF34: -453.0453333 | CG34: 462.3431818 | CH34: -1065.658252 | CI34: -323.2585366 | CL34: 0 | CM34: 0 | CN34: 0 | CP34: 25 | CQ34: AVG | CR34: 44.65 | CS34: 47.9 | CT34: 53.58 | CU34: 58.63 | CV34: 69.78 | CW34: 81.96 | CX34: 93.75 | CY34: 112.88 | CZ34: 149.38 | DA34: 189.82 | DB34: 245.8 | DC34: 306.69 | DD34: 404.35
A35: 24 | B35: N | E35: 4 | F35: 9 | G35: 10 | H35: 12 | I35: 12 | J35: 13 | K35: 13 | L35: 13 | M35: 13 | N35: 13 | O35: 13 | P35: 13 | Q35: 13 | R35: 13 | S35: 11 | T35: 10 | U35: 11 | V35: 10 | W35: 10 | X35: 9 | Y35: 9 | Z35: 9 | AG35: N | AH35: 0 | AI35: 0.2857142857 | AJ35: 0.2631578947 | AK35: 0.04347826087 | AL35: 0.06896551724 | AM35: 0 | AN35: 0.02564102564 | AO35: 0 | AP35: 0 | AQ35: 0 | AR35: 0 | AS35: 0 | AT35: 0 | AU35: 0 | AV35: 0 | AW35: -0.01047120419 | AX35: -0.004424778761 | AY35: 0.003703703704 | AZ35: -0.003164556962 | BA35: 0 | BB35: -0.002272727273 | BC35: 0 | BD35: 0 | BG35: 0 | BH35: 0 | BI35: 0 | BL35: N | BM35: 0 | BN35: -26 | BO35: -23.63157895 | BP35: 3.608695652 | BQ35: -0.1379310345 | BR35: 12 | BS35: 6.641025641 | BT35: 13 | BU35: 13 | BV35: 13 | BW35: 13 | BX35: 13 | BY35: 13 | BZ35: 13 | CA35: 13 | CB35: 23.12565445 | CC35: 16.12389381 | CD35: 4.874074074 | CE35: 16.23417722 | CF35: 10 | CG35: 15.32954545 | CH35: 9 | CI35: 9 | CL35: 0 | CM35: 0 | CN35: 0 | CP35: 26 | CQ35: N | CR35: 9.52 | CS35: 11.38 | CT35: 12 | CU35: 13 | CV35: 13 | CW35: 13 | CX35: 13 | CY35: 13 | CZ35: 13 | DA35: 13 | DB35: 11.41 | DC35: 10.05 | DD35: 10.91
A36: 25 | B36: TC_D | AG36: TC_D | AH36: 0 | AI36: 0 | AJ36: 0 | AK36: 0 | AL36: 0 | AM36: 0 | AN36: 0 | AO36: 0 | AP36: 0 | AQ36: 0 | AR36: 0 | AS36: 0 | AT36: 0 | AU36: 0 | AV36: 0 | AW36: 0 | AX36: 0 | AY36: 0 | AZ36: 0 | BA36: 0 | BB36: 0 | BC36: 0 | BD36: 0 | BE36: 0 | BF36: 0 | BG36: 0 | BH36: 0 | BI36: 0 | BL36: TC_D | BM36: 0 | BN36: 0 | BO36: 0 | BP36: 0 | BQ36: 0 | BR36: 0 | BS36: 0 | BT36: 0 | BU36: 0 | BV36: 0 | BW36: 0 | BX36: 0 | BY36: 0 | BZ36: 0 | CA36: 0 | CB36: 0 | CC36: 0 | CD36: 0 | CE36: 0 | CF36: 0 | CG36: 0 | CH36: 0 | CI36: 0 | CJ36: 0 | CK36: 0 | CL36: 0 | CM36: 0 | CN36: 0 | CP36: 27 | CQ36: TC_D | CR36: 0 | CS36: 0 | CT36: 0 | CU36: 0 | CV36: 0 | CW36: 0 | CX36: 0 | CY36: 0 | CZ36: 0 | DA36: 0 | DB36: 0 | DC36: 0 | DD36: 0
A37: 26 | B37: P90 | H37: 58.9 | I37: 66.8 | J37: 82.5 | K37: 86.5 | L37: 104.9 | M37: 111.3 | N37: 123.5 | O37: 140.2 | P37: 174.5 | Q37: 201.8 | R37: 233.7 | AG37: P90 | AH37: 0 | AM37: 0.2393939394 | AN37: 0.4025641026 | AO37: 0.09302325581 | AP37: 0.3607843137 | AQ37: 0.1032258065 | AR37: 0.1648648649 | AS37: 0.1897727273 | AT37: 0.3175925926 | AU37: 0.2052631579 | AV37: 0.199375 | BG37: 0 | BH37: 0 | BI37: 0 | BL37: P90 | BM37: 0 | BR37: 16.76666667 | BS37: -17.33589744 | BT37: 59.43023256 | BU37: -18.48823529 | BV37: 69.59677419 | BW37: 44.69459459 | BX37: 32.78863636 | BY37: -39.55740741 | BZ37: 36.15263158 | CA37: 40.904375 | CF37: =W37-(BA37*W$10) ->  | CL37: 0 | CM37: 0 | CN37: 0 | CP37: 28 | CQ37: P90 | CT37: 66.08 | CU37: 82.97 | CV37: 93.35 | CW37: 108.93 | CX37: 121.69 | CY37: 142.42 | CZ37: 185.17 | DA37: 222.93
A38: 27 | B38: P75 | F38: 41.6 | G38: 51.3 | H38: 51.7 | I38: 64.9 | J38: 70.4 | K38: 70.7 | L38: 93.5 | M38: 104.3 | N38: 115.5 | O38: 125.9 | P38: 159.5 | Q38: 183.6 | R38: 211 | S38: 263.8 | T38: 352.5 | U38: 447.2 | V38: 544 | W38: 716.3 | X38: 785.5 | Y38: 1200 | Z38: 1347.5 | AG38: P75 | AH38: 0 | AK38: 0.4217391304 | AL38: 0.01379310345 | AM38: 0.4 | AN38: 0.141025641 | AO38: 0.006976744186 | AP38: 0.4470588235 | AQ38: 0.1741935484 | AR38: 0.1513513514 | AS38: 0.1181818182 | AT38: 0.3111111111 | AU38: 0.1812030075 | AV38: 0.17125 | AW38: 0.2764397906 | AX38: 0.3924778761 | AY38: 0.3507407407 | AZ38: 0.3063291139 | BA38: 0.4594666667 | BB38: 0.1572727273 | BC38: 0.8048543689 | BD38: 0.2398373984 | BG38: 0 | BH38: 0 | BI38: 0 | BL38: P75 | BM38: 0 | BP38: -10.69565217 | BQ38: 49.27241379 | BR38: -18.7 | BS38: 35.42564103 | BT38: 68.66976744 | BU38: -59.39411765 | BV38: 33.92580645 | BW38: 43.15405405 | BX38: 59.00909091 | BY38: -50.18888889 | BZ38: 37.36917293 | CA38: 45.40125 | CB38: -56.31727749 | CC38: -190.6893805 | CD38: -132.9251852 | CE38: -59.46835443 | CF38: -361.1493333 | CG38: 347.4954545 | CH38: -1456.019417 | CI38: 408.5365854 | CL38: 0 | CM38: 0 | CN38: 0 | CP38: 29 | CQ38: P75 | CR38: 46.66 | CS38: 51.58 | CT38: 63.7 | CU38: 70.43 | CV38: 79.19 | CW38: 100.29 | CX38: 113.84 | CY38: 128.08 | CZ38: 168.92 | DA38: 201.75 | DB38: 253.02 | DC38: 347.79 | DD38: 455.47
A39: 28 | B39: P50 | E39: 30.3 | F39: 36.7 | G39: 38.6 | H39: 46.3 | I39: 51.2 | J39: 55.4 | K39: 62.1 | L39: 71.6 | M39: 81.8 | N39: 90.8 | O39: 111.1 | P39: 134.1 | Q39: 153.4 | R39: 180.8 | S39: 224 | T39: 308 | U39: 365.7 | V39: 495 | W39: 610.5 | X39: 701 | Y39: 874.5 | Z39: 1160 | AG39: P50 | AH39: 0 | AI39: 2.164285714 | AJ39: 0.3368421053 | AK39: 0.08260869565 | AL39: =(H39-G39)/(H$10-G$10) -> 0.2655172414 | AM39: 0.1484848485 | AN39: 0.1076923077 | AO39: 0.1558139535 | AP39: 0.1862745098 | AQ39: 0.164516129 | AR39: 0.1216216216 | AS39: 0.2306818182 | AT39: 0.212962963 | AU39: 0.145112782 | AV39: 0.17125 | AW39: 0.2261780105 | AX39: 0.3716814159 | AY39: 0.2137037037 | AZ39: 0.4091772152 | BA39: 0.308 | BB39: 0.2056818182 | BC39: 0.3368932039 | BD39: 0.4642276423 | BG39: 0 | BH39: 0 | BI39: 0 | BL39: P50 | BM39: 0 | BN39: -196.95 | BO39: -5.068421053 | BP39: 26.45652174 | BQ39: =H39-(AL39*H$10) -> -0.4310344828 | BR39: 20.16666667 | BS39: 28.69230769 | BT39: 16.75813953 | BU39: 7.894117647 | BV39: 15.33548387 | BW39: 32.66486486 | BX39: -19.46590909 | BY39: -9.437037037 | BZ39: 36.29398496 | CA39: 15.20125 | CB39: -37.91413613 | CC39: -206.4070796 | CD39: 12.23407407 | CE39: -311.0791139 | CF39: -111.76 | CG39: 128.1761364 | CH39: -237.2475728 | CI39: -657.4512195 | CL39: 0 | CM39: 0 | CN39: 0 | CP39: 30 | CQ39: P50 | CR39: 37.69 | CS39: 43.91 | CT39: 50.75 | CU39: 56.18 | CV39: 65.64 | CW39: 78.02 | CX39: 89.46 | CY39: 112.59 | CZ39: 141.65 | DA39: 171.55 | DB39: 215.18 | DC39: 303.54 | DD39: 376.75
A40: 29 | B40: P25 | F40: 34 | G40: 35.4 | H40: 37.5 | I40: 44.6 | J40: 46.4 | K40: 54.2 | L40: 61.4 | M40: 71.9 | N40: 81.7 | O40: 89.1 | P40: 106.6 | Q40: 129.7 | R40: 167.1 | S40: 196.2 | T40: 259.4 | U40: 338.8 | V40: 381.7 | W40: 545.3 | X40: 538.4 | Y40: 817.5 | Z40: 986.1 | AG40: P25 | AH40: =(D40-C40)/(D$10-C$10) -> 0 | AK40: 0.06086956522 | AL40: 0.0724137931 | AM40: 0.2151515152 | AN40: 0.04615384615 | AO40: 0.1813953488 | AP40: 0.1411764706 | AQ40: 0.1693548387 | AR40: 0.1324324324 | AS40: 0.08409090909 | AT40: 0.162037037 | AU40: 0.1736842105 | AV40: =(R40-Q40)/(R$10-Q$10) -> 0.23375 | AW40: 0.1523560209 | AX40: 0.2796460177 | AY40: 0.2940740741 | AZ40: 0.1357594937 | BA40: 0.4362666667 | BB40: -0.01568181818 | BC40: 0.5419417476 | BD40: 0.2741463415 | BG40: 0 | BH40: 0 | BI40: 0 | BL40: P25 | BM40: =D40-(AH40*D$10) -> 0 | BP40: 26.45217391 | BQ40: 24.75517241 | BR40: -0.3666666667 | BS40: 34.95384615 | BT40: 1.413953488 | BU40: 13.11764706 | BV40: 3.480645161 | BW40: 18.3972973 | BX40: 41.50454545 | BY40: -2.612962963 | BZ40: -10.46315789 | CA40: =R40-(AV40*R$10) -> -58.93625 | CB40: 19.77172775 | CC40: -127.6300885 | CD40: -147.5985185 | CE40: 114.2537975 | CF40: -477.7453333 | CG40: 582.0738636 | CH40: -970.907767 | CI40: -87.18292683 | CL40: 0 | CM40: 0 | CN40: 0 | CP40: 31 | CQ40: P25 | CR40: 34.73 | CS40: 36.85 | CT40: 43.95 | CU40: 47.31 | CV40: 56.88 | CW40: 68 | CX40: 80.24 | CY40: 90.23 | CZ40: 115.63 | DA40: 154.48 | DB40: 190.26 | DC40: 256.04 | DD40: 342.47
A41: 30 | B41: P10 | H41: 35.5 | I41: 40.1 | J41: 42 | K41: 46.3 | L41: 55 | M41: 63 | N41: 70.9 | O41: 81.9 | P41: 94.8 | Q41: 122.5 | R41: 153.5 | AG41: P10 | AH41: 0 | AM41: 0.1393939394 | AN41: 0.04871794872 | AO41: 0.1 | AP41: 0.1705882353 | AQ41: 0.1290322581 | AR41: 0.1067567568 | AS41: 0.125 | AT41: 0.1194444444 | AU41: 0.2082706767 | AV41: 0.19375 | BG41: 0 | BH41: 0 | BI41: 0 | BL41: P10 | BM41: 0 | BR41: 10.96666667 | BS41: 29.91794872 | BT41: 17.2 | BU41: -3.341176471 | BV41: 10.87096774 | BW41: 19.87027027 | BX41: 11.15 | BY41: 14.29444444 | BZ41: -45.57443609 | CA41: -33.85625 | CL41: 0 | CM41: 0 | CN41: 0 | CP41: 32 | CQ41: P10 | CT41: 39.68 | CU41: 42.5 | CV41: 49.54 | CW41: 60.03 | CX41: 69.73 | CY41: 82.74 | CZ41: 105.63 | DA41: 143.04
A42: 31 | B42: AVG | E42: 33.6 | F42: 45.7 | G42: 45 | H42: 48.4 | I42: 55.4 | J42: 58.4 | K42: 64.4 | L42: 79 | M42: 85.8 | N42: 96 | O42: 109.8 | P42: 137.6 | Q42: 157.3 | R42: 191.6 | S42: 237.4 | T42: 304.9 | U42: 401 | V42: 489.4 | W42: 645.1 | X42: 685.9 | Y42: 988.5 | Z42: 1225.2 | AG42: AVG | AH42: 0 | AI42: 2.4 | AJ42: 0.6368421053 | AK42: -0.03043478261 | AL42: 0.1172413793 | AM42: 0.2121212121 | AN42: 0.07692307692 | AO42: 0.1395348837 | AP42: 0.2862745098 | AQ42: 0.1096774194 | AR42: 0.1378378378 | AS42: 0.1568181818 | AT42: 0.2574074074 | AU42: 0.1481203008 | AV42: 0.214375 | AW42: 0.2397905759 | AX42: 0.2986725664 | AY42: 0.3559259259 | AZ42: 0.2797468354 | BA42: 0.4152 | BB42: 0.09272727273 | BC42: 0.5875728155 | BD42: 0.3848780488 | BG42: 0 | BH42: 0 | BI42: 0 | BL42: AVG | BM42: 0 | BN42: -218.4 | BO42: -33.26842105 | BP42: 49.47391304 | BQ42: 27.76551724 | BR42: 11.06666667 | BS42: 39.32307692 | BT42: 23.79534884 | BU42: -18.90588235 | BV42: 41.49032258 | BW42: 30.11351351 | BX42: 21.04090909 | BY42: -35.89259259 | BZ42: 37.76691729 | CA42: -15.700625 | CB42: -40.27748691 | CC42: -108.4628319 | CD42: -187.7014815 | CE42: -61.70126582 | CF42: -328.544 | CG42: 427.6545455 | CH42: -950.4902913 | CI42: -281.597561 | CL42: 0 | CM42: 0 | CN42: 0 | CP42: 33 | CQ42: AVG | CR42: 45.33 | CS42: 47.34 | CT42: 54.76 | CU42: 59.1 | CV42: 69.84 | CW42: 83.28 | CX42: 94.48 | CY42: 111.6 | CZ42: 145.3 | DA42: 180.02 | DB42: 228.05 | DC42: 301.32 | DD42: 408.55
A43: 32 | B43: N | E43: 4 | F43: 9 | G43: 10 | H43: 12 | I43: 12 | J43: 13 | K43: 13 | L43: 13 | M43: 13 | N43: 13 | O43: 13 | P43: 13 | Q43: 13 | R43: 13 | S43: 11 | T43: 10 | U43: 11 | V43: 10 | W43: 10 | X43: 9 | Y43: 9 | Z43: 9 | AG43: N | AH43: 0 | AI43: 0.2857142857 | AJ43: 0.2631578947 | AK43: 0.04347826087 | AL43: 0.06896551724 | AM43: 0 | AN43: 0.02564102564 | AO43: 0 | AP43: 0 | AQ43: 0 | AR43: 0 | AS43: 0 | AT43: 0 | AU43: 0 | AV43: 0 | AW43: -0.01047120419 | AX43: -0.004424778761 | AY43: 0.003703703704 | AZ43: -0.003164556962 | BA43: 0 | BB43: -0.002272727273 | BC43: 0 | BD43: 0 | BG43: 0 | BH43: 0 | BI43: 0 | BL43: N | BM43: 0 | BN43: -26 | BO43: -23.63157895 | BP43: 3.608695652 | BQ43: -0.1379310345 | BR43: 12 | BS43: 6.641025641 | BT43: 13 | BU43: 13 | BV43: 13 | BW43: 13 | BX43: 13 | BY43: 13 | BZ43: 13 | CA43: 13 | CB43: 23.12565445 | CC43: 16.12389381 | CD43: 4.874074074 | CE43: 16.23417722 | CF43: 10 | CG43: 15.32954545 | CH43: 9 | CI43: 9 | CL43: 0 | CM43: 0 | CN43: 0 | CP43: 34 | CQ43: N | CR43: =ROUND((1+$CU$9)*(HLOOKUP(CR$10,$AH$9:$BI$180,$A43+3)*CR$10+HLOOKUP(CR$10,$BM$9:$CO$180,$A43+3)),$CX$9) -> 9.52 | CS43: 11.38 | CT43: 12 | CU43: 13 | CV43: 13 | CW43: 13 | CX43: 13 | CY43: 13 | CZ43: 13 | DA43: 13 | DB43: =ROUND((1+$CU$9)*(HLOOKUP(DB$10,$AH$9:$BI$180,$A43+3)*DB$10+HLOOKUP(DB$10,$BM$9:$CO$180,$A43+3)),$CX$9) -> 11.41 | DC43: 10.05 | DD43: 10.91
A44: 33 | B44: TD_T | AG44: TD_T | AH44: 0 | AI44: 0 | AJ44: 0 | AK44: 0 | AL44: 0 | AM44: 0 | AN44: 0 | AO44: 0 | AP44: 0 | AQ44: 0 | AR44: 0 | AS44: 0 | AT44: 0 | AU44: 0 | AV44: 0 | AW44: 0 | AX44: 0 | AY44: 0 | AZ44: 0 | BA44: 0 | BB44: 0 | BC44: 0 | BD44: 0 | BE44: 0 | BF44: 0 | BG44: 0 | BH44: 0 | BI44: 0 | BL44: TD_T | BM44: 0 | BN44: 0 | BO44: 0 | BP44: 0 | BQ44: 0 | BR44: 0 | BS44: 0 | BT44: 0 | BU44: 0 | BV44: 0 | BW44: 0 | BX44: 0 | BY44: 0 | BZ44: 0 | CA44: 0 | CB44: 0 | CC44: 0 | CD44: 0 | CE44: 0 | CF44: 0 | CG44: 0 | CH44: 0 | CI44: 0 | CJ44: 0 | CK44: 0 | CL44: 0 | CM44: =AE44-(BI44*AE$10) -> 0 | CN44: 0 | CP44: 35 | CQ44: TD_T | CR44: 0 | CS44: 0 | CT44: 0 | CU44: 0 | CV44: 0 | CW44: 0 | CX44: 0 | CY44: 0 | CZ44: 0 | DA44: 0 | DB44: 0 | DC44: 0 | DD44: 0
A45: 34 | B45: P90 | H45: 63 | I45: 74 | J45: 82.5 | K45: 90.3 | L45: 113.9 | M45: 117.9 | N45: 129.1 | O45: 149.4 | P45: 201.2 | Q45: 257.9 | R45: 298.8 | AG45: P90 | AH45: 0 | AM45: 0.3333333333 | AN45: 0.2179487179 | AO45: 0.1813953488 | AP45: 0.462745098 | AQ45: 0.06451612903 | AR45: 0.1513513514 | AS45: 0.2306818182 | AT45: 0.4796296296 | AU45: 0.4263157895 | AV45: 0.255625 | BG45: 0 | BH45: 0 | BI45: 0 | BL45: P90 | BM45: 0 | BR45: 4.333333333 | BS45: 28.44871795 | BT45: 37.51395349 | BU45: -44.35882353 | BV45: 91.83548387 | BW45: 56.75405405 | BX45: 18.83409091 | BY45: -122.0703704 | BZ45: -86.13684211 | CA45: 51.610625 | CL45: 0 | CM45: 0 | CN45: 0 | CP45: 36 | CQ45: P90 | CT45: 73 | CU45: 83.41 | CV45: 99.09 | CW45: 116.42 | CX45: 127.44 | CY45: 152.76 | CZ45: 223.37 | DA45: 285
A46: 35 | B46: P75 | F46: 45.5 | H46: 51.2 | I46: 58.2 | J46: 68.3 | K46: 72.2 | L46: 94 | M46: 101.7 | N46: 113 | O46: 133.2 | P46: 176.5 | Q46: 205.5 | R46: 266.5 | S46: 343.4 | T46: 466.2 | U46: 694 | V46: 875.3 | W46: 1451.6 | X46: 1571.4 | Y46: 2490.7 | Z46: 3153.4 | AG46: P75 | AH46: 0 | AM46: 0.2121212121 | AN46: 0.258974359 | AO46: 0.09069767442 | AP46: 0.4274509804 | AQ46: 0.1241935484 | AR46: 0.1527027027 | AS46: 0.2295454545 | AT46: 0.4009259259 | AU46: 0.2180451128 | AV46: 0.38125 | AW46: 0.402617801 | AX46: 0.5433628319 | AY46: 0.8437037037 | AZ46: 0.5737341772 | BA46: 1.5368 | BB46: 0.2722727273 | BC46: 1.785048544 | BD46: 1.077560976 | BG46: 0 | BH46: 0 | BI46: 0 | BL46: P75 | BM46: 0 | BR46: 13.86666667 | BS46: 4.074358974 | BT46: 45.80697674 | BU46: -52.18823529 | BV46: 51.52580645 | BW46: 40.00810811 | BX46: 3.277272727 | BY46: -93.72407407 | BZ46: 29.53759398 | CA46: -102.16875 | CB46: -122.8314136 | CC46: -285.8141593 | CD46: -701.4859259 | CE46: -254.9563291 | CF46: -2152.196 | CG46: 813.1204545 | CH46: -3399.960194 | CI46: -1065.25122 | CL46: 0 | CM46: 0 | CN46: 0 | CP46: 37 | CQ46: P75 | CT46: 57.56 | CU46: 68.75 | CV46: 80.32 | CW46: 98.84 | CX46: 111.32 | CY46: 136.01 | CZ46: 187.84 | DA46: 245.91 | DB46: 327.7 | DC46: 459.68 | DD46: 709.49
A47: 36 | B47: P50 | E47: 32.4 | F47: 38.5 | G47: 38.4 | H47: 44.2 | I47: 47.1 | J47: 51.1 | K47: 61.9 | L47: 71.8 | M47: 82.3 | N47: 91.9 | O47: 105.9 | P47: 142.6 | Q47: 161.2 | R47: 224.3 | S47: 308.3 | T47: 394.4 | U47: 567.3 | V47: 717.1 | W47: 1255.8 | X47: 1341.5 | Y47: 1959.5 | Z47: 2751.2 | AG47: P50 | AH47: 0 | AI47: 2.314285714 | AJ47: 0.3210526316 | AK47: -0.004347826087 | AL47: 0.2 | AM47: 0.08787878788 | AN47: 0.1025641026 | AO47: 0.2511627907 | AP47: 0.1941176471 | AQ47: 0.1693548387 | AR47: 0.1297297297 | AS47: 0.1590909091 | AT47: 0.3398148148 | AU47: 0.1398496241 | AV47: 0.394375 | AW47: 0.4397905759 | AX47: 0.3809734513 | AY47: 0.6403703704 | AZ47: 0.4740506329 | BA47: 1.436533333 | BB47: 0.1947727273 | BC47: 1.2 | BD47: 1.287317073 | BG47: 0 | BH47: 0 | BI47: 0 | BL47: P50 | BM47: 0 | BN47: -210.6 | BO47: -1.310526316 | BP47: 39.03913043 | BQ47: 9 | BR47: 28.73333333 | BS47: 25.66410256 | BT47: -11.18837209 | BU47: 5.411764706 | BV47: 13.88064516 | BW47: 29.88918919 | BX47: 15.85454545 | BY47: -86.43518519 | BZ47: 48.34135338 | CA47: -157.060625 | CB47: -200.9774869 | CC47: -132.8672566 | CD47: -491.8725926 | CE47: -216.7797468 | CF47: -2112.870667 | CG47: 799.0579545 | CH47: -2000.5 | CI47: -2288.646341 | CL47: 0 | CM47: 0 | CN47: 0 | CP47: 38 | CQ47: P50 | CR47: 38.45 | CS47: 42.4 | CT47: 46.84 | CU47: 52.36 | CV47: 65.59 | CW47: 78.4 | CX47: 90.47 | CY47: 108.28 | CZ47: 149.87 | DA47: 203 | DB47: 291.15 | DC47: 389.83 | DD47: 580.1
A48: 37 | B48: P25 | F48: 33.1 | G48: 34.9 | H48: 39 | I48: 42.7 | J48: 45.1 | K48: 51.6 | L48: 58.4 | M48: 67.9 | N48: 76.4 | O48: 90.1 | P48: 109 | Q48: 130.4 | R48: 189 | S48: 242.6 | T48: 354.4 | U48: 437.2 | V48: 604.5 | W48: 855.5 | X48: 858.8 | Y48: 1522.4 | Z48: 2395.5 | AG48: P25 | AH48: 0 | AK48: 0.07826086957 | AL48: 0.1413793103 | AM48: 0.1121212121 | AN48: 0.06153846154 | AO48: 0.1511627907 | AP48: 0.1333333333 | AQ48: 0.1532258065 | AR48: 0.1148648649 | AS48: 0.1556818182 | AT48: 0.175 | AU48: 0.1609022556 | AV48: 0.36625 | AW48: 0.2806282723 | AX48: 0.4946902655 | AY48: 0.3066666667 | AZ48: 0.5294303797 | BA48: 0.6693333333 | BB48: 0.0075 | BC48: 1.288543689 | BD48: 1.419674797 | BG48: 0 | BH48: 0 | BI48: 0 | BL48: P25 | BM48: 0 | BP48: 23.39565217 | BQ48: 14.11724138 | BR48: 19.26666667 | BS48: 29.83846154 | BT48: 7.611627907 | BU48: 12.8 | BV48: 5.996774194 | BW48: 21.49459459 | BX48: 1.984090909 | BY48: -8.95 | BZ48: 0.5518796992 | CA48: -165.16375 | CB48: -82.36753927 | CC48: -330.2513274 | CD48: -70.02666667 | CE48: -438.4778481 | CF48: -714.0866667 | CG48: 837.9125 | CH48: -2729.794175 | CI48: -3162.526829 | CL48: 0 | CM48: 0 | CN48: 0 | CP48: 39 | CQ48: P25 | CR48: 34.04 | CS48: 37.73 | CT48: 42.36 | CU48: 45.86 | CV48: 54.13 | CW48: 64.38 | CX48: 75.14 | CY48: 91.33 | CZ48: 117.37 | DA48: 169.22 | DB48: 231.66 | DC48: 348.46 | DD48: 451.49
A49: 38 | B49: P10 | H49: 35.2 | I49: 39.3 | J49: 40.3 | K49: 46.3 | L49: 53.1 | M49: 59.1 | N49: 68.5 | O49: 81.7 | P49: 97.5 | Q49: 119.3 | R49: 167.7 | AG49: P10 | AH49: 0 | AM49: 0.1242424242 | AN49: 0.02564102564 | AO49: 0.1395348837 | AP49: 0.1333333333 | AQ49: 0.09677419355 | AR49: 0.127027027 | AS49: 0.15 | AT49: 0.1462962963 | AU49: 0.1639097744 | AV49: 0.3025 | BG49: 0 | BH49: 0 | BI49: 0 | BL49: P10 | BM49: 0 | BR49: 13.33333333 | BS49: 33.94102564 | BT49: 5.695348837 | BU49: 7.5 | BV49: 20.00322581 | BW49: 7.781081081 | BX49: -3.2 | BY49: -1.103703704 | BZ49: -12.97518797 | CA49: -124.8175 | CL49: 0 | CM49: 0 | CN49: 0 | CP49: 40 | CQ49: P10 | CT49: 38.93 | CU49: 41 | CV49: 48.83 | CW49: 56.87 | CX49: 67.1 | CY49: 82.72 | CZ49: 106.02 | DA49: 151.37
A50: 39 | B50: AVG | E50: 34.9 | F50: 42.3 | G50: 46.8 | H50: 48.4 | I50: 54.1 | J50: 57.8 | K50: 65.1 | L50: 78.6 | M50: 85 | N50: 96.5 | O50: 112.2 | P50: 146.7 | Q50: 173.3 | R50: 236 | S50: 311.6 | T50: 442.7 | U50: 590.6 | V50: 794.7 | W50: 1306.9 | X50: 1320.3 | Y50: 2175.6 | Z50: 2858.4 | AG50: AVG | AH50: 0 | AI50: 2.492857143 | AJ50: 0.3894736842 | AK50: 0.1956521739 | AL50: 0.05517241379 | AM50: 0.1727272727 | AN50: 0.09487179487 | AO50: 0.1697674419 | AP50: 0.2647058824 | AQ50: 0.1032258065 | AR50: 0.1554054054 | AS50: 0.1784090909 | AT50: 0.3194444444 | AU50: 0.2 | AV50: 0.391875 | AW50: 0.3958115183 | AX50: 0.5800884956 | AY50: 0.5477777778 | AZ50: 0.6458860759 | BA50: 1.365866667 | BB50: 0.03045454545 | BC50: 1.660776699 | BD50: 1.110243902 | BG50: 0 | BH50: 0 | BI50: 0 | BL50: AVG | BM50: 0 | BN50: -226.85 | BO50: -5.994736842 | BP50: 18.03913043 | BQ50: 38.68965517 | BR50: 18 | BS50: 34.27179487 | BT50: 15.69767442 | BU50: -11.92941176 | BV50: 43.29677419 | BW50: 22.21621622 | BX50: 11.22045455 | BY50: -68.60555556 | BZ50: 11.9 | CA50: -142.943125 | CB50: -146.7497382 | CC50: -360.1424779 | CD50: -315.4244444 | CE50: -477.6955696 | CF50: -1896.057333 | CG50: 1235.484091 | CH50: -3304.963107 | CI50: -1488.204878 | CL50: 0 | CM50: 0 | CN50: 0 | CP50: 41 | CQ50: AVG | CR50: 44.65 | CS50: 47.9 | CT50: 53.58 | CU50: 58.65 | CV50: 70.13 | CW50: 82.63 | CX50: 94.79 | CY50: 114.44 | CZ50: 157.1 | DA50: 214.84 | DB50: 296.16 | DC50: 435.74 | DD50: 608.04
A51: 40 | B51: N | E51: 4 | F51: 9 | G51: 10 | H51: 12 | I51: 12 | J51: 13 | K51: 13 | L51: 13 | M51: 13 | N51: 13 | O51: 13 | P51: 13 | Q51: 13 | R51: 13 | S51: 11 | T51: 10 | U51: 11 | V51: 10 | W51: 10 | X51: 9 | Y51: 9 | Z51: 9 | AG51: N | AH51: 0 | AI51: 0.2857142857 | AJ51: 0.2631578947 | AK51: 0.04347826087 | AL51: 0.06896551724 | AM51: 0 | AN51: 0.02564102564 | AO51: 0 | AP51: 0 | AQ51: 0 | AR51: 0 | AS51: 0 | AT51: 0 | AU51: 0 | AV51: 0 | AW51: -0.01047120419 | AX51: -0.004424778761 | AY51: 0.003703703704 | AZ51: -0.003164556962 | BA51: 0 | BB51: -0.002272727273 | BC51: 0 | BD51: 0 | BG51: 0 | BH51: 0 | BI51: 0 | BL51: N | BM51: 0 | BN51: -26 | BO51: -23.63157895 | BP51: 3.608695652 | BQ51: -0.1379310345 | BR51: 12 | BS51: 6.641025641 | BT51: 13 | BU51: 13 | BV51: 13 | BW51: 13 | BX51: 13 | BY51: 13 | BZ51: 13 | CA51: 13 | CB51: 23.12565445 | CC51: 16.12389381 | CD51: 4.874074074 | CE51: 16.23417722 | CF51: 10 | CG51: 15.32954545 | CH51: 9 | CI51: 9 | CL51: 0 | CM51: 0 | CN51: 0 | CP51: 42 | CQ51: N | CR51: 9.52 | CS51: 11.38 | CT51: 12 | CU51: 13 | CV51: 13 | CW51: 13 | CX51: 13 | CY51: 13 | CZ51: 13 | DA51: 13 | DB51: 11.41 | DC51: 10.05 | DD51: 10.91
A52: 41 | B52: TD_T / TC_T | AG52: TD_T / TC_T | AH52: 0 | AI52: 0 | AJ52: 0 | AK52: 0 | AL52: 0 | AM52: 0 | AN52: 0 | AO52: 0 | AP52: 0 | AQ52: 0 | AR52: 0 | AS52: 0 | AT52: 0 | AU52: 0 | AV52: 0 | AW52: 0 | AX52: 0 | AY52: 0 | AZ52: 0 | BA52: 0 | BB52: 0 | BC52: 0 | BD52: 0 | BE52: 0 | BF52: 0 | BG52: 0 | BH52: 0 | BI52: 0 | BL52: TD_T / TC_T | BM52: 0 | BN52: 0 | BO52: 0 | BP52: 0 | BQ52: 0 | BR52: 0 | BS52: 0 | BT52: 0 | BU52: 0 | BV52: 0 | BW52: 0 | BX52: 0 | BY52: 0 | BZ52: 0 | CA52: 0 | CB52: 0 | CC52: 0 | CD52: 0 | CE52: 0 | CF52: 0 | CG52: 0 | CH52: 0 | CI52: 0 | CJ52: 0 | CK52: 0 | CL52: 0 | CM52: 0 | CN52: 0 | CP52: 43 | CQ52: TD_T / TC_T | CR52: 0 | CS52: 0 | CT52: 0 | CU52: 0 | CV52: 0 | CW52: 0 | CX52: 0 | CY52: 0 | CZ52: 0 | DA52: 0 | DB52: 0 | DC52: 0 | DD52: 0
A53: 42 | B53: P90 | E53: =IFERROR(E45/E29,"*") -> * | F53: =IFERROR(F45/F29,"*") -> * | G53: * | H53: 1 | I53: 1 | J53: 1 | K53: 1 | L53: 1.023360288 | M53: 1.030594406 | N53: 1.006235386 | O53: 1.018404908 | P53: 1.094668118 | Q53: 1.202331002 | R53: 1.098933431 | S53: * | T53: * | U53: * | V53: * | W53: * | X53: * | Y53: * | Z53: * | AG53: P90 | AH53: 0 | AI53: 0 | AJ53: 0 | AK53: 0 | AL53: 0.03448275862 | AM53: 0 | AN53: 0 | AO53: 0 | AP53: 0.0004580448532 | AQ53: 0.0001166793239 | AR53: -0.000329175943 | AS53: 0.0001382900246 | AT53: 0.0007061408291 | AU53: 0.0008094953745 | AV53: -0.0006462348183 | AW53: -0.005753578175 | AX53: 0 | AY53: =(U53-T53)/(U$10-T$10) -> 0 | AZ53: 0 | BA53: 0 | BB53: 0 | BC53: 0 | BD53: 0 | BE53: 0 | BF53: 0 | BG53: 0 | BH53: 0 | BI53: 0 | BL53: P90 | BM53: 0 | BN53: 0 | BO53: 0 | BP53: 0 | BQ53: -5.068965517 | BR53: 1 | BS53: 1 | BT53: 1 | BU53: 0.8667089477 | BV53: 0.9834559587 | BW53: 1.163581487 | BX53: 0.9401327541 | BY53: 0.6187291987 | BZ53: 0.5490682351 | CA53: 1.723842501 | CB53: 6.662643527 | CC53: 0 | CD53: 0 | CE53: 0 | CF53: 0 | CG53: 0 | CH53: 0 | CI53: 0 | CJ53: 0 | CK53: 0 | CL53: 0 | CM53: 0 | CN53: 0 | CP53: 44 | CQ53: P90 | CR53: =ROUND((1+$CU$9)*(HLOOKUP(CR$10,$AH$9:$BI$180,$A53+3)*CR$10+HLOOKUP(CR$10,$BM$9:$CO$180,$A53+3)),$CX$9) -> 0 | CS53: 0.69 | CT53: 1 | CU53: 1 | CV53: 1.01 | CW53: 1.03 | CX53: 1.01 | CY53: 1.02 | CZ53: 1.14 | DA53: 1.13 | DB53: =ROUND((1+$CU$9)*(HLOOKUP(DB$10,$AH$9:$BI$180,$A53+3)*DB$10+HLOOKUP(DB$10,$BM$9:$CO$180,$A53+3)),$CX$9) -> 0.22 | DC53: 0 | DD53: 0
A54: 43 | B54: P75 | E54: =IFERROR(E46/E30,"*") -> * | F54: 1 | G54: * | H54: 1 | I54: 1 | J54: 1 | K54: 1 | L54: 1.012931034 | M54: 1.007928642 | N54: 1.01710171 | O54: 1.009090909 | P54: 1.057519473 | Q54: 1.052766393 | R54: 1.164772727 | S54: 1.145430287 | T54: 1.301507538 | U54: 1.607970343 | V54: 1.599013518 | W54: 2.000551268 | X54: 2.00050923 | Y54: 2.050633954 | Z54: 2.011481789 | AG54: P75 | AH54: 0 | AI54: 0 | AJ54: 0.05263157895 | AK54: -0.04347826087 | AL54: 0.03448275862 | AM54: 0 | AN54: 0 | AO54: 0 | AP54: 0.0002535496957 | AQ54: -8.068374617e-05 | AR54: 0.0001239603777 | AS54: -9.103183046e-05 | AT54: 0.0004484126264 | AU54: -3.573743831e-05 | AV54: 0.0007000395864 | AW54: -0.0001012693215 | AX54: 0.0006906073046 | AY54: 0.001135047427 | AZ54: -2.83443812e-05 | BA54: 0.001070767332 | BB54: -9.554119606e-08 | BC54: 9.732956073e-05 | BD54: -6.366205684e-05 | BE54: -0.002718218633 | BF54: 0 | BG54: 0 | BH54: 0 | BI54: 0 | BL54: P75 | BM54: 0 | BN54: 0 | BO54: -5.526315789 | BP54: 6.391304348 | BQ54: -5.068965517 | BR54: 1 | BS54: 1 | BT54: 1 | BU54: 0.9262170385 | BV54: 1.040524876 | BW54: 0.9578486496 | BX54: 1.060614925 | BY54: 0.7552893626 | BZ54: 1.081606506 | CA54: 0.4878344472 | CB54: 1.262700161 | CC54: 0.3457070282 | CD54: -0.2693981009 | CE54: 1.654851949 | CF54: -0.5103981254 | CG54: 2.000775312 | CH54: 1.729446403 | CI54: 2.260718741 | CJ54: 12.65330774 | CK54: 0 | CL54: 0 | CM54: 0 | CN54: 0 | CP54: 45 | CQ54: P75 | CR54: 0.48 | CS54: 0.69 | CT54: 1 | CU54: 1 | CV54: 1 | CW54: 1.01 | CX54: 1.02 | CY54: 1.01 | CZ54: 1.06 | DA54: 1.13 | DB54: 1.15 | DC54: 1.29 | DD54: 1.61
A55: 44 | B55: P50 | E55: =IFERROR(E47/E31,"*") -> 1 | F55: 1 | G55: 1 | H55: 1 | I55: 1 | J55: 1 | K55: 1 | L55: 1 | M55: 1 | N55: 1 | O55: 1 | P55: 1.038601602 | Q55: 1.060526316 | R55: 1.165194805 | S55: 1.263006964 | T55: 1.302079894 | U55: 1.531174089 | V55: 1.552500541 | W55: 1.879096214 | X55: 1.884658612 | Y55: 2.226704545 | Z55: 2.292666667 | AG55: P50 | AH55: 0 | AI55: 0.07142857143 | AJ55: 0 | AK55: 0 | AL55: 0 | AM55: 0 | AN55: 0 | AO55: 0 | AP55: 0 | AQ55: 0 | AR55: 0 | AS55: 0 | AT55: 0.0003574222438 | AU55: =(Q55-P55)/(Q$10-P$10) -> 0.0001648474696 | AV55: 0.0006541780588 | AW55: 0.0005121055454 | AX55: 0.0001728890708 | AY55: 0.0008484970175 | AZ55: 6.74887727e-05 | BA55: 0.0008709217948 | BB55: 1.264181294e-05 | BC55: 0.0006641668611 | BD55: 0.0001072554816 | BE55: -0.003098198198 | BF55: 0 | BG55: 0 | BH55: 0 | BI55: 0 | BL55: P50 | BM55: 0 | BN55: -6.5 | BO55: 1 | BP55: 1 | BQ55: 1 | BR55: 1 | BS55: 1 | BT55: 1 | BU55: 1 | BV55: 1 | BW55: 1 | BX55: 1 | BY55: 0.79769901 | BZ55: 0.9274944078 | CA55: 0.5326046224 | CB55: 0.6699887428 | CC55: 1.06280142 | CD55: 0.1277600222 | CE55: 1.419547659 | CF55: -0.1632153944 | CG55: 1.849451163 | CH55: 0.03495390371 | CI55: 1.872761456 | CJ55: 14.42211261 | CK55: 0 | CL55: 0 | CM55: 0 | CN55: 0 | CP55: 46 | CQ55: P50 | CR55: 1 | CS55: 1 | CT55: 1 | CU55: 1 | CV55: 1 | CW55: 1 | CX55: 1 | CY55: 1 | CZ55: 1.05 | DA55: 1.13 | DB55: 1.24 | DC55: 1.3 | DD55: 1.53
